Workbook

Sheet Měsíční rekapitulace
L1: 2015-01-01 | N1: 2015-01-31 | T1: =SUMIF(O1:O46,O11,Q1:Q46) -> 1013
A2: Zkratka projektu | E2: Název projektu | Q2: Počet hodin
A3: Řízení | E3: Řízení existujících a příprava nových projektů, realizovaných v rámci servisu | Q3: 50.5
A4: S-2109 | E4: Evidence revize závazku provedené z pověření správní rady | Q4: 37
A5: S-2398 | E5: (SLP) Oprávnění na změnu stavu řešení uzavřené ŠU s klasifikací 24_2a | Q5: 1.5
A6: S-2422 | E6: Výměna verze wrapperu | Q6: 8
A7: S-2508 | E7: Kontrola datumu ŠU | Q7: 2
A8: S-2546 | E8: Přechod na elektronický spis | Q8: 2.5
A9: S-2589 | E9: P3WS - Přepočítání hodnot IC - program SPSg | Q9: 30
A10: Servis2015 | E10: Práce podle servisní smlouvy na rok 2015 | Q10: 61
O11: suma: | Q11: =SUM(Q3:Q10) -> 192.5 | R11: =SUM(Q2:Q10) -> 192.5
L13: 2015-02-01 | N13: 2015-02-28
A14: Zkratka projektu | E14: Název projektu | Q14: Počet hodin
A15: Řízení | E15: Řízení existujících a příprava nových projektů, realizovaných v rámci servisu | Q15: 49
A16: S-1787 | E16: Automatické zasílání mailu | Q16: 2
A17: S-2414 | E17: Změna logování a uvolňování paměti webových aplikací | Q17: 16
A18: S-2546 | E18: Přechod na elektronický spis | Q18: 21
A19: S-2561 | E19: SALIPU nárok, který je v uzavřeném delegačním procesu | Q19: 1
A20: S-2682 | E20: P3WS - školení nastavování parametrů | Q20: 16.5
A21: S-2683 | E21: Změna algoritmu ACM pro interní aplikace | Q21: 6
A22: Servis2015 | E22: Práce podle servisní smlouvy na rok 2015 | Q22: 51
O23: suma: | Q23: =SUM(Q$11:Q$18) -> 280.5 | R23: =SUM(Q14:Q22) -> 162.5
L25: 2015-03-01 | N25: 2015-03-31
A26: Zkratka projektu | E26: Název projektu | Q26: Počet hodin
A27: Řízení | E27: Řízení existujících a příprava nových projektů, realizovaných v rámci servisu | Q27: 47
A28: S-2414 | E28: Změna logování a uvolňování paměti webových aplikací | Q28: 22.5
A29: S-2437 | E29: Úprava automatického uzavírání ŠU po revizi posledního závazku | Q29: 19
A30: S-2561 | E30: SALIPU nárok, který je v uzavřeném delegačním procesu | Q30: 11.5
A31: S-2628 | E31: Vyjmutí číselníku partnerů z metadat | Q31: 6
A32: S-2683 | E32: Změna algoritmu ACM pro interní aplikace | Q32: 12
A33: Servis2015 | E33: Práce podle servisní smlouvy na rok 2015 | Q33: 92.5
O34: suma: | Q34: =SUM(Q$11:Q$17) -> 259.5 | R34: =SUM(Q25:Q33) -> 210.5
L36: 2015-04-01 | N36: 2015-04-30
A37: Zkratka projektu | E37: Název projektu | Q37: Počet hodin
A38: Řízení | E38: Řízení existujících a příprava nových projektů, realizovaných v rámci servisu | Q38: 69.5
A39: S-1787 | E39: Automatické zasílání mailu | Q39: 3
A40: S-1868 | E40: Doplnění údajů předávaných Policií ČR do ČKP v rámci Relace DN | Q40: 92
A41: S-2437 | E41: Úprava automatického uzavírání ŠU po revizi posledního závazku | Q41: 7
A42: S-2628 | E42: Vyjmutí číselníku partnerů z metadat | Q42: 85.5
A43: S-2685 | E43: Rozšíření definice podtypů škody „ Totální škoda vozidla“ | Q43: 6
A44: S-2695 | E44: Úprava chování metody B1 - Get_NositelAgr | Q44: 49.5
A45: Servis2015 | E45: Práce podle servisní smlouvy na rok 2015 | Q45: 61.5
O46: suma: | Q46: =SUM(Q$11:Q$18) -> 280.5 | R46: =SUM(Q37:Q45) -> 374
L48: 2014-05-01 | N48: 2014-05-31
A49: Zkratka projektu | E49: Název projektu | Q49: Počet hodin
A50: Řízení | E50: Řízení existujících a příprava nových projektů, realizovaných v rámci servisu | Q50: 99
A51: S-1403 | E51: Připomínky z bezpečnostních testů WS B3 a L5 | Q51: 8.5
A52: S-1537 | E52: Rozšíření P1 o flotily | Q52: 35
A53: S-1936 | E53: Úprava business inteligence SLP | Q53: 40
A54: S-2024 | E54: Doplnění SSY do seznamu závazků | Q54: 10
A55: Servis2014 | E55: Práce podle servisní smlouvy na rok 2014 | Q55: 25.5
O56: suma: | Q56: =SUM(Q50:Q55) -> 218 | R56: =SUM(Q48:Q55) -> 218
L58: 2014-06-01 | N58: 2014-06-30
A59: Zkratka projektu | E59: Název projektu | Q59: Počet hodin
A60: Řízení | E60: Řízení existujících a příprava nových projektů, realizovaných v rámci servisu | Q60: 131
A61: S-1394 | E61: Změna chování WS B1 ve vztahu k velkým objemům dat | Q61: 27
A62: S-1537 | E62: Rozšíření P1 o flotily | Q62: 13
A63: S-1549 | E63: Kontrola tarifní skupiny „Tahač“ | Q63: 24
A64: S-1936 | E64: Úprava business inteligence SLP | Q64: 3
A65: S-2058 | E65: Úprava systému VR pro externí subsystém | Q65: 31
A66: S-559 | E66: Revize restriktivních pravidel u záznamu SetPrenosPSP (B1/L1) | Q66: 12
A67: S-633 | E67: (SLP) Předání svědka Salipu | Q67: 11
A68: Servis2014 | E68: Práce podle servisní smlouvy na rok 2014 | Q68: 31.5
O69: suma: | Q69: =SUM(Q60:Q68) -> 283.5 | R69: =SUM(Q60:Q68) -> 283.5
L71: 2014-07-01 | N71: 2014-07-31
A72: Zkratka projektu | E72: Název projektu | Q72: Počet hodin
A73: Řízení | E73: Řízení existujících a příprava nových projektů, realizovaných v rámci servisu | Q73: 82.5
A74: S-1322 | E74: Úprava zpracování nároků pro L6 | Q74: 23
A75: S-1394 | E75: Změna chování WS B1 ve vztahu k velkým objemům dat | Q75: 132
A76: S-1549 | E76: Kontrola tarifní skupiny „Tahač“ | Q76: 22.5
A77: S-1954 | E77: Původní záznamy adres | Q77: 16
A78: S-2058 | E78: Úprava systému VR pro externí subsystém | Q78: 2
A79: S-2126 | E79: Logování změněných přenesených znaků do FIS CODA | Q79: 2
A80: S-559 | E80: Revize restriktivních pravidel u záznamu SetPrenosPSP (B1/L1) | Q80: 58
A81: Servis2014 | E81: Práce podle servisní smlouvy na rok 2014 | Q81: 42
O82: suma: | Q82: =SUM(P73:Q81) -> 380 | R82: =SUM(Q73:Q81) -> 380
L84: 2014-08-01 | N84: 2014-08-31
A85: Zkratka projektu | E85: Název projektu | Q85: Počet hodin
A86: Řízení | E86: Řízení existujících a příprava nových projektů, realizovaných v rámci servisu | Q86: 90.5
A87: S-2058 | E87: Úprava systému VR pro externí subsystém | Q87: 290.5
A88: S-2162 | E88: Úprava APV pro zrychlení zpracování dávek L1 a P1 | Q88: 18
A89: Servis2014 | E89: Práce podle servisní smlouvy na rok 2014 | Q89: 26.5
O90: suma: | Q90: =SUM(Q86:Q89) -> 425.5
L93: 2014-09-01 | N93: 2014-09-30
A94: Zkratka projektu | E94: Název projektu | Q94: Počet hodin
A95: Řízení | E95: Řízení existujících a příprava nových projektů, realizovaných v rámci servisu | Q95: 48
A96: S-1154 | E96: Automatická kontrola POV | Q96: 4
A97: S-1936 | E97: Úprava business inteligence SLP | Q97: 58
A98: S-2058 | E98: Úprava systému VR pro externí subsystém | Q98: 7
A99: S-2126 | E99: Logování změněných přenesených znaků do FIS CODA | Q99: 17
A100: S-2259 | E100: Administrace plánovaných řídících operací | Q100: 3
A101: S-2260 | E101: Zrušené smlouvy a program XDSg | Q101: 27
A102: S-2263 | E102: Číselník SLP: "Hromadný přenos metadat" omezit právem | Q102: 6
A103: Servis2014 | E103: Práce podle servisní smlouvy na rok 2014 | Q103: 73.5
O104: suma: | Q104: =SUM(P95:Q103) -> 243.5 | R104: =SUM(Q95:Q103) -> 243.5
L106: 2014-10-01 | N106: 2014-10-31
A107: Zkratka projektu | E107: Název projektu | Q107: Počet hodin
A108: Řízení | E108: Řízení existujících a příprava nových projektů, realizovaných v rámci servisu | Q108: 31
A109: S-1975SYPO | E109: Úprava výdeje dat o ŠU – Protokol L6 | Q109: 5
A110: S-2259 | E110: Administrace plánovaných řídících operací | Q110: 46.5
A111: S-2260 | E111: Zrušené smlouvy a program XDSg | Q111: 2
A112: Servis2014 | E112: Práce podle servisní smlouvy na rok 2014 | Q112: 117
O113: suma: | Q113: =SUM(Q108:Q112) -> 201.5 | R113: =SUM(Q107:Q112) -> 201.5
L115: 2014-11-01 | N115: 2014-11-30
L117: 2015-11-01 | N117: 2015-11-30
A118: Zkratka projektu | E118: Název projektu | Q118: Počet hodin
A119: Řízení | E119: Řízení existujících a příprava nových projektů, realizovaných v rámci servisu | Q119: 31.5
A120: S-2151 | E120: Tvorba rezervy na odměnu Salipu | Q120: 22
A121: S-2398 | E121: (SLP) Oprávnění na změnu stavu řešení uzavřené ŠU s klasifikací 24_2a | Q121: 13
A122: Servis2014 | E122: Práce podle servisní smlouvy na rok 2014 | Q122: 27
O123: suma: | Q123: =SUM(Q119:Q122) -> 93.5 | R123: =SUM(Q118:Q122) -> 93.5
L127: 2015-12-01 | N127: 2015-12-30
A128: Zkratka projektu | E128: Název projektu | Q128: Počet hodin
A129: Řízení | E129: Řízení existujících a příprava nových projektů, realizovaných v rámci servisu | Q129: 31.5
A130: S-2151 | E130: Tvorba rezervy na odměnu Salipu | Q130: 22
A131: S-2398 | E131: (SLP) Oprávnění na změnu stavu řešení uzavřené ŠU s klasifikací 24_2a | Q131: 13
A132: Servis2014 | E132: Práce podle servisní smlouvy na rok 2014 | Q132: 27
O133: suma: | Q133: =SUM(Q129:Q132) -> 93.5 | R133: =SUM(Q128:Q132) -> 93.5
L137: 2015-12-01 | N137: 2016-12-31
A138: Zkratka projektu | E138: Název projektu | Q138: Počet hodin
A139: Řízení | E139: Řízení existujících a příprava nových projektů, realizovaných v rámci servisu | Q139: 31
A140: S-1975SYPO | E140: Úprava výdeje dat o ŠU – Protokol L6 | Q140: 5
A141: S-2259 | E141: Administrace plánovaných řídících operací | Q141: 46.5
A142: S-2260 | E142: Zrušené smlouvy a program XDSg | Q142: 2
A143: Servis2014 | E143: Práce podle servisní smlouvy na rok 2014 | Q143: 117
O144: suma: | Q144: =SUM(Q139:Q143) -> 201.5 | R144: =SUM(Q138:Q143) -> 201.5

Sheet Roční rekapitulace
B1: Celková spotřeba hodin | C1: =SUM(P6:P49) -> 1328
B2: Řízení | C2: =P6 -> 310 | D2: =C2/C1 -> 0.2334337349
B3: Servis | C3: =P7 -> 266 | D3: =C3/C1 -> 0.2003012048
D4: 2015-01-01 | E4: 2015-02-01 | F4: 2015-03-01 | G4: 2015-04-01 | H4: 2015-05-01 | I4: 2015-06-01 | J4: 2015-07-01 | K4: 2015-08-01 | L4: 2015-09-01 | M4: 2015-10-01 | N4: 2015-11-01 | O4: 2015-12-01
A5: Zkratka projektu | B5: Název projektu | C5: Čerpání v předchozím roce | D5: Počet hodin | E5: Počet hodin | F5: Počet hodin | G5: Počet hodin | H5: Počet hodin | I5: Počet hodin | J5: Počet hodin | K5: Počet hodin | L5: Počet hodin | M5: Počet hodin | N5: Počet hodin | O5: Počet hodin | P5: Celkem
A6: Řízení | B6: =IFERROR(INDEX('Měsíční rekapitulace'!E$3:E$999,MATCH(A6,'Měsíční rekapitulace'!A$3:A$999,)),"") -> Řízení existujících a příprava nových projektů, realizovaných v rámci servisu | D6: =IF($A6="",,SUMPRODUCT((LOOKUP(ROW(D$1:D$997),ROW(D$1:D$997)/ISNUMBER('Měsíční rekapitulace'!$L$1:$L$997),'Měsíční rekapitulace'!$L$1:$L$997)=D$4)*('Měsíční rekapitulace'!$A$3:$A$999=$A6)*TEXT('Měsíční rekapitulace'!$Q$3:$Q$999,"0,0;0;0;\0"))) -> 50.5 | E6: =IF($A6="",,SUMPRODUCT((LOOKUP(ROW(E$1:E$997),ROW(E$1:E$997)/ISNUMBER('Měsíční rekapitulace'!$L$1:$L$997),'Měsíční rekapitulace'!$L$1:$L$997)=E$4)*('Měsíční rekapitulace'!$A$3:$A$999=$A6)*TEXT('Měsíční rekapitulace'!$Q$3:$Q$999,"0,0;0;0;\0"))) -> 49 | F6: =IF($A6="",,SUMPRODUCT((LOOKUP(ROW(F$1:F$997),ROW(F$1:F$997)/ISNUMBER('Měsíční rekapitulace'!$L$1:$L$997),'Měsíční rekapitulace'!$L$1:$L$997)=F$4)*('Měsíční rekapitulace'!$A$3:$A$999=$A6)*TEXT('Měsíční rekapitulace'!$Q$3:$Q$999,"0,0;0;0;\0"))) -> 47 | G6: =IF($A6="",,SUMPRODUCT((LOOKUP(ROW(G$1:G$997),ROW(G$1:G$997)/ISNUMBER('Měsíční rekapitulace'!$L$1:$L$997),'Měsíční rekapitulace'!$L$1:$L$997)=G$4)*('Měsíční rekapitulace'!$A$3:$A$999=$A6)*TEXT('Měsíční rekapitulace'!$Q$3:$Q$999,"0,0;0;0;\0"))) -> 69.5 | H6: =IF($A6="",,SUMPRODUCT((LOOKUP(ROW(H$1:H$997),ROW(H$1:H$997)/ISNUMBER('Měsíční rekapitulace'!$L$1:$L$997),'Měsíční rekapitulace'!$L$1:$L$997)=H$4)*('Měsíční rekapitulace'!$A$3:$A$999=$A6)*TEXT('Měsíční rekapitulace'!$Q$3:$Q$999,"0,0;0;0;\0"))) -> 0 | I6: =IF($A6="",,SUMPRODUCT((LOOKUP(ROW(I$1:I$997),ROW(I$1:I$997)/ISNUMBER('Měsíční rekapitulace'!$L$1:$L$997),'Měsíční rekapitulace'!$L$1:$L$997)=I$4)*('Měsíční rekapitulace'!$A$3:$A$999=$A6)*TEXT('Měsíční rekapitulace'!$Q$3:$Q$999,"0,0;0;0;\0"))) -> 0 | J6: =IF($A6="",,SUMPRODUCT((LOOKUP(ROW(J$1:J$997),ROW(J$1:J$997)/ISNUMBER('Měsíční rekapitulace'!$L$1:$L$997),'Měsíční rekapitulace'!$L$1:$L$997)=J$4)*('Měsíční rekapitulace'!$A$3:$A$999=$A6)*TEXT('Měsíční rekapitulace'!$Q$3:$Q$999,"0,0;0;0;\0"))) -> 0 | K6: =IF($A6="",,SUMPRODUCT((LOOKUP(ROW(K$1:K$997),ROW(K$1:K$997)/ISNUMBER('Měsíční rekapitulace'!$L$1:$L$997),'Měsíční rekapitulace'!$L$1:$L$997)=K$4)*('Měsíční rekapitulace'!$A$3:$A$999=$A6)*TEXT('Měsíční rekapitulace'!$Q$3:$Q$999,"0,0;0;0;\0"))) -> 0 | L6: =IF($A6="",,SUMPRODUCT((LOOKUP(ROW(L$1:L$997),ROW(L$1:L$997)/ISNUMBER('Měsíční rekapitulace'!$L$1:$L$997),'Měsíční rekapitulace'!$L$1:$L$997)=L$4)*('Měsíční rekapitulace'!$A$3:$A$999=$A6)*TEXT('Měsíční rekapitulace'!$Q$3:$Q$999,"0,0;0;0;\0"))) -> 0 | M6: =IF($A6="",,SUMPRODUCT((LOOKUP(ROW(M$1:M$997),ROW(M$1:M$997)/ISNUMBER('Měsíční rekapitulace'!$L$1:$L$997),'Měsíční rekapitulace'!$L$1:$L$997)=M$4)*('Měsíční rekapitulace'!$A$3:$A$999=$A6)*TEXT('Měsíční rekapitulace'!$Q$3:$Q$999,"0,0;0;0;\0"))) -> 0 | N6: =IF($A6="",,SUMPRODUCT((LOOKUP(ROW(N$1:N$997),ROW(N$1:N$997)/ISNUMBER('Měsíční rekapitulace'!$L$1:$L$997),'Měsíční rekapitulace'!$L$1:$L$997)=N$4)*('Měsíční rekapitulace'!$A$3:$A$999=$A6)*TEXT('Měsíční rekapitulace'!$Q$3:$Q$999,"0,0;0;0;\0"))) -> 31.5 | O6: =IF($A6="",,SUMPRODUCT((LOOKUP(ROW(O$1:O$997),ROW(O$1:O$997)/ISNUMBER('Měsíční rekapitulace'!$L$1:$L$997),'Měsíční rekapitulace'!$L$1:$L$997)=O$4)*('Měsíční rekapitulace'!$A$3:$A$999=$A6)*TEXT('Měsíční rekapitulace'!$Q$3:$Q$999,"0,0;0;0;\0"))) -> 62.5 | P6: =SUM(C6:O6) -> 310
A7: Servis2015 | B7: =IFERROR(INDEX('Měsíční rekapitulace'!E$3:E$999,MATCH(A7,'Měsíční rekapitulace'!A$3:A$999,)),"") -> Práce podle servisní smlouvy na rok 2015 | D7: =IF($A7="",,SUMPRODUCT((LOOKUP(ROW(D$1:D$997),ROW(D$1:D$997)/ISNUMBER('Měsíční rekapitulace'!$L$1:$L$997),'Měsíční rekapitulace'!$L$1:$L$997)=D$4)*('Měsíční rekapitulace'!$A$3:$A$999=$A7)*TEXT('Měsíční rekapitulace'!$Q$3:$Q$999,"0,0;0;0;\0"))) -> 61 | E7: =IF($A7="",,SUMPRODUCT((LOOKUP(ROW(E$1:E$997),ROW(E$1:E$997)/ISNUMBER('Měsíční rekapitulace'!$L$1:$L$997),'Měsíční rekapitulace'!$L$1:$L$997)=E$4)*('Měsíční rekapitulace'!$A$3:$A$999=$A7)*TEXT('Měsíční rekapitulace'!$Q$3:$Q$999,"0,0;0;0;\0"))) -> 51 | F7: =IF($A7="",,SUMPRODUCT((LOOKUP(ROW(F$1:F$997),ROW(F$1:F$997)/ISNUMBER('Měsíční rekapitulace'!$L$1:$L$997),'Měsíční rekapitulace'!$L$1:$L$997)=F$4)*('Měsíční rekapitulace'!$A$3:$A$999=$A7)*TEXT('Měsíční rekapitulace'!$Q$3:$Q$999,"0,0;0;0;\0"))) -> 92.5 | G7: =IF($A7="",,SUMPRODUCT((LOOKUP(ROW(G$1:G$997),ROW(G$1:G$997)/ISNUMBER('Měsíční rekapitulace'!$L$1:$L$997),'Měsíční rekapitulace'!$L$1:$L$997)=G$4)*('Měsíční rekapitulace'!$A$3:$A$999=$A7)*TEXT('Měsíční rekapitulace'!$Q$3:$Q$999,"0,0;0;0;\0"))) -> 61.5 | H7: =IF($A7="",,SUMPRODUCT((LOOKUP(ROW(H$1:H$997),ROW(H$1:H$997)/ISNUMBER('Měsíční rekapitulace'!$L$1:$L$997),'Měsíční rekapitulace'!$L$1:$L$997)=H$4)*('Měsíční rekapitulace'!$A$3:$A$999=$A7)*TEXT('Měsíční rekapitulace'!$Q$3:$Q$999,"0,0;0;0;\0"))) -> 0 | I7: =IF($A7="",,SUMPRODUCT((LOOKUP(ROW(I$1:I$997),ROW(I$1:I$997)/ISNUMBER('Měsíční rekapitulace'!$L$1:$L$997),'Měsíční rekapitulace'!$L$1:$L$997)=I$4)*('Měsíční rekapitulace'!$A$3:$A$999=$A7)*TEXT('Měsíční rekapitulace'!$Q$3:$Q$999,"0,0;0;0;\0"))) -> 0 | J7: =IF($A7="",,SUMPRODUCT((LOOKUP(ROW(J$1:J$997),ROW(J$1:J$997)/ISNUMBER('Měsíční rekapitulace'!$L$1:$L$997),'Měsíční rekapitulace'!$L$1:$L$997)=J$4)*('Měsíční rekapitulace'!$A$3:$A$999=$A7)*TEXT('Měsíční rekapitulace'!$Q$3:$Q$999,"0,0;0;0;\0"))) -> 0 | K7: =IF($A7="",,SUMPRODUCT((LOOKUP(ROW(K$1:K$997),ROW(K$1:K$997)/ISNUMBER('Měsíční rekapitulace'!$L$1:$L$997),'Měsíční rekapitulace'!$L$1:$L$997)=K$4)*('Měsíční rekapitulace'!$A$3:$A$999=$A7)*TEXT('Měsíční rekapitulace'!$Q$3:$Q$999,"0,0;0;0;\0"))) -> 0 | L7: =IF($A7="",,SUMPRODUCT((LOOKUP(ROW(L$1:L$997),ROW(L$1:L$997)/ISNUMBER('Měsíční rekapitulace'!$L$1:$L$997),'Měsíční rekapitulace'!$L$1:$L$997)=L$4)*('Měsíční rekapitulace'!$A$3:$A$999=$A7)*TEXT('Měsíční rekapitulace'!$Q$3:$Q$999,"0,0;0;0;\0"))) -> 0 | M7: =IF($A7="",,SUMPRODUCT((LOOKUP(ROW(M$1:M$997),ROW(M$1:M$997)/ISNUMBER('Měsíční rekapitulace'!$L$1:$L$997),'Měsíční rekapitulace'!$L$1:$L$997)=M$4)*('Měsíční rekapitulace'!$A$3:$A$999=$A7)*TEXT('Měsíční rekapitulace'!$Q$3:$Q$999,"0,0;0;0;\0"))) -> 0 | N7: =IF($A7="",,SUMPRODUCT((LOOKUP(ROW(N$1:N$997),ROW(N$1:N$997)/ISNUMBER('Měsíční rekapitulace'!$L$1:$L$997),'Měsíční rekapitulace'!$L$1:$L$997)=N$4)*('Měsíční rekapitulace'!$A$3:$A$999=$A7)*TEXT('Měsíční rekapitulace'!$Q$3:$Q$999,"0,0;0;0;\0"))) -> 0 | O7: =IF($A7="",,SUMPRODUCT((LOOKUP(ROW(O$1:O$997),ROW(O$1:O$997)/ISNUMBER('Měsíční rekapitulace'!$L$1:$L$997),'Měsíční rekapitulace'!$L$1:$L$997)=O$4)*('Měsíční rekapitulace'!$A$3:$A$999=$A7)*TEXT('Měsíční rekapitulace'!$Q$3:$Q$999,"0,0;0;0;\0"))) -> 0 | P7: 266
A8: =IFERROR(INDEX('Měsíční rekapitulace'!A$3:A$999,SMALL(IF(('Měsíční rekapitulace'!A$3:A$999<>"")*('Měsíční rekapitulace'!A$3:A$999<>'Měsíční rekapitulace'!$A$2)*(COUNTIF(A$5:A7,'Měsíční rekapitulace'!A$3:A$999)=0),ROW('Měsíční rekapitulace'!A$3:A$999)-2),1)),"") -> S-2109 | B8: =IFERROR(INDEX('Měsíční rekapitulace'!E$3:E$999,MATCH(A8,'Měsíční rekapitulace'!A$3:A$999,)),"") -> Evidence revize závazku provedené z pověření správní rady | D8: =IF($A8="",,SUMPRODUCT((LOOKUP(ROW(D$1:D$997),ROW(D$1:D$997)/ISNUMBER('Měsíční rekapitulace'!$L$1:$L$997),'Měsíční rekapitulace'!$L$1:$L$997)=D$4)*('Měsíční rekapitulace'!$A$3:$A$999=$A8)*TEXT('Měsíční rekapitulace'!$Q$3:$Q$999,"0,0;0;0;\0"))) -> 37 | E8: =IF($A8="",,SUMPRODUCT((LOOKUP(ROW(E$1:E$997),ROW(E$1:E$997)/ISNUMBER('Měsíční rekapitulace'!$L$1:$L$997),'Měsíční rekapitulace'!$L$1:$L$997)=E$4)*('Měsíční rekapitulace'!$A$3:$A$999=$A8)*TEXT('Měsíční rekapitulace'!$Q$3:$Q$999,"0,0;0;0;\0"))) -> 0 | F8: =IF($A8="",,SUMPRODUCT((LOOKUP(ROW(F$1:F$997),ROW(F$1:F$997)/ISNUMBER('Měsíční rekapitulace'!$L$1:$L$997),'Měsíční rekapitulace'!$L$1:$L$997)=F$4)*('Měsíční rekapitulace'!$A$3:$A$999=$A8)*TEXT('Měsíční rekapitulace'!$Q$3:$Q$999,"0,0;0;0;\0"))) -> 0 | G8: =IF($A8="",,SUMPRODUCT((LOOKUP(ROW(G$1:G$997),ROW(G$1:G$997)/ISNUMBER('Měsíční rekapitulace'!$L$1:$L$997),'Měsíční rekapitulace'!$L$1:$L$997)=G$4)*('Měsíční rekapitulace'!$A$3:$A$999=$A8)*TEXT('Měsíční rekapitulace'!$Q$3:$Q$999,"0,0;0;0;\0"))) -> 0 | H8: =IF($A8="",,SUMPRODUCT((LOOKUP(ROW(H$1:H$997),ROW(H$1:H$997)/ISNUMBER('Měsíční rekapitulace'!$L$1:$L$997),'Měsíční rekapitulace'!$L$1:$L$997)=H$4)*('Měsíční rekapitulace'!$A$3:$A$999=$A8)*TEXT('Měsíční rekapitulace'!$Q$3:$Q$999,"0,0;0;0;\0"))) -> 0 | I8: =IF($A8="",,SUMPRODUCT((LOOKUP(ROW(I$1:I$997),ROW(I$1:I$997)/ISNUMBER('Měsíční rekapitulace'!$L$1:$L$997),'Měsíční rekapitulace'!$L$1:$L$997)=I$4)*('Měsíční rekapitulace'!$A$3:$A$999=$A8)*TEXT('Měsíční rekapitulace'!$Q$3:$Q$999,"0,0;0;0;\0"))) -> 0 | J8: =IF($A8="",,SUMPRODUCT((LOOKUP(ROW(J$1:J$997),ROW(J$1:J$997)/ISNUMBER('Měsíční rekapitulace'!$L$1:$L$997),'Měsíční rekapitulace'!$L$1:$L$997)=J$4)*('Měsíční rekapitulace'!$A$3:$A$999=$A8)*TEXT('Měsíční rekapitulace'!$Q$3:$Q$999,"0,0;0;0;\0"))) -> 0 | K8: =IF($A8="",,SUMPRODUCT((LOOKUP(ROW(K$1:K$997),ROW(K$1:K$997)/ISNUMBER('Měsíční rekapitulace'!$L$1:$L$997),'Měsíční rekapitulace'!$L$1:$L$997)=K$4)*('Měsíční rekapitulace'!$A$3:$A$999=$A8)*TEXT('Měsíční rekapitulace'!$Q$3:$Q$999,"0,0;0;0;\0"))) -> 0 | L8: =IF($A8="",,SUMPRODUCT((LOOKUP(ROW(L$1:L$997),ROW(L$1:L$997)/ISNUMBER('Měsíční rekapitulace'!$L$1:$L$997),'Měsíční rekapitulace'!$L$1:$L$997)=L$4)*('Měsíční rekapitulace'!$A$3:$A$999=$A8)*TEXT('Měsíční rekapitulace'!$Q$3:$Q$999,"0,0;0;0;\0"))) -> 0 | M8: =IF($A8="",,SUMPRODUCT((LOOKUP(ROW(M$1:M$997),ROW(M$1:M$997)/ISNUMBER('Měsíční rekapitulace'!$L$1:$L$997),'Měsíční rekapitulace'!$L$1:$L$997)=M$4)*('Měsíční rekapitulace'!$A$3:$A$999=$A8)*TEXT('Měsíční rekapitulace'!$Q$3:$Q$999,"0,0;0;0;\0"))) -> 0 | N8: =IF($A8="",,SUMPRODUCT((LOOKUP(ROW(N$1:N$997),ROW(N$1:N$997)/ISNUMBER('Měsíční rekapitulace'!$L$1:$L$997),'Měsíční rekapitulace'!$L$1:$L$997)=N$4)*('Měsíční rekapitulace'!$A$3:$A$999=$A8)*TEXT('Měsíční rekapitulace'!$Q$3:$Q$999,"0,0;0;0;\0"))) -> 0 | O8: =IF($A8="",,SUMPRODUCT((LOOKUP(ROW(O$1:O$997),ROW(O$1:O$997)/ISNUMBER('Měsíční rekapitulace'!$L$1:$L$997),'Měsíční rekapitulace'!$L$1:$L$997)=O$4)*('Měsíční rekapitulace'!$A$3:$A$999=$A8)*TEXT('Měsíční rekapitulace'!$Q$3:$Q$999,"0,0;0;0;\0"))) -> 0 | P8: 37
A9: =IFERROR(INDEX('Měsíční rekapitulace'!A$3:A$999,SMALL(IF(('Měsíční rekapitulace'!A$3:A$999<>"")*('Měsíční rekapitulace'!A$3:A$999<>'Měsíční rekapitulace'!$A$2)*(COUNTIF(A$5:A8,'Měsíční rekapitulace'!A$3:A$999)=0),ROW('Měsíční rekapitulace'!A$3:A$999)-2),1)),"") -> S-2398 | B9: =IFERROR(INDEX('Měsíční rekapitulace'!E$3:E$999,MATCH(A9,'Měsíční rekapitulace'!A$3:A$999,)),"") -> (SLP) Oprávnění na změnu stavu řešení uzavřené ŠU s klasifikací 24_2a | D9: =IF($A9="",,SUMPRODUCT((LOOKUP(ROW(D$1:D$997),ROW(D$1:D$997)/ISNUMBER('Měsíční rekapitulace'!$L$1:$L$997),'Měsíční rekapitulace'!$L$1:$L$997)=D$4)*('Měsíční rekapitulace'!$A$3:$A$999=$A9)*TEXT('Měsíční rekapitulace'!$Q$3:$Q$999,"0,0;0;0;\0"))) -> 1.5 | E9: =IF($A9="",,SUMPRODUCT((LOOKUP(ROW(E$1:E$997),ROW(E$1:E$997)/ISNUMBER('Měsíční rekapitulace'!$L$1:$L$997),'Měsíční rekapitulace'!$L$1:$L$997)=E$4)*('Měsíční rekapitulace'!$A$3:$A$999=$A9)*TEXT('Měsíční rekapitulace'!$Q$3:$Q$999,"0,0;0;0;\0"))) -> 0 | F9: =IF($A9="",,SUMPRODUCT((LOOKUP(ROW(F$1:F$997),ROW(F$1:F$997)/ISNUMBER('Měsíční rekapitulace'!$L$1:$L$997),'Měsíční rekapitulace'!$L$1:$L$997)=F$4)*('Měsíční rekapitulace'!$A$3:$A$999=$A9)*TEXT('Měsíční rekapitulace'!$Q$3:$Q$999,"0,0;0;0;\0"))) -> 0 | G9: =IF($A9="",,SUMPRODUCT((LOOKUP(ROW(G$1:G$997),ROW(G$1:G$997)/ISNUMBER('Měsíční rekapitulace'!$L$1:$L$997),'Měsíční rekapitulace'!$L$1:$L$997)=G$4)*('Měsíční rekapitulace'!$A$3:$A$999=$A9)*TEXT('Měsíční rekapitulace'!$Q$3:$Q$999,"0,0;0;0;\0"))) -> 0 | H9: =IF($A9="",,SUMPRODUCT((LOOKUP(ROW(H$1:H$997),ROW(H$1:H$997)/ISNUMBER('Měsíční rekapitulace'!$L$1:$L$997),'Měsíční rekapitulace'!$L$1:$L$997)=H$4)*('Měsíční rekapitulace'!$A$3:$A$999=$A9)*TEXT('Měsíční rekapitulace'!$Q$3:$Q$999,"0,0;0;0;\0"))) -> 0 | I9: =IF($A9="",,SUMPRODUCT((LOOKUP(ROW(I$1:I$997),ROW(I$1:I$997)/ISNUMBER('Měsíční rekapitulace'!$L$1:$L$997),'Měsíční rekapitulace'!$L$1:$L$997)=I$4)*('Měsíční rekapitulace'!$A$3:$A$999=$A9)*TEXT('Měsíční rekapitulace'!$Q$3:$Q$999,"0,0;0;0;\0"))) -> 0 | J9: =IF($A9="",,SUMPRODUCT((LOOKUP(ROW(J$1:J$997),ROW(J$1:J$997)/ISNUMBER('Měsíční rekapitulace'!$L$1:$L$997),'Měsíční rekapitulace'!$L$1:$L$997)=J$4)*('Měsíční rekapitulace'!$A$3:$A$999=$A9)*TEXT('Měsíční rekapitulace'!$Q$3:$Q$999,"0,0;0;0;\0"))) -> 0 | K9: =IF($A9="",,SUMPRODUCT((LOOKUP(ROW(K$1:K$997),ROW(K$1:K$997)/ISNUMBER('Měsíční rekapitulace'!$L$1:$L$997),'Měsíční rekapitulace'!$L$1:$L$997)=K$4)*('Měsíční rekapitulace'!$A$3:$A$999=$A9)*TEXT('Měsíční rekapitulace'!$Q$3:$Q$999,"0,0;0;0;\0"))) -> 0 | L9: =IF($A9="",,SUMPRODUCT((LOOKUP(ROW(L$1:L$997),ROW(L$1:L$997)/ISNUMBER('Měsíční rekapitulace'!$L$1:$L$997),'Měsíční rekapitulace'!$L$1:$L$997)=L$4)*('Měsíční rekapitulace'!$A$3:$A$999=$A9)*TEXT('Měsíční rekapitulace'!$Q$3:$Q$999,"0,0;0;0;\0"))) -> 0 | M9: =IF($A9="",,SUMPRODUCT((LOOKUP(ROW(M$1:M$997),ROW(M$1:M$997)/ISNUMBER('Měsíční rekapitulace'!$L$1:$L$997),'Měsíční rekapitulace'!$L$1:$L$997)=M$4)*('Měsíční rekapitulace'!$A$3:$A$999=$A9)*TEXT('Měsíční rekapitulace'!$Q$3:$Q$999,"0,0;0;0;\0"))) -> 0 | N9: =IF($A9="",,SUMPRODUCT((LOOKUP(ROW(N$1:N$997),ROW(N$1:N$997)/ISNUMBER('Měsíční rekapitulace'!$L$1:$L$997),'Měsíční rekapitulace'!$L$1:$L$997)=N$4)*('Měsíční rekapitulace'!$A$3:$A$999=$A9)*TEXT('Měsíční rekapitulace'!$Q$3:$Q$999,"0,0;0;0;\0"))) -> 13 | O9: =IF($A9="",,SUMPRODUCT((LOOKUP(ROW(O$1:O$997),ROW(O$1:O$997)/ISNUMBER('Měsíční rekapitulace'!$L$1:$L$997),'Měsíční rekapitulace'!$L$1:$L$997)=O$4)*('Měsíční rekapitulace'!$A$3:$A$999=$A9)*TEXT('Měsíční rekapitulace'!$Q$3:$Q$999,"0,0;0;0;\0"))) -> 13 | P9: 27.5
A10: =IFERROR(INDEX('Měsíční rekapitulace'!A$3:A$999,SMALL(IF(('Měsíční rekapitulace'!A$3:A$999<>"")*('Měsíční rekapitulace'!A$3:A$999<>'Měsíční rekapitulace'!$A$2)*(COUNTIF(A$5:A9,'Měsíční rekapitulace'!A$3:A$999)=0),ROW('Měsíční rekapitulace'!A$3:A$999)-2),1)),"") -> S-2422 | B10: =IFERROR(INDEX('Měsíční rekapitulace'!E$3:E$999,MATCH(A10,'Měsíční rekapitulace'!A$3:A$999,)),"") -> Výměna verze wrapperu | D10: =IF($A10="",,SUMPRODUCT((LOOKUP(ROW(D$1:D$997),ROW(D$1:D$997)/ISNUMBER('Měsíční rekapitulace'!$L$1:$L$997),'Měsíční rekapitulace'!$L$1:$L$997)=D$4)*('Měsíční rekapitulace'!$A$3:$A$999=$A10)*TEXT('Měsíční rekapitulace'!$Q$3:$Q$999,"0,0;0;0;\0"))) -> 8 | E10: =IF($A10="",,SUMPRODUCT((LOOKUP(ROW(E$1:E$997),ROW(E$1:E$997)/ISNUMBER('Měsíční rekapitulace'!$L$1:$L$997),'Měsíční rekapitulace'!$L$1:$L$997)=E$4)*('Měsíční rekapitulace'!$A$3:$A$999=$A10)*TEXT('Měsíční rekapitulace'!$Q$3:$Q$999,"0,0;0;0;\0"))) -> 0 | F10: =IF($A10="",,SUMPRODUCT((LOOKUP(ROW(F$1:F$997),ROW(F$1:F$997)/ISNUMBER('Měsíční rekapitulace'!$L$1:$L$997),'Měsíční rekapitulace'!$L$1:$L$997)=F$4)*('Měsíční rekapitulace'!$A$3:$A$999=$A10)*TEXT('Měsíční rekapitulace'!$Q$3:$Q$999,"0,0;0;0;\0"))) -> 0 | G10: =IF($A10="",,SUMPRODUCT((LOOKUP(ROW(G$1:G$997),ROW(G$1:G$997)/ISNUMBER('Měsíční rekapitulace'!$L$1:$L$997),'Měsíční rekapitulace'!$L$1:$L$997)=G$4)*('Měsíční rekapitulace'!$A$3:$A$999=$A10)*TEXT('Měsíční rekapitulace'!$Q$3:$Q$999,"0,0;0;0;\0"))) -> 0 | H10: =IF($A10="",,SUMPRODUCT((LOOKUP(ROW(H$1:H$997),ROW(H$1:H$997)/ISNUMBER('Měsíční rekapitulace'!$L$1:$L$997),'Měsíční rekapitulace'!$L$1:$L$997)=H$4)*('Měsíční rekapitulace'!$A$3:$A$999=$A10)*TEXT('Měsíční rekapitulace'!$Q$3:$Q$999,"0,0;0;0;\0"))) -> 0 | I10: =IF($A10="",,SUMPRODUCT((LOOKUP(ROW(I$1:I$997),ROW(I$1:I$997)/ISNUMBER('Měsíční rekapitulace'!$L$1:$L$997),'Měsíční rekapitulace'!$L$1:$L$997)=I$4)*('Měsíční rekapitulace'!$A$3:$A$999=$A10)*TEXT('Měsíční rekapitulace'!$Q$3:$Q$999,"0,0;0;0;\0"))) -> 0 | J10: =IF($A10="",,SUMPRODUCT((LOOKUP(ROW(J$1:J$997),ROW(J$1:J$997)/ISNUMBER('Měsíční rekapitulace'!$L$1:$L$997),'Měsíční rekapitulace'!$L$1:$L$997)=J$4)*('Měsíční rekapitulace'!$A$3:$A$999=$A10)*TEXT('Měsíční rekapitulace'!$Q$3:$Q$999,"0,0;0;0;\0"))) -> 0 | K10: =IF($A10="",,SUMPRODUCT((LOOKUP(ROW(K$1:K$997),ROW(K$1:K$997)/ISNUMBER('Měsíční rekapitulace'!$L$1:$L$997),'Měsíční rekapitulace'!$L$1:$L$997)=K$4)*('Měsíční rekapitulace'!$A$3:$A$999=$A10)*TEXT('Měsíční rekapitulace'!$Q$3:$Q$999,"0,0;0;0;\0"))) -> 0 | L10: =IF($A10="",,SUMPRODUCT((LOOKUP(ROW(L$1:L$997),ROW(L$1:L$997)/ISNUMBER('Měsíční rekapitulace'!$L$1:$L$997),'Měsíční rekapitulace'!$L$1:$L$997)=L$4)*('Měsíční rekapitulace'!$A$3:$A$999=$A10)*TEXT('Měsíční rekapitulace'!$Q$3:$Q$999,"0,0;0;0;\0"))) -> 0 | M10: =IF($A10="",,SUMPRODUCT((LOOKUP(ROW(M$1:M$997),ROW(M$1:M$997)/ISNUMBER('Měsíční rekapitulace'!$L$1:$L$997),'Měsíční rekapitulace'!$L$1:$L$997)=M$4)*('Měsíční rekapitulace'!$A$3:$A$999=$A10)*TEXT('Měsíční rekapitulace'!$Q$3:$Q$999,"0,0;0;0;\0"))) -> 0 | N10: =IF($A10="",,SUMPRODUCT((LOOKUP(ROW(N$1:N$997),ROW(N$1:N$997)/ISNUMBER('Měsíční rekapitulace'!$L$1:$L$997),'Měsíční rekapitulace'!$L$1:$L$997)=N$4)*('Měsíční rekapitulace'!$A$3:$A$999=$A10)*TEXT('Měsíční rekapitulace'!$Q$3:$Q$999,"0,0;0;0;\0"))) -> 0 | O10: =IF($A10="",,SUMPRODUCT((LOOKUP(ROW(O$1:O$997),ROW(O$1:O$997)/ISNUMBER('Měsíční rekapitulace'!$L$1:$L$997),'Měsíční rekapitulace'!$L$1:$L$997)=O$4)*('Měsíční rekapitulace'!$A$3:$A$999=$A10)*TEXT('Měsíční rekapitulace'!$Q$3:$Q$999,"0,0;0;0;\0"))) -> 0 | P10: 8
A11: =IFERROR(INDEX('Měsíční rekapitulace'!A$3:A$999,SMALL(IF(('Měsíční rekapitulace'!A$3:A$999<>"")*('Měsíční rekapitulace'!A$3:A$999<>'Měsíční rekapitulace'!$A$2)*(COUNTIF(A$5:A10,'Měsíční rekapitulace'!A$3:A$999)=0),ROW('Měsíční rekapitulace'!A$3:A$999)-2),1)),"") -> S-2508 | B11: =IFERROR(INDEX('Měsíční rekapitulace'!E$3:E$999,MATCH(A11,'Měsíční rekapitulace'!A$3:A$999,)),"") -> Kontrola datumu ŠU | D11: =IF($A11="",,SUMPRODUCT((LOOKUP(ROW(D$1:D$997),ROW(D$1:D$997)/ISNUMBER('Měsíční rekapitulace'!$L$1:$L$997),'Měsíční rekapitulace'!$L$1:$L$997)=D$4)*('Měsíční rekapitulace'!$A$3:$A$999=$A11)*TEXT('Měsíční rekapitulace'!$Q$3:$Q$999,"0,0;0;0;\0"))) -> 2 | E11: =IF($A11="",,SUMPRODUCT((LOOKUP(ROW(E$1:E$997),ROW(E$1:E$997)/ISNUMBER('Měsíční rekapitulace'!$L$1:$L$997),'Měsíční rekapitulace'!$L$1:$L$997)=E$4)*('Měsíční rekapitulace'!$A$3:$A$999=$A11)*TEXT('Měsíční rekapitulace'!$Q$3:$Q$999,"0,0;0;0;\0"))) -> 0 | F11: =IF($A11="",,SUMPRODUCT((LOOKUP(ROW(F$1:F$997),ROW(F$1:F$997)/ISNUMBER('Měsíční rekapitulace'!$L$1:$L$997),'Měsíční rekapitulace'!$L$1:$L$997)=F$4)*('Měsíční rekapitulace'!$A$3:$A$999=$A11)*TEXT('Měsíční rekapitulace'!$Q$3:$Q$999,"0,0;0;0;\0"))) -> 0 | G11: =IF($A11="",,SUMPRODUCT((LOOKUP(ROW(G$1:G$997),ROW(G$1:G$997)/ISNUMBER('Měsíční rekapitulace'!$L$1:$L$997),'Měsíční rekapitulace'!$L$1:$L$997)=G$4)*('Měsíční rekapitulace'!$A$3:$A$999=$A11)*TEXT('Měsíční rekapitulace'!$Q$3:$Q$999,"0,0;0;0;\0"))) -> 0 | H11: =IF($A11="",,SUMPRODUCT((LOOKUP(ROW(H$1:H$997),ROW(H$1:H$997)/ISNUMBER('Měsíční rekapitulace'!$L$1:$L$997),'Měsíční rekapitulace'!$L$1:$L$997)=H$4)*('Měsíční rekapitulace'!$A$3:$A$999=$A11)*TEXT('Měsíční rekapitulace'!$Q$3:$Q$999,"0,0;0;0;\0"))) -> 0 | I11: =IF($A11="",,SUMPRODUCT((LOOKUP(ROW(I$1:I$997),ROW(I$1:I$997)/ISNUMBER('Měsíční rekapitulace'!$L$1:$L$997),'Měsíční rekapitulace'!$L$1:$L$997)=I$4)*('Měsíční rekapitulace'!$A$3:$A$999=$A11)*TEXT('Měsíční rekapitulace'!$Q$3:$Q$999,"0,0;0;0;\0"))) -> 0 | J11: =IF($A11="",,SUMPRODUCT((LOOKUP(ROW(J$1:J$997),ROW(J$1:J$997)/ISNUMBER('Měsíční rekapitulace'!$L$1:$L$997),'Měsíční rekapitulace'!$L$1:$L$997)=J$4)*('Měsíční rekapitulace'!$A$3:$A$999=$A11)*TEXT('Měsíční rekapitulace'!$Q$3:$Q$999,"0,0;0;0;\0"))) -> 0 | K11: =IF($A11="",,SUMPRODUCT((LOOKUP(ROW(K$1:K$997),ROW(K$1:K$997)/ISNUMBER('Měsíční rekapitulace'!$L$1:$L$997),'Měsíční rekapitulace'!$L$1:$L$997)=K$4)*('Měsíční rekapitulace'!$A$3:$A$999=$A11)*TEXT('Měsíční rekapitulace'!$Q$3:$Q$999,"0,0;0;0;\0"))) -> 0 | L11: =IF($A11="",,SUMPRODUCT((LOOKUP(ROW(L$1:L$997),ROW(L$1:L$997)/ISNUMBER('Měsíční rekapitulace'!$L$1:$L$997),'Měsíční rekapitulace'!$L$1:$L$997)=L$4)*('Měsíční rekapitulace'!$A$3:$A$999=$A11)*TEXT('Měsíční rekapitulace'!$Q$3:$Q$999,"0,0;0;0;\0"))) -> 0 | M11: =IF($A11="",,SUMPRODUCT((LOOKUP(ROW(M$1:M$997),ROW(M$1:M$997)/ISNUMBER('Měsíční rekapitulace'!$L$1:$L$997),'Měsíční rekapitulace'!$L$1:$L$997)=M$4)*('Měsíční rekapitulace'!$A$3:$A$999=$A11)*TEXT('Měsíční rekapitulace'!$Q$3:$Q$999,"0,0;0;0;\0"))) -> 0 | N11: =IF($A11="",,SUMPRODUCT((LOOKUP(ROW(N$1:N$997),ROW(N$1:N$997)/ISNUMBER('Měsíční rekapitulace'!$L$1:$L$997),'Měsíční rekapitulace'!$L$1:$L$997)=N$4)*('Měsíční rekapitulace'!$A$3:$A$999=$A11)*TEXT('Měsíční rekapitulace'!$Q$3:$Q$999,"0,0;0;0;\0"))) -> 0 | O11: =IF($A11="",,SUMPRODUCT((LOOKUP(ROW(O$1:O$997),ROW(O$1:O$997)/ISNUMBER('Měsíční rekapitulace'!$L$1:$L$997),'Měsíční rekapitulace'!$L$1:$L$997)=O$4)*('Měsíční rekapitulace'!$A$3:$A$999=$A11)*TEXT('Měsíční rekapitulace'!$Q$3:$Q$999,"0,0;0;0;\0"))) -> 0 | P11: 2
A12: =IFERROR(INDEX('Měsíční rekapitulace'!A$3:A$999,SMALL(IF(('Měsíční rekapitulace'!A$3:A$999<>"")*('Měsíční rekapitulace'!A$3:A$999<>'Měsíční rekapitulace'!$A$2)*(COUNTIF(A$5:A11,'Měsíční rekapitulace'!A$3:A$999)=0),ROW('Měsíční rekapitulace'!A$3:A$999)-2),1)),"") -> S-2546 | B12: =IFERROR(INDEX('Měsíční rekapitulace'!E$3:E$999,MATCH(A12,'Měsíční rekapitulace'!A$3:A$999,)),"") -> Přechod na elektronický spis | D12: =IF($A12="",,SUMPRODUCT((LOOKUP(ROW(D$1:D$997),ROW(D$1:D$997)/ISNUMBER('Měsíční rekapitulace'!$L$1:$L$997),'Měsíční rekapitulace'!$L$1:$L$997)=D$4)*('Měsíční rekapitulace'!$A$3:$A$999=$A12)*TEXT('Měsíční rekapitulace'!$Q$3:$Q$999,"0,0;0;0;\0"))) -> 2.5 | E12: =IF($A12="",,SUMPRODUCT((LOOKUP(ROW(E$1:E$997),ROW(E$1:E$997)/ISNUMBER('Měsíční rekapitulace'!$L$1:$L$997),'Měsíční rekapitulace'!$L$1:$L$997)=E$4)*('Měsíční rekapitulace'!$A$3:$A$999=$A12)*TEXT('Měsíční rekapitulace'!$Q$3:$Q$999,"0,0;0;0;\0"))) -> 21 | F12: =IF($A12="",,SUMPRODUCT((LOOKUP(ROW(F$1:F$997),ROW(F$1:F$997)/ISNUMBER('Měsíční rekapitulace'!$L$1:$L$997),'Měsíční rekapitulace'!$L$1:$L$997)=F$4)*('Měsíční rekapitulace'!$A$3:$A$999=$A12)*TEXT('Měsíční rekapitulace'!$Q$3:$Q$999,"0,0;0;0;\0"))) -> 0 | G12: =IF($A12="",,SUMPRODUCT((LOOKUP(ROW(G$1:G$997),ROW(G$1:G$997)/ISNUMBER('Měsíční rekapitulace'!$L$1:$L$997),'Měsíční rekapitulace'!$L$1:$L$997)=G$4)*('Měsíční rekapitulace'!$A$3:$A$999=$A12)*TEXT('Měsíční rekapitulace'!$Q$3:$Q$999,"0,0;0;0;\0"))) -> 0 | H12: =IF($A12="",,SUMPRODUCT((LOOKUP(ROW(H$1:H$997),ROW(H$1:H$997)/ISNUMBER('Měsíční rekapitulace'!$L$1:$L$997),'Měsíční rekapitulace'!$L$1:$L$997)=H$4)*('Měsíční rekapitulace'!$A$3:$A$999=$A12)*TEXT('Měsíční rekapitulace'!$Q$3:$Q$999,"0,0;0;0;\0"))) -> 0 | I12: =IF($A12="",,SUMPRODUCT((LOOKUP(ROW(I$1:I$997),ROW(I$1:I$997)/ISNUMBER('Měsíční rekapitulace'!$L$1:$L$997),'Měsíční rekapitulace'!$L$1:$L$997)=I$4)*('Měsíční rekapitulace'!$A$3:$A$999=$A12)*TEXT('Měsíční rekapitulace'!$Q$3:$Q$999,"0,0;0;0;\0"))) -> 0 | J12: =IF($A12="",,SUMPRODUCT((LOOKUP(ROW(J$1:J$997),ROW(J$1:J$997)/ISNUMBER('Měsíční rekapitulace'!$L$1:$L$997),'Měsíční rekapitulace'!$L$1:$L$997)=J$4)*('Měsíční rekapitulace'!$A$3:$A$999=$A12)*TEXT('Měsíční rekapitulace'!$Q$3:$Q$999,"0,0;0;0;\0"))) -> 0 | K12: =IF($A12="",,SUMPRODUCT((LOOKUP(ROW(K$1:K$997),ROW(K$1:K$997)/ISNUMBER('Měsíční rekapitulace'!$L$1:$L$997),'Měsíční rekapitulace'!$L$1:$L$997)=K$4)*('Měsíční rekapitulace'!$A$3:$A$999=$A12)*TEXT('Měsíční rekapitulace'!$Q$3:$Q$999,"0,0;0;0;\0"))) -> 0 | L12: =IF($A12="",,SUMPRODUCT((LOOKUP(ROW(L$1:L$997),ROW(L$1:L$997)/ISNUMBER('Měsíční rekapitulace'!$L$1:$L$997),'Měsíční rekapitulace'!$L$1:$L$997)=L$4)*('Měsíční rekapitulace'!$A$3:$A$999=$A12)*TEXT('Měsíční rekapitulace'!$Q$3:$Q$999,"0,0;0;0;\0"))) -> 0 | M12: =IF($A12="",,SUMPRODUCT((LOOKUP(ROW(M$1:M$997),ROW(M$1:M$997)/ISNUMBER('Měsíční rekapitulace'!$L$1:$L$997),'Měsíční rekapitulace'!$L$1:$L$997)=M$4)*('Měsíční rekapitulace'!$A$3:$A$999=$A12)*TEXT('Měsíční rekapitulace'!$Q$3:$Q$999,"0,0;0;0;\0"))) -> 0 | N12: =IF($A12="",,SUMPRODUCT((LOOKUP(ROW(N$1:N$997),ROW(N$1:N$997)/ISNUMBER('Měsíční rekapitulace'!$L$1:$L$997),'Měsíční rekapitulace'!$L$1:$L$997)=N$4)*('Měsíční rekapitulace'!$A$3:$A$999=$A12)*TEXT('Měsíční rekapitulace'!$Q$3:$Q$999,"0,0;0;0;\0"))) -> 0 | O12: =IF($A12="",,SUMPRODUCT((LOOKUP(ROW(O$1:O$997),ROW(O$1:O$997)/ISNUMBER('Měsíční rekapitulace'!$L$1:$L$997),'Měsíční rekapitulace'!$L$1:$L$997)=O$4)*('Měsíční rekapitulace'!$A$3:$A$999=$A12)*TEXT('Měsíční rekapitulace'!$Q$3:$Q$999,"0,0;0;0;\0"))) -> 0 | P12: 23.5
A13: =IFERROR(INDEX('Měsíční rekapitulace'!A$3:A$999,SMALL(IF(('Měsíční rekapitulace'!A$3:A$999<>"")*('Měsíční rekapitulace'!A$3:A$999<>'Měsíční rekapitulace'!$A$2)*(COUNTIF(A$5:A12,'Měsíční rekapitulace'!A$3:A$999)=0),ROW('Měsíční rekapitulace'!A$3:A$999)-2),1)),"") -> S-2589 | B13: =IFERROR(INDEX('Měsíční rekapitulace'!E$3:E$999,MATCH(A13,'Měsíční rekapitulace'!A$3:A$999,)),"") -> P3WS - Přepočítání hodnot IC - program SPSg | D13: =IF($A13="",,SUMPRODUCT((LOOKUP(ROW(D$1:D$997),ROW(D$1:D$997)/ISNUMBER('Měsíční rekapitulace'!$L$1:$L$997),'Měsíční rekapitulace'!$L$1:$L$997)=D$4)*('Měsíční rekapitulace'!$A$3:$A$999=$A13)*TEXT('Měsíční rekapitulace'!$Q$3:$Q$999,"0,0;0;0;\0"))) -> 30 | E13: =IF($A13="",,SUMPRODUCT((LOOKUP(ROW(E$1:E$997),ROW(E$1:E$997)/ISNUMBER('Měsíční rekapitulace'!$L$1:$L$997),'Měsíční rekapitulace'!$L$1:$L$997)=E$4)*('Měsíční rekapitulace'!$A$3:$A$999=$A13)*TEXT('Měsíční rekapitulace'!$Q$3:$Q$999,"0,0;0;0;\0"))) -> 0 | F13: =IF($A13="",,SUMPRODUCT((LOOKUP(ROW(F$1:F$997),ROW(F$1:F$997)/ISNUMBER('Měsíční rekapitulace'!$L$1:$L$997),'Měsíční rekapitulace'!$L$1:$L$997)=F$4)*('Měsíční rekapitulace'!$A$3:$A$999=$A13)*TEXT('Měsíční rekapitulace'!$Q$3:$Q$999,"0,0;0;0;\0"))) -> 0 | G13: =IF($A13="",,SUMPRODUCT((LOOKUP(ROW(G$1:G$997),ROW(G$1:G$997)/ISNUMBER('Měsíční rekapitulace'!$L$1:$L$997),'Měsíční rekapitulace'!$L$1:$L$997)=G$4)*('Měsíční rekapitulace'!$A$3:$A$999=$A13)*TEXT('Měsíční rekapitulace'!$Q$3:$Q$999,"0,0;0;0;\0"))) -> 0 | H13: =IF($A13="",,SUMPRODUCT((LOOKUP(ROW(H$1:H$997),ROW(H$1:H$997)/ISNUMBER('Měsíční rekapitulace'!$L$1:$L$997),'Měsíční rekapitulace'!$L$1:$L$997)=H$4)*('Měsíční rekapitulace'!$A$3:$A$999=$A13)*TEXT('Měsíční rekapitulace'!$Q$3:$Q$999,"0,0;0;0;\0"))) -> 0 | I13: =IF($A13="",,SUMPRODUCT((LOOKUP(ROW(I$1:I$997),ROW(I$1:I$997)/ISNUMBER('Měsíční rekapitulace'!$L$1:$L$997),'Měsíční rekapitulace'!$L$1:$L$997)=I$4)*('Měsíční rekapitulace'!$A$3:$A$999=$A13)*TEXT('Měsíční rekapitulace'!$Q$3:$Q$999,"0,0;0;0;\0"))) -> 0 | J13: =IF($A13="",,SUMPRODUCT((LOOKUP(ROW(J$1:J$997),ROW(J$1:J$997)/ISNUMBER('Měsíční rekapitulace'!$L$1:$L$997),'Měsíční rekapitulace'!$L$1:$L$997)=J$4)*('Měsíční rekapitulace'!$A$3:$A$999=$A13)*TEXT('Měsíční rekapitulace'!$Q$3:$Q$999,"0,0;0;0;\0"))) -> 0 | K13: =IF($A13="",,SUMPRODUCT((LOOKUP(ROW(K$1:K$997),ROW(K$1:K$997)/ISNUMBER('Měsíční rekapitulace'!$L$1:$L$997),'Měsíční rekapitulace'!$L$1:$L$997)=K$4)*('Měsíční rekapitulace'!$A$3:$A$999=$A13)*TEXT('Měsíční rekapitulace'!$Q$3:$Q$999,"0,0;0;0;\0"))) -> 0 | L13: =IF($A13="",,SUMPRODUCT((LOOKUP(ROW(L$1:L$997),ROW(L$1:L$997)/ISNUMBER('Měsíční rekapitulace'!$L$1:$L$997),'Měsíční rekapitulace'!$L$1:$L$997)=L$4)*('Měsíční rekapitulace'!$A$3:$A$999=$A13)*TEXT('Měsíční rekapitulace'!$Q$3:$Q$999,"0,0;0;0;\0"))) -> 0 | M13: =IF($A13="",,SUMPRODUCT((LOOKUP(ROW(M$1:M$997),ROW(M$1:M$997)/ISNUMBER('Měsíční rekapitulace'!$L$1:$L$997),'Měsíční rekapitulace'!$L$1:$L$997)=M$4)*('Měsíční rekapitulace'!$A$3:$A$999=$A13)*TEXT('Měsíční rekapitulace'!$Q$3:$Q$999,"0,0;0;0;\0"))) -> 0 | N13: =IF($A13="",,SUMPRODUCT((LOOKUP(ROW(N$1:N$997),ROW(N$1:N$997)/ISNUMBER('Měsíční rekapitulace'!$L$1:$L$997),'Měsíční rekapitulace'!$L$1:$L$997)=N$4)*('Měsíční rekapitulace'!$A$3:$A$999=$A13)*TEXT('Měsíční rekapitulace'!$Q$3:$Q$999,"0,0;0;0;\0"))) -> 0 | O13: =IF($A13="",,SUMPRODUCT((LOOKUP(ROW(O$1:O$997),ROW(O$1:O$997)/ISNUMBER('Měsíční rekapitulace'!$L$1:$L$997),'Měsíční rekapitulace'!$L$1:$L$997)=O$4)*('Měsíční rekapitulace'!$A$3:$A$999=$A13)*TEXT('Měsíční rekapitulace'!$Q$3:$Q$999,"0,0;0;0;\0"))) -> 0 | P13: 30
A14: =IFERROR(INDEX('Měsíční rekapitulace'!A$3:A$999,SMALL(IF(('Měsíční rekapitulace'!A$3:A$999<>"")*('Měsíční rekapitulace'!A$3:A$999<>'Měsíční rekapitulace'!$A$2)*(COUNTIF(A$5:A13,'Měsíční rekapitulace'!A$3:A$999)=0),ROW('Měsíční rekapitulace'!A$3:A$999)-2),1)),"") -> S-1787 | B14: =IFERROR(INDEX('Měsíční rekapitulace'!E$3:E$999,MATCH(A14,'Měsíční rekapitulace'!A$3:A$999,)),"") -> Automatické zasílání mailu | D14: =IF($A14="",,SUMPRODUCT((LOOKUP(ROW(D$1:D$997),ROW(D$1:D$997)/ISNUMBER('Měsíční rekapitulace'!$L$1:$L$997),'Měsíční rekapitulace'!$L$1:$L$997)=D$4)*('Měsíční rekapitulace'!$A$3:$A$999=$A14)*TEXT('Měsíční rekapitulace'!$Q$3:$Q$999,"0,0;0;0;\0"))) -> 0 | E14: =IF($A14="",,SUMPRODUCT((LOOKUP(ROW(E$1:E$997),ROW(E$1:E$997)/ISNUMBER('Měsíční rekapitulace'!$L$1:$L$997),'Měsíční rekapitulace'!$L$1:$L$997)=E$4)*('Měsíční rekapitulace'!$A$3:$A$999=$A14)*TEXT('Měsíční rekapitulace'!$Q$3:$Q$999,"0,0;0;0;\0"))) -> 2 | F14: =IF($A14="",,SUMPRODUCT((LOOKUP(ROW(F$1:F$997),ROW(F$1:F$997)/ISNUMBER('Měsíční rekapitulace'!$L$1:$L$997),'Měsíční rekapitulace'!$L$1:$L$997)=F$4)*('Měsíční rekapitulace'!$A$3:$A$999=$A14)*TEXT('Měsíční rekapitulace'!$Q$3:$Q$999,"0,0;0;0;\0"))) -> 0 | G14: =IF($A14="",,SUMPRODUCT((LOOKUP(ROW(G$1:G$997),ROW(G$1:G$997)/ISNUMBER('Měsíční rekapitulace'!$L$1:$L$997),'Měsíční rekapitulace'!$L$1:$L$997)=G$4)*('Měsíční rekapitulace'!$A$3:$A$999=$A14)*TEXT('Měsíční rekapitulace'!$Q$3:$Q$999,"0,0;0;0;\0"))) -> 3 | H14: =IF($A14="",,SUMPRODUCT((LOOKUP(ROW(H$1:H$997),ROW(H$1:H$997)/ISNUMBER('Měsíční rekapitulace'!$L$1:$L$997),'Měsíční rekapitulace'!$L$1:$L$997)=H$4)*('Měsíční rekapitulace'!$A$3:$A$999=$A14)*TEXT('Měsíční rekapitulace'!$Q$3:$Q$999,"0,0;0;0;\0"))) -> 0 | I14: =IF($A14="",,SUMPRODUCT((LOOKUP(ROW(I$1:I$997),ROW(I$1:I$997)/ISNUMBER('Měsíční rekapitulace'!$L$1:$L$997),'Měsíční rekapitulace'!$L$1:$L$997)=I$4)*('Měsíční rekapitulace'!$A$3:$A$999=$A14)*TEXT('Měsíční rekapitulace'!$Q$3:$Q$999,"0,0;0;0;\0"))) -> 0 | J14: =IF($A14="",,SUMPRODUCT((LOOKUP(ROW(J$1:J$997),ROW(J$1:J$997)/ISNUMBER('Měsíční rekapitulace'!$L$1:$L$997),'Měsíční rekapitulace'!$L$1:$L$997)=J$4)*('Měsíční rekapitulace'!$A$3:$A$999=$A14)*TEXT('Měsíční rekapitulace'!$Q$3:$Q$999,"0,0;0;0;\0"))) -> 0 | K14: =IF($A14="",,SUMPRODUCT((LOOKUP(ROW(K$1:K$997),ROW(K$1:K$997)/ISNUMBER('Měsíční rekapitulace'!$L$1:$L$997),'Měsíční rekapitulace'!$L$1:$L$997)=K$4)*('Měsíční rekapitulace'!$A$3:$A$999=$A14)*TEXT('Měsíční rekapitulace'!$Q$3:$Q$999,"0,0;0;0;\0"))) -> 0 | L14: =IF($A14="",,SUMPRODUCT((LOOKUP(ROW(L$1:L$997),ROW(L$1:L$997)/ISNUMBER('Měsíční rekapitulace'!$L$1:$L$997),'Měsíční rekapitulace'!$L$1:$L$997)=L$4)*('Měsíční rekapitulace'!$A$3:$A$999=$A14)*TEXT('Měsíční rekapitulace'!$Q$3:$Q$999,"0,0;0;0;\0"))) -> 0 | M14: =IF($A14="",,SUMPRODUCT((LOOKUP(ROW(M$1:M$997),ROW(M$1:M$997)/ISNUMBER('Měsíční rekapitulace'!$L$1:$L$997),'Měsíční rekapitulace'!$L$1:$L$997)=M$4)*('Měsíční rekapitulace'!$A$3:$A$999=$A14)*TEXT('Měsíční rekapitulace'!$Q$3:$Q$999,"0,0;0;0;\0"))) -> 0 | N14: =IF($A14="",,SUMPRODUCT((LOOKUP(ROW(N$1:N$997),ROW(N$1:N$997)/ISNUMBER('Měsíční rekapitulace'!$L$1:$L$997),'Měsíční rekapitulace'!$L$1:$L$997)=N$4)*('Měsíční rekapitulace'!$A$3:$A$999=$A14)*TEXT('Měsíční rekapitulace'!$Q$3:$Q$999,"0,0;0;0;\0"))) -> 0 | O14: =IF($A14="",,SUMPRODUCT((LOOKUP(ROW(O$1:O$997),ROW(O$1:O$997)/ISNUMBER('Měsíční rekapitulace'!$L$1:$L$997),'Měsíční rekapitulace'!$L$1:$L$997)=O$4)*('Měsíční rekapitulace'!$A$3:$A$999=$A14)*TEXT('Měsíční rekapitulace'!$Q$3:$Q$999,"0,0;0;0;\0"))) -> 0 | P14: 5
A15: =IFERROR(INDEX('Měsíční rekapitulace'!A$3:A$999,SMALL(IF(('Měsíční rekapitulace'!A$3:A$999<>"")*('Měsíční rekapitulace'!A$3:A$999<>'Měsíční rekapitulace'!$A$2)*(COUNTIF(A$5:A14,'Měsíční rekapitulace'!A$3:A$999)=0),ROW('Měsíční rekapitulace'!A$3:A$999)-2),1)),"") -> S-2414 | B15: =IFERROR(INDEX('Měsíční rekapitulace'!E$3:E$999,MATCH(A15,'Měsíční rekapitulace'!A$3:A$999,)),"") -> Změna logování a uvolňování paměti webových aplikací | D15: =IF($A15="",,SUMPRODUCT((LOOKUP(ROW(D$1:D$997),ROW(D$1:D$997)/ISNUMBER('Měsíční rekapitulace'!$L$1:$L$997),'Měsíční rekapitulace'!$L$1:$L$997)=D$4)*('Měsíční rekapitulace'!$A$3:$A$999=$A15)*TEXT('Měsíční rekapitulace'!$Q$3:$Q$999,"0,0;0;0;\0"))) -> 0 | E15: =IF($A15="",,SUMPRODUCT((LOOKUP(ROW(E$1:E$997),ROW(E$1:E$997)/ISNUMBER('Měsíční rekapitulace'!$L$1:$L$997),'Měsíční rekapitulace'!$L$1:$L$997)=E$4)*('Měsíční rekapitulace'!$A$3:$A$999=$A15)*TEXT('Měsíční rekapitulace'!$Q$3:$Q$999,"0,0;0;0;\0"))) -> 16 | F15: =IF($A15="",,SUMPRODUCT((LOOKUP(ROW(F$1:F$997),ROW(F$1:F$997)/ISNUMBER('Měsíční rekapitulace'!$L$1:$L$997),'Měsíční rekapitulace'!$L$1:$L$997)=F$4)*('Měsíční rekapitulace'!$A$3:$A$999=$A15)*TEXT('Měsíční rekapitulace'!$Q$3:$Q$999,"0,0;0;0;\0"))) -> 22.5 | G15: =IF($A15="",,SUMPRODUCT((LOOKUP(ROW(G$1:G$997),ROW(G$1:G$997)/ISNUMBER('Měsíční rekapitulace'!$L$1:$L$997),'Měsíční rekapitulace'!$L$1:$L$997)=G$4)*('Měsíční rekapitulace'!$A$3:$A$999=$A15)*TEXT('Měsíční rekapitulace'!$Q$3:$Q$999,"0,0;0;0;\0"))) -> 0 | H15: =IF($A15="",,SUMPRODUCT((LOOKUP(ROW(H$1:H$997),ROW(H$1:H$997)/ISNUMBER('Měsíční rekapitulace'!$L$1:$L$997),'Měsíční rekapitulace'!$L$1:$L$997)=H$4)*('Měsíční rekapitulace'!$A$3:$A$999=$A15)*TEXT('Měsíční rekapitulace'!$Q$3:$Q$999,"0,0;0;0;\0"))) -> 0 | I15: =IF($A15="",,SUMPRODUCT((LOOKUP(ROW(I$1:I$997),ROW(I$1:I$997)/ISNUMBER('Měsíční rekapitulace'!$L$1:$L$997),'Měsíční rekapitulace'!$L$1:$L$997)=I$4)*('Měsíční rekapitulace'!$A$3:$A$999=$A15)*TEXT('Měsíční rekapitulace'!$Q$3:$Q$999,"0,0;0;0;\0"))) -> 0 | J15: =IF($A15="",,SUMPRODUCT((LOOKUP(ROW(J$1:J$997),ROW(J$1:J$997)/ISNUMBER('Měsíční rekapitulace'!$L$1:$L$997),'Měsíční rekapitulace'!$L$1:$L$997)=J$4)*('Měsíční rekapitulace'!$A$3:$A$999=$A15)*TEXT('Měsíční rekapitulace'!$Q$3:$Q$999,"0,0;0;0;\0"))) -> 0 | K15: =IF($A15="",,SUMPRODUCT((LOOKUP(ROW(K$1:K$997),ROW(K$1:K$997)/ISNUMBER('Měsíční rekapitulace'!$L$1:$L$997),'Měsíční rekapitulace'!$L$1:$L$997)=K$4)*('Měsíční rekapitulace'!$A$3:$A$999=$A15)*TEXT('Měsíční rekapitulace'!$Q$3:$Q$999,"0,0;0;0;\0"))) -> 0 | L15: =IF($A15="",,SUMPRODUCT((LOOKUP(ROW(L$1:L$997),ROW(L$1:L$997)/ISNUMBER('Měsíční rekapitulace'!$L$1:$L$997),'Měsíční rekapitulace'!$L$1:$L$997)=L$4)*('Měsíční rekapitulace'!$A$3:$A$999=$A15)*TEXT('Měsíční rekapitulace'!$Q$3:$Q$999,"0,0;0;0;\0"))) -> 0 | M15: =IF($A15="",,SUMPRODUCT((LOOKUP(ROW(M$1:M$997),ROW(M$1:M$997)/ISNUMBER('Měsíční rekapitulace'!$L$1:$L$997),'Měsíční rekapitulace'!$L$1:$L$997)=M$4)*('Měsíční rekapitulace'!$A$3:$A$999=$A15)*TEXT('Měsíční rekapitulace'!$Q$3:$Q$999,"0,0;0;0;\0"))) -> 0 | N15: =IF($A15="",,SUMPRODUCT((LOOKUP(ROW(N$1:N$997),ROW(N$1:N$997)/ISNUMBER('Měsíční rekapitulace'!$L$1:$L$997),'Měsíční rekapitulace'!$L$1:$L$997)=N$4)*('Měsíční rekapitulace'!$A$3:$A$999=$A15)*TEXT('Měsíční rekapitulace'!$Q$3:$Q$999,"0,0;0;0;\0"))) -> 0 | O15: =IF($A15="",,SUMPRODUCT((LOOKUP(ROW(O$1:O$997),ROW(O$1:O$997)/ISNUMBER('Měsíční rekapitulace'!$L$1:$L$997),'Měsíční rekapitulace'!$L$1:$L$997)=O$4)*('Měsíční rekapitulace'!$A$3:$A$999=$A15)*TEXT('Měsíční rekapitulace'!$Q$3:$Q$999,"0,0;0;0;\0"))) -> 0 | P15: 38.5
A16: =IFERROR(INDEX('Měsíční rekapitulace'!A$3:A$999,SMALL(IF(('Měsíční rekapitulace'!A$3:A$999<>"")*('Měsíční rekapitulace'!A$3:A$999<>'Měsíční rekapitulace'!$A$2)*(COUNTIF(A$5:A15,'Měsíční rekapitulace'!A$3:A$999)=0),ROW('Měsíční rekapitulace'!A$3:A$999)-2),1)),"") -> S-2561 | B16: =IFERROR(INDEX('Měsíční rekapitulace'!E$3:E$999,MATCH(A16,'Měsíční rekapitulace'!A$3:A$999,)),"") -> SALIPU nárok, který je v uzavřeném delegačním procesu | D16: =IF($A16="",,SUMPRODUCT((LOOKUP(ROW(D$1:D$997),ROW(D$1:D$997)/ISNUMBER('Měsíční rekapitulace'!$L$1:$L$997),'Měsíční rekapitulace'!$L$1:$L$997)=D$4)*('Měsíční rekapitulace'!$A$3:$A$999=$A16)*TEXT('Měsíční rekapitulace'!$Q$3:$Q$999,"0,0;0;0;\0"))) -> 0 | E16: =IF($A16="",,SUMPRODUCT((LOOKUP(ROW(E$1:E$997),ROW(E$1:E$997)/ISNUMBER('Měsíční rekapitulace'!$L$1:$L$997),'Měsíční rekapitulace'!$L$1:$L$997)=E$4)*('Měsíční rekapitulace'!$A$3:$A$999=$A16)*TEXT('Měsíční rekapitulace'!$Q$3:$Q$999,"0,0;0;0;\0"))) -> 1 | F16: =IF($A16="",,SUMPRODUCT((LOOKUP(ROW(F$1:F$997),ROW(F$1:F$997)/ISNUMBER('Měsíční rekapitulace'!$L$1:$L$997),'Měsíční rekapitulace'!$L$1:$L$997)=F$4)*('Měsíční rekapitulace'!$A$3:$A$999=$A16)*TEXT('Měsíční rekapitulace'!$Q$3:$Q$999,"0,0;0;0;\0"))) -> 11.5 | G16: =IF($A16="",,SUMPRODUCT((LOOKUP(ROW(G$1:G$997),ROW(G$1:G$997)/ISNUMBER('Měsíční rekapitulace'!$L$1:$L$997),'Měsíční rekapitulace'!$L$1:$L$997)=G$4)*('Měsíční rekapitulace'!$A$3:$A$999=$A16)*TEXT('Měsíční rekapitulace'!$Q$3:$Q$999,"0,0;0;0;\0"))) -> 0 | H16: =IF($A16="",,SUMPRODUCT((LOOKUP(ROW(H$1:H$997),ROW(H$1:H$997)/ISNUMBER('Měsíční rekapitulace'!$L$1:$L$997),'Měsíční rekapitulace'!$L$1:$L$997)=H$4)*('Měsíční rekapitulace'!$A$3:$A$999=$A16)*TEXT('Měsíční rekapitulace'!$Q$3:$Q$999,"0,0;0;0;\0"))) -> 0 | I16: =IF($A16="",,SUMPRODUCT((LOOKUP(ROW(I$1:I$997),ROW(I$1:I$997)/ISNUMBER('Měsíční rekapitulace'!$L$1:$L$997),'Měsíční rekapitulace'!$L$1:$L$997)=I$4)*('Měsíční rekapitulace'!$A$3:$A$999=$A16)*TEXT('Měsíční rekapitulace'!$Q$3:$Q$999,"0,0;0;0;\0"))) -> 0 | J16: =IF($A16="",,SUMPRODUCT((LOOKUP(ROW(J$1:J$997),ROW(J$1:J$997)/ISNUMBER('Měsíční rekapitulace'!$L$1:$L$997),'Měsíční rekapitulace'!$L$1:$L$997)=J$4)*('Měsíční rekapitulace'!$A$3:$A$999=$A16)*TEXT('Měsíční rekapitulace'!$Q$3:$Q$999,"0,0;0;0;\0"))) -> 0 | K16: =IF($A16="",,SUMPRODUCT((LOOKUP(ROW(K$1:K$997),ROW(K$1:K$997)/ISNUMBER('Měsíční rekapitulace'!$L$1:$L$997),'Měsíční rekapitulace'!$L$1:$L$997)=K$4)*('Měsíční rekapitulace'!$A$3:$A$999=$A16)*TEXT('Měsíční rekapitulace'!$Q$3:$Q$999,"0,0;0;0;\0"))) -> 0 | L16: =IF($A16="",,SUMPRODUCT((LOOKUP(ROW(L$1:L$997),ROW(L$1:L$997)/ISNUMBER('Měsíční rekapitulace'!$L$1:$L$997),'Měsíční rekapitulace'!$L$1:$L$997)=L$4)*('Měsíční rekapitulace'!$A$3:$A$999=$A16)*TEXT('Měsíční rekapitulace'!$Q$3:$Q$999,"0,0;0;0;\0"))) -> 0 | M16: =IF($A16="",,SUMPRODUCT((LOOKUP(ROW(M$1:M$997),ROW(M$1:M$997)/ISNUMBER('Měsíční rekapitulace'!$L$1:$L$997),'Měsíční rekapitulace'!$L$1:$L$997)=M$4)*('Měsíční rekapitulace'!$A$3:$A$999=$A16)*TEXT('Měsíční rekapitulace'!$Q$3:$Q$999,"0,0;0;0;\0"))) -> 0 | N16: =IF($A16="",,SUMPRODUCT((LOOKUP(ROW(N$1:N$997),ROW(N$1:N$997)/ISNUMBER('Měsíční rekapitulace'!$L$1:$L$997),'Měsíční rekapitulace'!$L$1:$L$997)=N$4)*('Měsíční rekapitulace'!$A$3:$A$999=$A16)*TEXT('Měsíční rekapitulace'!$Q$3:$Q$999,"0,0;0;0;\0"))) -> 0 | O16: =IF($A16="",,SUMPRODUCT((LOOKUP(ROW(O$1:O$997),ROW(O$1:O$997)/ISNUMBER('Měsíční rekapitulace'!$L$1:$L$997),'Měsíční rekapitulace'!$L$1:$L$997)=O$4)*('Měsíční rekapitulace'!$A$3:$A$999=$A16)*TEXT('Měsíční rekapitulace'!$Q$3:$Q$999,"0,0;0;0;\0"))) -> 0 | P16: 12.5
A17: =IFERROR(INDEX('Měsíční rekapitulace'!A$3:A$999,SMALL(IF(('Měsíční rekapitulace'!A$3:A$999<>"")*('Měsíční rekapitulace'!A$3:A$999<>'Měsíční rekapitulace'!$A$2)*(COUNTIF(A$5:A16,'Měsíční rekapitulace'!A$3:A$999)=0),ROW('Měsíční rekapitulace'!A$3:A$999)-2),1)),"") -> S-2682 | B17: =IFERROR(INDEX('Měsíční rekapitulace'!E$3:E$999,MATCH(A17,'Měsíční rekapitulace'!A$3:A$999,)),"") -> P3WS - školení nastavování parametrů | D17: =IF($A17="",,SUMPRODUCT((LOOKUP(ROW(D$1:D$997),ROW(D$1:D$997)/ISNUMBER('Měsíční rekapitulace'!$L$1:$L$997),'Měsíční rekapitulace'!$L$1:$L$997)=D$4)*('Měsíční rekapitulace'!$A$3:$A$999=$A17)*TEXT('Měsíční rekapitulace'!$Q$3:$Q$999,"0,0;0;0;\0"))) -> 0 | E17: =IF($A17="",,SUMPRODUCT((LOOKUP(ROW(E$1:E$997),ROW(E$1:E$997)/ISNUMBER('Měsíční rekapitulace'!$L$1:$L$997),'Měsíční rekapitulace'!$L$1:$L$997)=E$4)*('Měsíční rekapitulace'!$A$3:$A$999=$A17)*TEXT('Měsíční rekapitulace'!$Q$3:$Q$999,"0,0;0;0;\0"))) -> 16.5 | F17: =IF($A17="",,SUMPRODUCT((LOOKUP(ROW(F$1:F$997),ROW(F$1:F$997)/ISNUMBER('Měsíční rekapitulace'!$L$1:$L$997),'Měsíční rekapitulace'!$L$1:$L$997)=F$4)*('Měsíční rekapitulace'!$A$3:$A$999=$A17)*TEXT('Měsíční rekapitulace'!$Q$3:$Q$999,"0,0;0;0;\0"))) -> 0 | G17: =IF($A17="",,SUMPRODUCT((LOOKUP(ROW(G$1:G$997),ROW(G$1:G$997)/ISNUMBER('Měsíční rekapitulace'!$L$1:$L$997),'Měsíční rekapitulace'!$L$1:$L$997)=G$4)*('Měsíční rekapitulace'!$A$3:$A$999=$A17)*TEXT('Měsíční rekapitulace'!$Q$3:$Q$999,"0,0;0;0;\0"))) -> 0 | H17: =IF($A17="",,SUMPRODUCT((LOOKUP(ROW(H$1:H$997),ROW(H$1:H$997)/ISNUMBER('Měsíční rekapitulace'!$L$1:$L$997),'Měsíční rekapitulace'!$L$1:$L$997)=H$4)*('Měsíční rekapitulace'!$A$3:$A$999=$A17)*TEXT('Měsíční rekapitulace'!$Q$3:$Q$999,"0,0;0;0;\0"))) -> 0 | I17: =IF($A17="",,SUMPRODUCT((LOOKUP(ROW(I$1:I$997),ROW(I$1:I$997)/ISNUMBER('Měsíční rekapitulace'!$L$1:$L$997),'Měsíční rekapitulace'!$L$1:$L$997)=I$4)*('Měsíční rekapitulace'!$A$3:$A$999=$A17)*TEXT('Měsíční rekapitulace'!$Q$3:$Q$999,"0,0;0;0;\0"))) -> 0 | J17: =IF($A17="",,SUMPRODUCT((LOOKUP(ROW(J$1:J$997),ROW(J$1:J$997)/ISNUMBER('Měsíční rekapitulace'!$L$1:$L$997),'Měsíční rekapitulace'!$L$1:$L$997)=J$4)*('Měsíční rekapitulace'!$A$3:$A$999=$A17)*TEXT('Měsíční rekapitulace'!$Q$3:$Q$999,"0,0;0;0;\0"))) -> 0 | K17: =IF($A17="",,SUMPRODUCT((LOOKUP(ROW(K$1:K$997),ROW(K$1:K$997)/ISNUMBER('Měsíční rekapitulace'!$L$1:$L$997),'Měsíční rekapitulace'!$L$1:$L$997)=K$4)*('Měsíční rekapitulace'!$A$3:$A$999=$A17)*TEXT('Měsíční rekapitulace'!$Q$3:$Q$999,"0,0;0;0;\0"))) -> 0 | L17: =IF($A17="",,SUMPRODUCT((LOOKUP(ROW(L$1:L$997),ROW(L$1:L$997)/ISNUMBER('Měsíční rekapitulace'!$L$1:$L$997),'Měsíční rekapitulace'!$L$1:$L$997)=L$4)*('Měsíční rekapitulace'!$A$3:$A$999=$A17)*TEXT('Měsíční rekapitulace'!$Q$3:$Q$999,"0,0;0;0;\0"))) -> 0 | M17: =IF($A17="",,SUMPRODUCT((LOOKUP(ROW(M$1:M$997),ROW(M$1:M$997)/ISNUMBER('Měsíční rekapitulace'!$L$1:$L$997),'Měsíční rekapitulace'!$L$1:$L$997)=M$4)*('Měsíční rekapitulace'!$A$3:$A$999=$A17)*TEXT('Měsíční rekapitulace'!$Q$3:$Q$999,"0,0;0;0;\0"))) -> 0 | N17: =IF($A17="",,SUMPRODUCT((LOOKUP(ROW(N$1:N$997),ROW(N$1:N$997)/ISNUMBER('Měsíční rekapitulace'!$L$1:$L$997),'Měsíční rekapitulace'!$L$1:$L$997)=N$4)*('Měsíční rekapitulace'!$A$3:$A$999=$A17)*TEXT('Měsíční rekapitulace'!$Q$3:$Q$999,"0,0;0;0;\0"))) -> 0 | O17: =IF($A17="",,SUMPRODUCT((LOOKUP(ROW(O$1:O$997),ROW(O$1:O$997)/ISNUMBER('Měsíční rekapitulace'!$L$1:$L$997),'Měsíční rekapitulace'!$L$1:$L$997)=O$4)*('Měsíční rekapitulace'!$A$3:$A$999=$A17)*TEXT('Měsíční rekapitulace'!$Q$3:$Q$999,"0,0;0;0;\0"))) -> 0 | P17: 16.5
A18: =IFERROR(INDEX('Měsíční rekapitulace'!A$3:A$999,SMALL(IF(('Měsíční rekapitulace'!A$3:A$999<>"")*('Měsíční rekapitulace'!A$3:A$999<>'Měsíční rekapitulace'!$A$2)*(COUNTIF(A$5:A17,'Měsíční rekapitulace'!A$3:A$999)=0),ROW('Měsíční rekapitulace'!A$3:A$999)-2),1)),"") -> S-2683 | B18: =IFERROR(INDEX('Měsíční rekapitulace'!E$3:E$999,MATCH(A18,'Měsíční rekapitulace'!A$3:A$999,)),"") -> Změna algoritmu ACM pro interní aplikace | D18: =IF($A18="",,SUMPRODUCT((LOOKUP(ROW(D$1:D$997),ROW(D$1:D$997)/ISNUMBER('Měsíční rekapitulace'!$L$1:$L$997),'Měsíční rekapitulace'!$L$1:$L$997)=D$4)*('Měsíční rekapitulace'!$A$3:$A$999=$A18)*TEXT('Měsíční rekapitulace'!$Q$3:$Q$999,"0,0;0;0;\0"))) -> 0 | E18: =IF($A18="",,SUMPRODUCT((LOOKUP(ROW(E$1:E$997),ROW(E$1:E$997)/ISNUMBER('Měsíční rekapitulace'!$L$1:$L$997),'Měsíční rekapitulace'!$L$1:$L$997)=E$4)*('Měsíční rekapitulace'!$A$3:$A$999=$A18)*TEXT('Měsíční rekapitulace'!$Q$3:$Q$999,"0,0;0;0;\0"))) -> 6 | F18: =IF($A18="",,SUMPRODUCT((LOOKUP(ROW(F$1:F$997),ROW(F$1:F$997)/ISNUMBER('Měsíční rekapitulace'!$L$1:$L$997),'Měsíční rekapitulace'!$L$1:$L$997)=F$4)*('Měsíční rekapitulace'!$A$3:$A$999=$A18)*TEXT('Měsíční rekapitulace'!$Q$3:$Q$999,"0,0;0;0;\0"))) -> 12 | G18: =IF($A18="",,SUMPRODUCT((LOOKUP(ROW(G$1:G$997),ROW(G$1:G$997)/ISNUMBER('Měsíční rekapitulace'!$L$1:$L$997),'Měsíční rekapitulace'!$L$1:$L$997)=G$4)*('Měsíční rekapitulace'!$A$3:$A$999=$A18)*TEXT('Měsíční rekapitulace'!$Q$3:$Q$999,"0,0;0;0;\0"))) -> 0 | H18: =IF($A18="",,SUMPRODUCT((LOOKUP(ROW(H$1:H$997),ROW(H$1:H$997)/ISNUMBER('Měsíční rekapitulace'!$L$1:$L$997),'Měsíční rekapitulace'!$L$1:$L$997)=H$4)*('Měsíční rekapitulace'!$A$3:$A$999=$A18)*TEXT('Měsíční rekapitulace'!$Q$3:$Q$999,"0,0;0;0;\0"))) -> 0 | I18: =IF($A18="",,SUMPRODUCT((LOOKUP(ROW(I$1:I$997),ROW(I$1:I$997)/ISNUMBER('Měsíční rekapitulace'!$L$1:$L$997),'Měsíční rekapitulace'!$L$1:$L$997)=I$4)*('Měsíční rekapitulace'!$A$3:$A$999=$A18)*TEXT('Měsíční rekapitulace'!$Q$3:$Q$999,"0,0;0;0;\0"))) -> 0 | J18: =IF($A18="",,SUMPRODUCT((LOOKUP(ROW(J$1:J$997),ROW(J$1:J$997)/ISNUMBER('Měsíční rekapitulace'!$L$1:$L$997),'Měsíční rekapitulace'!$L$1:$L$997)=J$4)*('Měsíční rekapitulace'!$A$3:$A$999=$A18)*TEXT('Měsíční rekapitulace'!$Q$3:$Q$999,"0,0;0;0;\0"))) -> 0 | K18: =IF($A18="",,SUMPRODUCT((LOOKUP(ROW(K$1:K$997),ROW(K$1:K$997)/ISNUMBER('Měsíční rekapitulace'!$L$1:$L$997),'Měsíční rekapitulace'!$L$1:$L$997)=K$4)*('Měsíční rekapitulace'!$A$3:$A$999=$A18)*TEXT('Měsíční rekapitulace'!$Q$3:$Q$999,"0,0;0;0;\0"))) -> 0 | L18: =IF($A18="",,SUMPRODUCT((LOOKUP(ROW(L$1:L$997),ROW(L$1:L$997)/ISNUMBER('Měsíční rekapitulace'!$L$1:$L$997),'Měsíční rekapitulace'!$L$1:$L$997)=L$4)*('Měsíční rekapitulace'!$A$3:$A$999=$A18)*TEXT('Měsíční rekapitulace'!$Q$3:$Q$999,"0,0;0;0;\0"))) -> 0 | M18: =IF($A18="",,SUMPRODUCT((LOOKUP(ROW(M$1:M$997),ROW(M$1:M$997)/ISNUMBER('Měsíční rekapitulace'!$L$1:$L$997),'Měsíční rekapitulace'!$L$1:$L$997)=M$4)*('Měsíční rekapitulace'!$A$3:$A$999=$A18)*TEXT('Měsíční rekapitulace'!$Q$3:$Q$999,"0,0;0;0;\0"))) -> 0 | N18: =IF($A18="",,SUMPRODUCT((LOOKUP(ROW(N$1:N$997),ROW(N$1:N$997)/ISNUMBER('Měsíční rekapitulace'!$L$1:$L$997),'Měsíční rekapitulace'!$L$1:$L$997)=N$4)*('Měsíční rekapitulace'!$A$3:$A$999=$A18)*TEXT('Měsíční rekapitulace'!$Q$3:$Q$999,"0,0;0;0;\0"))) -> 0 | O18: =IF($A18="",,SUMPRODUCT((LOOKUP(ROW(O$1:O$997),ROW(O$1:O$997)/ISNUMBER('Měsíční rekapitulace'!$L$1:$L$997),'Měsíční rekapitulace'!$L$1:$L$997)=O$4)*('Měsíční rekapitulace'!$A$3:$A$999=$A18)*TEXT('Měsíční rekapitulace'!$Q$3:$Q$999,"0,0;0;0;\0"))) -> 0 | P18: 18
A19: =IFERROR(INDEX('Měsíční rekapitulace'!A$3:A$999,SMALL(IF(('Měsíční rekapitulace'!A$3:A$999<>"")*('Měsíční rekapitulace'!A$3:A$999<>'Měsíční rekapitulace'!$A$2)*(COUNTIF(A$5:A18,'Měsíční rekapitulace'!A$3:A$999)=0),ROW('Měsíční rekapitulace'!A$3:A$999)-2),1)),"") -> S-2437 | B19: =IFERROR(INDEX('Měsíční rekapitulace'!E$3:E$999,MATCH(A19,'Měsíční rekapitulace'!A$3:A$999,)),"") -> Úprava automatického uzavírání ŠU po revizi posledního závazku | D19: =IF($A19="",,SUMPRODUCT((LOOKUP(ROW(D$1:D$997),ROW(D$1:D$997)/ISNUMBER('Měsíční rekapitulace'!$L$1:$L$997),'Měsíční rekapitulace'!$L$1:$L$997)=D$4)*('Měsíční rekapitulace'!$A$3:$A$999=$A19)*TEXT('Měsíční rekapitulace'!$Q$3:$Q$999,"0,0;0;0;\0"))) -> 0 | E19: =IF($A19="",,SUMPRODUCT((LOOKUP(ROW(E$1:E$997),ROW(E$1:E$997)/ISNUMBER('Měsíční rekapitulace'!$L$1:$L$997),'Měsíční rekapitulace'!$L$1:$L$997)=E$4)*('Měsíční rekapitulace'!$A$3:$A$999=$A19)*TEXT('Měsíční rekapitulace'!$Q$3:$Q$999,"0,0;0;0;\0"))) -> 0 | F19: =IF($A19="",,SUMPRODUCT((LOOKUP(ROW(F$1:F$997),ROW(F$1:F$997)/ISNUMBER('Měsíční rekapitulace'!$L$1:$L$997),'Měsíční rekapitulace'!$L$1:$L$997)=F$4)*('Měsíční rekapitulace'!$A$3:$A$999=$A19)*TEXT('Měsíční rekapitulace'!$Q$3:$Q$999,"0,0;0;0;\0"))) -> 19 | G19: =IF($A19="",,SUMPRODUCT((LOOKUP(ROW(G$1:G$997),ROW(G$1:G$997)/ISNUMBER('Měsíční rekapitulace'!$L$1:$L$997),'Měsíční rekapitulace'!$L$1:$L$997)=G$4)*('Měsíční rekapitulace'!$A$3:$A$999=$A19)*TEXT('Měsíční rekapitulace'!$Q$3:$Q$999,"0,0;0;0;\0"))) -> 7 | H19: =IF($A19="",,SUMPRODUCT((LOOKUP(ROW(H$1:H$997),ROW(H$1:H$997)/ISNUMBER('Měsíční rekapitulace'!$L$1:$L$997),'Měsíční rekapitulace'!$L$1:$L$997)=H$4)*('Měsíční rekapitulace'!$A$3:$A$999=$A19)*TEXT('Měsíční rekapitulace'!$Q$3:$Q$999,"0,0;0;0;\0"))) -> 0 | I19: =IF($A19="",,SUMPRODUCT((LOOKUP(ROW(I$1:I$997),ROW(I$1:I$997)/ISNUMBER('Měsíční rekapitulace'!$L$1:$L$997),'Měsíční rekapitulace'!$L$1:$L$997)=I$4)*('Měsíční rekapitulace'!$A$3:$A$999=$A19)*TEXT('Měsíční rekapitulace'!$Q$3:$Q$999,"0,0;0;0;\0"))) -> 0 | J19: =IF($A19="",,SUMPRODUCT((LOOKUP(ROW(J$1:J$997),ROW(J$1:J$997)/ISNUMBER('Měsíční rekapitulace'!$L$1:$L$997),'Měsíční rekapitulace'!$L$1:$L$997)=J$4)*('Měsíční rekapitulace'!$A$3:$A$999=$A19)*TEXT('Měsíční rekapitulace'!$Q$3:$Q$999,"0,0;0;0;\0"))) -> 0 | K19: =IF($A19="",,SUMPRODUCT((LOOKUP(ROW(K$1:K$997),ROW(K$1:K$997)/ISNUMBER('Měsíční rekapitulace'!$L$1:$L$997),'Měsíční rekapitulace'!$L$1:$L$997)=K$4)*('Měsíční rekapitulace'!$A$3:$A$999=$A19)*TEXT('Měsíční rekapitulace'!$Q$3:$Q$999,"0,0;0;0;\0"))) -> 0 | L19: =IF($A19="",,SUMPRODUCT((LOOKUP(ROW(L$1:L$997),ROW(L$1:L$997)/ISNUMBER('Měsíční rekapitulace'!$L$1:$L$997),'Měsíční rekapitulace'!$L$1:$L$997)=L$4)*('Měsíční rekapitulace'!$A$3:$A$999=$A19)*TEXT('Měsíční rekapitulace'!$Q$3:$Q$999,"0,0;0;0;\0"))) -> 0 | M19: =IF($A19="",,SUMPRODUCT((LOOKUP(ROW(M$1:M$997),ROW(M$1:M$997)/ISNUMBER('Měsíční rekapitulace'!$L$1:$L$997),'Měsíční rekapitulace'!$L$1:$L$997)=M$4)*('Měsíční rekapitulace'!$A$3:$A$999=$A19)*TEXT('Měsíční rekapitulace'!$Q$3:$Q$999,"0,0;0;0;\0"))) -> 0 | N19: =IF($A19="",,SUMPRODUCT((LOOKUP(ROW(N$1:N$997),ROW(N$1:N$997)/ISNUMBER('Měsíční rekapitulace'!$L$1:$L$997),'Měsíční rekapitulace'!$L$1:$L$997)=N$4)*('Měsíční rekapitulace'!$A$3:$A$999=$A19)*TEXT('Měsíční rekapitulace'!$Q$3:$Q$999,"0,0;0;0;\0"))) -> 0 | O19: =IF($A19="",,SUMPRODUCT((LOOKUP(ROW(O$1:O$997),ROW(O$1:O$997)/ISNUMBER('Měsíční rekapitulace'!$L$1:$L$997),'Měsíční rekapitulace'!$L$1:$L$997)=O$4)*('Měsíční rekapitulace'!$A$3:$A$999=$A19)*TEXT('Měsíční rekapitulace'!$Q$3:$Q$999,"0,0;0;0;\0"))) -> 0 | P19: 26
A20: =IFERROR(INDEX('Měsíční rekapitulace'!A$3:A$999,SMALL(IF(('Měsíční rekapitulace'!A$3:A$999<>"")*('Měsíční rekapitulace'!A$3:A$999<>'Měsíční rekapitulace'!$A$2)*(COUNTIF(A$5:A19,'Měsíční rekapitulace'!A$3:A$999)=0),ROW('Měsíční rekapitulace'!A$3:A$999)-2),1)),"") -> S-2628 | B20: =IFERROR(INDEX('Měsíční rekapitulace'!E$3:E$999,MATCH(A20,'Měsíční rekapitulace'!A$3:A$999,)),"") -> Vyjmutí číselníku partnerů z metadat | D20: =IF($A20="",,SUMPRODUCT((LOOKUP(ROW(D$1:D$997),ROW(D$1:D$997)/ISNUMBER('Měsíční rekapitulace'!$L$1:$L$997),'Měsíční rekapitulace'!$L$1:$L$997)=D$4)*('Měsíční rekapitulace'!$A$3:$A$999=$A20)*TEXT('Měsíční rekapitulace'!$Q$3:$Q$999,"0,0;0;0;\0"))) -> 0 | E20: =IF($A20="",,SUMPRODUCT((LOOKUP(ROW(E$1:E$997),ROW(E$1:E$997)/ISNUMBER('Měsíční rekapitulace'!$L$1:$L$997),'Měsíční rekapitulace'!$L$1:$L$997)=E$4)*('Měsíční rekapitulace'!$A$3:$A$999=$A20)*TEXT('Měsíční rekapitulace'!$Q$3:$Q$999,"0,0;0;0;\0"))) -> 0 | F20: =IF($A20="",,SUMPRODUCT((LOOKUP(ROW(F$1:F$997),ROW(F$1:F$997)/ISNUMBER('Měsíční rekapitulace'!$L$1:$L$997),'Měsíční rekapitulace'!$L$1:$L$997)=F$4)*('Měsíční rekapitulace'!$A$3:$A$999=$A20)*TEXT('Měsíční rekapitulace'!$Q$3:$Q$999,"0,0;0;0;\0"))) -> 6 | G20: =IF($A20="",,SUMPRODUCT((LOOKUP(ROW(G$1:G$997),ROW(G$1:G$997)/ISNUMBER('Měsíční rekapitulace'!$L$1:$L$997),'Měsíční rekapitulace'!$L$1:$L$997)=G$4)*('Měsíční rekapitulace'!$A$3:$A$999=$A20)*TEXT('Měsíční rekapitulace'!$Q$3:$Q$999,"0,0;0;0;\0"))) -> 85.5 | H20: =IF($A20="",,SUMPRODUCT((LOOKUP(ROW(H$1:H$997),ROW(H$1:H$997)/ISNUMBER('Měsíční rekapitulace'!$L$1:$L$997),'Měsíční rekapitulace'!$L$1:$L$997)=H$4)*('Měsíční rekapitulace'!$A$3:$A$999=$A20)*TEXT('Měsíční rekapitulace'!$Q$3:$Q$999,"0,0;0;0;\0"))) -> 0 | I20: =IF($A20="",,SUMPRODUCT((LOOKUP(ROW(I$1:I$997),ROW(I$1:I$997)/ISNUMBER('Měsíční rekapitulace'!$L$1:$L$997),'Měsíční rekapitulace'!$L$1:$L$997)=I$4)*('Měsíční rekapitulace'!$A$3:$A$999=$A20)*TEXT('Měsíční rekapitulace'!$Q$3:$Q$999,"0,0;0;0;\0"))) -> 0 | J20: =IF($A20="",,SUMPRODUCT((LOOKUP(ROW(J$1:J$997),ROW(J$1:J$997)/ISNUMBER('Měsíční rekapitulace'!$L$1:$L$997),'Měsíční rekapitulace'!$L$1:$L$997)=J$4)*('Měsíční rekapitulace'!$A$3:$A$999=$A20)*TEXT('Měsíční rekapitulace'!$Q$3:$Q$999,"0,0;0;0;\0"))) -> 0 | K20: =IF($A20="",,SUMPRODUCT((LOOKUP(ROW(K$1:K$997),ROW(K$1:K$997)/ISNUMBER('Měsíční rekapitulace'!$L$1:$L$997),'Měsíční rekapitulace'!$L$1:$L$997)=K$4)*('Měsíční rekapitulace'!$A$3:$A$999=$A20)*TEXT('Měsíční rekapitulace'!$Q$3:$Q$999,"0,0;0;0;\0"))) -> 0 | L20: =IF($A20="",,SUMPRODUCT((LOOKUP(ROW(L$1:L$997),ROW(L$1:L$997)/ISNUMBER('Měsíční rekapitulace'!$L$1:$L$997),'Měsíční rekapitulace'!$L$1:$L$997)=L$4)*('Měsíční rekapitulace'!$A$3:$A$999=$A20)*TEXT('Měsíční rekapitulace'!$Q$3:$Q$999,"0,0;0;0;\0"))) -> 0 | M20: =IF($A20="",,SUMPRODUCT((LOOKUP(ROW(M$1:M$997),ROW(M$1:M$997)/ISNUMBER('Měsíční rekapitulace'!$L$1:$L$997),'Měsíční rekapitulace'!$L$1:$L$997)=M$4)*('Měsíční rekapitulace'!$A$3:$A$999=$A20)*TEXT('Měsíční rekapitulace'!$Q$3:$Q$999,"0,0;0;0;\0"))) -> 0 | N20: =IF($A20="",,SUMPRODUCT((LOOKUP(ROW(N$1:N$997),ROW(N$1:N$997)/ISNUMBER('Měsíční rekapitulace'!$L$1:$L$997),'Měsíční rekapitulace'!$L$1:$L$997)=N$4)*('Měsíční rekapitulace'!$A$3:$A$999=$A20)*TEXT('Měsíční rekapitulace'!$Q$3:$Q$999,"0,0;0;0;\0"))) -> 0 | O20: =IF($A20="",,SUMPRODUCT((LOOKUP(ROW(O$1:O$997),ROW(O$1:O$997)/ISNUMBER('Měsíční rekapitulace'!$L$1:$L$997),'Měsíční rekapitulace'!$L$1:$L$997)=O$4)*('Měsíční rekapitulace'!$A$3:$A$999=$A20)*TEXT('Měsíční rekapitulace'!$Q$3:$Q$999,"0,0;0;0;\0"))) -> 0 | P20: 91.5
A21: =IFERROR(INDEX('Měsíční rekapitulace'!A$3:A$999,SMALL(IF(('Měsíční rekapitulace'!A$3:A$999<>"")*('Měsíční rekapitulace'!A$3:A$999<>'Měsíční rekapitulace'!$A$2)*(COUNTIF(A$5:A20,'Měsíční rekapitulace'!A$3:A$999)=0),ROW('Měsíční rekapitulace'!A$3:A$999)-2),1)),"") -> S-1868 | B21: =IFERROR(INDEX('Měsíční rekapitulace'!E$3:E$999,MATCH(A21,'Měsíční rekapitulace'!A$3:A$999,)),"") -> Doplnění údajů předávaných Policií ČR do ČKP v rámci Relace DN | D21: =IF($A21="",,SUMPRODUCT((LOOKUP(ROW(D$1:D$997),ROW(D$1:D$997)/ISNUMBER('Měsíční rekapitulace'!$L$1:$L$997),'Měsíční rekapitulace'!$L$1:$L$997)=D$4)*('Měsíční rekapitulace'!$A$3:$A$999=$A21)*TEXT('Měsíční rekapitulace'!$Q$3:$Q$999,"0,0;0;0;\0"))) -> 0 | E21: =IF($A21="",,SUMPRODUCT((LOOKUP(ROW(E$1:E$997),ROW(E$1:E$997)/ISNUMBER('Měsíční rekapitulace'!$L$1:$L$997),'Měsíční rekapitulace'!$L$1:$L$997)=E$4)*('Měsíční rekapitulace'!$A$3:$A$999=$A21)*TEXT('Měsíční rekapitulace'!$Q$3:$Q$999,"0,0;0;0;\0"))) -> 0 | F21: =IF($A21="",,SUMPRODUCT((LOOKUP(ROW(F$1:F$997),ROW(F$1:F$997)/ISNUMBER('Měsíční rekapitulace'!$L$1:$L$997),'Měsíční rekapitulace'!$L$1:$L$997)=F$4)*('Měsíční rekapitulace'!$A$3:$A$999=$A21)*TEXT('Měsíční rekapitulace'!$Q$3:$Q$999,"0,0;0;0;\0"))) -> 0 | G21: =IF($A21="",,SUMPRODUCT((LOOKUP(ROW(G$1:G$997),ROW(G$1:G$997)/ISNUMBER('Měsíční rekapitulace'!$L$1:$L$997),'Měsíční rekapitulace'!$L$1:$L$997)=G$4)*('Měsíční rekapitulace'!$A$3:$A$999=$A21)*TEXT('Měsíční rekapitulace'!$Q$3:$Q$999,"0,0;0;0;\0"))) -> 92 | H21: =IF($A21="",,SUMPRODUCT((LOOKUP(ROW(H$1:H$997),ROW(H$1:H$997)/ISNUMBER('Měsíční rekapitulace'!$L$1:$L$997),'Měsíční rekapitulace'!$L$1:$L$997)=H$4)*('Měsíční rekapitulace'!$A$3:$A$999=$A21)*TEXT('Měsíční rekapitulace'!$Q$3:$Q$999,"0,0;0;0;\0"))) -> 0 | I21: =IF($A21="",,SUMPRODUCT((LOOKUP(ROW(I$1:I$997),ROW(I$1:I$997)/ISNUMBER('Měsíční rekapitulace'!$L$1:$L$997),'Měsíční rekapitulace'!$L$1:$L$997)=I$4)*('Měsíční rekapitulace'!$A$3:$A$999=$A21)*TEXT('Měsíční rekapitulace'!$Q$3:$Q$999,"0,0;0;0;\0"))) -> 0 | J21: =IF($A21="",,SUMPRODUCT((LOOKUP(ROW(J$1:J$997),ROW(J$1:J$997)/ISNUMBER('Měsíční rekapitulace'!$L$1:$L$997),'Měsíční rekapitulace'!$L$1:$L$997)=J$4)*('Měsíční rekapitulace'!$A$3:$A$999=$A21)*TEXT('Měsíční rekapitulace'!$Q$3:$Q$999,"0,0;0;0;\0"))) -> 0 | K21: =IF($A21="",,SUMPRODUCT((LOOKUP(ROW(K$1:K$997),ROW(K$1:K$997)/ISNUMBER('Měsíční rekapitulace'!$L$1:$L$997),'Měsíční rekapitulace'!$L$1:$L$997)=K$4)*('Měsíční rekapitulace'!$A$3:$A$999=$A21)*TEXT('Měsíční rekapitulace'!$Q$3:$Q$999,"0,0;0;0;\0"))) -> 0 | L21: =IF($A21="",,SUMPRODUCT((LOOKUP(ROW(L$1:L$997),ROW(L$1:L$997)/ISNUMBER('Měsíční rekapitulace'!$L$1:$L$997),'Měsíční rekapitulace'!$L$1:$L$997)=L$4)*('Měsíční rekapitulace'!$A$3:$A$999=$A21)*TEXT('Měsíční rekapitulace'!$Q$3:$Q$999,"0,0;0;0;\0"))) -> 0 | M21: =IF($A21="",,SUMPRODUCT((LOOKUP(ROW(M$1:M$997),ROW(M$1:M$997)/ISNUMBER('Měsíční rekapitulace'!$L$1:$L$997),'Měsíční rekapitulace'!$L$1:$L$997)=M$4)*('Měsíční rekapitulace'!$A$3:$A$999=$A21)*TEXT('Měsíční rekapitulace'!$Q$3:$Q$999,"0,0;0;0;\0"))) -> 0 | N21: =IF($A21="",,SUMPRODUCT((LOOKUP(ROW(N$1:N$997),ROW(N$1:N$997)/ISNUMBER('Měsíční rekapitulace'!$L$1:$L$997),'Měsíční rekapitulace'!$L$1:$L$997)=N$4)*('Měsíční rekapitulace'!$A$3:$A$999=$A21)*TEXT('Měsíční rekapitulace'!$Q$3:$Q$999,"0,0;0;0;\0"))) -> 0 | O21: =IF($A21="",,SUMPRODUCT((LOOKUP(ROW(O$1:O$997),ROW(O$1:O$997)/ISNUMBER('Měsíční rekapitulace'!$L$1:$L$997),'Měsíční rekapitulace'!$L$1:$L$997)=O$4)*('Měsíční rekapitulace'!$A$3:$A$999=$A21)*TEXT('Měsíční rekapitulace'!$Q$3:$Q$999,"0,0;0;0;\0"))) -> 0 | P21: 92
A22: =IFERROR(INDEX('Měsíční rekapitulace'!A$3:A$999,SMALL(IF(('Měsíční rekapitulace'!A$3:A$999<>"")*('Měsíční rekapitulace'!A$3:A$999<>'Měsíční rekapitulace'!$A$2)*(COUNTIF(A$5:A21,'Měsíční rekapitulace'!A$3:A$999)=0),ROW('Měsíční rekapitulace'!A$3:A$999)-2),1)),"") -> S-2685 | B22: =IFERROR(INDEX('Měsíční rekapitulace'!E$3:E$999,MATCH(A22,'Měsíční rekapitulace'!A$3:A$999,)),"") -> Rozšíření definice podtypů škody „ Totální škoda vozidla“ | D22: =IF($A22="",,SUMPRODUCT((LOOKUP(ROW(D$1:D$997),ROW(D$1:D$997)/ISNUMBER('Měsíční rekapitulace'!$L$1:$L$997),'Měsíční rekapitulace'!$L$1:$L$997)=D$4)*('Měsíční rekapitulace'!$A$3:$A$999=$A22)*TEXT('Měsíční rekapitulace'!$Q$3:$Q$999,"0,0;0;0;\0"))) -> 0 | E22: =IF($A22="",,SUMPRODUCT((LOOKUP(ROW(E$1:E$997),ROW(E$1:E$997)/ISNUMBER('Měsíční rekapitulace'!$L$1:$L$997),'Měsíční rekapitulace'!$L$1:$L$997)=E$4)*('Měsíční rekapitulace'!$A$3:$A$999=$A22)*TEXT('Měsíční rekapitulace'!$Q$3:$Q$999,"0,0;0;0;\0"))) -> 0 | F22: =IF($A22="",,SUMPRODUCT((LOOKUP(ROW(F$1:F$997),ROW(F$1:F$997)/ISNUMBER('Měsíční rekapitulace'!$L$1:$L$997),'Měsíční rekapitulace'!$L$1:$L$997)=F$4)*('Měsíční rekapitulace'!$A$3:$A$999=$A22)*TEXT('Měsíční rekapitulace'!$Q$3:$Q$999,"0,0;0;0;\0"))) -> 0 | G22: =IF($A22="",,SUMPRODUCT((LOOKUP(ROW(G$1:G$997),ROW(G$1:G$997)/ISNUMBER('Měsíční rekapitulace'!$L$1:$L$997),'Měsíční rekapitulace'!$L$1:$L$997)=G$4)*('Měsíční rekapitulace'!$A$3:$A$999=$A22)*TEXT('Měsíční rekapitulace'!$Q$3:$Q$999,"0,0;0;0;\0"))) -> 6 | H22: =IF($A22="",,SUMPRODUCT((LOOKUP(ROW(H$1:H$997),ROW(H$1:H$997)/ISNUMBER('Měsíční rekapitulace'!$L$1:$L$997),'Měsíční rekapitulace'!$L$1:$L$997)=H$4)*('Měsíční rekapitulace'!$A$3:$A$999=$A22)*TEXT('Měsíční rekapitulace'!$Q$3:$Q$999,"0,0;0;0;\0"))) -> 0 | I22: =IF($A22="",,SUMPRODUCT((LOOKUP(ROW(I$1:I$997),ROW(I$1:I$997)/ISNUMBER('Měsíční rekapitulace'!$L$1:$L$997),'Měsíční rekapitulace'!$L$1:$L$997)=I$4)*('Měsíční rekapitulace'!$A$3:$A$999=$A22)*TEXT('Měsíční rekapitulace'!$Q$3:$Q$999,"0,0;0;0;\0"))) -> 0 | J22: =IF($A22="",,SUMPRODUCT((LOOKUP(ROW(J$1:J$997),ROW(J$1:J$997)/ISNUMBER('Měsíční rekapitulace'!$L$1:$L$997),'Měsíční rekapitulace'!$L$1:$L$997)=J$4)*('Měsíční rekapitulace'!$A$3:$A$999=$A22)*TEXT('Měsíční rekapitulace'!$Q$3:$Q$999,"0,0;0;0;\0"))) -> 0 | K22: =IF($A22="",,SUMPRODUCT((LOOKUP(ROW(K$1:K$997),ROW(K$1:K$997)/ISNUMBER('Měsíční rekapitulace'!$L$1:$L$997),'Měsíční rekapitulace'!$L$1:$L$997)=K$4)*('Měsíční rekapitulace'!$A$3:$A$999=$A22)*TEXT('Měsíční rekapitulace'!$Q$3:$Q$999,"0,0;0;0;\0"))) -> 0 | L22: =IF($A22="",,SUMPRODUCT((LOOKUP(ROW(L$1:L$997),ROW(L$1:L$997)/ISNUMBER('Měsíční rekapitulace'!$L$1:$L$997),'Měsíční rekapitulace'!$L$1:$L$997)=L$4)*('Měsíční rekapitulace'!$A$3:$A$999=$A22)*TEXT('Měsíční rekapitulace'!$Q$3:$Q$999,"0,0;0;0;\0"))) -> 0 | M22: =IF($A22="",,SUMPRODUCT((LOOKUP(ROW(M$1:M$997),ROW(M$1:M$997)/ISNUMBER('Měsíční rekapitulace'!$L$1:$L$997),'Měsíční rekapitulace'!$L$1:$L$997)=M$4)*('Měsíční rekapitulace'!$A$3:$A$999=$A22)*TEXT('Měsíční rekapitulace'!$Q$3:$Q$999,"0,0;0;0;\0"))) -> 0 | N22: =IF($A22="",,SUMPRODUCT((LOOKUP(ROW(N$1:N$997),ROW(N$1:N$997)/ISNUMBER('Měsíční rekapitulace'!$L$1:$L$997),'Měsíční rekapitulace'!$L$1:$L$997)=N$4)*('Měsíční rekapitulace'!$A$3:$A$999=$A22)*TEXT('Měsíční rekapitulace'!$Q$3:$Q$999,"0,0;0;0;\0"))) -> 0 | O22: =IF($A22="",,SUMPRODUCT((LOOKUP(ROW(O$1:O$997),ROW(O$1:O$997)/ISNUMBER('Měsíční rekapitulace'!$L$1:$L$997),'Měsíční rekapitulace'!$L$1:$L$997)=O$4)*('Měsíční rekapitulace'!$A$3:$A$999=$A22)*TEXT('Měsíční rekapitulace'!$Q$3:$Q$999,"0,0;0;0;\0"))) -> 0 | P22: 6
A23: =IFERROR(INDEX('Měsíční rekapitulace'!A$3:A$999,SMALL(IF(('Měsíční rekapitulace'!A$3:A$999<>"")*('Měsíční rekapitulace'!A$3:A$999<>'Měsíční rekapitulace'!$A$2)*(COUNTIF(A$5:A22,'Měsíční rekapitulace'!A$3:A$999)=0),ROW('Měsíční rekapitulace'!A$3:A$999)-2),1)),"") -> S-2695 | B23: =IFERROR(INDEX('Měsíční rekapitulace'!E$3:E$999,MATCH(A23,'Měsíční rekapitulace'!A$3:A$999,)),"") -> Úprava chování metody B1 - Get_NositelAgr | D23: =IF($A23="",,SUMPRODUCT((LOOKUP(ROW(D$1:D$997),ROW(D$1:D$997)/ISNUMBER('Měsíční rekapitulace'!$L$1:$L$997),'Měsíční rekapitulace'!$L$1:$L$997)=D$4)*('Měsíční rekapitulace'!$A$3:$A$999=$A23)*TEXT('Měsíční rekapitulace'!$Q$3:$Q$999,"0,0;0;0;\0"))) -> 0 | E23: =IF($A23="",,SUMPRODUCT((LOOKUP(ROW(E$1:E$997),ROW(E$1:E$997)/ISNUMBER('Měsíční rekapitulace'!$L$1:$L$997),'Měsíční rekapitulace'!$L$1:$L$997)=E$4)*('Měsíční rekapitulace'!$A$3:$A$999=$A23)*TEXT('Měsíční rekapitulace'!$Q$3:$Q$999,"0,0;0;0;\0"))) -> 0 | F23: =IF($A23="",,SUMPRODUCT((LOOKUP(ROW(F$1:F$997),ROW(F$1:F$997)/ISNUMBER('Měsíční rekapitulace'!$L$1:$L$997),'Měsíční rekapitulace'!$L$1:$L$997)=F$4)*('Měsíční rekapitulace'!$A$3:$A$999=$A23)*TEXT('Měsíční rekapitulace'!$Q$3:$Q$999,"0,0;0;0;\0"))) -> 0 | G23: =IF($A23="",,SUMPRODUCT((LOOKUP(ROW(G$1:G$997),ROW(G$1:G$997)/ISNUMBER('Měsíční rekapitulace'!$L$1:$L$997),'Měsíční rekapitulace'!$L$1:$L$997)=G$4)*('Měsíční rekapitulace'!$A$3:$A$999=$A23)*TEXT('Měsíční rekapitulace'!$Q$3:$Q$999,"0,0;0;0;\0"))) -> 49.5 | H23: =IF($A23="",,SUMPRODUCT((LOOKUP(ROW(H$1:H$997),ROW(H$1:H$997)/ISNUMBER('Měsíční rekapitulace'!$L$1:$L$997),'Měsíční rekapitulace'!$L$1:$L$997)=H$4)*('Měsíční rekapitulace'!$A$3:$A$999=$A23)*TEXT('Měsíční rekapitulace'!$Q$3:$Q$999,"0,0;0;0;\0"))) -> 0 | I23: =IF($A23="",,SUMPRODUCT((LOOKUP(ROW(I$1:I$997),ROW(I$1:I$997)/ISNUMBER('Měsíční rekapitulace'!$L$1:$L$997),'Měsíční rekapitulace'!$L$1:$L$997)=I$4)*('Měsíční rekapitulace'!$A$3:$A$999=$A23)*TEXT('Měsíční rekapitulace'!$Q$3:$Q$999,"0,0;0;0;\0"))) -> 0 | J23: =IF($A23="",,SUMPRODUCT((LOOKUP(ROW(J$1:J$997),ROW(J$1:J$997)/ISNUMBER('Měsíční rekapitulace'!$L$1:$L$997),'Měsíční rekapitulace'!$L$1:$L$997)=J$4)*('Měsíční rekapitulace'!$A$3:$A$999=$A23)*TEXT('Měsíční rekapitulace'!$Q$3:$Q$999,"0,0;0;0;\0"))) -> 0 | K23: =IF($A23="",,SUMPRODUCT((LOOKUP(ROW(K$1:K$997),ROW(K$1:K$997)/ISNUMBER('Měsíční rekapitulace'!$L$1:$L$997),'Měsíční rekapitulace'!$L$1:$L$997)=K$4)*('Měsíční rekapitulace'!$A$3:$A$999=$A23)*TEXT('Měsíční rekapitulace'!$Q$3:$Q$999,"0,0;0;0;\0"))) -> 0 | L23: =IF($A23="",,SUMPRODUCT((LOOKUP(ROW(L$1:L$997),ROW(L$1:L$997)/ISNUMBER('Měsíční rekapitulace'!$L$1:$L$997),'Měsíční rekapitulace'!$L$1:$L$997)=L$4)*('Měsíční rekapitulace'!$A$3:$A$999=$A23)*TEXT('Měsíční rekapitulace'!$Q$3:$Q$999,"0,0;0;0;\0"))) -> 0 | M23: =IF($A23="",,SUMPRODUCT((LOOKUP(ROW(M$1:M$997),ROW(M$1:M$997)/ISNUMBER('Měsíční rekapitulace'!$L$1:$L$997),'Měsíční rekapitulace'!$L$1:$L$997)=M$4)*('Měsíční rekapitulace'!$A$3:$A$999=$A23)*TEXT('Měsíční rekapitulace'!$Q$3:$Q$999,"0,0;0;0;\0"))) -> 0 | N23: =IF($A23="",,SUMPRODUCT((LOOKUP(ROW(N$1:N$997),ROW(N$1:N$997)/ISNUMBER('Měsíční rekapitulace'!$L$1:$L$997),'Měsíční rekapitulace'!$L$1:$L$997)=N$4)*('Měsíční rekapitulace'!$A$3:$A$999=$A23)*TEXT('Měsíční rekapitulace'!$Q$3:$Q$999,"0,0;0;0;\0"))) -> 0 | O23: =IF($A23="",,SUMPRODUCT((LOOKUP(ROW(O$1:O$997),ROW(O$1:O$997)/ISNUMBER('Měsíční rekapitulace'!$L$1:$L$997),'Měsíční rekapitulace'!$L$1:$L$997)=O$4)*('Měsíční rekapitulace'!$A$3:$A$999=$A23)*TEXT('Měsíční rekapitulace'!$Q$3:$Q$999,"0,0;0;0;\0"))) -> 0 | P23: 49.5
A24: =IFERROR(INDEX('Měsíční rekapitulace'!A$3:A$999,SMALL(IF(('Měsíční rekapitulace'!A$3:A$999<>"")*('Měsíční rekapitulace'!A$3:A$999<>'Měsíční rekapitulace'!$A$2)*(COUNTIF(A$5:A23,'Měsíční rekapitulace'!A$3:A$999)=0),ROW('Měsíční rekapitulace'!A$3:A$999)-2),1)),"") -> S-1403 | B24: =IFERROR(INDEX('Měsíční rekapitulace'!E$3:E$999,MATCH(A24,'Měsíční rekapitulace'!A$3:A$999,)),"") -> Připomínky z bezpečnostních testů WS B3 a L5 | D24: =IF($A24="",,SUMPRODUCT((LOOKUP(ROW(D$1:D$997),ROW(D$1:D$997)/ISNUMBER('Měsíční rekapitulace'!$L$1:$L$997),'Měsíční rekapitulace'!$L$1:$L$997)=D$4)*('Měsíční rekapitulace'!$A$3:$A$999=$A24)*TEXT('Měsíční rekapitulace'!$Q$3:$Q$999,"0,0;0;0;\0"))) -> 0 | E24: =IF($A24="",,SUMPRODUCT((LOOKUP(ROW(E$1:E$997),ROW(E$1:E$997)/ISNUMBER('Měsíční rekapitulace'!$L$1:$L$997),'Měsíční rekapitulace'!$L$1:$L$997)=E$4)*('Měsíční rekapitulace'!$A$3:$A$999=$A24)*TEXT('Měsíční rekapitulace'!$Q$3:$Q$999,"0,0;0;0;\0"))) -> 0 | F24: =IF($A24="",,SUMPRODUCT((LOOKUP(ROW(F$1:F$997),ROW(F$1:F$997)/ISNUMBER('Měsíční rekapitulace'!$L$1:$L$997),'Měsíční rekapitulace'!$L$1:$L$997)=F$4)*('Měsíční rekapitulace'!$A$3:$A$999=$A24)*TEXT('Měsíční rekapitulace'!$Q$3:$Q$999,"0,0;0;0;\0"))) -> 0 | G24: =IF($A24="",,SUMPRODUCT((LOOKUP(ROW(G$1:G$997),ROW(G$1:G$997)/ISNUMBER('Měsíční rekapitulace'!$L$1:$L$997),'Měsíční rekapitulace'!$L$1:$L$997)=G$4)*('Měsíční rekapitulace'!$A$3:$A$999=$A24)*TEXT('Měsíční rekapitulace'!$Q$3:$Q$999,"0,0;0;0;\0"))) -> 0 | H24: =IF($A24="",,SUMPRODUCT((LOOKUP(ROW(H$1:H$997),ROW(H$1:H$997)/ISNUMBER('Měsíční rekapitulace'!$L$1:$L$997),'Měsíční rekapitulace'!$L$1:$L$997)=H$4)*('Měsíční rekapitulace'!$A$3:$A$999=$A24)*TEXT('Měsíční rekapitulace'!$Q$3:$Q$999,"0,0;0;0;\0"))) -> 0 | I24: =IF($A24="",,SUMPRODUCT((LOOKUP(ROW(I$1:I$997),ROW(I$1:I$997)/ISNUMBER('Měsíční rekapitulace'!$L$1:$L$997),'Měsíční rekapitulace'!$L$1:$L$997)=I$4)*('Měsíční rekapitulace'!$A$3:$A$999=$A24)*TEXT('Měsíční rekapitulace'!$Q$3:$Q$999,"0,0;0;0;\0"))) -> 0 | J24: =IF($A24="",,SUMPRODUCT((LOOKUP(ROW(J$1:J$997),ROW(J$1:J$997)/ISNUMBER('Měsíční rekapitulace'!$L$1:$L$997),'Měsíční rekapitulace'!$L$1:$L$997)=J$4)*('Měsíční rekapitulace'!$A$3:$A$999=$A24)*TEXT('Měsíční rekapitulace'!$Q$3:$Q$999,"0,0;0;0;\0"))) -> 0 | K24: =IF($A24="",,SUMPRODUCT((LOOKUP(ROW(K$1:K$997),ROW(K$1:K$997)/ISNUMBER('Měsíční rekapitulace'!$L$1:$L$997),'Měsíční rekapitulace'!$L$1:$L$997)=K$4)*('Měsíční rekapitulace'!$A$3:$A$999=$A24)*TEXT('Měsíční rekapitulace'!$Q$3:$Q$999,"0,0;0;0;\0"))) -> 0 | L24: =IF($A24="",,SUMPRODUCT((LOOKUP(ROW(L$1:L$997),ROW(L$1:L$997)/ISNUMBER('Měsíční rekapitulace'!$L$1:$L$997),'Měsíční rekapitulace'!$L$1:$L$997)=L$4)*('Měsíční rekapitulace'!$A$3:$A$999=$A24)*TEXT('Měsíční rekapitulace'!$Q$3:$Q$999,"0,0;0;0;\0"))) -> 0 | M24: =IF($A24="",,SUMPRODUCT((LOOKUP(ROW(M$1:M$997),ROW(M$1:M$997)/ISNUMBER('Měsíční rekapitulace'!$L$1:$L$997),'Měsíční rekapitulace'!$L$1:$L$997)=M$4)*('Měsíční rekapitulace'!$A$3:$A$999=$A24)*TEXT('Měsíční rekapitulace'!$Q$3:$Q$999,"0,0;0;0;\0"))) -> 0 | N24: =IF($A24="",,SUMPRODUCT((LOOKUP(ROW(N$1:N$997),ROW(N$1:N$997)/ISNUMBER('Měsíční rekapitulace'!$L$1:$L$997),'Měsíční rekapitulace'!$L$1:$L$997)=N$4)*('Měsíční rekapitulace'!$A$3:$A$999=$A24)*TEXT('Měsíční rekapitulace'!$Q$3:$Q$999,"0,0;0;0;\0"))) -> 0 | O24: =IF($A24="",,SUMPRODUCT((LOOKUP(ROW(O$1:O$997),ROW(O$1:O$997)/ISNUMBER('Měsíční rekapitulace'!$L$1:$L$997),'Měsíční rekapitulace'!$L$1:$L$997)=O$4)*('Měsíční rekapitulace'!$A$3:$A$999=$A24)*TEXT('Měsíční rekapitulace'!$Q$3:$Q$999,"0,0;0;0;\0"))) -> 0 | P24: 0
A25: =IFERROR(INDEX('Měsíční rekapitulace'!A$3:A$999,SMALL(IF(('Měsíční rekapitulace'!A$3:A$999<>"")*('Měsíční rekapitulace'!A$3:A$999<>'Měsíční rekapitulace'!$A$2)*(COUNTIF(A$5:A24,'Měsíční rekapitulace'!A$3:A$999)=0),ROW('Měsíční rekapitulace'!A$3:A$999)-2),1)),"") -> S-1537 | B25: =IFERROR(INDEX('Měsíční rekapitulace'!E$3:E$999,MATCH(A25,'Měsíční rekapitulace'!A$3:A$999,)),"") -> Rozšíření P1 o flotily | D25: =IF($A25="",,SUMPRODUCT((LOOKUP(ROW(D$1:D$997),ROW(D$1:D$997)/ISNUMBER('Měsíční rekapitulace'!$L$1:$L$997),'Měsíční rekapitulace'!$L$1:$L$997)=D$4)*('Měsíční rekapitulace'!$A$3:$A$999=$A25)*TEXT('Měsíční rekapitulace'!$Q$3:$Q$999,"0,0;0;0;\0"))) -> 0 | E25: =IF($A25="",,SUMPRODUCT((LOOKUP(ROW(E$1:E$997),ROW(E$1:E$997)/ISNUMBER('Měsíční rekapitulace'!$L$1:$L$997),'Měsíční rekapitulace'!$L$1:$L$997)=E$4)*('Měsíční rekapitulace'!$A$3:$A$999=$A25)*TEXT('Měsíční rekapitulace'!$Q$3:$Q$999,"0,0;0;0;\0"))) -> 0 | F25: =IF($A25="",,SUMPRODUCT((LOOKUP(ROW(F$1:F$997),ROW(F$1:F$997)/ISNUMBER('Měsíční rekapitulace'!$L$1:$L$997),'Měsíční rekapitulace'!$L$1:$L$997)=F$4)*('Měsíční rekapitulace'!$A$3:$A$999=$A25)*TEXT('Měsíční rekapitulace'!$Q$3:$Q$999,"0,0;0;0;\0"))) -> 0 | G25: =IF($A25="",,SUMPRODUCT((LOOKUP(ROW(G$1:G$997),ROW(G$1:G$997)/ISNUMBER('Měsíční rekapitulace'!$L$1:$L$997),'Měsíční rekapitulace'!$L$1:$L$997)=G$4)*('Měsíční rekapitulace'!$A$3:$A$999=$A25)*TEXT('Měsíční rekapitulace'!$Q$3:$Q$999,"0,0;0;0;\0"))) -> 0 | H25: =IF($A25="",,SUMPRODUCT((LOOKUP(ROW(H$1:H$997),ROW(H$1:H$997)/ISNUMBER('Měsíční rekapitulace'!$L$1:$L$997),'Měsíční rekapitulace'!$L$1:$L$997)=H$4)*('Měsíční rekapitulace'!$A$3:$A$999=$A25)*TEXT('Měsíční rekapitulace'!$Q$3:$Q$999,"0,0;0;0;\0"))) -> 0 | I25: =IF($A25="",,SUMPRODUCT((LOOKUP(ROW(I$1:I$997),ROW(I$1:I$997)/ISNUMBER('Měsíční rekapitulace'!$L$1:$L$997),'Měsíční rekapitulace'!$L$1:$L$997)=I$4)*('Měsíční rekapitulace'!$A$3:$A$999=$A25)*TEXT('Měsíční rekapitulace'!$Q$3:$Q$999,"0,0;0;0;\0"))) -> 0 | J25: =IF($A25="",,SUMPRODUCT((LOOKUP(ROW(J$1:J$997),ROW(J$1:J$997)/ISNUMBER('Měsíční rekapitulace'!$L$1:$L$997),'Měsíční rekapitulace'!$L$1:$L$997)=J$4)*('Měsíční rekapitulace'!$A$3:$A$999=$A25)*TEXT('Měsíční rekapitulace'!$Q$3:$Q$999,"0,0;0;0;\0"))) -> 0 | K25: =IF($A25="",,SUMPRODUCT((LOOKUP(ROW(K$1:K$997),ROW(K$1:K$997)/ISNUMBER('Měsíční rekapitulace'!$L$1:$L$997),'Měsíční rekapitulace'!$L$1:$L$997)=K$4)*('Měsíční rekapitulace'!$A$3:$A$999=$A25)*TEXT('Měsíční rekapitulace'!$Q$3:$Q$999,"0,0;0;0;\0"))) -> 0 | L25: =IF($A25="",,SUMPRODUCT((LOOKUP(ROW(L$1:L$997),ROW(L$1:L$997)/ISNUMBER('Měsíční rekapitulace'!$L$1:$L$997),'Měsíční rekapitulace'!$L$1:$L$997)=L$4)*('Měsíční rekapitulace'!$A$3:$A$999=$A25)*TEXT('Měsíční rekapitulace'!$Q$3:$Q$999,"0,0;0;0;\0"))) -> 0 | M25: =IF($A25="",,SUMPRODUCT((LOOKUP(ROW(M$1:M$997),ROW(M$1:M$997)/ISNUMBER('Měsíční rekapitulace'!$L$1:$L$997),'Měsíční rekapitulace'!$L$1:$L$997)=M$4)*('Měsíční rekapitulace'!$A$3:$A$999=$A25)*TEXT('Měsíční rekapitulace'!$Q$3:$Q$999,"0,0;0;0;\0"))) -> 0 | N25: =IF($A25="",,SUMPRODUCT((LOOKUP(ROW(N$1:N$997),ROW(N$1:N$997)/ISNUMBER('Měsíční rekapitulace'!$L$1:$L$997),'Měsíční rekapitulace'!$L$1:$L$997)=N$4)*('Měsíční rekapitulace'!$A$3:$A$999=$A25)*TEXT('Měsíční rekapitulace'!$Q$3:$Q$999,"0,0;0;0;\0"))) -> 0 | O25: =IF($A25="",,SUMPRODUCT((LOOKUP(ROW(O$1:O$997),ROW(O$1:O$997)/ISNUMBER('Měsíční rekapitulace'!$L$1:$L$997),'Měsíční rekapitulace'!$L$1:$L$997)=O$4)*('Měsíční rekapitulace'!$A$3:$A$999=$A25)*TEXT('Měsíční rekapitulace'!$Q$3:$Q$999,"0,0;0;0;\0"))) -> 0 | P25: 0
A26: =IFERROR(INDEX('Měsíční rekapitulace'!A$3:A$999,SMALL(IF(('Měsíční rekapitulace'!A$3:A$999<>"")*('Měsíční rekapitulace'!A$3:A$999<>'Měsíční rekapitulace'!$A$2)*(COUNTIF(A$5:A25,'Měsíční rekapitulace'!A$3:A$999)=0),ROW('Měsíční rekapitulace'!A$3:A$999)-2),1)),"") -> S-1936 | B26: =IFERROR(INDEX('Měsíční rekapitulace'!E$3:E$999,MATCH(A26,'Měsíční rekapitulace'!A$3:A$999,)),"") -> Úprava business inteligence SLP | D26: =IF($A26="",,SUMPRODUCT((LOOKUP(ROW(D$1:D$997),ROW(D$1:D$997)/ISNUMBER('Měsíční rekapitulace'!$L$1:$L$997),'Měsíční rekapitulace'!$L$1:$L$997)=D$4)*('Měsíční rekapitulace'!$A$3:$A$999=$A26)*TEXT('Měsíční rekapitulace'!$Q$3:$Q$999,"0,0;0;0;\0"))) -> 0 | E26: =IF($A26="",,SUMPRODUCT((LOOKUP(ROW(E$1:E$997),ROW(E$1:E$997)/ISNUMBER('Měsíční rekapitulace'!$L$1:$L$997),'Měsíční rekapitulace'!$L$1:$L$997)=E$4)*('Měsíční rekapitulace'!$A$3:$A$999=$A26)*TEXT('Měsíční rekapitulace'!$Q$3:$Q$999,"0,0;0;0;\0"))) -> 0 | F26: =IF($A26="",,SUMPRODUCT((LOOKUP(ROW(F$1:F$997),ROW(F$1:F$997)/ISNUMBER('Měsíční rekapitulace'!$L$1:$L$997),'Měsíční rekapitulace'!$L$1:$L$997)=F$4)*('Měsíční rekapitulace'!$A$3:$A$999=$A26)*TEXT('Měsíční rekapitulace'!$Q$3:$Q$999,"0,0;0;0;\0"))) -> 0 | G26: =IF($A26="",,SUMPRODUCT((LOOKUP(ROW(G$1:G$997),ROW(G$1:G$997)/ISNUMBER('Měsíční rekapitulace'!$L$1:$L$997),'Měsíční rekapitulace'!$L$1:$L$997)=G$4)*('Měsíční rekapitulace'!$A$3:$A$999=$A26)*TEXT('Měsíční rekapitulace'!$Q$3:$Q$999,"0,0;0;0;\0"))) -> 0 | H26: =IF($A26="",,SUMPRODUCT((LOOKUP(ROW(H$1:H$997),ROW(H$1:H$997)/ISNUMBER('Měsíční rekapitulace'!$L$1:$L$997),'Měsíční rekapitulace'!$L$1:$L$997)=H$4)*('Měsíční rekapitulace'!$A$3:$A$999=$A26)*TEXT('Měsíční rekapitulace'!$Q$3:$Q$999,"0,0;0;0;\0"))) -> 0 | I26: =IF($A26="",,SUMPRODUCT((LOOKUP(ROW(I$1:I$997),ROW(I$1:I$997)/ISNUMBER('Měsíční rekapitulace'!$L$1:$L$997),'Měsíční rekapitulace'!$L$1:$L$997)=I$4)*('Měsíční rekapitulace'!$A$3:$A$999=$A26)*TEXT('Měsíční rekapitulace'!$Q$3:$Q$999,"0,0;0;0;\0"))) -> 0 | J26: =IF($A26="",,SUMPRODUCT((LOOKUP(ROW(J$1:J$997),ROW(J$1:J$997)/ISNUMBER('Měsíční rekapitulace'!$L$1:$L$997),'Měsíční rekapitulace'!$L$1:$L$997)=J$4)*('Měsíční rekapitulace'!$A$3:$A$999=$A26)*TEXT('Měsíční rekapitulace'!$Q$3:$Q$999,"0,0;0;0;\0"))) -> 0 | K26: =IF($A26="",,SUMPRODUCT((LOOKUP(ROW(K$1:K$997),ROW(K$1:K$997)/ISNUMBER('Měsíční rekapitulace'!$L$1:$L$997),'Měsíční rekapitulace'!$L$1:$L$997)=K$4)*('Měsíční rekapitulace'!$A$3:$A$999=$A26)*TEXT('Měsíční rekapitulace'!$Q$3:$Q$999,"0,0;0;0;\0"))) -> 0 | L26: =IF($A26="",,SUMPRODUCT((LOOKUP(ROW(L$1:L$997),ROW(L$1:L$997)/ISNUMBER('Měsíční rekapitulace'!$L$1:$L$997),'Měsíční rekapitulace'!$L$1:$L$997)=L$4)*('Měsíční rekapitulace'!$A$3:$A$999=$A26)*TEXT('Měsíční rekapitulace'!$Q$3:$Q$999,"0,0;0;0;\0"))) -> 0 | M26: =IF($A26="",,SUMPRODUCT((LOOKUP(ROW(M$1:M$997),ROW(M$1:M$997)/ISNUMBER('Měsíční rekapitulace'!$L$1:$L$997),'Měsíční rekapitulace'!$L$1:$L$997)=M$4)*('Měsíční rekapitulace'!$A$3:$A$999=$A26)*TEXT('Měsíční rekapitulace'!$Q$3:$Q$999,"0,0;0;0;\0"))) -> 0 | N26: =IF($A26="",,SUMPRODUCT((LOOKUP(ROW(N$1:N$997),ROW(N$1:N$997)/ISNUMBER('Měsíční rekapitulace'!$L$1:$L$997),'Měsíční rekapitulace'!$L$1:$L$997)=N$4)*('Měsíční rekapitulace'!$A$3:$A$999=$A26)*TEXT('Měsíční rekapitulace'!$Q$3:$Q$999,"0,0;0;0;\0"))) -> 0 | O26: =IF($A26="",,SUMPRODUCT((LOOKUP(ROW(O$1:O$997),ROW(O$1:O$997)/ISNUMBER('Měsíční rekapitulace'!$L$1:$L$997),'Měsíční rekapitulace'!$L$1:$L$997)=O$4)*('Měsíční rekapitulace'!$A$3:$A$999=$A26)*TEXT('Měsíční rekapitulace'!$Q$3:$Q$999,"0,0;0;0;\0"))) -> 0 | P26: 0
A27: =IFERROR(INDEX('Měsíční rekapitulace'!A$3:A$999,SMALL(IF(('Měsíční rekapitulace'!A$3:A$999<>"")*('Měsíční rekapitulace'!A$3:A$999<>'Měsíční rekapitulace'!$A$2)*(COUNTIF(A$5:A26,'Měsíční rekapitulace'!A$3:A$999)=0),ROW('Měsíční rekapitulace'!A$3:A$999)-2),1)),"") -> S-2024 | B27: =IFERROR(INDEX('Měsíční rekapitulace'!E$3:E$999,MATCH(A27,'Měsíční rekapitulace'!A$3:A$999,)),"") -> Doplnění SSY do seznamu závazků | D27: =IF($A27="",,SUMPRODUCT((LOOKUP(ROW(D$1:D$997),ROW(D$1:D$997)/ISNUMBER('Měsíční rekapitulace'!$L$1:$L$997),'Měsíční rekapitulace'!$L$1:$L$997)=D$4)*('Měsíční rekapitulace'!$A$3:$A$999=$A27)*TEXT('Měsíční rekapitulace'!$Q$3:$Q$999,"0,0;0;0;\0"))) -> 0 | E27: =IF($A27="",,SUMPRODUCT((LOOKUP(ROW(E$1:E$997),ROW(E$1:E$997)/ISNUMBER('Měsíční rekapitulace'!$L$1:$L$997),'Měsíční rekapitulace'!$L$1:$L$997)=E$4)*('Měsíční rekapitulace'!$A$3:$A$999=$A27)*TEXT('Měsíční rekapitulace'!$Q$3:$Q$999,"0,0;0;0;\0"))) -> 0 | F27: =IF($A27="",,SUMPRODUCT((LOOKUP(ROW(F$1:F$997),ROW(F$1:F$997)/ISNUMBER('Měsíční rekapitulace'!$L$1:$L$997),'Měsíční rekapitulace'!$L$1:$L$997)=F$4)*('Měsíční rekapitulace'!$A$3:$A$999=$A27)*TEXT('Měsíční rekapitulace'!$Q$3:$Q$999,"0,0;0;0;\0"))) -> 0 | G27: =IF($A27="",,SUMPRODUCT((LOOKUP(ROW(G$1:G$997),ROW(G$1:G$997)/ISNUMBER('Měsíční rekapitulace'!$L$1:$L$997),'Měsíční rekapitulace'!$L$1:$L$997)=G$4)*('Měsíční rekapitulace'!$A$3:$A$999=$A27)*TEXT('Měsíční rekapitulace'!$Q$3:$Q$999,"0,0;0;0;\0"))) -> 0 | H27: =IF($A27="",,SUMPRODUCT((LOOKUP(ROW(H$1:H$997),ROW(H$1:H$997)/ISNUMBER('Měsíční rekapitulace'!$L$1:$L$997),'Měsíční rekapitulace'!$L$1:$L$997)=H$4)*('Měsíční rekapitulace'!$A$3:$A$999=$A27)*TEXT('Měsíční rekapitulace'!$Q$3:$Q$999,"0,0;0;0;\0"))) -> 0 | I27: =IF($A27="",,SUMPRODUCT((LOOKUP(ROW(I$1:I$997),ROW(I$1:I$997)/ISNUMBER('Měsíční rekapitulace'!$L$1:$L$997),'Měsíční rekapitulace'!$L$1:$L$997)=I$4)*('Měsíční rekapitulace'!$A$3:$A$999=$A27)*TEXT('Měsíční rekapitulace'!$Q$3:$Q$999,"0,0;0;0;\0"))) -> 0 | J27: =IF($A27="",,SUMPRODUCT((LOOKUP(ROW(J$1:J$997),ROW(J$1:J$997)/ISNUMBER('Měsíční rekapitulace'!$L$1:$L$997),'Měsíční rekapitulace'!$L$1:$L$997)=J$4)*('Měsíční rekapitulace'!$A$3:$A$999=$A27)*TEXT('Měsíční rekapitulace'!$Q$3:$Q$999,"0,0;0;0;\0"))) -> 0 | K27: =IF($A27="",,SUMPRODUCT((LOOKUP(ROW(K$1:K$997),ROW(K$1:K$997)/ISNUMBER('Měsíční rekapitulace'!$L$1:$L$997),'Měsíční rekapitulace'!$L$1:$L$997)=K$4)*('Měsíční rekapitulace'!$A$3:$A$999=$A27)*TEXT('Měsíční rekapitulace'!$Q$3:$Q$999,"0,0;0;0;\0"))) -> 0 | L27: =IF($A27="",,SUMPRODUCT((LOOKUP(ROW(L$1:L$997),ROW(L$1:L$997)/ISNUMBER('Měsíční rekapitulace'!$L$1:$L$997),'Měsíční rekapitulace'!$L$1:$L$997)=L$4)*('Měsíční rekapitulace'!$A$3:$A$999=$A27)*TEXT('Měsíční rekapitulace'!$Q$3:$Q$999,"0,0;0;0;\0"))) -> 0 | M27: =IF($A27="",,SUMPRODUCT((LOOKUP(ROW(M$1:M$997),ROW(M$1:M$997)/ISNUMBER('Měsíční rekapitulace'!$L$1:$L$997),'Měsíční rekapitulace'!$L$1:$L$997)=M$4)*('Měsíční rekapitulace'!$A$3:$A$999=$A27)*TEXT('Měsíční rekapitulace'!$Q$3:$Q$999,"0,0;0;0;\0"))) -> 0 | N27: =IF($A27="",,SUMPRODUCT((LOOKUP(ROW(N$1:N$997),ROW(N$1:N$997)/ISNUMBER('Měsíční rekapitulace'!$L$1:$L$997),'Měsíční rekapitulace'!$L$1:$L$997)=N$4)*('Měsíční rekapitulace'!$A$3:$A$999=$A27)*TEXT('Měsíční rekapitulace'!$Q$3:$Q$999,"0,0;0;0;\0"))) -> 0 | O27: =IF($A27="",,SUMPRODUCT((LOOKUP(ROW(O$1:O$997),ROW(O$1:O$997)/ISNUMBER('Měsíční rekapitulace'!$L$1:$L$997),'Měsíční rekapitulace'!$L$1:$L$997)=O$4)*('Měsíční rekapitulace'!$A$3:$A$999=$A27)*TEXT('Měsíční rekapitulace'!$Q$3:$Q$999,"0,0;0;0;\0"))) -> 0 | P27: 0
A28: =IFERROR(INDEX('Měsíční rekapitulace'!A$3:A$999,SMALL(IF(('Měsíční rekapitulace'!A$3:A$999<>"")*('Měsíční rekapitulace'!A$3:A$999<>'Měsíční rekapitulace'!$A$2)*(COUNTIF(A$5:A27,'Měsíční rekapitulace'!A$3:A$999)=0),ROW('Měsíční rekapitulace'!A$3:A$999)-2),1)),"") -> Servis2014 | B28: =IFERROR(INDEX('Měsíční rekapitulace'!E$3:E$999,MATCH(A28,'Měsíční rekapitulace'!A$3:A$999,)),"") -> Práce podle servisní smlouvy na rok 2014 | D28: =IF($A28="",,SUMPRODUCT((LOOKUP(ROW(D$1:D$997),ROW(D$1:D$997)/ISNUMBER('Měsíční rekapitulace'!$L$1:$L$997),'Měsíční rekapitulace'!$L$1:$L$997)=D$4)*('Měsíční rekapitulace'!$A$3:$A$999=$A28)*TEXT('Měsíční rekapitulace'!$Q$3:$Q$999,"0,0;0;0;\0"))) -> 0 | E28: =IF($A28="",,SUMPRODUCT((LOOKUP(ROW(E$1:E$997),ROW(E$1:E$997)/ISNUMBER('Měsíční rekapitulace'!$L$1:$L$997),'Měsíční rekapitulace'!$L$1:$L$997)=E$4)*('Měsíční rekapitulace'!$A$3:$A$999=$A28)*TEXT('Měsíční rekapitulace'!$Q$3:$Q$999,"0,0;0;0;\0"))) -> 0 | F28: =IF($A28="",,SUMPRODUCT((LOOKUP(ROW(F$1:F$997),ROW(F$1:F$997)/ISNUMBER('Měsíční rekapitulace'!$L$1:$L$997),'Měsíční rekapitulace'!$L$1:$L$997)=F$4)*('Měsíční rekapitulace'!$A$3:$A$999=$A28)*TEXT('Měsíční rekapitulace'!$Q$3:$Q$999,"0,0;0;0;\0"))) -> 0 | G28: =IF($A28="",,SUMPRODUCT((LOOKUP(ROW(G$1:G$997),ROW(G$1:G$997)/ISNUMBER('Měsíční rekapitulace'!$L$1:$L$997),'Měsíční rekapitulace'!$L$1:$L$997)=G$4)*('Měsíční rekapitulace'!$A$3:$A$999=$A28)*TEXT('Měsíční rekapitulace'!$Q$3:$Q$999,"0,0;0;0;\0"))) -> 0 | H28: =IF($A28="",,SUMPRODUCT((LOOKUP(ROW(H$1:H$997),ROW(H$1:H$997)/ISNUMBER('Měsíční rekapitulace'!$L$1:$L$997),'Měsíční rekapitulace'!$L$1:$L$997)=H$4)*('Měsíční rekapitulace'!$A$3:$A$999=$A28)*TEXT('Měsíční rekapitulace'!$Q$3:$Q$999,"0,0;0;0;\0"))) -> 0 | I28: =IF($A28="",,SUMPRODUCT((LOOKUP(ROW(I$1:I$997),ROW(I$1:I$997)/ISNUMBER('Měsíční rekapitulace'!$L$1:$L$997),'Měsíční rekapitulace'!$L$1:$L$997)=I$4)*('Měsíční rekapitulace'!$A$3:$A$999=$A28)*TEXT('Měsíční rekapitulace'!$Q$3:$Q$999,"0,0;0;0;\0"))) -> 0 | J28: =IF($A28="",,SUMPRODUCT((LOOKUP(ROW(J$1:J$997),ROW(J$1:J$997)/ISNUMBER('Měsíční rekapitulace'!$L$1:$L$997),'Měsíční rekapitulace'!$L$1:$L$997)=J$4)*('Měsíční rekapitulace'!$A$3:$A$999=$A28)*TEXT('Měsíční rekapitulace'!$Q$3:$Q$999,"0,0;0;0;\0"))) -> 0 | K28: =IF($A28="",,SUMPRODUCT((LOOKUP(ROW(K$1:K$997),ROW(K$1:K$997)/ISNUMBER('Měsíční rekapitulace'!$L$1:$L$997),'Měsíční rekapitulace'!$L$1:$L$997)=K$4)*('Měsíční rekapitulace'!$A$3:$A$999=$A28)*TEXT('Měsíční rekapitulace'!$Q$3:$Q$999,"0,0;0;0;\0"))) -> 0 | L28: =IF($A28="",,SUMPRODUCT((LOOKUP(ROW(L$1:L$997),ROW(L$1:L$997)/ISNUMBER('Měsíční rekapitulace'!$L$1:$L$997),'Měsíční rekapitulace'!$L$1:$L$997)=L$4)*('Měsíční rekapitulace'!$A$3:$A$999=$A28)*TEXT('Měsíční rekapitulace'!$Q$3:$Q$999,"0,0;0;0;\0"))) -> 0 | M28: =IF($A28="",,SUMPRODUCT((LOOKUP(ROW(M$1:M$997),ROW(M$1:M$997)/ISNUMBER('Měsíční rekapitulace'!$L$1:$L$997),'Měsíční rekapitulace'!$L$1:$L$997)=M$4)*('Měsíční rekapitulace'!$A$3:$A$999=$A28)*TEXT('Měsíční rekapitulace'!$Q$3:$Q$999,"0,0;0;0;\0"))) -> 0 | N28: =IF($A28="",,SUMPRODUCT((LOOKUP(ROW(N$1:N$997),ROW(N$1:N$997)/ISNUMBER('Měsíční rekapitulace'!$L$1:$L$997),'Měsíční rekapitulace'!$L$1:$L$997)=N$4)*('Měsíční rekapitulace'!$A$3:$A$999=$A28)*TEXT('Měsíční rekapitulace'!$Q$3:$Q$999,"0,0;0;0;\0"))) -> 27 | O28: =IF($A28="",,SUMPRODUCT((LOOKUP(ROW(O$1:O$997),ROW(O$1:O$997)/ISNUMBER('Měsíční rekapitulace'!$L$1:$L$997),'Měsíční rekapitulace'!$L$1:$L$997)=O$4)*('Měsíční rekapitulace'!$A$3:$A$999=$A28)*TEXT('Měsíční rekapitulace'!$Q$3:$Q$999,"0,0;0;0;\0"))) -> 144 | P28: 171
A29: =IFERROR(INDEX('Měsíční rekapitulace'!A$3:A$999,SMALL(IF(('Měsíční rekapitulace'!A$3:A$999<>"")*('Měsíční rekapitulace'!A$3:A$999<>'Měsíční rekapitulace'!$A$2)*(COUNTIF(A$5:A28,'Měsíční rekapitulace'!A$3:A$999)=0),ROW('Měsíční rekapitulace'!A$3:A$999)-2),1)),"") -> S-1394 | B29: =IFERROR(INDEX('Měsíční rekapitulace'!E$3:E$999,MATCH(A29,'Měsíční rekapitulace'!A$3:A$999,)),"") -> Změna chování WS B1 ve vztahu k velkým objemům dat | D29: =IF($A29="",,SUMPRODUCT((LOOKUP(ROW(D$1:D$997),ROW(D$1:D$997)/ISNUMBER('Měsíční rekapitulace'!$L$1:$L$997),'Měsíční rekapitulace'!$L$1:$L$997)=D$4)*('Měsíční rekapitulace'!$A$3:$A$999=$A29)*TEXT('Měsíční rekapitulace'!$Q$3:$Q$999,"0,0;0;0;\0"))) -> 0 | E29: =IF($A29="",,SUMPRODUCT((LOOKUP(ROW(E$1:E$997),ROW(E$1:E$997)/ISNUMBER('Měsíční rekapitulace'!$L$1:$L$997),'Měsíční rekapitulace'!$L$1:$L$997)=E$4)*('Měsíční rekapitulace'!$A$3:$A$999=$A29)*TEXT('Měsíční rekapitulace'!$Q$3:$Q$999,"0,0;0;0;\0"))) -> 0 | F29: =IF($A29="",,SUMPRODUCT((LOOKUP(ROW(F$1:F$997),ROW(F$1:F$997)/ISNUMBER('Měsíční rekapitulace'!$L$1:$L$997),'Měsíční rekapitulace'!$L$1:$L$997)=F$4)*('Měsíční rekapitulace'!$A$3:$A$999=$A29)*TEXT('Měsíční rekapitulace'!$Q$3:$Q$999,"0,0;0;0;\0"))) -> 0 | G29: =IF($A29="",,SUMPRODUCT((LOOKUP(ROW(G$1:G$997),ROW(G$1:G$997)/ISNUMBER('Měsíční rekapitulace'!$L$1:$L$997),'Měsíční rekapitulace'!$L$1:$L$997)=G$4)*('Měsíční rekapitulace'!$A$3:$A$999=$A29)*TEXT('Měsíční rekapitulace'!$Q$3:$Q$999,"0,0;0;0;\0"))) -> 0 | H29: =IF($A29="",,SUMPRODUCT((LOOKUP(ROW(H$1:H$997),ROW(H$1:H$997)/ISNUMBER('Měsíční rekapitulace'!$L$1:$L$997),'Měsíční rekapitulace'!$L$1:$L$997)=H$4)*('Měsíční rekapitulace'!$A$3:$A$999=$A29)*TEXT('Měsíční rekapitulace'!$Q$3:$Q$999,"0,0;0;0;\0"))) -> 0 | I29: =IF($A29="",,SUMPRODUCT((LOOKUP(ROW(I$1:I$997),ROW(I$1:I$997)/ISNUMBER('Měsíční rekapitulace'!$L$1:$L$997),'Měsíční rekapitulace'!$L$1:$L$997)=I$4)*('Měsíční rekapitulace'!$A$3:$A$999=$A29)*TEXT('Měsíční rekapitulace'!$Q$3:$Q$999,"0,0;0;0;\0"))) -> 0 | J29: =IF($A29="",,SUMPRODUCT((LOOKUP(ROW(J$1:J$997),ROW(J$1:J$997)/ISNUMBER('Měsíční rekapitulace'!$L$1:$L$997),'Měsíční rekapitulace'!$L$1:$L$997)=J$4)*('Měsíční rekapitulace'!$A$3:$A$999=$A29)*TEXT('Měsíční rekapitulace'!$Q$3:$Q$999,"0,0;0;0;\0"))) -> 0 | K29: =IF($A29="",,SUMPRODUCT((LOOKUP(ROW(K$1:K$997),ROW(K$1:K$997)/ISNUMBER('Měsíční rekapitulace'!$L$1:$L$997),'Měsíční rekapitulace'!$L$1:$L$997)=K$4)*('Měsíční rekapitulace'!$A$3:$A$999=$A29)*TEXT('Měsíční rekapitulace'!$Q$3:$Q$999,"0,0;0;0;\0"))) -> 0 | L29: =IF($A29="",,SUMPRODUCT((LOOKUP(ROW(L$1:L$997),ROW(L$1:L$997)/ISNUMBER('Měsíční rekapitulace'!$L$1:$L$997),'Měsíční rekapitulace'!$L$1:$L$997)=L$4)*('Měsíční rekapitulace'!$A$3:$A$999=$A29)*TEXT('Měsíční rekapitulace'!$Q$3:$Q$999,"0,0;0;0;\0"))) -> 0 | M29: =IF($A29="",,SUMPRODUCT((LOOKUP(ROW(M$1:M$997),ROW(M$1:M$997)/ISNUMBER('Měsíční rekapitulace'!$L$1:$L$997),'Měsíční rekapitulace'!$L$1:$L$997)=M$4)*('Měsíční rekapitulace'!$A$3:$A$999=$A29)*TEXT('Měsíční rekapitulace'!$Q$3:$Q$999,"0,0;0;0;\0"))) -> 0 | N29: =IF($A29="",,SUMPRODUCT((LOOKUP(ROW(N$1:N$997),ROW(N$1:N$997)/ISNUMBER('Měsíční rekapitulace'!$L$1:$L$997),'Měsíční rekapitulace'!$L$1:$L$997)=N$4)*('Měsíční rekapitulace'!$A$3:$A$999=$A29)*TEXT('Měsíční rekapitulace'!$Q$3:$Q$999,"0,0;0;0;\0"))) -> 0 | O29: =IF($A29="",,SUMPRODUCT((LOOKUP(ROW(O$1:O$997),ROW(O$1:O$997)/ISNUMBER('Měsíční rekapitulace'!$L$1:$L$997),'Měsíční rekapitulace'!$L$1:$L$997)=O$4)*('Měsíční rekapitulace'!$A$3:$A$999=$A29)*TEXT('Měsíční rekapitulace'!$Q$3:$Q$999,"0,0;0;0;\0"))) -> 0 | P29: 0
A30: =IFERROR(INDEX('Měsíční rekapitulace'!A$3:A$999,SMALL(IF(('Měsíční rekapitulace'!A$3:A$999<>"")*('Měsíční rekapitulace'!A$3:A$999<>'Měsíční rekapitulace'!$A$2)*(COUNTIF(A$5:A29,'Měsíční rekapitulace'!A$3:A$999)=0),ROW('Měsíční rekapitulace'!A$3:A$999)-2),1)),"") -> S-1549 | B30: =IFERROR(INDEX('Měsíční rekapitulace'!E$3:E$999,MATCH(A30,'Měsíční rekapitulace'!A$3:A$999,)),"") -> Kontrola tarifní skupiny „Tahač“ | D30: =IF($A30="",,SUMPRODUCT((LOOKUP(ROW(D$1:D$997),ROW(D$1:D$997)/ISNUMBER('Měsíční rekapitulace'!$L$1:$L$997),'Měsíční rekapitulace'!$L$1:$L$997)=D$4)*('Měsíční rekapitulace'!$A$3:$A$999=$A30)*TEXT('Měsíční rekapitulace'!$Q$3:$Q$999,"0,0;0;0;\0"))) -> 0 | E30: =IF($A30="",,SUMPRODUCT((LOOKUP(ROW(E$1:E$997),ROW(E$1:E$997)/ISNUMBER('Měsíční rekapitulace'!$L$1:$L$997),'Měsíční rekapitulace'!$L$1:$L$997)=E$4)*('Měsíční rekapitulace'!$A$3:$A$999=$A30)*TEXT('Měsíční rekapitulace'!$Q$3:$Q$999,"0,0;0;0;\0"))) -> 0 | F30: =IF($A30="",,SUMPRODUCT((LOOKUP(ROW(F$1:F$997),ROW(F$1:F$997)/ISNUMBER('Měsíční rekapitulace'!$L$1:$L$997),'Měsíční rekapitulace'!$L$1:$L$997)=F$4)*('Měsíční rekapitulace'!$A$3:$A$999=$A30)*TEXT('Měsíční rekapitulace'!$Q$3:$Q$999,"0,0;0;0;\0"))) -> 0 | G30: =IF($A30="",,SUMPRODUCT((LOOKUP(ROW(G$1:G$997),ROW(G$1:G$997)/ISNUMBER('Měsíční rekapitulace'!$L$1:$L$997),'Měsíční rekapitulace'!$L$1:$L$997)=G$4)*('Měsíční rekapitulace'!$A$3:$A$999=$A30)*TEXT('Měsíční rekapitulace'!$Q$3:$Q$999,"0,0;0;0;\0"))) -> 0 | H30: =IF($A30="",,SUMPRODUCT((LOOKUP(ROW(H$1:H$997),ROW(H$1:H$997)/ISNUMBER('Měsíční rekapitulace'!$L$1:$L$997),'Měsíční rekapitulace'!$L$1:$L$997)=H$4)*('Měsíční rekapitulace'!$A$3:$A$999=$A30)*TEXT('Měsíční rekapitulace'!$Q$3:$Q$999,"0,0;0;0;\0"))) -> 0 | I30: =IF($A30="",,SUMPRODUCT((LOOKUP(ROW(I$1:I$997),ROW(I$1:I$997)/ISNUMBER('Měsíční rekapitulace'!$L$1:$L$997),'Měsíční rekapitulace'!$L$1:$L$997)=I$4)*('Měsíční rekapitulace'!$A$3:$A$999=$A30)*TEXT('Měsíční rekapitulace'!$Q$3:$Q$999,"0,0;0;0;\0"))) -> 0 | J30: =IF($A30="",,SUMPRODUCT((LOOKUP(ROW(J$1:J$997),ROW(J$1:J$997)/ISNUMBER('Měsíční rekapitulace'!$L$1:$L$997),'Měsíční rekapitulace'!$L$1:$L$997)=J$4)*('Měsíční rekapitulace'!$A$3:$A$999=$A30)*TEXT('Měsíční rekapitulace'!$Q$3:$Q$999,"0,0;0;0;\0"))) -> 0 | K30: =IF($A30="",,SUMPRODUCT((LOOKUP(ROW(K$1:K$997),ROW(K$1:K$997)/ISNUMBER('Měsíční rekapitulace'!$L$1:$L$997),'Měsíční rekapitulace'!$L$1:$L$997)=K$4)*('Měsíční rekapitulace'!$A$3:$A$999=$A30)*TEXT('Měsíční rekapitulace'!$Q$3:$Q$999,"0,0;0;0;\0"))) -> 0 | L30: =IF($A30="",,SUMPRODUCT((LOOKUP(ROW(L$1:L$997),ROW(L$1:L$997)/ISNUMBER('Měsíční rekapitulace'!$L$1:$L$997),'Měsíční rekapitulace'!$L$1:$L$997)=L$4)*('Měsíční rekapitulace'!$A$3:$A$999=$A30)*TEXT('Měsíční rekapitulace'!$Q$3:$Q$999,"0,0;0;0;\0"))) -> 0 | M30: =IF($A30="",,SUMPRODUCT((LOOKUP(ROW(M$1:M$997),ROW(M$1:M$997)/ISNUMBER('Měsíční rekapitulace'!$L$1:$L$997),'Měsíční rekapitulace'!$L$1:$L$997)=M$4)*('Měsíční rekapitulace'!$A$3:$A$999=$A30)*TEXT('Měsíční rekapitulace'!$Q$3:$Q$999,"0,0;0;0;\0"))) -> 0 | N30: =IF($A30="",,SUMPRODUCT((LOOKUP(ROW(N$1:N$997),ROW(N$1:N$997)/ISNUMBER('Měsíční rekapitulace'!$L$1:$L$997),'Měsíční rekapitulace'!$L$1:$L$997)=N$4)*('Měsíční rekapitulace'!$A$3:$A$999=$A30)*TEXT('Měsíční rekapitulace'!$Q$3:$Q$999,"0,0;0;0;\0"))) -> 0 | O30: =IF($A30="",,SUMPRODUCT((LOOKUP(ROW(O$1:O$997),ROW(O$1:O$997)/ISNUMBER('Měsíční rekapitulace'!$L$1:$L$997),'Měsíční rekapitulace'!$L$1:$L$997)=O$4)*('Měsíční rekapitulace'!$A$3:$A$999=$A30)*TEXT('Měsíční rekapitulace'!$Q$3:$Q$999,"0,0;0;0;\0"))) -> 0 | P30: 0
A31: =IFERROR(INDEX('Měsíční rekapitulace'!A$3:A$999,SMALL(IF(('Měsíční rekapitulace'!A$3:A$999<>"")*('Měsíční rekapitulace'!A$3:A$999<>'Měsíční rekapitulace'!$A$2)*(COUNTIF(A$5:A30,'Měsíční rekapitulace'!A$3:A$999)=0),ROW('Měsíční rekapitulace'!A$3:A$999)-2),1)),"") -> S-2058 | B31: =IFERROR(INDEX('Měsíční rekapitulace'!E$3:E$999,MATCH(A31,'Měsíční rekapitulace'!A$3:A$999,)),"") -> Úprava systému VR pro externí subsystém | D31: =IF($A31="",,SUMPRODUCT((LOOKUP(ROW(D$1:D$997),ROW(D$1:D$997)/ISNUMBER('Měsíční rekapitulace'!$L$1:$L$997),'Měsíční rekapitulace'!$L$1:$L$997)=D$4)*('Měsíční rekapitulace'!$A$3:$A$999=$A31)*TEXT('Měsíční rekapitulace'!$Q$3:$Q$999,"0,0;0;0;\0"))) -> 0 | E31: =IF($A31="",,SUMPRODUCT((LOOKUP(ROW(E$1:E$997),ROW(E$1:E$997)/ISNUMBER('Měsíční rekapitulace'!$L$1:$L$997),'Měsíční rekapitulace'!$L$1:$L$997)=E$4)*('Měsíční rekapitulace'!$A$3:$A$999=$A31)*TEXT('Měsíční rekapitulace'!$Q$3:$Q$999,"0,0;0;0;\0"))) -> 0 | F31: =IF($A31="",,SUMPRODUCT((LOOKUP(ROW(F$1:F$997),ROW(F$1:F$997)/ISNUMBER('Měsíční rekapitulace'!$L$1:$L$997),'Měsíční rekapitulace'!$L$1:$L$997)=F$4)*('Měsíční rekapitulace'!$A$3:$A$999=$A31)*TEXT('Měsíční rekapitulace'!$Q$3:$Q$999,"0,0;0;0;\0"))) -> 0 | G31: =IF($A31="",,SUMPRODUCT((LOOKUP(ROW(G$1:G$997),ROW(G$1:G$997)/ISNUMBER('Měsíční rekapitulace'!$L$1:$L$997),'Měsíční rekapitulace'!$L$1:$L$997)=G$4)*('Měsíční rekapitulace'!$A$3:$A$999=$A31)*TEXT('Měsíční rekapitulace'!$Q$3:$Q$999,"0,0;0;0;\0"))) -> 0 | H31: =IF($A31="",,SUMPRODUCT((LOOKUP(ROW(H$1:H$997),ROW(H$1:H$997)/ISNUMBER('Měsíční rekapitulace'!$L$1:$L$997),'Měsíční rekapitulace'!$L$1:$L$997)=H$4)*('Měsíční rekapitulace'!$A$3:$A$999=$A31)*TEXT('Měsíční rekapitulace'!$Q$3:$Q$999,"0,0;0;0;\0"))) -> 0 | I31: =IF($A31="",,SUMPRODUCT((LOOKUP(ROW(I$1:I$997),ROW(I$1:I$997)/ISNUMBER('Měsíční rekapitulace'!$L$1:$L$997),'Měsíční rekapitulace'!$L$1:$L$997)=I$4)*('Měsíční rekapitulace'!$A$3:$A$999=$A31)*TEXT('Měsíční rekapitulace'!$Q$3:$Q$999,"0,0;0;0;\0"))) -> 0 | J31: =IF($A31="",,SUMPRODUCT((LOOKUP(ROW(J$1:J$997),ROW(J$1:J$997)/ISNUMBER('Měsíční rekapitulace'!$L$1:$L$997),'Měsíční rekapitulace'!$L$1:$L$997)=J$4)*('Měsíční rekapitulace'!$A$3:$A$999=$A31)*TEXT('Měsíční rekapitulace'!$Q$3:$Q$999,"0,0;0;0;\0"))) -> 0 | K31: =IF($A31="",,SUMPRODUCT((LOOKUP(ROW(K$1:K$997),ROW(K$1:K$997)/ISNUMBER('Měsíční rekapitulace'!$L$1:$L$997),'Měsíční rekapitulace'!$L$1:$L$997)=K$4)*('Měsíční rekapitulace'!$A$3:$A$999=$A31)*TEXT('Měsíční rekapitulace'!$Q$3:$Q$999,"0,0;0;0;\0"))) -> 0 | L31: =IF($A31="",,SUMPRODUCT((LOOKUP(ROW(L$1:L$997),ROW(L$1:L$997)/ISNUMBER('Měsíční rekapitulace'!$L$1:$L$997),'Měsíční rekapitulace'!$L$1:$L$997)=L$4)*('Měsíční rekapitulace'!$A$3:$A$999=$A31)*TEXT('Měsíční rekapitulace'!$Q$3:$Q$999,"0,0;0;0;\0"))) -> 0 | M31: =IF($A31="",,SUMPRODUCT((LOOKUP(ROW(M$1:M$997),ROW(M$1:M$997)/ISNUMBER('Měsíční rekapitulace'!$L$1:$L$997),'Měsíční rekapitulace'!$L$1:$L$997)=M$4)*('Měsíční rekapitulace'!$A$3:$A$999=$A31)*TEXT('Měsíční rekapitulace'!$Q$3:$Q$999,"0,0;0;0;\0"))) -> 0 | N31: =IF($A31="",,SUMPRODUCT((LOOKUP(ROW(N$1:N$997),ROW(N$1:N$997)/ISNUMBER('Měsíční rekapitulace'!$L$1:$L$997),'Měsíční rekapitulace'!$L$1:$L$997)=N$4)*('Měsíční rekapitulace'!$A$3:$A$999=$A31)*TEXT('Měsíční rekapitulace'!$Q$3:$Q$999,"0,0;0;0;\0"))) -> 0 | O31: =IF($A31="",,SUMPRODUCT((LOOKUP(ROW(O$1:O$997),ROW(O$1:O$997)/ISNUMBER('Měsíční rekapitulace'!$L$1:$L$997),'Měsíční rekapitulace'!$L$1:$L$997)=O$4)*('Měsíční rekapitulace'!$A$3:$A$999=$A31)*TEXT('Měsíční rekapitulace'!$Q$3:$Q$999,"0,0;0;0;\0"))) -> 0 | P31: 0
A32: =IFERROR(INDEX('Měsíční rekapitulace'!A$3:A$999,SMALL(IF(('Měsíční rekapitulace'!A$3:A$999<>"")*('Měsíční rekapitulace'!A$3:A$999<>'Měsíční rekapitulace'!$A$2)*(COUNTIF(A$5:A31,'Měsíční rekapitulace'!A$3:A$999)=0),ROW('Měsíční rekapitulace'!A$3:A$999)-2),1)),"") -> S-559 | B32: =IFERROR(INDEX('Měsíční rekapitulace'!E$3:E$999,MATCH(A32,'Měsíční rekapitulace'!A$3:A$999,)),"") -> Revize restriktivních pravidel u záznamu SetPrenosPSP (B1/L1) | D32: =IF($A32="",,SUMPRODUCT((LOOKUP(ROW(D$1:D$997),ROW(D$1:D$997)/ISNUMBER('Měsíční rekapitulace'!$L$1:$L$997),'Měsíční rekapitulace'!$L$1:$L$997)=D$4)*('Měsíční rekapitulace'!$A$3:$A$999=$A32)*TEXT('Měsíční rekapitulace'!$Q$3:$Q$999,"0,0;0;0;\0"))) -> 0 | E32: =IF($A32="",,SUMPRODUCT((LOOKUP(ROW(E$1:E$997),ROW(E$1:E$997)/ISNUMBER('Měsíční rekapitulace'!$L$1:$L$997),'Měsíční rekapitulace'!$L$1:$L$997)=E$4)*('Měsíční rekapitulace'!$A$3:$A$999=$A32)*TEXT('Měsíční rekapitulace'!$Q$3:$Q$999,"0,0;0;0;\0"))) -> 0 | F32: =IF($A32="",,SUMPRODUCT((LOOKUP(ROW(F$1:F$997),ROW(F$1:F$997)/ISNUMBER('Měsíční rekapitulace'!$L$1:$L$997),'Měsíční rekapitulace'!$L$1:$L$997)=F$4)*('Měsíční rekapitulace'!$A$3:$A$999=$A32)*TEXT('Měsíční rekapitulace'!$Q$3:$Q$999,"0,0;0;0;\0"))) -> 0 | G32: =IF($A32="",,SUMPRODUCT((LOOKUP(ROW(G$1:G$997),ROW(G$1:G$997)/ISNUMBER('Měsíční rekapitulace'!$L$1:$L$997),'Měsíční rekapitulace'!$L$1:$L$997)=G$4)*('Měsíční rekapitulace'!$A$3:$A$999=$A32)*TEXT('Měsíční rekapitulace'!$Q$3:$Q$999,"0,0;0;0;\0"))) -> 0 | H32: =IF($A32="",,SUMPRODUCT((LOOKUP(ROW(H$1:H$997),ROW(H$1:H$997)/ISNUMBER('Měsíční rekapitulace'!$L$1:$L$997),'Měsíční rekapitulace'!$L$1:$L$997)=H$4)*('Měsíční rekapitulace'!$A$3:$A$999=$A32)*TEXT('Měsíční rekapitulace'!$Q$3:$Q$999,"0,0;0;0;\0"))) -> 0 | I32: =IF($A32="",,SUMPRODUCT((LOOKUP(ROW(I$1:I$997),ROW(I$1:I$997)/ISNUMBER('Měsíční rekapitulace'!$L$1:$L$997),'Měsíční rekapitulace'!$L$1:$L$997)=I$4)*('Měsíční rekapitulace'!$A$3:$A$999=$A32)*TEXT('Měsíční rekapitulace'!$Q$3:$Q$999,"0,0;0;0;\0"))) -> 0 | J32: =IF($A32="",,SUMPRODUCT((LOOKUP(ROW(J$1:J$997),ROW(J$1:J$997)/ISNUMBER('Měsíční rekapitulace'!$L$1:$L$997),'Měsíční rekapitulace'!$L$1:$L$997)=J$4)*('Měsíční rekapitulace'!$A$3:$A$999=$A32)*TEXT('Měsíční rekapitulace'!$Q$3:$Q$999,"0,0;0;0;\0"))) -> 0 | K32: =IF($A32="",,SUMPRODUCT((LOOKUP(ROW(K$1:K$997),ROW(K$1:K$997)/ISNUMBER('Měsíční rekapitulace'!$L$1:$L$997),'Měsíční rekapitulace'!$L$1:$L$997)=K$4)*('Měsíční rekapitulace'!$A$3:$A$999=$A32)*TEXT('Měsíční rekapitulace'!$Q$3:$Q$999,"0,0;0;0;\0"))) -> 0 | L32: =IF($A32="",,SUMPRODUCT((LOOKUP(ROW(L$1:L$997),ROW(L$1:L$997)/ISNUMBER('Měsíční rekapitulace'!$L$1:$L$997),'Měsíční rekapitulace'!$L$1:$L$997)=L$4)*('Měsíční rekapitulace'!$A$3:$A$999=$A32)*TEXT('Měsíční rekapitulace'!$Q$3:$Q$999,"0,0;0;0;\0"))) -> 0 | M32: =IF($A32="",,SUMPRODUCT((LOOKUP(ROW(M$1:M$997),ROW(M$1:M$997)/ISNUMBER('Měsíční rekapitulace'!$L$1:$L$997),'Měsíční rekapitulace'!$L$1:$L$997)=M$4)*('Měsíční rekapitulace'!$A$3:$A$999=$A32)*TEXT('Měsíční rekapitulace'!$Q$3:$Q$999,"0,0;0;0;\0"))) -> 0 | N32: =IF($A32="",,SUMPRODUCT((LOOKUP(ROW(N$1:N$997),ROW(N$1:N$997)/ISNUMBER('Měsíční rekapitulace'!$L$1:$L$997),'Měsíční rekapitulace'!$L$1:$L$997)=N$4)*('Měsíční rekapitulace'!$A$3:$A$999=$A32)*TEXT('Měsíční rekapitulace'!$Q$3:$Q$999,"0,0;0;0;\0"))) -> 0 | O32: =IF($A32="",,SUMPRODUCT((LOOKUP(ROW(O$1:O$997),ROW(O$1:O$997)/ISNUMBER('Měsíční rekapitulace'!$L$1:$L$997),'Měsíční rekapitulace'!$L$1:$L$997)=O$4)*('Měsíční rekapitulace'!$A$3:$A$999=$A32)*TEXT('Měsíční rekapitulace'!$Q$3:$Q$999,"0,0;0;0;\0"))) -> 0 | P32: 0
A33: =IFERROR(INDEX('Měsíční rekapitulace'!A$3:A$999,SMALL(IF(('Měsíční rekapitulace'!A$3:A$999<>"")*('Měsíční rekapitulace'!A$3:A$999<>'Měsíční rekapitulace'!$A$2)*(COUNTIF(A$5:A32,'Měsíční rekapitulace'!A$3:A$999)=0),ROW('Měsíční rekapitulace'!A$3:A$999)-2),1)),"") -> S-633 | B33: =IFERROR(INDEX('Měsíční rekapitulace'!E$3:E$999,MATCH(A33,'Měsíční rekapitulace'!A$3:A$999,)),"") -> (SLP) Předání svědka Salipu | D33: =IF($A33="",,SUMPRODUCT((LOOKUP(ROW(D$1:D$997),ROW(D$1:D$997)/ISNUMBER('Měsíční rekapitulace'!$L$1:$L$997),'Měsíční rekapitulace'!$L$1:$L$997)=D$4)*('Měsíční rekapitulace'!$A$3:$A$999=$A33)*TEXT('Měsíční rekapitulace'!$Q$3:$Q$999,"0,0;0;0;\0"))) -> 0 | E33: =IF($A33="",,SUMPRODUCT((LOOKUP(ROW(E$1:E$997),ROW(E$1:E$997)/ISNUMBER('Měsíční rekapitulace'!$L$1:$L$997),'Měsíční rekapitulace'!$L$1:$L$997)=E$4)*('Měsíční rekapitulace'!$A$3:$A$999=$A33)*TEXT('Měsíční rekapitulace'!$Q$3:$Q$999,"0,0;0;0;\0"))) -> 0 | F33: =IF($A33="",,SUMPRODUCT((LOOKUP(ROW(F$1:F$997),ROW(F$1:F$997)/ISNUMBER('Měsíční rekapitulace'!$L$1:$L$997),'Měsíční rekapitulace'!$L$1:$L$997)=F$4)*('Měsíční rekapitulace'!$A$3:$A$999=$A33)*TEXT('Měsíční rekapitulace'!$Q$3:$Q$999,"0,0;0;0;\0"))) -> 0 | G33: =IF($A33="",,SUMPRODUCT((LOOKUP(ROW(G$1:G$997),ROW(G$1:G$997)/ISNUMBER('Měsíční rekapitulace'!$L$1:$L$997),'Měsíční rekapitulace'!$L$1:$L$997)=G$4)*('Měsíční rekapitulace'!$A$3:$A$999=$A33)*TEXT('Měsíční rekapitulace'!$Q$3:$Q$999,"0,0;0;0;\0"))) -> 0 | H33: =IF($A33="",,SUMPRODUCT((LOOKUP(ROW(H$1:H$997),ROW(H$1:H$997)/ISNUMBER('Měsíční rekapitulace'!$L$1:$L$997),'Měsíční rekapitulace'!$L$1:$L$997)=H$4)*('Měsíční rekapitulace'!$A$3:$A$999=$A33)*TEXT('Měsíční rekapitulace'!$Q$3:$Q$999,"0,0;0;0;\0"))) -> 0 | I33: =IF($A33="",,SUMPRODUCT((LOOKUP(ROW(I$1:I$997),ROW(I$1:I$997)/ISNUMBER('Měsíční rekapitulace'!$L$1:$L$997),'Měsíční rekapitulace'!$L$1:$L$997)=I$4)*('Měsíční rekapitulace'!$A$3:$A$999=$A33)*TEXT('Měsíční rekapitulace'!$Q$3:$Q$999,"0,0;0;0;\0"))) -> 0 | J33: =IF($A33="",,SUMPRODUCT((LOOKUP(ROW(J$1:J$997),ROW(J$1:J$997)/ISNUMBER('Měsíční rekapitulace'!$L$1:$L$997),'Měsíční rekapitulace'!$L$1:$L$997)=J$4)*('Měsíční rekapitulace'!$A$3:$A$999=$A33)*TEXT('Měsíční rekapitulace'!$Q$3:$Q$999,"0,0;0;0;\0"))) -> 0 | K33: =IF($A33="",,SUMPRODUCT((LOOKUP(ROW(K$1:K$997),ROW(K$1:K$997)/ISNUMBER('Měsíční rekapitulace'!$L$1:$L$997),'Měsíční rekapitulace'!$L$1:$L$997)=K$4)*('Měsíční rekapitulace'!$A$3:$A$999=$A33)*TEXT('Měsíční rekapitulace'!$Q$3:$Q$999,"0,0;0;0;\0"))) -> 0 | L33: =IF($A33="",,SUMPRODUCT((LOOKUP(ROW(L$1:L$997),ROW(L$1:L$997)/ISNUMBER('Měsíční rekapitulace'!$L$1:$L$997),'Měsíční rekapitulace'!$L$1:$L$997)=L$4)*('Měsíční rekapitulace'!$A$3:$A$999=$A33)*TEXT('Měsíční rekapitulace'!$Q$3:$Q$999,"0,0;0;0;\0"))) -> 0 | M33: =IF($A33="",,SUMPRODUCT((LOOKUP(ROW(M$1:M$997),ROW(M$1:M$997)/ISNUMBER('Měsíční rekapitulace'!$L$1:$L$997),'Měsíční rekapitulace'!$L$1:$L$997)=M$4)*('Měsíční rekapitulace'!$A$3:$A$999=$A33)*TEXT('Měsíční rekapitulace'!$Q$3:$Q$999,"0,0;0;0;\0"))) -> 0 | N33: =IF($A33="",,SUMPRODUCT((LOOKUP(ROW(N$1:N$997),ROW(N$1:N$997)/ISNUMBER('Měsíční rekapitulace'!$L$1:$L$997),'Měsíční rekapitulace'!$L$1:$L$997)=N$4)*('Měsíční rekapitulace'!$A$3:$A$999=$A33)*TEXT('Měsíční rekapitulace'!$Q$3:$Q$999,"0,0;0;0;\0"))) -> 0 | O33: =IF($A33="",,SUMPRODUCT((LOOKUP(ROW(O$1:O$997),ROW(O$1:O$997)/ISNUMBER('Měsíční rekapitulace'!$L$1:$L$997),'Měsíční rekapitulace'!$L$1:$L$997)=O$4)*('Měsíční rekapitulace'!$A$3:$A$999=$A33)*TEXT('Měsíční rekapitulace'!$Q$3:$Q$999,"0,0;0;0;\0"))) -> 0 | P33: 0
A34: =IFERROR(INDEX('Měsíční rekapitulace'!A$3:A$999,SMALL(IF(('Měsíční rekapitulace'!A$3:A$999<>"")*('Měsíční rekapitulace'!A$3:A$999<>'Měsíční rekapitulace'!$A$2)*(COUNTIF(A$5:A33,'Měsíční rekapitulace'!A$3:A$999)=0),ROW('Měsíční rekapitulace'!A$3:A$999)-2),1)),"") -> S-1322 | B34: =IFERROR(INDEX('Měsíční rekapitulace'!E$3:E$999,MATCH(A34,'Měsíční rekapitulace'!A$3:A$999,)),"") -> Úprava zpracování nároků pro L6 | D34: =IF($A34="",,SUMPRODUCT((LOOKUP(ROW(D$1:D$997),ROW(D$1:D$997)/ISNUMBER('Měsíční rekapitulace'!$L$1:$L$997),'Měsíční rekapitulace'!$L$1:$L$997)=D$4)*('Měsíční rekapitulace'!$A$3:$A$999=$A34)*TEXT('Měsíční rekapitulace'!$Q$3:$Q$999,"0,0;0;0;\0"))) -> 0 | E34: =IF($A34="",,SUMPRODUCT((LOOKUP(ROW(E$1:E$997),ROW(E$1:E$997)/ISNUMBER('Měsíční rekapitulace'!$L$1:$L$997),'Měsíční rekapitulace'!$L$1:$L$997)=E$4)*('Měsíční rekapitulace'!$A$3:$A$999=$A34)*TEXT('Měsíční rekapitulace'!$Q$3:$Q$999,"0,0;0;0;\0"))) -> 0 | F34: =IF($A34="",,SUMPRODUCT((LOOKUP(ROW(F$1:F$997),ROW(F$1:F$997)/ISNUMBER('Měsíční rekapitulace'!$L$1:$L$997),'Měsíční rekapitulace'!$L$1:$L$997)=F$4)*('Měsíční rekapitulace'!$A$3:$A$999=$A34)*TEXT('Měsíční rekapitulace'!$Q$3:$Q$999,"0,0;0;0;\0"))) -> 0 | G34: =IF($A34="",,SUMPRODUCT((LOOKUP(ROW(G$1:G$997),ROW(G$1:G$997)/ISNUMBER('Měsíční rekapitulace'!$L$1:$L$997),'Měsíční rekapitulace'!$L$1:$L$997)=G$4)*('Měsíční rekapitulace'!$A$3:$A$999=$A34)*TEXT('Měsíční rekapitulace'!$Q$3:$Q$999,"0,0;0;0;\0"))) -> 0 | H34: =IF($A34="",,SUMPRODUCT((LOOKUP(ROW(H$1:H$997),ROW(H$1:H$997)/ISNUMBER('Měsíční rekapitulace'!$L$1:$L$997),'Měsíční rekapitulace'!$L$1:$L$997)=H$4)*('Měsíční rekapitulace'!$A$3:$A$999=$A34)*TEXT('Měsíční rekapitulace'!$Q$3:$Q$999,"0,0;0;0;\0"))) -> 0 | I34: =IF($A34="",,SUMPRODUCT((LOOKUP(ROW(I$1:I$997),ROW(I$1:I$997)/ISNUMBER('Měsíční rekapitulace'!$L$1:$L$997),'Měsíční rekapitulace'!$L$1:$L$997)=I$4)*('Měsíční rekapitulace'!$A$3:$A$999=$A34)*TEXT('Měsíční rekapitulace'!$Q$3:$Q$999,"0,0;0;0;\0"))) -> 0 | J34: =IF($A34="",,SUMPRODUCT((LOOKUP(ROW(J$1:J$997),ROW(J$1:J$997)/ISNUMBER('Měsíční rekapitulace'!$L$1:$L$997),'Měsíční rekapitulace'!$L$1:$L$997)=J$4)*('Měsíční rekapitulace'!$A$3:$A$999=$A34)*TEXT('Měsíční rekapitulace'!$Q$3:$Q$999,"0,0;0;0;\0"))) -> 0 | K34: =IF($A34="",,SUMPRODUCT((LOOKUP(ROW(K$1:K$997),ROW(K$1:K$997)/ISNUMBER('Měsíční rekapitulace'!$L$1:$L$997),'Měsíční rekapitulace'!$L$1:$L$997)=K$4)*('Měsíční rekapitulace'!$A$3:$A$999=$A34)*TEXT('Měsíční rekapitulace'!$Q$3:$Q$999,"0,0;0;0;\0"))) -> 0 | L34: =IF($A34="",,SUMPRODUCT((LOOKUP(ROW(L$1:L$997),ROW(L$1:L$997)/ISNUMBER('Měsíční rekapitulace'!$L$1:$L$997),'Měsíční rekapitulace'!$L$1:$L$997)=L$4)*('Měsíční rekapitulace'!$A$3:$A$999=$A34)*TEXT('Měsíční rekapitulace'!$Q$3:$Q$999,"0,0;0;0;\0"))) -> 0 | M34: =IF($A34="",,SUMPRODUCT((LOOKUP(ROW(M$1:M$997),ROW(M$1:M$997)/ISNUMBER('Měsíční rekapitulace'!$L$1:$L$997),'Měsíční rekapitulace'!$L$1:$L$997)=M$4)*('Měsíční rekapitulace'!$A$3:$A$999=$A34)*TEXT('Měsíční rekapitulace'!$Q$3:$Q$999,"0,0;0;0;\0"))) -> 0 | N34: =IF($A34="",,SUMPRODUCT((LOOKUP(ROW(N$1:N$997),ROW(N$1:N$997)/ISNUMBER('Měsíční rekapitulace'!$L$1:$L$997),'Měsíční rekapitulace'!$L$1:$L$997)=N$4)*('Měsíční rekapitulace'!$A$3:$A$999=$A34)*TEXT('Měsíční rekapitulace'!$Q$3:$Q$999,"0,0;0;0;\0"))) -> 0 | O34: =IF($A34="",,SUMPRODUCT((LOOKUP(ROW(O$1:O$997),ROW(O$1:O$997)/ISNUMBER('Měsíční rekapitulace'!$L$1:$L$997),'Měsíční rekapitulace'!$L$1:$L$997)=O$4)*('Měsíční rekapitulace'!$A$3:$A$999=$A34)*TEXT('Měsíční rekapitulace'!$Q$3:$Q$999,"0,0;0;0;\0"))) -> 0 | P34: 0
A35: =IFERROR(INDEX('Měsíční rekapitulace'!A$3:A$999,SMALL(IF(('Měsíční rekapitulace'!A$3:A$999<>"")*('Měsíční rekapitulace'!A$3:A$999<>'Měsíční rekapitulace'!$A$2)*(COUNTIF(A$5:A34,'Měsíční rekapitulace'!A$3:A$999)=0),ROW('Měsíční rekapitulace'!A$3:A$999)-2),1)),"") -> S-1954 | B35: =IFERROR(INDEX('Měsíční rekapitulace'!E$3:E$999,MATCH(A35,'Měsíční rekapitulace'!A$3:A$999,)),"") -> Původní záznamy adres | D35: =IF($A35="",,SUMPRODUCT((LOOKUP(ROW(D$1:D$997),ROW(D$1:D$997)/ISNUMBER('Měsíční rekapitulace'!$L$1:$L$997),'Měsíční rekapitulace'!$L$1:$L$997)=D$4)*('Měsíční rekapitulace'!$A$3:$A$999=$A35)*TEXT('Měsíční rekapitulace'!$Q$3:$Q$999,"0,0;0;0;\0"))) -> 0 | E35: =IF($A35="",,SUMPRODUCT((LOOKUP(ROW(E$1:E$997),ROW(E$1:E$997)/ISNUMBER('Měsíční rekapitulace'!$L$1:$L$997),'Měsíční rekapitulace'!$L$1:$L$997)=E$4)*('Měsíční rekapitulace'!$A$3:$A$999=$A35)*TEXT('Měsíční rekapitulace'!$Q$3:$Q$999,"0,0;0;0;\0"))) -> 0 | F35: =IF($A35="",,SUMPRODUCT((LOOKUP(ROW(F$1:F$997),ROW(F$1:F$997)/ISNUMBER('Měsíční rekapitulace'!$L$1:$L$997),'Měsíční rekapitulace'!$L$1:$L$997)=F$4)*('Měsíční rekapitulace'!$A$3:$A$999=$A35)*TEXT('Měsíční rekapitulace'!$Q$3:$Q$999,"0,0;0;0;\0"))) -> 0 | G35: =IF($A35="",,SUMPRODUCT((LOOKUP(ROW(G$1:G$997),ROW(G$1:G$997)/ISNUMBER('Měsíční rekapitulace'!$L$1:$L$997),'Měsíční rekapitulace'!$L$1:$L$997)=G$4)*('Měsíční rekapitulace'!$A$3:$A$999=$A35)*TEXT('Měsíční rekapitulace'!$Q$3:$Q$999,"0,0;0;0;\0"))) -> 0 | H35: =IF($A35="",,SUMPRODUCT((LOOKUP(ROW(H$1:H$997),ROW(H$1:H$997)/ISNUMBER('Měsíční rekapitulace'!$L$1:$L$997),'Měsíční rekapitulace'!$L$1:$L$997)=H$4)*('Měsíční rekapitulace'!$A$3:$A$999=$A35)*TEXT('Měsíční rekapitulace'!$Q$3:$Q$999,"0,0;0;0;\0"))) -> 0 | I35: =IF($A35="",,SUMPRODUCT((LOOKUP(ROW(I$1:I$997),ROW(I$1:I$997)/ISNUMBER('Měsíční rekapitulace'!$L$1:$L$997),'Měsíční rekapitulace'!$L$1:$L$997)=I$4)*('Měsíční rekapitulace'!$A$3:$A$999=$A35)*TEXT('Měsíční rekapitulace'!$Q$3:$Q$999,"0,0;0;0;\0"))) -> 0 | J35: =IF($A35="",,SUMPRODUCT((LOOKUP(ROW(J$1:J$997),ROW(J$1:J$997)/ISNUMBER('Měsíční rekapitulace'!$L$1:$L$997),'Měsíční rekapitulace'!$L$1:$L$997)=J$4)*('Měsíční rekapitulace'!$A$3:$A$999=$A35)*TEXT('Měsíční rekapitulace'!$Q$3:$Q$999,"0,0;0;0;\0"))) -> 0 | K35: =IF($A35="",,SUMPRODUCT((LOOKUP(ROW(K$1:K$997),ROW(K$1:K$997)/ISNUMBER('Měsíční rekapitulace'!$L$1:$L$997),'Měsíční rekapitulace'!$L$1:$L$997)=K$4)*('Měsíční rekapitulace'!$A$3:$A$999=$A35)*TEXT('Měsíční rekapitulace'!$Q$3:$Q$999,"0,0;0;0;\0"))) -> 0 | L35: =IF($A35="",,SUMPRODUCT((LOOKUP(ROW(L$1:L$997),ROW(L$1:L$997)/ISNUMBER('Měsíční rekapitulace'!$L$1:$L$997),'Měsíční rekapitulace'!$L$1:$L$997)=L$4)*('Měsíční rekapitulace'!$A$3:$A$999=$A35)*TEXT('Měsíční rekapitulace'!$Q$3:$Q$999,"0,0;0;0;\0"))) -> 0 | M35: =IF($A35="",,SUMPRODUCT((LOOKUP(ROW(M$1:M$997),ROW(M$1:M$997)/ISNUMBER('Měsíční rekapitulace'!$L$1:$L$997),'Měsíční rekapitulace'!$L$1:$L$997)=M$4)*('Měsíční rekapitulace'!$A$3:$A$999=$A35)*TEXT('Měsíční rekapitulace'!$Q$3:$Q$999,"0,0;0;0;\0"))) -> 0 | N35: =IF($A35="",,SUMPRODUCT((LOOKUP(ROW(N$1:N$997),ROW(N$1:N$997)/ISNUMBER('Měsíční rekapitulace'!$L$1:$L$997),'Měsíční rekapitulace'!$L$1:$L$997)=N$4)*('Měsíční rekapitulace'!$A$3:$A$999=$A35)*TEXT('Měsíční rekapitulace'!$Q$3:$Q$999,"0,0;0;0;\0"))) -> 0 | O35: =IF($A35="",,SUMPRODUCT((LOOKUP(ROW(O$1:O$997),ROW(O$1:O$997)/ISNUMBER('Měsíční rekapitulace'!$L$1:$L$997),'Měsíční rekapitulace'!$L$1:$L$997)=O$4)*('Měsíční rekapitulace'!$A$3:$A$999=$A35)*TEXT('Měsíční rekapitulace'!$Q$3:$Q$999,"0,0;0;0;\0"))) -> 0 | P35: 0
A36: =IFERROR(INDEX('Měsíční rekapitulace'!A$3:A$999,SMALL(IF(('Měsíční rekapitulace'!A$3:A$999<>"")*('Měsíční rekapitulace'!A$3:A$999<>'Měsíční rekapitulace'!$A$2)*(COUNTIF(A$5:A35,'Měsíční rekapitulace'!A$3:A$999)=0),ROW('Měsíční rekapitulace'!A$3:A$999)-2),1)),"") -> S-2126 | B36: =IFERROR(INDEX('Měsíční rekapitulace'!E$3:E$999,MATCH(A36,'Měsíční rekapitulace'!A$3:A$999,)),"") -> Logování změněných přenesených znaků do FIS CODA | D36: =IF($A36="",,SUMPRODUCT((LOOKUP(ROW(D$1:D$997),ROW(D$1:D$997)/ISNUMBER('Měsíční rekapitulace'!$L$1:$L$997),'Měsíční rekapitulace'!$L$1:$L$997)=D$4)*('Měsíční rekapitulace'!$A$3:$A$999=$A36)*TEXT('Měsíční rekapitulace'!$Q$3:$Q$999,"0,0;0;0;\0"))) -> 0 | E36: =IF($A36="",,SUMPRODUCT((LOOKUP(ROW(E$1:E$997),ROW(E$1:E$997)/ISNUMBER('Měsíční rekapitulace'!$L$1:$L$997),'Měsíční rekapitulace'!$L$1:$L$997)=E$4)*('Měsíční rekapitulace'!$A$3:$A$999=$A36)*TEXT('Měsíční rekapitulace'!$Q$3:$Q$999,"0,0;0;0;\0"))) -> 0 | F36: =IF($A36="",,SUMPRODUCT((LOOKUP(ROW(F$1:F$997),ROW(F$1:F$997)/ISNUMBER('Měsíční rekapitulace'!$L$1:$L$997),'Měsíční rekapitulace'!$L$1:$L$997)=F$4)*('Měsíční rekapitulace'!$A$3:$A$999=$A36)*TEXT('Měsíční rekapitulace'!$Q$3:$Q$999,"0,0;0;0;\0"))) -> 0 | G36: =IF($A36="",,SUMPRODUCT((LOOKUP(ROW(G$1:G$997),ROW(G$1:G$997)/ISNUMBER('Měsíční rekapitulace'!$L$1:$L$997),'Měsíční rekapitulace'!$L$1:$L$997)=G$4)*('Měsíční rekapitulace'!$A$3:$A$999=$A36)*TEXT('Měsíční rekapitulace'!$Q$3:$Q$999,"0,0;0;0;\0"))) -> 0 | H36: =IF($A36="",,SUMPRODUCT((LOOKUP(ROW(H$1:H$997),ROW(H$1:H$997)/ISNUMBER('Měsíční rekapitulace'!$L$1:$L$997),'Měsíční rekapitulace'!$L$1:$L$997)=H$4)*('Měsíční rekapitulace'!$A$3:$A$999=$A36)*TEXT('Měsíční rekapitulace'!$Q$3:$Q$999,"0,0;0;0;\0"))) -> 0 | I36: =IF($A36="",,SUMPRODUCT((LOOKUP(ROW(I$1:I$997),ROW(I$1:I$997)/ISNUMBER('Měsíční rekapitulace'!$L$1:$L$997),'Měsíční rekapitulace'!$L$1:$L$997)=I$4)*('Měsíční rekapitulace'!$A$3:$A$999=$A36)*TEXT('Měsíční rekapitulace'!$Q$3:$Q$999,"0,0;0;0;\0"))) -> 0 | J36: =IF($A36="",,SUMPRODUCT((LOOKUP(ROW(J$1:J$997),ROW(J$1:J$997)/ISNUMBER('Měsíční rekapitulace'!$L$1:$L$997),'Měsíční rekapitulace'!$L$1:$L$997)=J$4)*('Měsíční rekapitulace'!$A$3:$A$999=$A36)*TEXT('Měsíční rekapitulace'!$Q$3:$Q$999,"0,0;0;0;\0"))) -> 0 | K36: =IF($A36="",,SUMPRODUCT((LOOKUP(ROW(K$1:K$997),ROW(K$1:K$997)/ISNUMBER('Měsíční rekapitulace'!$L$1:$L$997),'Měsíční rekapitulace'!$L$1:$L$997)=K$4)*('Měsíční rekapitulace'!$A$3:$A$999=$A36)*TEXT('Měsíční rekapitulace'!$Q$3:$Q$999,"0,0;0;0;\0"))) -> 0 | L36: =IF($A36="",,SUMPRODUCT((LOOKUP(ROW(L$1:L$997),ROW(L$1:L$997)/ISNUMBER('Měsíční rekapitulace'!$L$1:$L$997),'Měsíční rekapitulace'!$L$1:$L$997)=L$4)*('Měsíční rekapitulace'!$A$3:$A$999=$A36)*TEXT('Měsíční rekapitulace'!$Q$3:$Q$999,"0,0;0;0;\0"))) -> 0 | M36: =IF($A36="",,SUMPRODUCT((LOOKUP(ROW(M$1:M$997),ROW(M$1:M$997)/ISNUMBER('Měsíční rekapitulace'!$L$1:$L$997),'Měsíční rekapitulace'!$L$1:$L$997)=M$4)*('Měsíční rekapitulace'!$A$3:$A$999=$A36)*TEXT('Měsíční rekapitulace'!$Q$3:$Q$999,"0,0;0;0;\0"))) -> 0 | N36: =IF($A36="",,SUMPRODUCT((LOOKUP(ROW(N$1:N$997),ROW(N$1:N$997)/ISNUMBER('Měsíční rekapitulace'!$L$1:$L$997),'Měsíční rekapitulace'!$L$1:$L$997)=N$4)*('Měsíční rekapitulace'!$A$3:$A$999=$A36)*TEXT('Měsíční rekapitulace'!$Q$3:$Q$999,"0,0;0;0;\0"))) -> 0 | O36: =IF($A36="",,SUMPRODUCT((LOOKUP(ROW(O$1:O$997),ROW(O$1:O$997)/ISNUMBER('Měsíční rekapitulace'!$L$1:$L$997),'Měsíční rekapitulace'!$L$1:$L$997)=O$4)*('Měsíční rekapitulace'!$A$3:$A$999=$A36)*TEXT('Měsíční rekapitulace'!$Q$3:$Q$999,"0,0;0;0;\0"))) -> 0 | P36: 0
A37: =IFERROR(INDEX('Měsíční rekapitulace'!A$3:A$999,SMALL(IF(('Měsíční rekapitulace'!A$3:A$999<>"")*('Měsíční rekapitulace'!A$3:A$999<>'Měsíční rekapitulace'!$A$2)*(COUNTIF(A$5:A36,'Měsíční rekapitulace'!A$3:A$999)=0),ROW('Měsíční rekapitulace'!A$3:A$999)-2),1)),"") -> S-2162 | B37: =IFERROR(INDEX('Měsíční rekapitulace'!E$3:E$999,MATCH(A37,'Měsíční rekapitulace'!A$3:A$999,)),"") -> Úprava APV pro zrychlení zpracování dávek L1 a P1 | D37: =IF($A37="",,SUMPRODUCT((LOOKUP(ROW(D$1:D$997),ROW(D$1:D$997)/ISNUMBER('Měsíční rekapitulace'!$L$1:$L$997),'Měsíční rekapitulace'!$L$1:$L$997)=D$4)*('Měsíční rekapitulace'!$A$3:$A$999=$A37)*TEXT('Měsíční rekapitulace'!$Q$3:$Q$999,"0,0;0;0;\0"))) -> 0 | E37: =IF($A37="",,SUMPRODUCT((LOOKUP(ROW(E$1:E$997),ROW(E$1:E$997)/ISNUMBER('Měsíční rekapitulace'!$L$1:$L$997),'Měsíční rekapitulace'!$L$1:$L$997)=E$4)*('Měsíční rekapitulace'!$A$3:$A$999=$A37)*TEXT('Měsíční rekapitulace'!$Q$3:$Q$999,"0,0;0;0;\0"))) -> 0 | F37: =IF($A37="",,SUMPRODUCT((LOOKUP(ROW(F$1:F$997),ROW(F$1:F$997)/ISNUMBER('Měsíční rekapitulace'!$L$1:$L$997),'Měsíční rekapitulace'!$L$1:$L$997)=F$4)*('Měsíční rekapitulace'!$A$3:$A$999=$A37)*TEXT('Měsíční rekapitulace'!$Q$3:$Q$999,"0,0;0;0;\0"))) -> 0 | G37: =IF($A37="",,SUMPRODUCT((LOOKUP(ROW(G$1:G$997),ROW(G$1:G$997)/ISNUMBER('Měsíční rekapitulace'!$L$1:$L$997),'Měsíční rekapitulace'!$L$1:$L$997)=G$4)*('Měsíční rekapitulace'!$A$3:$A$999=$A37)*TEXT('Měsíční rekapitulace'!$Q$3:$Q$999,"0,0;0;0;\0"))) -> 0 | H37: =IF($A37="",,SUMPRODUCT((LOOKUP(ROW(H$1:H$997),ROW(H$1:H$997)/ISNUMBER('Měsíční rekapitulace'!$L$1:$L$997),'Měsíční rekapitulace'!$L$1:$L$997)=H$4)*('Měsíční rekapitulace'!$A$3:$A$999=$A37)*TEXT('Měsíční rekapitulace'!$Q$3:$Q$999,"0,0;0;0;\0"))) -> 0 | I37: =IF($A37="",,SUMPRODUCT((LOOKUP(ROW(I$1:I$997),ROW(I$1:I$997)/ISNUMBER('Měsíční rekapitulace'!$L$1:$L$997),'Měsíční rekapitulace'!$L$1:$L$997)=I$4)*('Měsíční rekapitulace'!$A$3:$A$999=$A37)*TEXT('Měsíční rekapitulace'!$Q$3:$Q$999,"0,0;0;0;\0"))) -> 0 | J37: =IF($A37="",,SUMPRODUCT((LOOKUP(ROW(J$1:J$997),ROW(J$1:J$997)/ISNUMBER('Měsíční rekapitulace'!$L$1:$L$997),'Měsíční rekapitulace'!$L$1:$L$997)=J$4)*('Měsíční rekapitulace'!$A$3:$A$999=$A37)*TEXT('Měsíční rekapitulace'!$Q$3:$Q$999,"0,0;0;0;\0"))) -> 0 | K37: =IF($A37="",,SUMPRODUCT((LOOKUP(ROW(K$1:K$997),ROW(K$1:K$997)/ISNUMBER('Měsíční rekapitulace'!$L$1:$L$997),'Měsíční rekapitulace'!$L$1:$L$997)=K$4)*('Měsíční rekapitulace'!$A$3:$A$999=$A37)*TEXT('Měsíční rekapitulace'!$Q$3:$Q$999,"0,0;0;0;\0"))) -> 0 | L37: =IF($A37="",,SUMPRODUCT((LOOKUP(ROW(L$1:L$997),ROW(L$1:L$997)/ISNUMBER('Měsíční rekapitulace'!$L$1:$L$997),'Měsíční rekapitulace'!$L$1:$L$997)=L$4)*('Měsíční rekapitulace'!$A$3:$A$999=$A37)*TEXT('Měsíční rekapitulace'!$Q$3:$Q$999,"0,0;0;0;\0"))) -> 0 | M37: =IF($A37="",,SUMPRODUCT((LOOKUP(ROW(M$1:M$997),ROW(M$1:M$997)/ISNUMBER('Měsíční rekapitulace'!$L$1:$L$997),'Měsíční rekapitulace'!$L$1:$L$997)=M$4)*('Měsíční rekapitulace'!$A$3:$A$999=$A37)*TEXT('Měsíční rekapitulace'!$Q$3:$Q$999,"0,0;0;0;\0"))) -> 0 | N37: =IF($A37="",,SUMPRODUCT((LOOKUP(ROW(N$1:N$997),ROW(N$1:N$997)/ISNUMBER('Měsíční rekapitulace'!$L$1:$L$997),'Měsíční rekapitulace'!$L$1:$L$997)=N$4)*('Měsíční rekapitulace'!$A$3:$A$999=$A37)*TEXT('Měsíční rekapitulace'!$Q$3:$Q$999,"0,0;0;0;\0"))) -> 0 | O37: =IF($A37="",,SUMPRODUCT((LOOKUP(ROW(O$1:O$997),ROW(O$1:O$997)/ISNUMBER('Měsíční rekapitulace'!$L$1:$L$997),'Měsíční rekapitulace'!$L$1:$L$997)=O$4)*('Měsíční rekapitulace'!$A$3:$A$999=$A37)*TEXT('Měsíční rekapitulace'!$Q$3:$Q$999,"0,0;0;0;\0"))) -> 0 | P37: 0
A38: =IFERROR(INDEX('Měsíční rekapitulace'!A$3:A$999,SMALL(IF(('Měsíční rekapitulace'!A$3:A$999<>"")*('Měsíční rekapitulace'!A$3:A$999<>'Měsíční rekapitulace'!$A$2)*(COUNTIF(A$5:A37,'Měsíční rekapitulace'!A$3:A$999)=0),ROW('Měsíční rekapitulace'!A$3:A$999)-2),1)),"") -> S-1154 | B38: =IFERROR(INDEX('Měsíční rekapitulace'!E$3:E$999,MATCH(A38,'Měsíční rekapitulace'!A$3:A$999,)),"") -> Automatická kontrola POV | D38: =IF($A38="",,SUMPRODUCT((LOOKUP(ROW(D$1:D$997),ROW(D$1:D$997)/ISNUMBER('Měsíční rekapitulace'!$L$1:$L$997),'Měsíční rekapitulace'!$L$1:$L$997)=D$4)*('Měsíční rekapitulace'!$A$3:$A$999=$A38)*TEXT('Měsíční rekapitulace'!$Q$3:$Q$999,"0,0;0;0;\0"))) -> 0 | E38: =IF($A38="",,SUMPRODUCT((LOOKUP(ROW(E$1:E$997),ROW(E$1:E$997)/ISNUMBER('Měsíční rekapitulace'!$L$1:$L$997),'Měsíční rekapitulace'!$L$1:$L$997)=E$4)*('Měsíční rekapitulace'!$A$3:$A$999=$A38)*TEXT('Měsíční rekapitulace'!$Q$3:$Q$999,"0,0;0;0;\0"))) -> 0 | F38: =IF($A38="",,SUMPRODUCT((LOOKUP(ROW(F$1:F$997),ROW(F$1:F$997)/ISNUMBER('Měsíční rekapitulace'!$L$1:$L$997),'Měsíční rekapitulace'!$L$1:$L$997)=F$4)*('Měsíční rekapitulace'!$A$3:$A$999=$A38)*TEXT('Měsíční rekapitulace'!$Q$3:$Q$999,"0,0;0;0;\0"))) -> 0 | G38: =IF($A38="",,SUMPRODUCT((LOOKUP(ROW(G$1:G$997),ROW(G$1:G$997)/ISNUMBER('Měsíční rekapitulace'!$L$1:$L$997),'Měsíční rekapitulace'!$L$1:$L$997)=G$4)*('Měsíční rekapitulace'!$A$3:$A$999=$A38)*TEXT('Měsíční rekapitulace'!$Q$3:$Q$999,"0,0;0;0;\0"))) -> 0 | H38: =IF($A38="",,SUMPRODUCT((LOOKUP(ROW(H$1:H$997),ROW(H$1:H$997)/ISNUMBER('Měsíční rekapitulace'!$L$1:$L$997),'Měsíční rekapitulace'!$L$1:$L$997)=H$4)*('Měsíční rekapitulace'!$A$3:$A$999=$A38)*TEXT('Měsíční rekapitulace'!$Q$3:$Q$999,"0,0;0;0;\0"))) -> 0 | I38: =IF($A38="",,SUMPRODUCT((LOOKUP(ROW(I$1:I$997),ROW(I$1:I$997)/ISNUMBER('Měsíční rekapitulace'!$L$1:$L$997),'Měsíční rekapitulace'!$L$1:$L$997)=I$4)*('Měsíční rekapitulace'!$A$3:$A$999=$A38)*TEXT('Měsíční rekapitulace'!$Q$3:$Q$999,"0,0;0;0;\0"))) -> 0 | J38: =IF($A38="",,SUMPRODUCT((LOOKUP(ROW(J$1:J$997),ROW(J$1:J$997)/ISNUMBER('Měsíční rekapitulace'!$L$1:$L$997),'Měsíční rekapitulace'!$L$1:$L$997)=J$4)*('Měsíční rekapitulace'!$A$3:$A$999=$A38)*TEXT('Měsíční rekapitulace'!$Q$3:$Q$999,"0,0;0;0;\0"))) -> 0 | K38: =IF($A38="",,SUMPRODUCT((LOOKUP(ROW(K$1:K$997),ROW(K$1:K$997)/ISNUMBER('Měsíční rekapitulace'!$L$1:$L$997),'Měsíční rekapitulace'!$L$1:$L$997)=K$4)*('Měsíční rekapitulace'!$A$3:$A$999=$A38)*TEXT('Měsíční rekapitulace'!$Q$3:$Q$999,"0,0;0;0;\0"))) -> 0 | L38: =IF($A38="",,SUMPRODUCT((LOOKUP(ROW(L$1:L$997),ROW(L$1:L$997)/ISNUMBER('Měsíční rekapitulace'!$L$1:$L$997),'Měsíční rekapitulace'!$L$1:$L$997)=L$4)*('Měsíční rekapitulace'!$A$3:$A$999=$A38)*TEXT('Měsíční rekapitulace'!$Q$3:$Q$999,"0,0;0;0;\0"))) -> 0 | M38: =IF($A38="",,SUMPRODUCT((LOOKUP(ROW(M$1:M$997),ROW(M$1:M$997)/ISNUMBER('Měsíční rekapitulace'!$L$1:$L$997),'Měsíční rekapitulace'!$L$1:$L$997)=M$4)*('Měsíční rekapitulace'!$A$3:$A$999=$A38)*TEXT('Měsíční rekapitulace'!$Q$3:$Q$999,"0,0;0;0;\0"))) -> 0 | N38: =IF($A38="",,SUMPRODUCT((LOOKUP(ROW(N$1:N$997),ROW(N$1:N$997)/ISNUMBER('Měsíční rekapitulace'!$L$1:$L$997),'Měsíční rekapitulace'!$L$1:$L$997)=N$4)*('Měsíční rekapitulace'!$A$3:$A$999=$A38)*TEXT('Měsíční rekapitulace'!$Q$3:$Q$999,"0,0;0;0;\0"))) -> 0 | O38: =IF($A38="",,SUMPRODUCT((LOOKUP(ROW(O$1:O$997),ROW(O$1:O$997)/ISNUMBER('Měsíční rekapitulace'!$L$1:$L$997),'Měsíční rekapitulace'!$L$1:$L$997)=O$4)*('Měsíční rekapitulace'!$A$3:$A$999=$A38)*TEXT('Měsíční rekapitulace'!$Q$3:$Q$999,"0,0;0;0;\0"))) -> 0 | P38: 0
A39: =IFERROR(INDEX('Měsíční rekapitulace'!A$3:A$999,SMALL(IF(('Měsíční rekapitulace'!A$3:A$999<>"")*('Měsíční rekapitulace'!A$3:A$999<>'Měsíční rekapitulace'!$A$2)*(COUNTIF(A$5:A38,'Měsíční rekapitulace'!A$3:A$999)=0),ROW('Měsíční rekapitulace'!A$3:A$999)-2),1)),"") -> S-2259 | B39: =IFERROR(INDEX('Měsíční rekapitulace'!E$3:E$999,MATCH(A39,'Měsíční rekapitulace'!A$3:A$999,)),"") -> Administrace plánovaných řídících operací | D39: =IF($A39="",,SUMPRODUCT((LOOKUP(ROW(D$1:D$997),ROW(D$1:D$997)/ISNUMBER('Měsíční rekapitulace'!$L$1:$L$997),'Měsíční rekapitulace'!$L$1:$L$997)=D$4)*('Měsíční rekapitulace'!$A$3:$A$999=$A39)*TEXT('Měsíční rekapitulace'!$Q$3:$Q$999,"0,0;0;0;\0"))) -> 0 | E39: =IF($A39="",,SUMPRODUCT((LOOKUP(ROW(E$1:E$997),ROW(E$1:E$997)/ISNUMBER('Měsíční rekapitulace'!$L$1:$L$997),'Měsíční rekapitulace'!$L$1:$L$997)=E$4)*('Měsíční rekapitulace'!$A$3:$A$999=$A39)*TEXT('Měsíční rekapitulace'!$Q$3:$Q$999,"0,0;0;0;\0"))) -> 0 | F39: =IF($A39="",,SUMPRODUCT((LOOKUP(ROW(F$1:F$997),ROW(F$1:F$997)/ISNUMBER('Měsíční rekapitulace'!$L$1:$L$997),'Měsíční rekapitulace'!$L$1:$L$997)=F$4)*('Měsíční rekapitulace'!$A$3:$A$999=$A39)*TEXT('Měsíční rekapitulace'!$Q$3:$Q$999,"0,0;0;0;\0"))) -> 0 | G39: =IF($A39="",,SUMPRODUCT((LOOKUP(ROW(G$1:G$997),ROW(G$1:G$997)/ISNUMBER('Měsíční rekapitulace'!$L$1:$L$997),'Měsíční rekapitulace'!$L$1:$L$997)=G$4)*('Měsíční rekapitulace'!$A$3:$A$999=$A39)*TEXT('Měsíční rekapitulace'!$Q$3:$Q$999,"0,0;0;0;\0"))) -> 0 | H39: =IF($A39="",,SUMPRODUCT((LOOKUP(ROW(H$1:H$997),ROW(H$1:H$997)/ISNUMBER('Měsíční rekapitulace'!$L$1:$L$997),'Měsíční rekapitulace'!$L$1:$L$997)=H$4)*('Měsíční rekapitulace'!$A$3:$A$999=$A39)*TEXT('Měsíční rekapitulace'!$Q$3:$Q$999,"0,0;0;0;\0"))) -> 0 | I39: =IF($A39="",,SUMPRODUCT((LOOKUP(ROW(I$1:I$997),ROW(I$1:I$997)/ISNUMBER('Měsíční rekapitulace'!$L$1:$L$997),'Měsíční rekapitulace'!$L$1:$L$997)=I$4)*('Měsíční rekapitulace'!$A$3:$A$999=$A39)*TEXT('Měsíční rekapitulace'!$Q$3:$Q$999,"0,0;0;0;\0"))) -> 0 | J39: =IF($A39="",,SUMPRODUCT((LOOKUP(ROW(J$1:J$997),ROW(J$1:J$997)/ISNUMBER('Měsíční rekapitulace'!$L$1:$L$997),'Měsíční rekapitulace'!$L$1:$L$997)=J$4)*('Měsíční rekapitulace'!$A$3:$A$999=$A39)*TEXT('Měsíční rekapitulace'!$Q$3:$Q$999,"0,0;0;0;\0"))) -> 0 | K39: =IF($A39="",,SUMPRODUCT((LOOKUP(ROW(K$1:K$997),ROW(K$1:K$997)/ISNUMBER('Měsíční rekapitulace'!$L$1:$L$997),'Měsíční rekapitulace'!$L$1:$L$997)=K$4)*('Měsíční rekapitulace'!$A$3:$A$999=$A39)*TEXT('Měsíční rekapitulace'!$Q$3:$Q$999,"0,0;0;0;\0"))) -> 0 | L39: =IF($A39="",,SUMPRODUCT((LOOKUP(ROW(L$1:L$997),ROW(L$1:L$997)/ISNUMBER('Měsíční rekapitulace'!$L$1:$L$997),'Měsíční rekapitulace'!$L$1:$L$997)=L$4)*('Měsíční rekapitulace'!$A$3:$A$999=$A39)*TEXT('Měsíční rekapitulace'!$Q$3:$Q$999,"0,0;0;0;\0"))) -> 0 | M39: =IF($A39="",,SUMPRODUCT((LOOKUP(ROW(M$1:M$997),ROW(M$1:M$997)/ISNUMBER('Měsíční rekapitulace'!$L$1:$L$997),'Měsíční rekapitulace'!$L$1:$L$997)=M$4)*('Měsíční rekapitulace'!$A$3:$A$999=$A39)*TEXT('Měsíční rekapitulace'!$Q$3:$Q$999,"0,0;0;0;\0"))) -> 0 | N39: =IF($A39="",,SUMPRODUCT((LOOKUP(ROW(N$1:N$997),ROW(N$1:N$997)/ISNUMBER('Měsíční rekapitulace'!$L$1:$L$997),'Měsíční rekapitulace'!$L$1:$L$997)=N$4)*('Měsíční rekapitulace'!$A$3:$A$999=$A39)*TEXT('Měsíční rekapitulace'!$Q$3:$Q$999,"0,0;0;0;\0"))) -> 0 | O39: =IF($A39="",,SUMPRODUCT((LOOKUP(ROW(O$1:O$997),ROW(O$1:O$997)/ISNUMBER('Měsíční rekapitulace'!$L$1:$L$997),'Měsíční rekapitulace'!$L$1:$L$997)=O$4)*('Měsíční rekapitulace'!$A$3:$A$999=$A39)*TEXT('Měsíční rekapitulace'!$Q$3:$Q$999,"0,0;0;0;\0"))) -> 46.5 | P39: =SUM(D39:O39) -> 46.5
A40: =IFERROR(INDEX('Měsíční rekapitulace'!A$3:A$999,SMALL(IF(('Měsíční rekapitulace'!A$3:A$999<>"")*('Měsíční rekapitulace'!A$3:A$999<>'Měsíční rekapitulace'!$A$2)*(COUNTIF(A$5:A39,'Měsíční rekapitulace'!A$3:A$999)=0),ROW('Měsíční rekapitulace'!A$3:A$999)-2),1)),"") -> S-2260 | B40: =IFERROR(INDEX('Měsíční rekapitulace'!E$3:E$999,MATCH(A40,'Měsíční rekapitulace'!A$3:A$999,)),"") -> Zrušené smlouvy a program XDSg | D40: =IF($A40="",,SUMPRODUCT((LOOKUP(ROW(D$1:D$997),ROW(D$1:D$997)/ISNUMBER('Měsíční rekapitulace'!$L$1:$L$997),'Měsíční rekapitulace'!$L$1:$L$997)=D$4)*('Měsíční rekapitulace'!$A$3:$A$999=$A40)*TEXT('Měsíční rekapitulace'!$Q$3:$Q$999,"0,0;0;0;\0"))) -> 0 | E40: =IF($A40="",,SUMPRODUCT((LOOKUP(ROW(E$1:E$997),ROW(E$1:E$997)/ISNUMBER('Měsíční rekapitulace'!$L$1:$L$997),'Měsíční rekapitulace'!$L$1:$L$997)=E$4)*('Měsíční rekapitulace'!$A$3:$A$999=$A40)*TEXT('Měsíční rekapitulace'!$Q$3:$Q$999,"0,0;0;0;\0"))) -> 0 | F40: =IF($A40="",,SUMPRODUCT((LOOKUP(ROW(F$1:F$997),ROW(F$1:F$997)/ISNUMBER('Měsíční rekapitulace'!$L$1:$L$997),'Měsíční rekapitulace'!$L$1:$L$997)=F$4)*('Měsíční rekapitulace'!$A$3:$A$999=$A40)*TEXT('Měsíční rekapitulace'!$Q$3:$Q$999,"0,0;0;0;\0"))) -> 0 | G40: =IF($A40="",,SUMPRODUCT((LOOKUP(ROW(G$1:G$997),ROW(G$1:G$997)/ISNUMBER('Měsíční rekapitulace'!$L$1:$L$997),'Měsíční rekapitulace'!$L$1:$L$997)=G$4)*('Měsíční rekapitulace'!$A$3:$A$999=$A40)*TEXT('Měsíční rekapitulace'!$Q$3:$Q$999,"0,0;0;0;\0"))) -> 0 | H40: =IF($A40="",,SUMPRODUCT((LOOKUP(ROW(H$1:H$997),ROW(H$1:H$997)/ISNUMBER('Měsíční rekapitulace'!$L$1:$L$997),'Měsíční rekapitulace'!$L$1:$L$997)=H$4)*('Měsíční rekapitulace'!$A$3:$A$999=$A40)*TEXT('Měsíční rekapitulace'!$Q$3:$Q$999,"0,0;0;0;\0"))) -> 0 | I40: =IF($A40="",,SUMPRODUCT((LOOKUP(ROW(I$1:I$997),ROW(I$1:I$997)/ISNUMBER('Měsíční rekapitulace'!$L$1:$L$997),'Měsíční rekapitulace'!$L$1:$L$997)=I$4)*('Měsíční rekapitulace'!$A$3:$A$999=$A40)*TEXT('Měsíční rekapitulace'!$Q$3:$Q$999,"0,0;0;0;\0"))) -> 0 | J40: =IF($A40="",,SUMPRODUCT((LOOKUP(ROW(J$1:J$997),ROW(J$1:J$997)/ISNUMBER('Měsíční rekapitulace'!$L$1:$L$997),'Měsíční rekapitulace'!$L$1:$L$997)=J$4)*('Měsíční rekapitulace'!$A$3:$A$999=$A40)*TEXT('Měsíční rekapitulace'!$Q$3:$Q$999,"0,0;0;0;\0"))) -> 0 | K40: =IF($A40="",,SUMPRODUCT((LOOKUP(ROW(K$1:K$997),ROW(K$1:K$997)/ISNUMBER('Měsíční rekapitulace'!$L$1:$L$997),'Měsíční rekapitulace'!$L$1:$L$997)=K$4)*('Měsíční rekapitulace'!$A$3:$A$999=$A40)*TEXT('Měsíční rekapitulace'!$Q$3:$Q$999,"0,0;0;0;\0"))) -> 0 | L40: =IF($A40="",,SUMPRODUCT((LOOKUP(ROW(L$1:L$997),ROW(L$1:L$997)/ISNUMBER('Měsíční rekapitulace'!$L$1:$L$997),'Měsíční rekapitulace'!$L$1:$L$997)=L$4)*('Měsíční rekapitulace'!$A$3:$A$999=$A40)*TEXT('Měsíční rekapitulace'!$Q$3:$Q$999,"0,0;0;0;\0"))) -> 0 | M40: =IF($A40="",,SUMPRODUCT((LOOKUP(ROW(M$1:M$997),ROW(M$1:M$997)/ISNUMBER('Měsíční rekapitulace'!$L$1:$L$997),'Měsíční rekapitulace'!$L$1:$L$997)=M$4)*('Měsíční rekapitulace'!$A$3:$A$999=$A40)*TEXT('Měsíční rekapitulace'!$Q$3:$Q$999,"0,0;0;0;\0"))) -> 0 | N40: =IF($A40="",,SUMPRODUCT((LOOKUP(ROW(N$1:N$997),ROW(N$1:N$997)/ISNUMBER('Měsíční rekapitulace'!$L$1:$L$997),'Měsíční rekapitulace'!$L$1:$L$997)=N$4)*('Měsíční rekapitulace'!$A$3:$A$999=$A40)*TEXT('Měsíční rekapitulace'!$Q$3:$Q$999,"0,0;0;0;\0"))) -> 0 | O40: =IF($A40="",,SUMPRODUCT((LOOKUP(ROW(O$1:O$997),ROW(O$1:O$997)/ISNUMBER('Měsíční rekapitulace'!$L$1:$L$997),'Měsíční rekapitulace'!$L$1:$L$997)=O$4)*('Měsíční rekapitulace'!$A$3:$A$999=$A40)*TEXT('Měsíční rekapitulace'!$Q$3:$Q$999,"0,0;0;0;\0"))) -> 2 | P40: =SUM(D40:O40) -> 2
A41: =IFERROR(INDEX('Měsíční rekapitulace'!A$3:A$999,SMALL(IF(('Měsíční rekapitulace'!A$3:A$999<>"")*('Měsíční rekapitulace'!A$3:A$999<>'Měsíční rekapitulace'!$A$2)*(COUNTIF(A$5:A40,'Měsíční rekapitulace'!A$3:A$999)=0),ROW('Měsíční rekapitulace'!A$3:A$999)-2),1)),"") -> S-2263 | B41: =IFERROR(INDEX('Měsíční rekapitulace'!E$3:E$999,MATCH(A41,'Měsíční rekapitulace'!A$3:A$999,)),"") -> Číselník SLP: "Hromadný přenos metadat" omezit právem | D41: =IF($A41="",,SUMPRODUCT((LOOKUP(ROW(D$1:D$997),ROW(D$1:D$997)/ISNUMBER('Měsíční rekapitulace'!$L$1:$L$997),'Měsíční rekapitulace'!$L$1:$L$997)=D$4)*('Měsíční rekapitulace'!$A$3:$A$999=$A41)*TEXT('Měsíční rekapitulace'!$Q$3:$Q$999,"0,0;0;0;\0"))) -> 0 | E41: =IF($A41="",,SUMPRODUCT((LOOKUP(ROW(E$1:E$997),ROW(E$1:E$997)/ISNUMBER('Měsíční rekapitulace'!$L$1:$L$997),'Měsíční rekapitulace'!$L$1:$L$997)=E$4)*('Měsíční rekapitulace'!$A$3:$A$999=$A41)*TEXT('Měsíční rekapitulace'!$Q$3:$Q$999,"0,0;0;0;\0"))) -> 0 | F41: =IF($A41="",,SUMPRODUCT((LOOKUP(ROW(F$1:F$997),ROW(F$1:F$997)/ISNUMBER('Měsíční rekapitulace'!$L$1:$L$997),'Měsíční rekapitulace'!$L$1:$L$997)=F$4)*('Měsíční rekapitulace'!$A$3:$A$999=$A41)*TEXT('Měsíční rekapitulace'!$Q$3:$Q$999,"0,0;0;0;\0"))) -> 0 | G41: =IF($A41="",,SUMPRODUCT((LOOKUP(ROW(G$1:G$997),ROW(G$1:G$997)/ISNUMBER('Měsíční rekapitulace'!$L$1:$L$997),'Měsíční rekapitulace'!$L$1:$L$997)=G$4)*('Měsíční rekapitulace'!$A$3:$A$999=$A41)*TEXT('Měsíční rekapitulace'!$Q$3:$Q$999,"0,0;0;0;\0"))) -> 0 | H41: =IF($A41="",,SUMPRODUCT((LOOKUP(ROW(H$1:H$997),ROW(H$1:H$997)/ISNUMBER('Měsíční rekapitulace'!$L$1:$L$997),'Měsíční rekapitulace'!$L$1:$L$997)=H$4)*('Měsíční rekapitulace'!$A$3:$A$999=$A41)*TEXT('Měsíční rekapitulace'!$Q$3:$Q$999,"0,0;0;0;\0"))) -> 0 | I41: =IF($A41="",,SUMPRODUCT((LOOKUP(ROW(I$1:I$997),ROW(I$1:I$997)/ISNUMBER('Měsíční rekapitulace'!$L$1:$L$997),'Měsíční rekapitulace'!$L$1:$L$997)=I$4)*('Měsíční rekapitulace'!$A$3:$A$999=$A41)*TEXT('Měsíční rekapitulace'!$Q$3:$Q$999,"0,0;0;0;\0"))) -> 0 | J41: =IF($A41="",,SUMPRODUCT((LOOKUP(ROW(J$1:J$997),ROW(J$1:J$997)/ISNUMBER('Měsíční rekapitulace'!$L$1:$L$997),'Měsíční rekapitulace'!$L$1:$L$997)=J$4)*('Měsíční rekapitulace'!$A$3:$A$999=$A41)*TEXT('Měsíční rekapitulace'!$Q$3:$Q$999,"0,0;0;0;\0"))) -> 0 | K41: =IF($A41="",,SUMPRODUCT((LOOKUP(ROW(K$1:K$997),ROW(K$1:K$997)/ISNUMBER('Měsíční rekapitulace'!$L$1:$L$997),'Měsíční rekapitulace'!$L$1:$L$997)=K$4)*('Měsíční rekapitulace'!$A$3:$A$999=$A41)*TEXT('Měsíční rekapitulace'!$Q$3:$Q$999,"0,0;0;0;\0"))) -> 0 | L41: =IF($A41="",,SUMPRODUCT((LOOKUP(ROW(L$1:L$997),ROW(L$1:L$997)/ISNUMBER('Měsíční rekapitulace'!$L$1:$L$997),'Měsíční rekapitulace'!$L$1:$L$997)=L$4)*('Měsíční rekapitulace'!$A$3:$A$999=$A41)*TEXT('Měsíční rekapitulace'!$Q$3:$Q$999,"0,0;0;0;\0"))) -> 0 | M41: =IF($A41="",,SUMPRODUCT((LOOKUP(ROW(M$1:M$997),ROW(M$1:M$997)/ISNUMBER('Měsíční rekapitulace'!$L$1:$L$997),'Měsíční rekapitulace'!$L$1:$L$997)=M$4)*('Měsíční rekapitulace'!$A$3:$A$999=$A41)*TEXT('Měsíční rekapitulace'!$Q$3:$Q$999,"0,0;0;0;\0"))) -> 0 | N41: =IF($A41="",,SUMPRODUCT((LOOKUP(ROW(N$1:N$997),ROW(N$1:N$997)/ISNUMBER('Měsíční rekapitulace'!$L$1:$L$997),'Měsíční rekapitulace'!$L$1:$L$997)=N$4)*('Měsíční rekapitulace'!$A$3:$A$999=$A41)*TEXT('Měsíční rekapitulace'!$Q$3:$Q$999,"0,0;0;0;\0"))) -> 0 | O41: =IF($A41="",,SUMPRODUCT((LOOKUP(ROW(O$1:O$997),ROW(O$1:O$997)/ISNUMBER('Měsíční rekapitulace'!$L$1:$L$997),'Měsíční rekapitulace'!$L$1:$L$997)=O$4)*('Měsíční rekapitulace'!$A$3:$A$999=$A41)*TEXT('Měsíční rekapitulace'!$Q$3:$Q$999,"0,0;0;0;\0"))) -> 0 | P41: 0
A42: =IFERROR(INDEX('Měsíční rekapitulace'!A$3:A$999,SMALL(IF(('Měsíční rekapitulace'!A$3:A$999<>"")*('Měsíční rekapitulace'!A$3:A$999<>'Měsíční rekapitulace'!$A$2)*(COUNTIF(A$5:A41,'Měsíční rekapitulace'!A$3:A$999)=0),ROW('Měsíční rekapitulace'!A$3:A$999)-2),1)),"") -> S-1975SYPO | B42: =IFERROR(INDEX('Měsíční rekapitulace'!E$3:E$999,MATCH(A42,'Měsíční rekapitulace'!A$3:A$999,)),"") -> Úprava výdeje dat o ŠU – Protokol L6 | D42: =IF($A42="",,SUMPRODUCT((LOOKUP(ROW(D$1:D$997),ROW(D$1:D$997)/ISNUMBER('Měsíční rekapitulace'!$L$1:$L$997),'Měsíční rekapitulace'!$L$1:$L$997)=D$4)*('Měsíční rekapitulace'!$A$3:$A$999=$A42)*TEXT('Měsíční rekapitulace'!$Q$3:$Q$999,"0,0;0;0;\0"))) -> 0 | E42: =IF($A42="",,SUMPRODUCT((LOOKUP(ROW(E$1:E$997),ROW(E$1:E$997)/ISNUMBER('Měsíční rekapitulace'!$L$1:$L$997),'Měsíční rekapitulace'!$L$1:$L$997)=E$4)*('Měsíční rekapitulace'!$A$3:$A$999=$A42)*TEXT('Měsíční rekapitulace'!$Q$3:$Q$999,"0,0;0;0;\0"))) -> 0 | F42: =IF($A42="",,SUMPRODUCT((LOOKUP(ROW(F$1:F$997),ROW(F$1:F$997)/ISNUMBER('Měsíční rekapitulace'!$L$1:$L$997),'Měsíční rekapitulace'!$L$1:$L$997)=F$4)*('Měsíční rekapitulace'!$A$3:$A$999=$A42)*TEXT('Měsíční rekapitulace'!$Q$3:$Q$999,"0,0;0;0;\0"))) -> 0 | G42: =IF($A42="",,SUMPRODUCT((LOOKUP(ROW(G$1:G$997),ROW(G$1:G$997)/ISNUMBER('Měsíční rekapitulace'!$L$1:$L$997),'Měsíční rekapitulace'!$L$1:$L$997)=G$4)*('Měsíční rekapitulace'!$A$3:$A$999=$A42)*TEXT('Měsíční rekapitulace'!$Q$3:$Q$999,"0,0;0;0;\0"))) -> 0 | H42: =IF($A42="",,SUMPRODUCT((LOOKUP(ROW(H$1:H$997),ROW(H$1:H$997)/ISNUMBER('Měsíční rekapitulace'!$L$1:$L$997),'Měsíční rekapitulace'!$L$1:$L$997)=H$4)*('Měsíční rekapitulace'!$A$3:$A$999=$A42)*TEXT('Měsíční rekapitulace'!$Q$3:$Q$999,"0,0;0;0;\0"))) -> 0 | I42: =IF($A42="",,SUMPRODUCT((LOOKUP(ROW(I$1:I$997),ROW(I$1:I$997)/ISNUMBER('Měsíční rekapitulace'!$L$1:$L$997),'Měsíční rekapitulace'!$L$1:$L$997)=I$4)*('Měsíční rekapitulace'!$A$3:$A$999=$A42)*TEXT('Měsíční rekapitulace'!$Q$3:$Q$999,"0,0;0;0;\0"))) -> 0 | J42: =IF($A42="",,SUMPRODUCT((LOOKUP(ROW(J$1:J$997),ROW(J$1:J$997)/ISNUMBER('Měsíční rekapitulace'!$L$1:$L$997),'Měsíční rekapitulace'!$L$1:$L$997)=J$4)*('Měsíční rekapitulace'!$A$3:$A$999=$A42)*TEXT('Měsíční rekapitulace'!$Q$3:$Q$999,"0,0;0;0;\0"))) -> 0 | K42: =IF($A42="",,SUMPRODUCT((LOOKUP(ROW(K$1:K$997),ROW(K$1:K$997)/ISNUMBER('Měsíční rekapitulace'!$L$1:$L$997),'Měsíční rekapitulace'!$L$1:$L$997)=K$4)*('Měsíční rekapitulace'!$A$3:$A$999=$A42)*TEXT('Měsíční rekapitulace'!$Q$3:$Q$999,"0,0;0;0;\0"))) -> 0 | L42: =IF($A42="",,SUMPRODUCT((LOOKUP(ROW(L$1:L$997),ROW(L$1:L$997)/ISNUMBER('Měsíční rekapitulace'!$L$1:$L$997),'Měsíční rekapitulace'!$L$1:$L$997)=L$4)*('Měsíční rekapitulace'!$A$3:$A$999=$A42)*TEXT('Měsíční rekapitulace'!$Q$3:$Q$999,"0,0;0;0;\0"))) -> 0 | M42: =IF($A42="",,SUMPRODUCT((LOOKUP(ROW(M$1:M$997),ROW(M$1:M$997)/ISNUMBER('Měsíční rekapitulace'!$L$1:$L$997),'Měsíční rekapitulace'!$L$1:$L$997)=M$4)*('Měsíční rekapitulace'!$A$3:$A$999=$A42)*TEXT('Měsíční rekapitulace'!$Q$3:$Q$999,"0,0;0;0;\0"))) -> 0 | N42: =IF($A42="",,SUMPRODUCT((LOOKUP(ROW(N$1:N$997),ROW(N$1:N$997)/ISNUMBER('Měsíční rekapitulace'!$L$1:$L$997),'Měsíční rekapitulace'!$L$1:$L$997)=N$4)*('Měsíční rekapitulace'!$A$3:$A$999=$A42)*TEXT('Měsíční rekapitulace'!$Q$3:$Q$999,"0,0;0;0;\0"))) -> 0 | O42: =IF($A42="",,SUMPRODUCT((LOOKUP(ROW(O$1:O$997),ROW(O$1:O$997)/ISNUMBER('Měsíční rekapitulace'!$L$1:$L$997),'Měsíční rekapitulace'!$L$1:$L$997)=O$4)*('Měsíční rekapitulace'!$A$3:$A$999=$A42)*TEXT('Měsíční rekapitulace'!$Q$3:$Q$999,"0,0;0;0;\0"))) -> 5 | P42: 5
A43: =IFERROR(INDEX('Měsíční rekapitulace'!A$3:A$999,SMALL(IF(('Měsíční rekapitulace'!A$3:A$999<>"")*('Měsíční rekapitulace'!A$3:A$999<>'Měsíční rekapitulace'!$A$2)*(COUNTIF(A$5:A42,'Měsíční rekapitulace'!A$3:A$999)=0),ROW('Měsíční rekapitulace'!A$3:A$999)-2),1)),"") -> S-2151 | B43: =IFERROR(INDEX('Měsíční rekapitulace'!E$3:E$999,MATCH(A43,'Měsíční rekapitulace'!A$3:A$999,)),"") -> Tvorba rezervy na odměnu Salipu | D43: =IF($A43="",,SUMPRODUCT((LOOKUP(ROW(D$1:D$997),ROW(D$1:D$997)/ISNUMBER('Měsíční rekapitulace'!$L$1:$L$997),'Měsíční rekapitulace'!$L$1:$L$997)=D$4)*('Měsíční rekapitulace'!$A$3:$A$999=$A43)*TEXT('Měsíční rekapitulace'!$Q$3:$Q$999,"0,0;0;0;\0"))) -> 0 | E43: =IF($A43="",,SUMPRODUCT((LOOKUP(ROW(E$1:E$997),ROW(E$1:E$997)/ISNUMBER('Měsíční rekapitulace'!$L$1:$L$997),'Měsíční rekapitulace'!$L$1:$L$997)=E$4)*('Měsíční rekapitulace'!$A$3:$A$999=$A43)*TEXT('Měsíční rekapitulace'!$Q$3:$Q$999,"0,0;0;0;\0"))) -> 0 | F43: =IF($A43="",,SUMPRODUCT((LOOKUP(ROW(F$1:F$997),ROW(F$1:F$997)/ISNUMBER('Měsíční rekapitulace'!$L$1:$L$997),'Měsíční rekapitulace'!$L$1:$L$997)=F$4)*('Měsíční rekapitulace'!$A$3:$A$999=$A43)*TEXT('Měsíční rekapitulace'!$Q$3:$Q$999,"0,0;0;0;\0"))) -> 0 | G43: =IF($A43="",,SUMPRODUCT((LOOKUP(ROW(G$1:G$997),ROW(G$1:G$997)/ISNUMBER('Měsíční rekapitulace'!$L$1:$L$997),'Měsíční rekapitulace'!$L$1:$L$997)=G$4)*('Měsíční rekapitulace'!$A$3:$A$999=$A43)*TEXT('Měsíční rekapitulace'!$Q$3:$Q$999,"0,0;0;0;\0"))) -> 0 | H43: =IF($A43="",,SUMPRODUCT((LOOKUP(ROW(H$1:H$997),ROW(H$1:H$997)/ISNUMBER('Měsíční rekapitulace'!$L$1:$L$997),'Měsíční rekapitulace'!$L$1:$L$997)=H$4)*('Měsíční rekapitulace'!$A$3:$A$999=$A43)*TEXT('Měsíční rekapitulace'!$Q$3:$Q$999,"0,0;0;0;\0"))) -> 0 | I43: =IF($A43="",,SUMPRODUCT((LOOKUP(ROW(I$1:I$997),ROW(I$1:I$997)/ISNUMBER('Měsíční rekapitulace'!$L$1:$L$997),'Měsíční rekapitulace'!$L$1:$L$997)=I$4)*('Měsíční rekapitulace'!$A$3:$A$999=$A43)*TEXT('Měsíční rekapitulace'!$Q$3:$Q$999,"0,0;0;0;\0"))) -> 0 | J43: =IF($A43="",,SUMPRODUCT((LOOKUP(ROW(J$1:J$997),ROW(J$1:J$997)/ISNUMBER('Měsíční rekapitulace'!$L$1:$L$997),'Měsíční rekapitulace'!$L$1:$L$997)=J$4)*('Měsíční rekapitulace'!$A$3:$A$999=$A43)*TEXT('Měsíční rekapitulace'!$Q$3:$Q$999,"0,0;0;0;\0"))) -> 0 | K43: =IF($A43="",,SUMPRODUCT((LOOKUP(ROW(K$1:K$997),ROW(K$1:K$997)/ISNUMBER('Měsíční rekapitulace'!$L$1:$L$997),'Měsíční rekapitulace'!$L$1:$L$997)=K$4)*('Měsíční rekapitulace'!$A$3:$A$999=$A43)*TEXT('Měsíční rekapitulace'!$Q$3:$Q$999,"0,0;0;0;\0"))) -> 0 | L43: =IF($A43="",,SUMPRODUCT((LOOKUP(ROW(L$1:L$997),ROW(L$1:L$997)/ISNUMBER('Měsíční rekapitulace'!$L$1:$L$997),'Měsíční rekapitulace'!$L$1:$L$997)=L$4)*('Měsíční rekapitulace'!$A$3:$A$999=$A43)*TEXT('Měsíční rekapitulace'!$Q$3:$Q$999,"0,0;0;0;\0"))) -> 0 | M43: =IF($A43="",,SUMPRODUCT((LOOKUP(ROW(M$1:M$997),ROW(M$1:M$997)/ISNUMBER('Měsíční rekapitulace'!$L$1:$L$997),'Měsíční rekapitulace'!$L$1:$L$997)=M$4)*('Měsíční rekapitulace'!$A$3:$A$999=$A43)*TEXT('Měsíční rekapitulace'!$Q$3:$Q$999,"0,0;0;0;\0"))) -> 0 | N43: =IF($A43="",,SUMPRODUCT((LOOKUP(ROW(N$1:N$997),ROW(N$1:N$997)/ISNUMBER('Měsíční rekapitulace'!$L$1:$L$997),'Měsíční rekapitulace'!$L$1:$L$997)=N$4)*('Měsíční rekapitulace'!$A$3:$A$999=$A43)*TEXT('Měsíční rekapitulace'!$Q$3:$Q$999,"0,0;0;0;\0"))) -> 22 | O43: =IF($A43="",,SUMPRODUCT((LOOKUP(ROW(O$1:O$997),ROW(O$1:O$997)/ISNUMBER('Měsíční rekapitulace'!$L$1:$L$997),'Měsíční rekapitulace'!$L$1:$L$997)=O$4)*('Měsíční rekapitulace'!$A$3:$A$999=$A43)*TEXT('Měsíční rekapitulace'!$Q$3:$Q$999,"0,0;0;0;\0"))) -> 22 | P43: 44
A44: =IFERROR(INDEX('Měsíční rekapitulace'!A$3:A$999,SMALL(IF(('Měsíční rekapitulace'!A$3:A$999<>"")*('Měsíční rekapitulace'!A$3:A$999<>'Měsíční rekapitulace'!$A$2)*(COUNTIF(A$5:A43,'Měsíční rekapitulace'!A$3:A$999)=0),ROW('Měsíční rekapitulace'!A$3:A$999)-2),1)),"") ->  | B44: =IFERROR(INDEX('Měsíční rekapitulace'!E$3:E$999,MATCH(A44,'Měsíční rekapitulace'!A$3:A$999,)),"") ->  | D44: =IF($A44="",,SUMPRODUCT((LOOKUP(ROW(D$1:D$997),ROW(D$1:D$997)/ISNUMBER('Měsíční rekapitulace'!$L$1:$L$997),'Měsíční rekapitulace'!$L$1:$L$997)=D$4)*('Měsíční rekapitulace'!$A$3:$A$999=$A44)*TEXT('Měsíční rekapitulace'!$Q$3:$Q$999,"0,0;0;0;\0"))) -> 0 | E44: =IF($A44="",,SUMPRODUCT((LOOKUP(ROW(E$1:E$997),ROW(E$1:E$997)/ISNUMBER('Měsíční rekapitulace'!$L$1:$L$997),'Měsíční rekapitulace'!$L$1:$L$997)=E$4)*('Měsíční rekapitulace'!$A$3:$A$999=$A44)*TEXT('Měsíční rekapitulace'!$Q$3:$Q$999,"0,0;0;0;\0"))) -> 0 | F44: =IF($A44="",,SUMPRODUCT((LOOKUP(ROW(F$1:F$997),ROW(F$1:F$997)/ISNUMBER('Měsíční rekapitulace'!$L$1:$L$997),'Měsíční rekapitulace'!$L$1:$L$997)=F$4)*('Měsíční rekapitulace'!$A$3:$A$999=$A44)*TEXT('Měsíční rekapitulace'!$Q$3:$Q$999,"0,0;0;0;\0"))) -> 0 | G44: =IF($A44="",,SUMPRODUCT((LOOKUP(ROW(G$1:G$997),ROW(G$1:G$997)/ISNUMBER('Měsíční rekapitulace'!$L$1:$L$997),'Měsíční rekapitulace'!$L$1:$L$997)=G$4)*('Měsíční rekapitulace'!$A$3:$A$999=$A44)*TEXT('Měsíční rekapitulace'!$Q$3:$Q$999,"0,0;0;0;\0"))) -> 0 | H44: =IF($A44="",,SUMPRODUCT((LOOKUP(ROW(H$1:H$997),ROW(H$1:H$997)/ISNUMBER('Měsíční rekapitulace'!$L$1:$L$997),'Měsíční rekapitulace'!$L$1:$L$997)=H$4)*('Měsíční rekapitulace'!$A$3:$A$999=$A44)*TEXT('Měsíční rekapitulace'!$Q$3:$Q$999,"0,0;0;0;\0"))) -> 0 | I44: =IF($A44="",,SUMPRODUCT((LOOKUP(ROW(I$1:I$997),ROW(I$1:I$997)/ISNUMBER('Měsíční rekapitulace'!$L$1:$L$997),'Měsíční rekapitulace'!$L$1:$L$997)=I$4)*('Měsíční rekapitulace'!$A$3:$A$999=$A44)*TEXT('Měsíční rekapitulace'!$Q$3:$Q$999,"0,0;0;0;\0"))) -> 0 | J44: =IF($A44="",,SUMPRODUCT((LOOKUP(ROW(J$1:J$997),ROW(J$1:J$997)/ISNUMBER('Měsíční rekapitulace'!$L$1:$L$997),'Měsíční rekapitulace'!$L$1:$L$997)=J$4)*('Měsíční rekapitulace'!$A$3:$A$999=$A44)*TEXT('Měsíční rekapitulace'!$Q$3:$Q$999,"0,0;0;0;\0"))) -> 0 | K44: =IF($A44="",,SUMPRODUCT((LOOKUP(ROW(K$1:K$997),ROW(K$1:K$997)/ISNUMBER('Měsíční rekapitulace'!$L$1:$L$997),'Měsíční rekapitulace'!$L$1:$L$997)=K$4)*('Měsíční rekapitulace'!$A$3:$A$999=$A44)*TEXT('Měsíční rekapitulace'!$Q$3:$Q$999,"0,0;0;0;\0"))) -> 0 | L44: =IF($A44="",,SUMPRODUCT((LOOKUP(ROW(L$1:L$997),ROW(L$1:L$997)/ISNUMBER('Měsíční rekapitulace'!$L$1:$L$997),'Měsíční rekapitulace'!$L$1:$L$997)=L$4)*('Měsíční rekapitulace'!$A$3:$A$999=$A44)*TEXT('Měsíční rekapitulace'!$Q$3:$Q$999,"0,0;0;0;\0"))) -> 0 | M44: =IF($A44="",,SUMPRODUCT((LOOKUP(ROW(M$1:M$997),ROW(M$1:M$997)/ISNUMBER('Měsíční rekapitulace'!$L$1:$L$997),'Měsíční rekapitulace'!$L$1:$L$997)=M$4)*('Měsíční rekapitulace'!$A$3:$A$999=$A44)*TEXT('Měsíční rekapitulace'!$Q$3:$Q$999,"0,0;0;0;\0"))) -> 0 | N44: =IF($A44="",,SUMPRODUCT((LOOKUP(ROW(N$1:N$997),ROW(N$1:N$997)/ISNUMBER('Měsíční rekapitulace'!$L$1:$L$997),'Měsíční rekapitulace'!$L$1:$L$997)=N$4)*('Měsíční rekapitulace'!$A$3:$A$999=$A44)*TEXT('Měsíční rekapitulace'!$Q$3:$Q$999,"0,0;0;0;\0"))) -> 0 | O44: =IF($A44="",,SUMPRODUCT((LOOKUP(ROW(O$1:O$997),ROW(O$1:O$997)/ISNUMBER('Měsíční rekapitulace'!$L$1:$L$997),'Měsíční rekapitulace'!$L$1:$L$997)=O$4)*('Měsíční rekapitulace'!$A$3:$A$999=$A44)*TEXT('Měsíční rekapitulace'!$Q$3:$Q$999,"0,0;0;0;\0"))) -> 0 | P44: 0
A45: =IFERROR(INDEX('Měsíční rekapitulace'!A$3:A$999,SMALL(IF(('Měsíční rekapitulace'!A$3:A$999<>"")*('Měsíční rekapitulace'!A$3:A$999<>'Měsíční rekapitulace'!$A$2)*(COUNTIF(A$5:A44,'Měsíční rekapitulace'!A$3:A$999)=0),ROW('Měsíční rekapitulace'!A$3:A$999)-2),1)),"") ->  | B45: =IFERROR(INDEX('Měsíční rekapitulace'!E$3:E$999,MATCH(A45,'Měsíční rekapitulace'!A$3:A$999,)),"") ->  | D45: =IF($A45="",,SUMPRODUCT((LOOKUP(ROW(D$1:D$997),ROW(D$1:D$997)/ISNUMBER('Měsíční rekapitulace'!$L$1:$L$997),'Měsíční rekapitulace'!$L$1:$L$997)=D$4)*('Měsíční rekapitulace'!$A$3:$A$999=$A45)*TEXT('Měsíční rekapitulace'!$Q$3:$Q$999,"0,0;0;0;\0"))) -> 0 | E45: =IF($A45="",,SUMPRODUCT((LOOKUP(ROW(E$1:E$997),ROW(E$1:E$997)/ISNUMBER('Měsíční rekapitulace'!$L$1:$L$997),'Měsíční rekapitulace'!$L$1:$L$997)=E$4)*('Měsíční rekapitulace'!$A$3:$A$999=$A45)*TEXT('Měsíční rekapitulace'!$Q$3:$Q$999,"0,0;0;0;\0"))) -> 0 | F45: =IF($A45="",,SUMPRODUCT((LOOKUP(ROW(F$1:F$997),ROW(F$1:F$997)/ISNUMBER('Měsíční rekapitulace'!$L$1:$L$997),'Měsíční rekapitulace'!$L$1:$L$997)=F$4)*('Měsíční rekapitulace'!$A$3:$A$999=$A45)*TEXT('Měsíční rekapitulace'!$Q$3:$Q$999,"0,0;0;0;\0"))) -> 0 | G45: =IF($A45="",,SUMPRODUCT((LOOKUP(ROW(G$1:G$997),ROW(G$1:G$997)/ISNUMBER('Měsíční rekapitulace'!$L$1:$L$997),'Měsíční rekapitulace'!$L$1:$L$997)=G$4)*('Měsíční rekapitulace'!$A$3:$A$999=$A45)*TEXT('Měsíční rekapitulace'!$Q$3:$Q$999,"0,0;0;0;\0"))) -> 0 | H45: =IF($A45="",,SUMPRODUCT((LOOKUP(ROW(H$1:H$997),ROW(H$1:H$997)/ISNUMBER('Měsíční rekapitulace'!$L$1:$L$997),'Měsíční rekapitulace'!$L$1:$L$997)=H$4)*('Měsíční rekapitulace'!$A$3:$A$999=$A45)*TEXT('Měsíční rekapitulace'!$Q$3:$Q$999,"0,0;0;0;\0"))) -> 0 | I45: =IF($A45="",,SUMPRODUCT((LOOKUP(ROW(I$1:I$997),ROW(I$1:I$997)/ISNUMBER('Měsíční rekapitulace'!$L$1:$L$997),'Měsíční rekapitulace'!$L$1:$L$997)=I$4)*('Měsíční rekapitulace'!$A$3:$A$999=$A45)*TEXT('Měsíční rekapitulace'!$Q$3:$Q$999,"0,0;0;0;\0"))) -> 0 | J45: =IF($A45="",,SUMPRODUCT((LOOKUP(ROW(J$1:J$997),ROW(J$1:J$997)/ISNUMBER('Měsíční rekapitulace'!$L$1:$L$997),'Měsíční rekapitulace'!$L$1:$L$997)=J$4)*('Měsíční rekapitulace'!$A$3:$A$999=$A45)*TEXT('Měsíční rekapitulace'!$Q$3:$Q$999,"0,0;0;0;\0"))) -> 0 | K45: =IF($A45="",,SUMPRODUCT((LOOKUP(ROW(K$1:K$997),ROW(K$1:K$997)/ISNUMBER('Měsíční rekapitulace'!$L$1:$L$997),'Měsíční rekapitulace'!$L$1:$L$997)=K$4)*('Měsíční rekapitulace'!$A$3:$A$999=$A45)*TEXT('Měsíční rekapitulace'!$Q$3:$Q$999,"0,0;0;0;\0"))) -> 0 | L45: =IF($A45="",,SUMPRODUCT((LOOKUP(ROW(L$1:L$997),ROW(L$1:L$997)/ISNUMBER('Měsíční rekapitulace'!$L$1:$L$997),'Měsíční rekapitulace'!$L$1:$L$997)=L$4)*('Měsíční rekapitulace'!$A$3:$A$999=$A45)*TEXT('Měsíční rekapitulace'!$Q$3:$Q$999,"0,0;0;0;\0"))) -> 0 | M45: =IF($A45="",,SUMPRODUCT((LOOKUP(ROW(M$1:M$997),ROW(M$1:M$997)/ISNUMBER('Měsíční rekapitulace'!$L$1:$L$997),'Měsíční rekapitulace'!$L$1:$L$997)=M$4)*('Měsíční rekapitulace'!$A$3:$A$999=$A45)*TEXT('Měsíční rekapitulace'!$Q$3:$Q$999,"0,0;0;0;\0"))) -> 0 | N45: =IF($A45="",,SUMPRODUCT((LOOKUP(ROW(N$1:N$997),ROW(N$1:N$997)/ISNUMBER('Měsíční rekapitulace'!$L$1:$L$997),'Měsíční rekapitulace'!$L$1:$L$997)=N$4)*('Měsíční rekapitulace'!$A$3:$A$999=$A45)*TEXT('Měsíční rekapitulace'!$Q$3:$Q$999,"0,0;0;0;\0"))) -> 0 | O45: =IF($A45="",,SUMPRODUCT((LOOKUP(ROW(O$1:O$997),ROW(O$1:O$997)/ISNUMBER('Měsíční rekapitulace'!$L$1:$L$997),'Měsíční rekapitulace'!$L$1:$L$997)=O$4)*('Měsíční rekapitulace'!$A$3:$A$999=$A45)*TEXT('Měsíční rekapitulace'!$Q$3:$Q$999,"0,0;0;0;\0"))) -> 0 | P45: 0
A46: =IFERROR(INDEX('Měsíční rekapitulace'!A$3:A$999,SMALL(IF(('Měsíční rekapitulace'!A$3:A$999<>"")*('Měsíční rekapitulace'!A$3:A$999<>'Měsíční rekapitulace'!$A$2)*(COUNTIF(A$5:A45,'Měsíční rekapitulace'!A$3:A$999)=0),ROW('Měsíční rekapitulace'!A$3:A$999)-2),1)),"") ->  | B46: =IFERROR(INDEX('Měsíční rekapitulace'!E$3:E$999,MATCH(A46,'Měsíční rekapitulace'!A$3:A$999,)),"") ->  | D46: =IF($A46="",,SUMPRODUCT((LOOKUP(ROW(D$1:D$997),ROW(D$1:D$997)/ISNUMBER('Měsíční rekapitulace'!$L$1:$L$997),'Měsíční rekapitulace'!$L$1:$L$997)=D$4)*('Měsíční rekapitulace'!$A$3:$A$999=$A46)*TEXT('Měsíční rekapitulace'!$Q$3:$Q$999,"0,0;0;0;\0"))) -> 0 | E46: =IF($A46="",,SUMPRODUCT((LOOKUP(ROW(E$1:E$997),ROW(E$1:E$997)/ISNUMBER('Měsíční rekapitulace'!$L$1:$L$997),'Měsíční rekapitulace'!$L$1:$L$997)=E$4)*('Měsíční rekapitulace'!$A$3:$A$999=$A46)*TEXT('Měsíční rekapitulace'!$Q$3:$Q$999,"0,0;0;0;\0"))) -> 0 | F46: =IF($A46="",,SUMPRODUCT((LOOKUP(ROW(F$1:F$997),ROW(F$1:F$997)/ISNUMBER('Měsíční rekapitulace'!$L$1:$L$997),'Měsíční rekapitulace'!$L$1:$L$997)=F$4)*('Měsíční rekapitulace'!$A$3:$A$999=$A46)*TEXT('Měsíční rekapitulace'!$Q$3:$Q$999,"0,0;0;0;\0"))) -> 0 | G46: =IF($A46="",,SUMPRODUCT((LOOKUP(ROW(G$1:G$997),ROW(G$1:G$997)/ISNUMBER('Měsíční rekapitulace'!$L$1:$L$997),'Měsíční rekapitulace'!$L$1:$L$997)=G$4)*('Měsíční rekapitulace'!$A$3:$A$999=$A46)*TEXT('Měsíční rekapitulace'!$Q$3:$Q$999,"0,0;0;0;\0"))) -> 0 | H46: =IF($A46="",,SUMPRODUCT((LOOKUP(ROW(H$1:H$997),ROW(H$1:H$997)/ISNUMBER('Měsíční rekapitulace'!$L$1:$L$997),'Měsíční rekapitulace'!$L$1:$L$997)=H$4)*('Měsíční rekapitulace'!$A$3:$A$999=$A46)*TEXT('Měsíční rekapitulace'!$Q$3:$Q$999,"0,0;0;0;\0"))) -> 0 | I46: =IF($A46="",,SUMPRODUCT((LOOKUP(ROW(I$1:I$997),ROW(I$1:I$997)/ISNUMBER('Měsíční rekapitulace'!$L$1:$L$997),'Měsíční rekapitulace'!$L$1:$L$997)=I$4)*('Měsíční rekapitulace'!$A$3:$A$999=$A46)*TEXT('Měsíční rekapitulace'!$Q$3:$Q$999,"0,0;0;0;\0"))) -> 0 | J46: =IF($A46="",,SUMPRODUCT((LOOKUP(ROW(J$1:J$997),ROW(J$1:J$997)/ISNUMBER('Měsíční rekapitulace'!$L$1:$L$997),'Měsíční rekapitulace'!$L$1:$L$997)=J$4)*('Měsíční rekapitulace'!$A$3:$A$999=$A46)*TEXT('Měsíční rekapitulace'!$Q$3:$Q$999,"0,0;0;0;\0"))) -> 0 | K46: =IF($A46="",,SUMPRODUCT((LOOKUP(ROW(K$1:K$997),ROW(K$1:K$997)/ISNUMBER('Měsíční rekapitulace'!$L$1:$L$997),'Měsíční rekapitulace'!$L$1:$L$997)=K$4)*('Měsíční rekapitulace'!$A$3:$A$999=$A46)*TEXT('Měsíční rekapitulace'!$Q$3:$Q$999,"0,0;0;0;\0"))) -> 0 | L46: =IF($A46="",,SUMPRODUCT((LOOKUP(ROW(L$1:L$997),ROW(L$1:L$997)/ISNUMBER('Měsíční rekapitulace'!$L$1:$L$997),'Měsíční rekapitulace'!$L$1:$L$997)=L$4)*('Měsíční rekapitulace'!$A$3:$A$999=$A46)*TEXT('Měsíční rekapitulace'!$Q$3:$Q$999,"0,0;0;0;\0"))) -> 0 | M46: =IF($A46="",,SUMPRODUCT((LOOKUP(ROW(M$1:M$997),ROW(M$1:M$997)/ISNUMBER('Měsíční rekapitulace'!$L$1:$L$997),'Měsíční rekapitulace'!$L$1:$L$997)=M$4)*('Měsíční rekapitulace'!$A$3:$A$999=$A46)*TEXT('Měsíční rekapitulace'!$Q$3:$Q$999,"0,0;0;0;\0"))) -> 0 | N46: =IF($A46="",,SUMPRODUCT((LOOKUP(ROW(N$1:N$997),ROW(N$1:N$997)/ISNUMBER('Měsíční rekapitulace'!$L$1:$L$997),'Měsíční rekapitulace'!$L$1:$L$997)=N$4)*('Měsíční rekapitulace'!$A$3:$A$999=$A46)*TEXT('Měsíční rekapitulace'!$Q$3:$Q$999,"0,0;0;0;\0"))) -> 0 | O46: =IF($A46="",,SUMPRODUCT((LOOKUP(ROW(O$1:O$997),ROW(O$1:O$997)/ISNUMBER('Měsíční rekapitulace'!$L$1:$L$997),'Měsíční rekapitulace'!$L$1:$L$997)=O$4)*('Měsíční rekapitulace'!$A$3:$A$999=$A46)*TEXT('Měsíční rekapitulace'!$Q$3:$Q$999,"0,0;0;0;\0"))) -> 0 | P46: 0
A47: =IFERROR(INDEX('Měsíční rekapitulace'!A$3:A$999,SMALL(IF(('Měsíční rekapitulace'!A$3:A$999<>"")*('Měsíční rekapitulace'!A$3:A$999<>'Měsíční rekapitulace'!$A$2)*(COUNTIF(A$5:A46,'Měsíční rekapitulace'!A$3:A$999)=0),ROW('Měsíční rekapitulace'!A$3:A$999)-2),1)),"") ->  | B47: =IFERROR(INDEX('Měsíční rekapitulace'!E$3:E$999,MATCH(A47,'Měsíční rekapitulace'!A$3:A$999,)),"") ->  | D47: =IF($A47="",,SUMPRODUCT((LOOKUP(ROW(D$1:D$997),ROW(D$1:D$997)/ISNUMBER('Měsíční rekapitulace'!$L$1:$L$997),'Měsíční rekapitulace'!$L$1:$L$997)=D$4)*('Měsíční rekapitulace'!$A$3:$A$999=$A47)*TEXT('Měsíční rekapitulace'!$Q$3:$Q$999,"0,0;0;0;\0"))) -> 0 | E47: =IF($A47="",,SUMPRODUCT((LOOKUP(ROW(E$1:E$997),ROW(E$1:E$997)/ISNUMBER('Měsíční rekapitulace'!$L$1:$L$997),'Měsíční rekapitulace'!$L$1:$L$997)=E$4)*('Měsíční rekapitulace'!$A$3:$A$999=$A47)*TEXT('Měsíční rekapitulace'!$Q$3:$Q$999,"0,0;0;0;\0"))) -> 0 | F47: =IF($A47="",,SUMPRODUCT((LOOKUP(ROW(F$1:F$997),ROW(F$1:F$997)/ISNUMBER('Měsíční rekapitulace'!$L$1:$L$997),'Měsíční rekapitulace'!$L$1:$L$997)=F$4)*('Měsíční rekapitulace'!$A$3:$A$999=$A47)*TEXT('Měsíční rekapitulace'!$Q$3:$Q$999,"0,0;0;0;\0"))) -> 0 | G47: =IF($A47="",,SUMPRODUCT((LOOKUP(ROW(G$1:G$997),ROW(G$1:G$997)/ISNUMBER('Měsíční rekapitulace'!$L$1:$L$997),'Měsíční rekapitulace'!$L$1:$L$997)=G$4)*('Měsíční rekapitulace'!$A$3:$A$999=$A47)*TEXT('Měsíční rekapitulace'!$Q$3:$Q$999,"0,0;0;0;\0"))) -> 0 | H47: =IF($A47="",,SUMPRODUCT((LOOKUP(ROW(H$1:H$997),ROW(H$1:H$997)/ISNUMBER('Měsíční rekapitulace'!$L$1:$L$997),'Měsíční rekapitulace'!$L$1:$L$997)=H$4)*('Měsíční rekapitulace'!$A$3:$A$999=$A47)*TEXT('Měsíční rekapitulace'!$Q$3:$Q$999,"0,0;0;0;\0"))) -> 0 | I47: =IF($A47="",,SUMPRODUCT((LOOKUP(ROW(I$1:I$997),ROW(I$1:I$997)/ISNUMBER('Měsíční rekapitulace'!$L$1:$L$997),'Měsíční rekapitulace'!$L$1:$L$997)=I$4)*('Měsíční rekapitulace'!$A$3:$A$999=$A47)*TEXT('Měsíční rekapitulace'!$Q$3:$Q$999,"0,0;0;0;\0"))) -> 0 | J47: =IF($A47="",,SUMPRODUCT((LOOKUP(ROW(J$1:J$997),ROW(J$1:J$997)/ISNUMBER('Měsíční rekapitulace'!$L$1:$L$997),'Měsíční rekapitulace'!$L$1:$L$997)=J$4)*('Měsíční rekapitulace'!$A$3:$A$999=$A47)*TEXT('Měsíční rekapitulace'!$Q$3:$Q$999,"0,0;0;0;\0"))) -> 0 | K47: =IF($A47="",,SUMPRODUCT((LOOKUP(ROW(K$1:K$997),ROW(K$1:K$997)/ISNUMBER('Měsíční rekapitulace'!$L$1:$L$997),'Měsíční rekapitulace'!$L$1:$L$997)=K$4)*('Měsíční rekapitulace'!$A$3:$A$999=$A47)*TEXT('Měsíční rekapitulace'!$Q$3:$Q$999,"0,0;0;0;\0"))) -> 0 | L47: =IF($A47="",,SUMPRODUCT((LOOKUP(ROW(L$1:L$997),ROW(L$1:L$997)/ISNUMBER('Měsíční rekapitulace'!$L$1:$L$997),'Měsíční rekapitulace'!$L$1:$L$997)=L$4)*('Měsíční rekapitulace'!$A$3:$A$999=$A47)*TEXT('Měsíční rekapitulace'!$Q$3:$Q$999,"0,0;0;0;\0"))) -> 0 | M47: =IF($A47="",,SUMPRODUCT((LOOKUP(ROW(M$1:M$997),ROW(M$1:M$997)/ISNUMBER('Měsíční rekapitulace'!$L$1:$L$997),'Měsíční rekapitulace'!$L$1:$L$997)=M$4)*('Měsíční rekapitulace'!$A$3:$A$999=$A47)*TEXT('Měsíční rekapitulace'!$Q$3:$Q$999,"0,0;0;0;\0"))) -> 0 | N47: =IF($A47="",,SUMPRODUCT((LOOKUP(ROW(N$1:N$997),ROW(N$1:N$997)/ISNUMBER('Měsíční rekapitulace'!$L$1:$L$997),'Měsíční rekapitulace'!$L$1:$L$997)=N$4)*('Měsíční rekapitulace'!$A$3:$A$999=$A47)*TEXT('Měsíční rekapitulace'!$Q$3:$Q$999,"0,0;0;0;\0"))) -> 0 | O47: =IF($A47="",,SUMPRODUCT((LOOKUP(ROW(O$1:O$997),ROW(O$1:O$997)/ISNUMBER('Měsíční rekapitulace'!$L$1:$L$997),'Měsíční rekapitulace'!$L$1:$L$997)=O$4)*('Měsíční rekapitulace'!$A$3:$A$999=$A47)*TEXT('Měsíční rekapitulace'!$Q$3:$Q$999,"0,0;0;0;\0"))) -> 0 | P47: 0
A48: =IFERROR(INDEX('Měsíční rekapitulace'!A$3:A$999,SMALL(IF(('Měsíční rekapitulace'!A$3:A$999<>"")*('Měsíční rekapitulace'!A$3:A$999<>'Měsíční rekapitulace'!$A$2)*(COUNTIF(A$5:A47,'Měsíční rekapitulace'!A$3:A$999)=0),ROW('Měsíční rekapitulace'!A$3:A$999)-2),1)),"") ->  | B48: =IFERROR(INDEX('Měsíční rekapitulace'!E$3:E$999,MATCH(A48,'Měsíční rekapitulace'!A$3:A$999,)),"") ->  | D48: =IF($A48="",,SUMPRODUCT((LOOKUP(ROW(D$1:D$997),ROW(D$1:D$997)/ISNUMBER('Měsíční rekapitulace'!$L$1:$L$997),'Měsíční rekapitulace'!$L$1:$L$997)=D$4)*('Měsíční rekapitulace'!$A$3:$A$999=$A48)*TEXT('Měsíční rekapitulace'!$Q$3:$Q$999,"0,0;0;0;\0"))) -> 0 | E48: =IF($A48="",,SUMPRODUCT((LOOKUP(ROW(E$1:E$997),ROW(E$1:E$997)/ISNUMBER('Měsíční rekapitulace'!$L$1:$L$997),'Měsíční rekapitulace'!$L$1:$L$997)=E$4)*('Měsíční rekapitulace'!$A$3:$A$999=$A48)*TEXT('Měsíční rekapitulace'!$Q$3:$Q$999,"0,0;0;0;\0"))) -> 0 | F48: =IF($A48="",,SUMPRODUCT((LOOKUP(ROW(F$1:F$997),ROW(F$1:F$997)/ISNUMBER('Měsíční rekapitulace'!$L$1:$L$997),'Měsíční rekapitulace'!$L$1:$L$997)=F$4)*('Měsíční rekapitulace'!$A$3:$A$999=$A48)*TEXT('Měsíční rekapitulace'!$Q$3:$Q$999,"0,0;0;0;\0"))) -> 0 | G48: =IF($A48="",,SUMPRODUCT((LOOKUP(ROW(G$1:G$997),ROW(G$1:G$997)/ISNUMBER('Měsíční rekapitulace'!$L$1:$L$997),'Měsíční rekapitulace'!$L$1:$L$997)=G$4)*('Měsíční rekapitulace'!$A$3:$A$999=$A48)*TEXT('Měsíční rekapitulace'!$Q$3:$Q$999,"0,0;0;0;\0"))) -> 0 | H48: =IF($A48="",,SUMPRODUCT((LOOKUP(ROW(H$1:H$997),ROW(H$1:H$997)/ISNUMBER('Měsíční rekapitulace'!$L$1:$L$997),'Měsíční rekapitulace'!$L$1:$L$997)=H$4)*('Měsíční rekapitulace'!$A$3:$A$999=$A48)*TEXT('Měsíční rekapitulace'!$Q$3:$Q$999,"0,0;0;0;\0"))) -> 0 | I48: =IF($A48="",,SUMPRODUCT((LOOKUP(ROW(I$1:I$997),ROW(I$1:I$997)/ISNUMBER('Měsíční rekapitulace'!$L$1:$L$997),'Měsíční rekapitulace'!$L$1:$L$997)=I$4)*('Měsíční rekapitulace'!$A$3:$A$999=$A48)*TEXT('Měsíční rekapitulace'!$Q$3:$Q$999,"0,0;0;0;\0"))) -> 0 | J48: =IF($A48="",,SUMPRODUCT((LOOKUP(ROW(J$1:J$997),ROW(J$1:J$997)/ISNUMBER('Měsíční rekapitulace'!$L$1:$L$997),'Měsíční rekapitulace'!$L$1:$L$997)=J$4)*('Měsíční rekapitulace'!$A$3:$A$999=$A48)*TEXT('Měsíční rekapitulace'!$Q$3:$Q$999,"0,0;0;0;\0"))) -> 0 | K48: =IF($A48="",,SUMPRODUCT((LOOKUP(ROW(K$1:K$997),ROW(K$1:K$997)/ISNUMBER('Měsíční rekapitulace'!$L$1:$L$997),'Měsíční rekapitulace'!$L$1:$L$997)=K$4)*('Měsíční rekapitulace'!$A$3:$A$999=$A48)*TEXT('Měsíční rekapitulace'!$Q$3:$Q$999,"0,0;0;0;\0"))) -> 0 | L48: =IF($A48="",,SUMPRODUCT((LOOKUP(ROW(L$1:L$997),ROW(L$1:L$997)/ISNUMBER('Měsíční rekapitulace'!$L$1:$L$997),'Měsíční rekapitulace'!$L$1:$L$997)=L$4)*('Měsíční rekapitulace'!$A$3:$A$999=$A48)*TEXT('Měsíční rekapitulace'!$Q$3:$Q$999,"0,0;0;0;\0"))) -> 0 | M48: =IF($A48="",,SUMPRODUCT((LOOKUP(ROW(M$1:M$997),ROW(M$1:M$997)/ISNUMBER('Měsíční rekapitulace'!$L$1:$L$997),'Měsíční rekapitulace'!$L$1:$L$997)=M$4)*('Měsíční rekapitulace'!$A$3:$A$999=$A48)*TEXT('Měsíční rekapitulace'!$Q$3:$Q$999,"0,0;0;0;\0"))) -> 0 | N48: =IF($A48="",,SUMPRODUCT((LOOKUP(ROW(N$1:N$997),ROW(N$1:N$997)/ISNUMBER('Měsíční rekapitulace'!$L$1:$L$997),'Měsíční rekapitulace'!$L$1:$L$997)=N$4)*('Měsíční rekapitulace'!$A$3:$A$999=$A48)*TEXT('Měsíční rekapitulace'!$Q$3:$Q$999,"0,0;0;0;\0"))) -> 0 | O48: =IF($A48="",,SUMPRODUCT((LOOKUP(ROW(O$1:O$997),ROW(O$1:O$997)/ISNUMBER('Měsíční rekapitulace'!$L$1:$L$997),'Měsíční rekapitulace'!$L$1:$L$997)=O$4)*('Měsíční rekapitulace'!$A$3:$A$999=$A48)*TEXT('Měsíční rekapitulace'!$Q$3:$Q$999,"0,0;0;0;\0"))) -> 0 | P48: 0
A49: =IFERROR(INDEX('Měsíční rekapitulace'!A$3:A$999,SMALL(IF(('Měsíční rekapitulace'!A$3:A$999<>"")*('Měsíční rekapitulace'!A$3:A$999<>'Měsíční rekapitulace'!$A$2)*(COUNTIF(A$5:A48,'Měsíční rekapitulace'!A$3:A$999)=0),ROW('Měsíční rekapitulace'!A$3:A$999)-2),1)),"") ->  | B49: =IFERROR(INDEX('Měsíční rekapitulace'!E$3:E$999,MATCH(A49,'Měsíční rekapitulace'!A$3:A$999,)),"") ->  | D49: =IF($A49="",,SUMPRODUCT((LOOKUP(ROW(D$1:D$997),ROW(D$1:D$997)/ISNUMBER('Měsíční rekapitulace'!$L$1:$L$997),'Měsíční rekapitulace'!$L$1:$L$997)=D$4)*('Měsíční rekapitulace'!$A$3:$A$999=$A49)*TEXT('Měsíční rekapitulace'!$Q$3:$Q$999,"0,0;0;0;\0"))) -> 0 | E49: =IF($A49="",,SUMPRODUCT((LOOKUP(ROW(E$1:E$997),ROW(E$1:E$997)/ISNUMBER('Měsíční rekapitulace'!$L$1:$L$997),'Měsíční rekapitulace'!$L$1:$L$997)=E$4)*('Měsíční rekapitulace'!$A$3:$A$999=$A49)*TEXT('Měsíční rekapitulace'!$Q$3:$Q$999,"0,0;0;0;\0"))) -> 0 | F49: =IF($A49="",,SUMPRODUCT((LOOKUP(ROW(F$1:F$997),ROW(F$1:F$997)/ISNUMBER('Měsíční rekapitulace'!$L$1:$L$997),'Měsíční rekapitulace'!$L$1:$L$997)=F$4)*('Měsíční rekapitulace'!$A$3:$A$999=$A49)*TEXT('Měsíční rekapitulace'!$Q$3:$Q$999,"0,0;0;0;\0"))) -> 0 | G49: =IF($A49="",,SUMPRODUCT((LOOKUP(ROW(G$1:G$997),ROW(G$1:G$997)/ISNUMBER('Měsíční rekapitulace'!$L$1:$L$997),'Měsíční rekapitulace'!$L$1:$L$997)=G$4)*('Měsíční rekapitulace'!$A$3:$A$999=$A49)*TEXT('Měsíční rekapitulace'!$Q$3:$Q$999,"0,0;0;0;\0"))) -> 0 | H49: =IF($A49="",,SUMPRODUCT((LOOKUP(ROW(H$1:H$997),ROW(H$1:H$997)/ISNUMBER('Měsíční rekapitulace'!$L$1:$L$997),'Měsíční rekapitulace'!$L$1:$L$997)=H$4)*('Měsíční rekapitulace'!$A$3:$A$999=$A49)*TEXT('Měsíční rekapitulace'!$Q$3:$Q$999,"0,0;0;0;\0"))) -> 0 | I49: =IF($A49="",,SUMPRODUCT((LOOKUP(ROW(I$1:I$997),ROW(I$1:I$997)/ISNUMBER('Měsíční rekapitulace'!$L$1:$L$997),'Měsíční rekapitulace'!$L$1:$L$997)=I$4)*('Měsíční rekapitulace'!$A$3:$A$999=$A49)*TEXT('Měsíční rekapitulace'!$Q$3:$Q$999,"0,0;0;0;\0"))) -> 0 | J49: =IF($A49="",,SUMPRODUCT((LOOKUP(ROW(J$1:J$997),ROW(J$1:J$997)/ISNUMBER('Měsíční rekapitulace'!$L$1:$L$997),'Měsíční rekapitulace'!$L$1:$L$997)=J$4)*('Měsíční rekapitulace'!$A$3:$A$999=$A49)*TEXT('Měsíční rekapitulace'!$Q$3:$Q$999,"0,0;0;0;\0"))) -> 0 | K49: =IF($A49="",,SUMPRODUCT((LOOKUP(ROW(K$1:K$997),ROW(K$1:K$997)/ISNUMBER('Měsíční rekapitulace'!$L$1:$L$997),'Měsíční rekapitulace'!$L$1:$L$997)=K$4)*('Měsíční rekapitulace'!$A$3:$A$999=$A49)*TEXT('Měsíční rekapitulace'!$Q$3:$Q$999,"0,0;0;0;\0"))) -> 0 | L49: =IF($A49="",,SUMPRODUCT((LOOKUP(ROW(L$1:L$997),ROW(L$1:L$997)/ISNUMBER('Měsíční rekapitulace'!$L$1:$L$997),'Měsíční rekapitulace'!$L$1:$L$997)=L$4)*('Měsíční rekapitulace'!$A$3:$A$999=$A49)*TEXT('Měsíční rekapitulace'!$Q$3:$Q$999,"0,0;0;0;\0"))) -> 0 | M49: =IF($A49="",,SUMPRODUCT((LOOKUP(ROW(M$1:M$997),ROW(M$1:M$997)/ISNUMBER('Měsíční rekapitulace'!$L$1:$L$997),'Měsíční rekapitulace'!$L$1:$L$997)=M$4)*('Měsíční rekapitulace'!$A$3:$A$999=$A49)*TEXT('Měsíční rekapitulace'!$Q$3:$Q$999,"0,0;0;0;\0"))) -> 0 | N49: =IF($A49="",,SUMPRODUCT((LOOKUP(ROW(N$1:N$997),ROW(N$1:N$997)/ISNUMBER('Měsíční rekapitulace'!$L$1:$L$997),'Měsíční rekapitulace'!$L$1:$L$997)=N$4)*('Měsíční rekapitulace'!$A$3:$A$999=$A49)*TEXT('Měsíční rekapitulace'!$Q$3:$Q$999,"0,0;0;0;\0"))) -> 0 | O49: =IF($A49="",,SUMPRODUCT((LOOKUP(ROW(O$1:O$997),ROW(O$1:O$997)/ISNUMBER('Měsíční rekapitulace'!$L$1:$L$997),'Měsíční rekapitulace'!$L$1:$L$997)=O$4)*('Měsíční rekapitulace'!$A$3:$A$999=$A49)*TEXT('Měsíční rekapitulace'!$Q$3:$Q$999,"0,0;0;0;\0"))) -> 0 | P49: 0
A50: =IFERROR(INDEX('Měsíční rekapitulace'!A$3:A$999,SMALL(IF(('Měsíční rekapitulace'!A$3:A$999<>"")*('Měsíční rekapitulace'!A$3:A$999<>'Měsíční rekapitulace'!$A$2)*(COUNTIF(A$5:A49,'Měsíční rekapitulace'!A$3:A$999)=0),ROW('Měsíční rekapitulace'!A$3:A$999)-2),1)),"") ->  | B50: =IFERROR(INDEX('Měsíční rekapitulace'!E$3:E$999,MATCH(A50,'Měsíční rekapitulace'!A$3:A$999,)),"") ->  | D50: =IF($A50="",,SUMPRODUCT((LOOKUP(ROW(D$1:D$997),ROW(D$1:D$997)/ISNUMBER('Měsíční rekapitulace'!$L$1:$L$997),'Měsíční rekapitulace'!$L$1:$L$997)=D$4)*('Měsíční rekapitulace'!$A$3:$A$999=$A50)*TEXT('Měsíční rekapitulace'!$Q$3:$Q$999,"0,0;0;0;\0"))) -> 0 | E50: =IF($A50="",,SUMPRODUCT((LOOKUP(ROW(E$1:E$997),ROW(E$1:E$997)/ISNUMBER('Měsíční rekapitulace'!$L$1:$L$997),'Měsíční rekapitulace'!$L$1:$L$997)=E$4)*('Měsíční rekapitulace'!$A$3:$A$999=$A50)*TEXT('Měsíční rekapitulace'!$Q$3:$Q$999,"0,0;0;0;\0"))) -> 0 | F50: =IF($A50="",,SUMPRODUCT((LOOKUP(ROW(F$1:F$997),ROW(F$1:F$997)/ISNUMBER('Měsíční rekapitulace'!$L$1:$L$997),'Měsíční rekapitulace'!$L$1:$L$997)=F$4)*('Měsíční rekapitulace'!$A$3:$A$999=$A50)*TEXT('Měsíční rekapitulace'!$Q$3:$Q$999,"0,0;0;0;\0"))) -> 0 | G50: =IF($A50="",,SUMPRODUCT((LOOKUP(ROW(G$1:G$997),ROW(G$1:G$997)/ISNUMBER('Měsíční rekapitulace'!$L$1:$L$997),'Měsíční rekapitulace'!$L$1:$L$997)=G$4)*('Měsíční rekapitulace'!$A$3:$A$999=$A50)*TEXT('Měsíční rekapitulace'!$Q$3:$Q$999,"0,0;0;0;\0"))) -> 0 | H50: =IF($A50="",,SUMPRODUCT((LOOKUP(ROW(H$1:H$997),ROW(H$1:H$997)/ISNUMBER('Měsíční rekapitulace'!$L$1:$L$997),'Měsíční rekapitulace'!$L$1:$L$997)=H$4)*('Měsíční rekapitulace'!$A$3:$A$999=$A50)*TEXT('Měsíční rekapitulace'!$Q$3:$Q$999,"0,0;0;0;\0"))) -> 0 | I50: =IF($A50="",,SUMPRODUCT((LOOKUP(ROW(I$1:I$997),ROW(I$1:I$997)/ISNUMBER('Měsíční rekapitulace'!$L$1:$L$997),'Měsíční rekapitulace'!$L$1:$L$997)=I$4)*('Měsíční rekapitulace'!$A$3:$A$999=$A50)*TEXT('Měsíční rekapitulace'!$Q$3:$Q$999,"0,0;0;0;\0"))) -> 0 | J50: =IF($A50="",,SUMPRODUCT((LOOKUP(ROW(J$1:J$997),ROW(J$1:J$997)/ISNUMBER('Měsíční rekapitulace'!$L$1:$L$997),'Měsíční rekapitulace'!$L$1:$L$997)=J$4)*('Měsíční rekapitulace'!$A$3:$A$999=$A50)*TEXT('Měsíční rekapitulace'!$Q$3:$Q$999,"0,0;0;0;\0"))) -> 0 | K50: =IF($A50="",,SUMPRODUCT((LOOKUP(ROW(K$1:K$997),ROW(K$1:K$997)/ISNUMBER('Měsíční rekapitulace'!$L$1:$L$997),'Měsíční rekapitulace'!$L$1:$L$997)=K$4)*('Měsíční rekapitulace'!$A$3:$A$999=$A50)*TEXT('Měsíční rekapitulace'!$Q$3:$Q$999,"0,0;0;0;\0"))) -> 0 | L50: =IF($A50="",,SUMPRODUCT((LOOKUP(ROW(L$1:L$997),ROW(L$1:L$997)/ISNUMBER('Měsíční rekapitulace'!$L$1:$L$997),'Měsíční rekapitulace'!$L$1:$L$997)=L$4)*('Měsíční rekapitulace'!$A$3:$A$999=$A50)*TEXT('Měsíční rekapitulace'!$Q$3:$Q$999,"0,0;0;0;\0"))) -> 0 | M50: =IF($A50="",,SUMPRODUCT((LOOKUP(ROW(M$1:M$997),ROW(M$1:M$997)/ISNUMBER('Měsíční rekapitulace'!$L$1:$L$997),'Měsíční rekapitulace'!$L$1:$L$997)=M$4)*('Měsíční rekapitulace'!$A$3:$A$999=$A50)*TEXT('Měsíční rekapitulace'!$Q$3:$Q$999,"0,0;0;0;\0"))) -> 0 | N50: =IF($A50="",,SUMPRODUCT((LOOKUP(ROW(N$1:N$997),ROW(N$1:N$997)/ISNUMBER('Měsíční rekapitulace'!$L$1:$L$997),'Měsíční rekapitulace'!$L$1:$L$997)=N$4)*('Měsíční rekapitulace'!$A$3:$A$999=$A50)*TEXT('Měsíční rekapitulace'!$Q$3:$Q$999,"0,0;0;0;\0"))) -> 0 | O50: =IF($A50="",,SUMPRODUCT((LOOKUP(ROW(O$1:O$997),ROW(O$1:O$997)/ISNUMBER('Měsíční rekapitulace'!$L$1:$L$997),'Měsíční rekapitulace'!$L$1:$L$997)=O$4)*('Měsíční rekapitulace'!$A$3:$A$999=$A50)*TEXT('Měsíční rekapitulace'!$Q$3:$Q$999,"0,0;0;0;\0"))) -> 0 | P50: =SUM(D50:O50) -> 0
A51: =IFERROR(INDEX('Měsíční rekapitulace'!A$3:A$999,SMALL(IF(('Měsíční rekapitulace'!A$3:A$999<>"")*('Měsíční rekapitulace'!A$3:A$999<>'Měsíční rekapitulace'!$A$2)*(COUNTIF(A$5:A50,'Měsíční rekapitulace'!A$3:A$999)=0),ROW('Měsíční rekapitulace'!A$3:A$999)-2),1)),"") ->  | B51: =IFERROR(INDEX('Měsíční rekapitulace'!E$3:E$999,MATCH(A51,'Měsíční rekapitulace'!A$3:A$999,)),"") ->  | D51: =IF($A51="",,SUMPRODUCT((LOOKUP(ROW(D$1:D$997),ROW(D$1:D$997)/ISNUMBER('Měsíční rekapitulace'!$L$1:$L$997),'Měsíční rekapitulace'!$L$1:$L$997)=D$4)*('Měsíční rekapitulace'!$A$3:$A$999=$A51)*TEXT('Měsíční rekapitulace'!$Q$3:$Q$999,"0,0;0;0;\0"))) -> 0 | E51: =IF($A51="",,SUMPRODUCT((LOOKUP(ROW(E$1:E$997),ROW(E$1:E$997)/ISNUMBER('Měsíční rekapitulace'!$L$1:$L$997),'Měsíční rekapitulace'!$L$1:$L$997)=E$4)*('Měsíční rekapitulace'!$A$3:$A$999=$A51)*TEXT('Měsíční rekapitulace'!$Q$3:$Q$999,"0,0;0;0;\0"))) -> 0 | F51: =IF($A51="",,SUMPRODUCT((LOOKUP(ROW(F$1:F$997),ROW(F$1:F$997)/ISNUMBER('Měsíční rekapitulace'!$L$1:$L$997),'Měsíční rekapitulace'!$L$1:$L$997)=F$4)*('Měsíční rekapitulace'!$A$3:$A$999=$A51)*TEXT('Měsíční rekapitulace'!$Q$3:$Q$999,"0,0;0;0;\0"))) -> 0 | G51: =IF($A51="",,SUMPRODUCT((LOOKUP(ROW(G$1:G$997),ROW(G$1:G$997)/ISNUMBER('Měsíční rekapitulace'!$L$1:$L$997),'Měsíční rekapitulace'!$L$1:$L$997)=G$4)*('Měsíční rekapitulace'!$A$3:$A$999=$A51)*TEXT('Měsíční rekapitulace'!$Q$3:$Q$999,"0,0;0;0;\0"))) -> 0 | H51: =IF($A51="",,SUMPRODUCT((LOOKUP(ROW(H$1:H$997),ROW(H$1:H$997)/ISNUMBER('Měsíční rekapitulace'!$L$1:$L$997),'Měsíční rekapitulace'!$L$1:$L$997)=H$4)*('Měsíční rekapitulace'!$A$3:$A$999=$A51)*TEXT('Měsíční rekapitulace'!$Q$3:$Q$999,"0,0;0;0;\0"))) -> 0 | I51: =IF($A51="",,SUMPRODUCT((LOOKUP(ROW(I$1:I$997),ROW(I$1:I$997)/ISNUMBER('Měsíční rekapitulace'!$L$1:$L$997),'Měsíční rekapitulace'!$L$1:$L$997)=I$4)*('Měsíční rekapitulace'!$A$3:$A$999=$A51)*TEXT('Měsíční rekapitulace'!$Q$3:$Q$999,"0,0;0;0;\0"))) -> 0 | J51: =IF($A51="",,SUMPRODUCT((LOOKUP(ROW(J$1:J$997),ROW(J$1:J$997)/ISNUMBER('Měsíční rekapitulace'!$L$1:$L$997),'Měsíční rekapitulace'!$L$1:$L$997)=J$4)*('Měsíční rekapitulace'!$A$3:$A$999=$A51)*TEXT('Měsíční rekapitulace'!$Q$3:$Q$999,"0,0;0;0;\0"))) -> 0 | K51: =IF($A51="",,SUMPRODUCT((LOOKUP(ROW(K$1:K$997),ROW(K$1:K$997)/ISNUMBER('Měsíční rekapitulace'!$L$1:$L$997),'Měsíční rekapitulace'!$L$1:$L$997)=K$4)*('Měsíční rekapitulace'!$A$3:$A$999=$A51)*TEXT('Měsíční rekapitulace'!$Q$3:$Q$999,"0,0;0;0;\0"))) -> 0 | L51: =IF($A51="",,SUMPRODUCT((LOOKUP(ROW(L$1:L$997),ROW(L$1:L$997)/ISNUMBER('Měsíční rekapitulace'!$L$1:$L$997),'Měsíční rekapitulace'!$L$1:$L$997)=L$4)*('Měsíční rekapitulace'!$A$3:$A$999=$A51)*TEXT('Měsíční rekapitulace'!$Q$3:$Q$999,"0,0;0;0;\0"))) -> 0 | M51: =IF($A51="",,SUMPRODUCT((LOOKUP(ROW(M$1:M$997),ROW(M$1:M$997)/ISNUMBER('Měsíční rekapitulace'!$L$1:$L$997),'Měsíční rekapitulace'!$L$1:$L$997)=M$4)*('Měsíční rekapitulace'!$A$3:$A$999=$A51)*TEXT('Měsíční rekapitulace'!$Q$3:$Q$999,"0,0;0;0;\0"))) -> 0 | N51: =IF($A51="",,SUMPRODUCT((LOOKUP(ROW(N$1:N$997),ROW(N$1:N$997)/ISNUMBER('Měsíční rekapitulace'!$L$1:$L$997),'Měsíční rekapitulace'!$L$1:$L$997)=N$4)*('Měsíční rekapitulace'!$A$3:$A$999=$A51)*TEXT('Měsíční rekapitulace'!$Q$3:$Q$999,"0,0;0;0;\0"))) -> 0 | O51: =IF($A51="",,SUMPRODUCT((LOOKUP(ROW(O$1:O$997),ROW(O$1:O$997)/ISNUMBER('Měsíční rekapitulace'!$L$1:$L$997),'Měsíční rekapitulace'!$L$1:$L$997)=O$4)*('Měsíční rekapitulace'!$A$3:$A$999=$A51)*TEXT('Měsíční rekapitulace'!$Q$3:$Q$999,"0,0;0;0;\0"))) -> 0 | P51: 0
A52: =IFERROR(INDEX('Měsíční rekapitulace'!A$3:A$999,SMALL(IF(('Měsíční rekapitulace'!A$3:A$999<>"")*('Měsíční rekapitulace'!A$3:A$999<>'Měsíční rekapitulace'!$A$2)*(COUNTIF(A$5:A51,'Měsíční rekapitulace'!A$3:A$999)=0),ROW('Měsíční rekapitulace'!A$3:A$999)-2),1)),"") ->  | B52: =IFERROR(INDEX('Měsíční rekapitulace'!E$3:E$999,MATCH(A52,'Měsíční rekapitulace'!A$3:A$999,)),"") ->  | D52: =IF($A52="",,SUMPRODUCT((LOOKUP(ROW(D$1:D$997),ROW(D$1:D$997)/ISNUMBER('Měsíční rekapitulace'!$L$1:$L$997),'Měsíční rekapitulace'!$L$1:$L$997)=D$4)*('Měsíční rekapitulace'!$A$3:$A$999=$A52)*TEXT('Měsíční rekapitulace'!$Q$3:$Q$999,"0,0;0;0;\0"))) -> 0 | E52: =IF($A52="",,SUMPRODUCT((LOOKUP(ROW(E$1:E$997),ROW(E$1:E$997)/ISNUMBER('Měsíční rekapitulace'!$L$1:$L$997),'Měsíční rekapitulace'!$L$1:$L$997)=E$4)*('Měsíční rekapitulace'!$A$3:$A$999=$A52)*TEXT('Měsíční rekapitulace'!$Q$3:$Q$999,"0,0;0;0;\0"))) -> 0 | F52: =IF($A52="",,SUMPRODUCT((LOOKUP(ROW(F$1:F$997),ROW(F$1:F$997)/ISNUMBER('Měsíční rekapitulace'!$L$1:$L$997),'Měsíční rekapitulace'!$L$1:$L$997)=F$4)*('Měsíční rekapitulace'!$A$3:$A$999=$A52)*TEXT('Měsíční rekapitulace'!$Q$3:$Q$999,"0,0;0;0;\0"))) -> 0 | G52: =IF($A52="",,SUMPRODUCT((LOOKUP(ROW(G$1:G$997),ROW(G$1:G$997)/ISNUMBER('Měsíční rekapitulace'!$L$1:$L$997),'Měsíční rekapitulace'!$L$1:$L$997)=G$4)*('Měsíční rekapitulace'!$A$3:$A$999=$A52)*TEXT('Měsíční rekapitulace'!$Q$3:$Q$999,"0,0;0;0;\0"))) -> 0 | H52: =IF($A52="",,SUMPRODUCT((LOOKUP(ROW(H$1:H$997),ROW(H$1:H$997)/ISNUMBER('Měsíční rekapitulace'!$L$1:$L$997),'Měsíční rekapitulace'!$L$1:$L$997)=H$4)*('Měsíční rekapitulace'!$A$3:$A$999=$A52)*TEXT('Měsíční rekapitulace'!$Q$3:$Q$999,"0,0;0;0;\0"))) -> 0 | I52: =IF($A52="",,SUMPRODUCT((LOOKUP(ROW(I$1:I$997),ROW(I$1:I$997)/ISNUMBER('Měsíční rekapitulace'!$L$1:$L$997),'Měsíční rekapitulace'!$L$1:$L$997)=I$4)*('Měsíční rekapitulace'!$A$3:$A$999=$A52)*TEXT('Měsíční rekapitulace'!$Q$3:$Q$999,"0,0;0;0;\0"))) -> 0 | J52: =IF($A52="",,SUMPRODUCT((LOOKUP(ROW(J$1:J$997),ROW(J$1:J$997)/ISNUMBER('Měsíční rekapitulace'!$L$1:$L$997),'Měsíční rekapitulace'!$L$1:$L$997)=J$4)*('Měsíční rekapitulace'!$A$3:$A$999=$A52)*TEXT('Měsíční rekapitulace'!$Q$3:$Q$999,"0,0;0;0;\0"))) -> 0 | K52: =IF($A52="",,SUMPRODUCT((LOOKUP(ROW(K$1:K$997),ROW(K$1:K$997)/ISNUMBER('Měsíční rekapitulace'!$L$1:$L$997),'Měsíční rekapitulace'!$L$1:$L$997)=K$4)*('Měsíční rekapitulace'!$A$3:$A$999=$A52)*TEXT('Měsíční rekapitulace'!$Q$3:$Q$999,"0,0;0;0;\0"))) -> 0 | L52: =IF($A52="",,SUMPRODUCT((LOOKUP(ROW(L$1:L$997),ROW(L$1:L$997)/ISNUMBER('Měsíční rekapitulace'!$L$1:$L$997),'Měsíční rekapitulace'!$L$1:$L$997)=L$4)*('Měsíční rekapitulace'!$A$3:$A$999=$A52)*TEXT('Měsíční rekapitulace'!$Q$3:$Q$999,"0,0;0;0;\0"))) -> 0 | M52: =IF($A52="",,SUMPRODUCT((LOOKUP(ROW(M$1:M$997),ROW(M$1:M$997)/ISNUMBER('Měsíční rekapitulace'!$L$1:$L$997),'Měsíční rekapitulace'!$L$1:$L$997)=M$4)*('Měsíční rekapitulace'!$A$3:$A$999=$A52)*TEXT('Měsíční rekapitulace'!$Q$3:$Q$999,"0,0;0;0;\0"))) -> 0 | N52: =IF($A52="",,SUMPRODUCT((LOOKUP(ROW(N$1:N$997),ROW(N$1:N$997)/ISNUMBER('Měsíční rekapitulace'!$L$1:$L$997),'Měsíční rekapitulace'!$L$1:$L$997)=N$4)*('Měsíční rekapitulace'!$A$3:$A$999=$A52)*TEXT('Měsíční rekapitulace'!$Q$3:$Q$999,"0,0;0;0;\0"))) -> 0 | O52: =IF($A52="",,SUMPRODUCT((LOOKUP(ROW(O$1:O$997),ROW(O$1:O$997)/ISNUMBER('Měsíční rekapitulace'!$L$1:$L$997),'Měsíční rekapitulace'!$L$1:$L$997)=O$4)*('Měsíční rekapitulace'!$A$3:$A$999=$A52)*TEXT('Měsíční rekapitulace'!$Q$3:$Q$999,"0,0;0;0;\0"))) -> 0 | P52: 0
A53: =IFERROR(INDEX('Měsíční rekapitulace'!A$3:A$999,SMALL(IF(('Měsíční rekapitulace'!A$3:A$999<>"")*('Měsíční rekapitulace'!A$3:A$999<>'Měsíční rekapitulace'!$A$2)*(COUNTIF(A$5:A52,'Měsíční rekapitulace'!A$3:A$999)=0),ROW('Měsíční rekapitulace'!A$3:A$999)-2),1)),"") ->  | B53: =IFERROR(INDEX('Měsíční rekapitulace'!E$3:E$999,MATCH(A53,'Měsíční rekapitulace'!A$3:A$999,)),"") ->  | D53: =IF($A53="",,SUMPRODUCT((LOOKUP(ROW(D$1:D$997),ROW(D$1:D$997)/ISNUMBER('Měsíční rekapitulace'!$L$1:$L$997),'Měsíční rekapitulace'!$L$1:$L$997)=D$4)*('Měsíční rekapitulace'!$A$3:$A$999=$A53)*TEXT('Měsíční rekapitulace'!$Q$3:$Q$999,"0,0;0;0;\0"))) -> 0 | E53: =IF($A53="",,SUMPRODUCT((LOOKUP(ROW(E$1:E$997),ROW(E$1:E$997)/ISNUMBER('Měsíční rekapitulace'!$L$1:$L$997),'Měsíční rekapitulace'!$L$1:$L$997)=E$4)*('Měsíční rekapitulace'!$A$3:$A$999=$A53)*TEXT('Měsíční rekapitulace'!$Q$3:$Q$999,"0,0;0;0;\0"))) -> 0 | F53: =IF($A53="",,SUMPRODUCT((LOOKUP(ROW(F$1:F$997),ROW(F$1:F$997)/ISNUMBER('Měsíční rekapitulace'!$L$1:$L$997),'Měsíční rekapitulace'!$L$1:$L$997)=F$4)*('Měsíční rekapitulace'!$A$3:$A$999=$A53)*TEXT('Měsíční rekapitulace'!$Q$3:$Q$999,"0,0;0;0;\0"))) -> 0 | G53: =IF($A53="",,SUMPRODUCT((LOOKUP(ROW(G$1:G$997),ROW(G$1:G$997)/ISNUMBER('Měsíční rekapitulace'!$L$1:$L$997),'Měsíční rekapitulace'!$L$1:$L$997)=G$4)*('Měsíční rekapitulace'!$A$3:$A$999=$A53)*TEXT('Měsíční rekapitulace'!$Q$3:$Q$999,"0,0;0;0;\0"))) -> 0 | H53: =IF($A53="",,SUMPRODUCT((LOOKUP(ROW(H$1:H$997),ROW(H$1:H$997)/ISNUMBER('Měsíční rekapitulace'!$L$1:$L$997),'Měsíční rekapitulace'!$L$1:$L$997)=H$4)*('Měsíční rekapitulace'!$A$3:$A$999=$A53)*TEXT('Měsíční rekapitulace'!$Q$3:$Q$999,"0,0;0;0;\0"))) -> 0 | I53: =IF($A53="",,SUMPRODUCT((LOOKUP(ROW(I$1:I$997),ROW(I$1:I$997)/ISNUMBER('Měsíční rekapitulace'!$L$1:$L$997),'Měsíční rekapitulace'!$L$1:$L$997)=I$4)*('Měsíční rekapitulace'!$A$3:$A$999=$A53)*TEXT('Měsíční rekapitulace'!$Q$3:$Q$999,"0,0;0;0;\0"))) -> 0 | J53: =IF($A53="",,SUMPRODUCT((LOOKUP(ROW(J$1:J$997),ROW(J$1:J$997)/ISNUMBER('Měsíční rekapitulace'!$L$1:$L$997),'Měsíční rekapitulace'!$L$1:$L$997)=J$4)*('Měsíční rekapitulace'!$A$3:$A$999=$A53)*TEXT('Měsíční rekapitulace'!$Q$3:$Q$999,"0,0;0;0;\0"))) -> 0 | K53: =IF($A53="",,SUMPRODUCT((LOOKUP(ROW(K$1:K$997),ROW(K$1:K$997)/ISNUMBER('Měsíční rekapitulace'!$L$1:$L$997),'Měsíční rekapitulace'!$L$1:$L$997)=K$4)*('Měsíční rekapitulace'!$A$3:$A$999=$A53)*TEXT('Měsíční rekapitulace'!$Q$3:$Q$999,"0,0;0;0;\0"))) -> 0 | L53: =IF($A53="",,SUMPRODUCT((LOOKUP(ROW(L$1:L$997),ROW(L$1:L$997)/ISNUMBER('Měsíční rekapitulace'!$L$1:$L$997),'Měsíční rekapitulace'!$L$1:$L$997)=L$4)*('Měsíční rekapitulace'!$A$3:$A$999=$A53)*TEXT('Měsíční rekapitulace'!$Q$3:$Q$999,"0,0;0;0;\0"))) -> 0 | M53: =IF($A53="",,SUMPRODUCT((LOOKUP(ROW(M$1:M$997),ROW(M$1:M$997)/ISNUMBER('Měsíční rekapitulace'!$L$1:$L$997),'Měsíční rekapitulace'!$L$1:$L$997)=M$4)*('Měsíční rekapitulace'!$A$3:$A$999=$A53)*TEXT('Měsíční rekapitulace'!$Q$3:$Q$999,"0,0;0;0;\0"))) -> 0 | N53: =IF($A53="",,SUMPRODUCT((LOOKUP(ROW(N$1:N$997),ROW(N$1:N$997)/ISNUMBER('Měsíční rekapitulace'!$L$1:$L$997),'Měsíční rekapitulace'!$L$1:$L$997)=N$4)*('Měsíční rekapitulace'!$A$3:$A$999=$A53)*TEXT('Měsíční rekapitulace'!$Q$3:$Q$999,"0,0;0;0;\0"))) -> 0 | O53: =IF($A53="",,SUMPRODUCT((LOOKUP(ROW(O$1:O$997),ROW(O$1:O$997)/ISNUMBER('Měsíční rekapitulace'!$L$1:$L$997),'Měsíční rekapitulace'!$L$1:$L$997)=O$4)*('Měsíční rekapitulace'!$A$3:$A$999=$A53)*TEXT('Měsíční rekapitulace'!$Q$3:$Q$999,"0,0;0;0;\0"))) -> 0 | P53: 0
A54: =IFERROR(INDEX('Měsíční rekapitulace'!A$3:A$999,SMALL(IF(('Měsíční rekapitulace'!A$3:A$999<>"")*('Měsíční rekapitulace'!A$3:A$999<>'Měsíční rekapitulace'!$A$2)*(COUNTIF(A$5:A53,'Měsíční rekapitulace'!A$3:A$999)=0),ROW('Měsíční rekapitulace'!A$3:A$999)-2),1)),"") ->  | B54: =IFERROR(INDEX('Měsíční rekapitulace'!E$3:E$999,MATCH(A54,'Měsíční rekapitulace'!A$3:A$999,)),"") ->  | D54: =IF($A54="",,SUMPRODUCT((LOOKUP(ROW(D$1:D$997),ROW(D$1:D$997)/ISNUMBER('Měsíční rekapitulace'!$L$1:$L$997),'Měsíční rekapitulace'!$L$1:$L$997)=D$4)*('Měsíční rekapitulace'!$A$3:$A$999=$A54)*TEXT('Měsíční rekapitulace'!$Q$3:$Q$999,"0,0;0;0;\0"))) -> 0 | E54: =IF($A54="",,SUMPRODUCT((LOOKUP(ROW(E$1:E$997),ROW(E$1:E$997)/ISNUMBER('Měsíční rekapitulace'!$L$1:$L$997),'Měsíční rekapitulace'!$L$1:$L$997)=E$4)*('Měsíční rekapitulace'!$A$3:$A$999=$A54)*TEXT('Měsíční rekapitulace'!$Q$3:$Q$999,"0,0;0;0;\0"))) -> 0 | F54: =IF($A54="",,SUMPRODUCT((LOOKUP(ROW(F$1:F$997),ROW(F$1:F$997)/ISNUMBER('Měsíční rekapitulace'!$L$1:$L$997),'Měsíční rekapitulace'!$L$1:$L$997)=F$4)*('Měsíční rekapitulace'!$A$3:$A$999=$A54)*TEXT('Měsíční rekapitulace'!$Q$3:$Q$999,"0,0;0;0;\0"))) -> 0 | G54: =IF($A54="",,SUMPRODUCT((LOOKUP(ROW(G$1:G$997),ROW(G$1:G$997)/ISNUMBER('Měsíční rekapitulace'!$L$1:$L$997),'Měsíční rekapitulace'!$L$1:$L$997)=G$4)*('Měsíční rekapitulace'!$A$3:$A$999=$A54)*TEXT('Měsíční rekapitulace'!$Q$3:$Q$999,"0,0;0;0;\0"))) -> 0 | H54: =IF($A54="",,SUMPRODUCT((LOOKUP(ROW(H$1:H$997),ROW(H$1:H$997)/ISNUMBER('Měsíční rekapitulace'!$L$1:$L$997),'Měsíční rekapitulace'!$L$1:$L$997)=H$4)*('Měsíční rekapitulace'!$A$3:$A$999=$A54)*TEXT('Měsíční rekapitulace'!$Q$3:$Q$999,"0,0;0;0;\0"))) -> 0 | I54: =IF($A54="",,SUMPRODUCT((LOOKUP(ROW(I$1:I$997),ROW(I$1:I$997)/ISNUMBER('Měsíční rekapitulace'!$L$1:$L$997),'Měsíční rekapitulace'!$L$1:$L$997)=I$4)*('Měsíční rekapitulace'!$A$3:$A$999=$A54)*TEXT('Měsíční rekapitulace'!$Q$3:$Q$999,"0,0;0;0;\0"))) -> 0 | J54: =IF($A54="",,SUMPRODUCT((LOOKUP(ROW(J$1:J$997),ROW(J$1:J$997)/ISNUMBER('Měsíční rekapitulace'!$L$1:$L$997),'Měsíční rekapitulace'!$L$1:$L$997)=J$4)*('Měsíční rekapitulace'!$A$3:$A$999=$A54)*TEXT('Měsíční rekapitulace'!$Q$3:$Q$999,"0,0;0;0;\0"))) -> 0 | K54: =IF($A54="",,SUMPRODUCT((LOOKUP(ROW(K$1:K$997),ROW(K$1:K$997)/ISNUMBER('Měsíční rekapitulace'!$L$1:$L$997),'Měsíční rekapitulace'!$L$1:$L$997)=K$4)*('Měsíční rekapitulace'!$A$3:$A$999=$A54)*TEXT('Měsíční rekapitulace'!$Q$3:$Q$999,"0,0;0;0;\0"))) -> 0 | L54: =IF($A54="",,SUMPRODUCT((LOOKUP(ROW(L$1:L$997),ROW(L$1:L$997)/ISNUMBER('Měsíční rekapitulace'!$L$1:$L$997),'Měsíční rekapitulace'!$L$1:$L$997)=L$4)*('Měsíční rekapitulace'!$A$3:$A$999=$A54)*TEXT('Měsíční rekapitulace'!$Q$3:$Q$999,"0,0;0;0;\0"))) -> 0 | M54: =IF($A54="",,SUMPRODUCT((LOOKUP(ROW(M$1:M$997),ROW(M$1:M$997)/ISNUMBER('Měsíční rekapitulace'!$L$1:$L$997),'Měsíční rekapitulace'!$L$1:$L$997)=M$4)*('Měsíční rekapitulace'!$A$3:$A$999=$A54)*TEXT('Měsíční rekapitulace'!$Q$3:$Q$999,"0,0;0;0;\0"))) -> 0 | N54: =IF($A54="",,SUMPRODUCT((LOOKUP(ROW(N$1:N$997),ROW(N$1:N$997)/ISNUMBER('Měsíční rekapitulace'!$L$1:$L$997),'Měsíční rekapitulace'!$L$1:$L$997)=N$4)*('Měsíční rekapitulace'!$A$3:$A$999=$A54)*TEXT('Měsíční rekapitulace'!$Q$3:$Q$999,"0,0;0;0;\0"))) -> 0 | O54: =IF($A54="",,SUMPRODUCT((LOOKUP(ROW(O$1:O$997),ROW(O$1:O$997)/ISNUMBER('Měsíční rekapitulace'!$L$1:$L$997),'Měsíční rekapitulace'!$L$1:$L$997)=O$4)*('Měsíční rekapitulace'!$A$3:$A$999=$A54)*TEXT('Měsíční rekapitulace'!$Q$3:$Q$999,"0,0;0;0;\0"))) -> 0 | P54: 0
A55: =IFERROR(INDEX('Měsíční rekapitulace'!A$3:A$999,SMALL(IF(('Měsíční rekapitulace'!A$3:A$999<>"")*('Měsíční rekapitulace'!A$3:A$999<>'Měsíční rekapitulace'!$A$2)*(COUNTIF(A$5:A54,'Měsíční rekapitulace'!A$3:A$999)=0),ROW('Měsíční rekapitulace'!A$3:A$999)-2),1)),"") ->  | B55: =IFERROR(INDEX('Měsíční rekapitulace'!E$3:E$999,MATCH(A55,'Měsíční rekapitulace'!A$3:A$999,)),"") ->  | D55: =IF($A55="",,SUMPRODUCT((LOOKUP(ROW(D$1:D$997),ROW(D$1:D$997)/ISNUMBER('Měsíční rekapitulace'!$L$1:$L$997),'Měsíční rekapitulace'!$L$1:$L$997)=D$4)*('Měsíční rekapitulace'!$A$3:$A$999=$A55)*TEXT('Měsíční rekapitulace'!$Q$3:$Q$999,"0,0;0;0;\0"))) -> 0 | E55: =IF($A55="",,SUMPRODUCT((LOOKUP(ROW(E$1:E$997),ROW(E$1:E$997)/ISNUMBER('Měsíční rekapitulace'!$L$1:$L$997),'Měsíční rekapitulace'!$L$1:$L$997)=E$4)*('Měsíční rekapitulace'!$A$3:$A$999=$A55)*TEXT('Měsíční rekapitulace'!$Q$3:$Q$999,"0,0;0;0;\0"))) -> 0 | F55: =IF($A55="",,SUMPRODUCT((LOOKUP(ROW(F$1:F$997),ROW(F$1:F$997)/ISNUMBER('Měsíční rekapitulace'!$L$1:$L$997),'Měsíční rekapitulace'!$L$1:$L$997)=F$4)*('Měsíční rekapitulace'!$A$3:$A$999=$A55)*TEXT('Měsíční rekapitulace'!$Q$3:$Q$999,"0,0;0;0;\0"))) -> 0 | G55: =IF($A55="",,SUMPRODUCT((LOOKUP(ROW(G$1:G$997),ROW(G$1:G$997)/ISNUMBER('Měsíční rekapitulace'!$L$1:$L$997),'Měsíční rekapitulace'!$L$1:$L$997)=G$4)*('Měsíční rekapitulace'!$A$3:$A$999=$A55)*TEXT('Měsíční rekapitulace'!$Q$3:$Q$999,"0,0;0;0;\0"))) -> 0 | H55: =IF($A55="",,SUMPRODUCT((LOOKUP(ROW(H$1:H$997),ROW(H$1:H$997)/ISNUMBER('Měsíční rekapitulace'!$L$1:$L$997),'Měsíční rekapitulace'!$L$1:$L$997)=H$4)*('Měsíční rekapitulace'!$A$3:$A$999=$A55)*TEXT('Měsíční rekapitulace'!$Q$3:$Q$999,"0,0;0;0;\0"))) -> 0 | I55: =IF($A55="",,SUMPRODUCT((LOOKUP(ROW(I$1:I$997),ROW(I$1:I$997)/ISNUMBER('Měsíční rekapitulace'!$L$1:$L$997),'Měsíční rekapitulace'!$L$1:$L$997)=I$4)*('Měsíční rekapitulace'!$A$3:$A$999=$A55)*TEXT('Měsíční rekapitulace'!$Q$3:$Q$999,"0,0;0;0;\0"))) -> 0 | J55: =IF($A55="",,SUMPRODUCT((LOOKUP(ROW(J$1:J$997),ROW(J$1:J$997)/ISNUMBER('Měsíční rekapitulace'!$L$1:$L$997),'Měsíční rekapitulace'!$L$1:$L$997)=J$4)*('Měsíční rekapitulace'!$A$3:$A$999=$A55)*TEXT('Měsíční rekapitulace'!$Q$3:$Q$999,"0,0;0;0;\0"))) -> 0 | K55: =IF($A55="",,SUMPRODUCT((LOOKUP(ROW(K$1:K$997),ROW(K$1:K$997)/ISNUMBER('Měsíční rekapitulace'!$L$1:$L$997),'Měsíční rekapitulace'!$L$1:$L$997)=K$4)*('Měsíční rekapitulace'!$A$3:$A$999=$A55)*TEXT('Měsíční rekapitulace'!$Q$3:$Q$999,"0,0;0;0;\0"))) -> 0 | L55: =IF($A55="",,SUMPRODUCT((LOOKUP(ROW(L$1:L$997),ROW(L$1:L$997)/ISNUMBER('Měsíční rekapitulace'!$L$1:$L$997),'Měsíční rekapitulace'!$L$1:$L$997)=L$4)*('Měsíční rekapitulace'!$A$3:$A$999=$A55)*TEXT('Měsíční rekapitulace'!$Q$3:$Q$999,"0,0;0;0;\0"))) -> 0 | M55: =IF($A55="",,SUMPRODUCT((LOOKUP(ROW(M$1:M$997),ROW(M$1:M$997)/ISNUMBER('Měsíční rekapitulace'!$L$1:$L$997),'Měsíční rekapitulace'!$L$1:$L$997)=M$4)*('Měsíční rekapitulace'!$A$3:$A$999=$A55)*TEXT('Měsíční rekapitulace'!$Q$3:$Q$999,"0,0;0;0;\0"))) -> 0 | N55: =IF($A55="",,SUMPRODUCT((LOOKUP(ROW(N$1:N$997),ROW(N$1:N$997)/ISNUMBER('Měsíční rekapitulace'!$L$1:$L$997),'Měsíční rekapitulace'!$L$1:$L$997)=N$4)*('Měsíční rekapitulace'!$A$3:$A$999=$A55)*TEXT('Měsíční rekapitulace'!$Q$3:$Q$999,"0,0;0;0;\0"))) -> 0 | O55: =IF($A55="",,SUMPRODUCT((LOOKUP(ROW(O$1:O$997),ROW(O$1:O$997)/ISNUMBER('Měsíční rekapitulace'!$L$1:$L$997),'Měsíční rekapitulace'!$L$1:$L$997)=O$4)*('Měsíční rekapitulace'!$A$3:$A$999=$A55)*TEXT('Měsíční rekapitulace'!$Q$3:$Q$999,"0,0;0;0;\0"))) -> 0 | P55: 0
A56: =IFERROR(INDEX('Měsíční rekapitulace'!A$3:A$999,SMALL(IF(('Měsíční rekapitulace'!A$3:A$999<>"")*('Měsíční rekapitulace'!A$3:A$999<>'Měsíční rekapitulace'!$A$2)*(COUNTIF(A$5:A55,'Měsíční rekapitulace'!A$3:A$999)=0),ROW('Měsíční rekapitulace'!A$3:A$999)-2),1)),"") ->  | B56: =IFERROR(INDEX('Měsíční rekapitulace'!E$3:E$999,MATCH(A56,'Měsíční rekapitulace'!A$3:A$999,)),"") ->  | D56: =IF($A56="",,SUMPRODUCT((LOOKUP(ROW(D$1:D$997),ROW(D$1:D$997)/ISNUMBER('Měsíční rekapitulace'!$L$1:$L$997),'Měsíční rekapitulace'!$L$1:$L$997)=D$4)*('Měsíční rekapitulace'!$A$3:$A$999=$A56)*TEXT('Měsíční rekapitulace'!$Q$3:$Q$999,"0,0;0;0;\0"))) -> 0 | E56: =IF($A56="",,SUMPRODUCT((LOOKUP(ROW(E$1:E$997),ROW(E$1:E$997)/ISNUMBER('Měsíční rekapitulace'!$L$1:$L$997),'Měsíční rekapitulace'!$L$1:$L$997)=E$4)*('Měsíční rekapitulace'!$A$3:$A$999=$A56)*TEXT('Měsíční rekapitulace'!$Q$3:$Q$999,"0,0;0;0;\0"))) -> 0 | F56: =IF($A56="",,SUMPRODUCT((LOOKUP(ROW(F$1:F$997),ROW(F$1:F$997)/ISNUMBER('Měsíční rekapitulace'!$L$1:$L$997),'Měsíční rekapitulace'!$L$1:$L$997)=F$4)*('Měsíční rekapitulace'!$A$3:$A$999=$A56)*TEXT('Měsíční rekapitulace'!$Q$3:$Q$999,"0,0;0;0;\0"))) -> 0 | G56: =IF($A56="",,SUMPRODUCT((LOOKUP(ROW(G$1:G$997),ROW(G$1:G$997)/ISNUMBER('Měsíční rekapitulace'!$L$1:$L$997),'Měsíční rekapitulace'!$L$1:$L$997)=G$4)*('Měsíční rekapitulace'!$A$3:$A$999=$A56)*TEXT('Měsíční rekapitulace'!$Q$3:$Q$999,"0,0;0;0;\0"))) -> 0 | H56: =IF($A56="",,SUMPRODUCT((LOOKUP(ROW(H$1:H$997),ROW(H$1:H$997)/ISNUMBER('Měsíční rekapitulace'!$L$1:$L$997),'Měsíční rekapitulace'!$L$1:$L$997)=H$4)*('Měsíční rekapitulace'!$A$3:$A$999=$A56)*TEXT('Měsíční rekapitulace'!$Q$3:$Q$999,"0,0;0;0;\0"))) -> 0 | I56: =IF($A56="",,SUMPRODUCT((LOOKUP(ROW(I$1:I$997),ROW(I$1:I$997)/ISNUMBER('Měsíční rekapitulace'!$L$1:$L$997),'Měsíční rekapitulace'!$L$1:$L$997)=I$4)*('Měsíční rekapitulace'!$A$3:$A$999=$A56)*TEXT('Měsíční rekapitulace'!$Q$3:$Q$999,"0,0;0;0;\0"))) -> 0 | J56: =IF($A56="",,SUMPRODUCT((LOOKUP(ROW(J$1:J$997),ROW(J$1:J$997)/ISNUMBER('Měsíční rekapitulace'!$L$1:$L$997),'Měsíční rekapitulace'!$L$1:$L$997)=J$4)*('Měsíční rekapitulace'!$A$3:$A$999=$A56)*TEXT('Měsíční rekapitulace'!$Q$3:$Q$999,"0,0;0;0;\0"))) -> 0 | K56: =IF($A56="",,SUMPRODUCT((LOOKUP(ROW(K$1:K$997),ROW(K$1:K$997)/ISNUMBER('Měsíční rekapitulace'!$L$1:$L$997),'Měsíční rekapitulace'!$L$1:$L$997)=K$4)*('Měsíční rekapitulace'!$A$3:$A$999=$A56)*TEXT('Měsíční rekapitulace'!$Q$3:$Q$999,"0,0;0;0;\0"))) -> 0 | L56: =IF($A56="",,SUMPRODUCT((LOOKUP(ROW(L$1:L$997),ROW(L$1:L$997)/ISNUMBER('Měsíční rekapitulace'!$L$1:$L$997),'Měsíční rekapitulace'!$L$1:$L$997)=L$4)*('Měsíční rekapitulace'!$A$3:$A$999=$A56)*TEXT('Měsíční rekapitulace'!$Q$3:$Q$999,"0,0;0;0;\0"))) -> 0 | M56: =IF($A56="",,SUMPRODUCT((LOOKUP(ROW(M$1:M$997),ROW(M$1:M$997)/ISNUMBER('Měsíční rekapitulace'!$L$1:$L$997),'Měsíční rekapitulace'!$L$1:$L$997)=M$4)*('Měsíční rekapitulace'!$A$3:$A$999=$A56)*TEXT('Měsíční rekapitulace'!$Q$3:$Q$999,"0,0;0;0;\0"))) -> 0 | N56: =IF($A56="",,SUMPRODUCT((LOOKUP(ROW(N$1:N$997),ROW(N$1:N$997)/ISNUMBER('Měsíční rekapitulace'!$L$1:$L$997),'Měsíční rekapitulace'!$L$1:$L$997)=N$4)*('Měsíční rekapitulace'!$A$3:$A$999=$A56)*TEXT('Měsíční rekapitulace'!$Q$3:$Q$999,"0,0;0;0;\0"))) -> 0 | O56: =IF($A56="",,SUMPRODUCT((LOOKUP(ROW(O$1:O$997),ROW(O$1:O$997)/ISNUMBER('Měsíční rekapitulace'!$L$1:$L$997),'Měsíční rekapitulace'!$L$1:$L$997)=O$4)*('Měsíční rekapitulace'!$A$3:$A$999=$A56)*TEXT('Měsíční rekapitulace'!$Q$3:$Q$999,"0,0;0;0;\0"))) -> 0 | P56: 0
A57: =IFERROR(INDEX('Měsíční rekapitulace'!A$3:A$999,SMALL(IF(('Měsíční rekapitulace'!A$3:A$999<>"")*('Měsíční rekapitulace'!A$3:A$999<>'Měsíční rekapitulace'!$A$2)*(COUNTIF(A$5:A56,'Měsíční rekapitulace'!A$3:A$999)=0),ROW('Měsíční rekapitulace'!A$3:A$999)-2),1)),"") ->  | B57: =IFERROR(INDEX('Měsíční rekapitulace'!E$3:E$999,MATCH(A57,'Měsíční rekapitulace'!A$3:A$999,)),"") ->  | D57: =IF($A57="",,SUMPRODUCT((LOOKUP(ROW(D$1:D$997),ROW(D$1:D$997)/ISNUMBER('Měsíční rekapitulace'!$L$1:$L$997),'Měsíční rekapitulace'!$L$1:$L$997)=D$4)*('Měsíční rekapitulace'!$A$3:$A$999=$A57)*TEXT('Měsíční rekapitulace'!$Q$3:$Q$999,"0,0;0;0;\0"))) -> 0 | E57: =IF($A57="",,SUMPRODUCT((LOOKUP(ROW(E$1:E$997),ROW(E$1:E$997)/ISNUMBER('Měsíční rekapitulace'!$L$1:$L$997),'Měsíční rekapitulace'!$L$1:$L$997)=E$4)*('Měsíční rekapitulace'!$A$3:$A$999=$A57)*TEXT('Měsíční rekapitulace'!$Q$3:$Q$999,"0,0;0;0;\0"))) -> 0 | F57: =IF($A57="",,SUMPRODUCT((LOOKUP(ROW(F$1:F$997),ROW(F$1:F$997)/ISNUMBER('Měsíční rekapitulace'!$L$1:$L$997),'Měsíční rekapitulace'!$L$1:$L$997)=F$4)*('Měsíční rekapitulace'!$A$3:$A$999=$A57)*TEXT('Měsíční rekapitulace'!$Q$3:$Q$999,"0,0;0;0;\0"))) -> 0 | G57: =IF($A57="",,SUMPRODUCT((LOOKUP(ROW(G$1:G$997),ROW(G$1:G$997)/ISNUMBER('Měsíční rekapitulace'!$L$1:$L$997),'Měsíční rekapitulace'!$L$1:$L$997)=G$4)*('Měsíční rekapitulace'!$A$3:$A$999=$A57)*TEXT('Měsíční rekapitulace'!$Q$3:$Q$999,"0,0;0;0;\0"))) -> 0 | H57: =IF($A57="",,SUMPRODUCT((LOOKUP(ROW(H$1:H$997),ROW(H$1:H$997)/ISNUMBER('Měsíční rekapitulace'!$L$1:$L$997),'Měsíční rekapitulace'!$L$1:$L$997)=H$4)*('Měsíční rekapitulace'!$A$3:$A$999=$A57)*TEXT('Měsíční rekapitulace'!$Q$3:$Q$999,"0,0;0;0;\0"))) -> 0 | I57: =IF($A57="",,SUMPRODUCT((LOOKUP(ROW(I$1:I$997),ROW(I$1:I$997)/ISNUMBER('Měsíční rekapitulace'!$L$1:$L$997),'Měsíční rekapitulace'!$L$1:$L$997)=I$4)*('Měsíční rekapitulace'!$A$3:$A$999=$A57)*TEXT('Měsíční rekapitulace'!$Q$3:$Q$999,"0,0;0;0;\0"))) -> 0 | J57: =IF($A57="",,SUMPRODUCT((LOOKUP(ROW(J$1:J$997),ROW(J$1:J$997)/ISNUMBER('Měsíční rekapitulace'!$L$1:$L$997),'Měsíční rekapitulace'!$L$1:$L$997)=J$4)*('Měsíční rekapitulace'!$A$3:$A$999=$A57)*TEXT('Měsíční rekapitulace'!$Q$3:$Q$999,"0,0;0;0;\0"))) -> 0 | K57: =IF($A57="",,SUMPRODUCT((LOOKUP(ROW(K$1:K$997),ROW(K$1:K$997)/ISNUMBER('Měsíční rekapitulace'!$L$1:$L$997),'Měsíční rekapitulace'!$L$1:$L$997)=K$4)*('Měsíční rekapitulace'!$A$3:$A$999=$A57)*TEXT('Měsíční rekapitulace'!$Q$3:$Q$999,"0,0;0;0;\0"))) -> 0 | L57: =IF($A57="",,SUMPRODUCT((LOOKUP(ROW(L$1:L$997),ROW(L$1:L$997)/ISNUMBER('Měsíční rekapitulace'!$L$1:$L$997),'Měsíční rekapitulace'!$L$1:$L$997)=L$4)*('Měsíční rekapitulace'!$A$3:$A$999=$A57)*TEXT('Měsíční rekapitulace'!$Q$3:$Q$999,"0,0;0;0;\0"))) -> 0 | M57: =IF($A57="",,SUMPRODUCT((LOOKUP(ROW(M$1:M$997),ROW(M$1:M$997)/ISNUMBER('Měsíční rekapitulace'!$L$1:$L$997),'Měsíční rekapitulace'!$L$1:$L$997)=M$4)*('Měsíční rekapitulace'!$A$3:$A$999=$A57)*TEXT('Měsíční rekapitulace'!$Q$3:$Q$999,"0,0;0;0;\0"))) -> 0 | N57: =IF($A57="",,SUMPRODUCT((LOOKUP(ROW(N$1:N$997),ROW(N$1:N$997)/ISNUMBER('Měsíční rekapitulace'!$L$1:$L$997),'Měsíční rekapitulace'!$L$1:$L$997)=N$4)*('Měsíční rekapitulace'!$A$3:$A$999=$A57)*TEXT('Měsíční rekapitulace'!$Q$3:$Q$999,"0,0;0;0;\0"))) -> 0 | O57: =IF($A57="",,SUMPRODUCT((LOOKUP(ROW(O$1:O$997),ROW(O$1:O$997)/ISNUMBER('Měsíční rekapitulace'!$L$1:$L$997),'Měsíční rekapitulace'!$L$1:$L$997)=O$4)*('Měsíční rekapitulace'!$A$3:$A$999=$A57)*TEXT('Měsíční rekapitulace'!$Q$3:$Q$999,"0,0;0;0;\0"))) -> 0 | P57: 0
A58: =IFERROR(INDEX('Měsíční rekapitulace'!A$3:A$999,SMALL(IF(('Měsíční rekapitulace'!A$3:A$999<>"")*('Měsíční rekapitulace'!A$3:A$999<>'Měsíční rekapitulace'!$A$2)*(COUNTIF(A$5:A57,'Měsíční rekapitulace'!A$3:A$999)=0),ROW('Měsíční rekapitulace'!A$3:A$999)-2),1)),"") ->  | B58: =IFERROR(INDEX('Měsíční rekapitulace'!E$3:E$999,MATCH(A58,'Měsíční rekapitulace'!A$3:A$999,)),"") ->  | D58: =IF($A58="",,SUMPRODUCT((LOOKUP(ROW(D$1:D$997),ROW(D$1:D$997)/ISNUMBER('Měsíční rekapitulace'!$L$1:$L$997),'Měsíční rekapitulace'!$L$1:$L$997)=D$4)*('Měsíční rekapitulace'!$A$3:$A$999=$A58)*TEXT('Měsíční rekapitulace'!$Q$3:$Q$999,"0,0;0;0;\0"))) -> 0 | E58: =IF($A58="",,SUMPRODUCT((LOOKUP(ROW(E$1:E$997),ROW(E$1:E$997)/ISNUMBER('Měsíční rekapitulace'!$L$1:$L$997),'Měsíční rekapitulace'!$L$1:$L$997)=E$4)*('Měsíční rekapitulace'!$A$3:$A$999=$A58)*TEXT('Měsíční rekapitulace'!$Q$3:$Q$999,"0,0;0;0;\0"))) -> 0 | F58: =IF($A58="",,SUMPRODUCT((LOOKUP(ROW(F$1:F$997),ROW(F$1:F$997)/ISNUMBER('Měsíční rekapitulace'!$L$1:$L$997),'Měsíční rekapitulace'!$L$1:$L$997)=F$4)*('Měsíční rekapitulace'!$A$3:$A$999=$A58)*TEXT('Měsíční rekapitulace'!$Q$3:$Q$999,"0,0;0;0;\0"))) -> 0 | G58: =IF($A58="",,SUMPRODUCT((LOOKUP(ROW(G$1:G$997),ROW(G$1:G$997)/ISNUMBER('Měsíční rekapitulace'!$L$1:$L$997),'Měsíční rekapitulace'!$L$1:$L$997)=G$4)*('Měsíční rekapitulace'!$A$3:$A$999=$A58)*TEXT('Měsíční rekapitulace'!$Q$3:$Q$999,"0,0;0;0;\0"))) -> 0 | H58: =IF($A58="",,SUMPRODUCT((LOOKUP(ROW(H$1:H$997),ROW(H$1:H$997)/ISNUMBER('Měsíční rekapitulace'!$L$1:$L$997),'Měsíční rekapitulace'!$L$1:$L$997)=H$4)*('Měsíční rekapitulace'!$A$3:$A$999=$A58)*TEXT('Měsíční rekapitulace'!$Q$3:$Q$999,"0,0;0;0;\0"))) -> 0 | I58: =IF($A58="",,SUMPRODUCT((LOOKUP(ROW(I$1:I$997),ROW(I$1:I$997)/ISNUMBER('Měsíční rekapitulace'!$L$1:$L$997),'Měsíční rekapitulace'!$L$1:$L$997)=I$4)*('Měsíční rekapitulace'!$A$3:$A$999=$A58)*TEXT('Měsíční rekapitulace'!$Q$3:$Q$999,"0,0;0;0;\0"))) -> 0 | J58: =IF($A58="",,SUMPRODUCT((LOOKUP(ROW(J$1:J$997),ROW(J$1:J$997)/ISNUMBER('Měsíční rekapitulace'!$L$1:$L$997),'Měsíční rekapitulace'!$L$1:$L$997)=J$4)*('Měsíční rekapitulace'!$A$3:$A$999=$A58)*TEXT('Měsíční rekapitulace'!$Q$3:$Q$999,"0,0;0;0;\0"))) -> 0 | K58: =IF($A58="",,SUMPRODUCT((LOOKUP(ROW(K$1:K$997),ROW(K$1:K$997)/ISNUMBER('Měsíční rekapitulace'!$L$1:$L$997),'Měsíční rekapitulace'!$L$1:$L$997)=K$4)*('Měsíční rekapitulace'!$A$3:$A$999=$A58)*TEXT('Měsíční rekapitulace'!$Q$3:$Q$999,"0,0;0;0;\0"))) -> 0 | L58: =IF($A58="",,SUMPRODUCT((LOOKUP(ROW(L$1:L$997),ROW(L$1:L$997)/ISNUMBER('Měsíční rekapitulace'!$L$1:$L$997),'Měsíční rekapitulace'!$L$1:$L$997)=L$4)*('Měsíční rekapitulace'!$A$3:$A$999=$A58)*TEXT('Měsíční rekapitulace'!$Q$3:$Q$999,"0,0;0;0;\0"))) -> 0 | M58: =IF($A58="",,SUMPRODUCT((LOOKUP(ROW(M$1:M$997),ROW(M$1:M$997)/ISNUMBER('Měsíční rekapitulace'!$L$1:$L$997),'Měsíční rekapitulace'!$L$1:$L$997)=M$4)*('Měsíční rekapitulace'!$A$3:$A$999=$A58)*TEXT('Měsíční rekapitulace'!$Q$3:$Q$999,"0,0;0;0;\0"))) -> 0 | N58: =IF($A58="",,SUMPRODUCT((LOOKUP(ROW(N$1:N$997),ROW(N$1:N$997)/ISNUMBER('Měsíční rekapitulace'!$L$1:$L$997),'Měsíční rekapitulace'!$L$1:$L$997)=N$4)*('Měsíční rekapitulace'!$A$3:$A$999=$A58)*TEXT('Měsíční rekapitulace'!$Q$3:$Q$999,"0,0;0;0;\0"))) -> 0 | O58: =IF($A58="",,SUMPRODUCT((LOOKUP(ROW(O$1:O$997),ROW(O$1:O$997)/ISNUMBER('Měsíční rekapitulace'!$L$1:$L$997),'Měsíční rekapitulace'!$L$1:$L$997)=O$4)*('Měsíční rekapitulace'!$A$3:$A$999=$A58)*TEXT('Měsíční rekapitulace'!$Q$3:$Q$999,"0,0;0;0;\0"))) -> 0 | P58: 0
A59: =IFERROR(INDEX('Měsíční rekapitulace'!A$3:A$999,SMALL(IF(('Měsíční rekapitulace'!A$3:A$999<>"")*('Měsíční rekapitulace'!A$3:A$999<>'Měsíční rekapitulace'!$A$2)*(COUNTIF(A$5:A58,'Měsíční rekapitulace'!A$3:A$999)=0),ROW('Měsíční rekapitulace'!A$3:A$999)-2),1)),"") ->  | B59: =IFERROR(INDEX('Měsíční rekapitulace'!E$3:E$999,MATCH(A59,'Měsíční rekapitulace'!A$3:A$999,)),"") ->  | D59: =IF($A59="",,SUMPRODUCT((LOOKUP(ROW(D$1:D$997),ROW(D$1:D$997)/ISNUMBER('Měsíční rekapitulace'!$L$1:$L$997),'Měsíční rekapitulace'!$L$1:$L$997)=D$4)*('Měsíční rekapitulace'!$A$3:$A$999=$A59)*TEXT('Měsíční rekapitulace'!$Q$3:$Q$999,"0,0;0;0;\0"))) -> 0 | E59: =IF($A59="",,SUMPRODUCT((LOOKUP(ROW(E$1:E$997),ROW(E$1:E$997)/ISNUMBER('Měsíční rekapitulace'!$L$1:$L$997),'Měsíční rekapitulace'!$L$1:$L$997)=E$4)*('Měsíční rekapitulace'!$A$3:$A$999=$A59)*TEXT('Měsíční rekapitulace'!$Q$3:$Q$999,"0,0;0;0;\0"))) -> 0 | F59: =IF($A59="",,SUMPRODUCT((LOOKUP(ROW(F$1:F$997),ROW(F$1:F$997)/ISNUMBER('Měsíční rekapitulace'!$L$1:$L$997),'Měsíční rekapitulace'!$L$1:$L$997)=F$4)*('Měsíční rekapitulace'!$A$3:$A$999=$A59)*TEXT('Měsíční rekapitulace'!$Q$3:$Q$999,"0,0;0;0;\0"))) -> 0 | G59: =IF($A59="",,SUMPRODUCT((LOOKUP(ROW(G$1:G$997),ROW(G$1:G$997)/ISNUMBER('Měsíční rekapitulace'!$L$1:$L$997),'Měsíční rekapitulace'!$L$1:$L$997)=G$4)*('Měsíční rekapitulace'!$A$3:$A$999=$A59)*TEXT('Měsíční rekapitulace'!$Q$3:$Q$999,"0,0;0;0;\0"))) -> 0 | H59: =IF($A59="",,SUMPRODUCT((LOOKUP(ROW(H$1:H$997),ROW(H$1:H$997)/ISNUMBER('Měsíční rekapitulace'!$L$1:$L$997),'Měsíční rekapitulace'!$L$1:$L$997)=H$4)*('Měsíční rekapitulace'!$A$3:$A$999=$A59)*TEXT('Měsíční rekapitulace'!$Q$3:$Q$999,"0,0;0;0;\0"))) -> 0 | I59: =IF($A59="",,SUMPRODUCT((LOOKUP(ROW(I$1:I$997),ROW(I$1:I$997)/ISNUMBER('Měsíční rekapitulace'!$L$1:$L$997),'Měsíční rekapitulace'!$L$1:$L$997)=I$4)*('Měsíční rekapitulace'!$A$3:$A$999=$A59)*TEXT('Měsíční rekapitulace'!$Q$3:$Q$999,"0,0;0;0;\0"))) -> 0 | J59: =IF($A59="",,SUMPRODUCT((LOOKUP(ROW(J$1:J$997),ROW(J$1:J$997)/ISNUMBER('Měsíční rekapitulace'!$L$1:$L$997),'Měsíční rekapitulace'!$L$1:$L$997)=J$4)*('Měsíční rekapitulace'!$A$3:$A$999=$A59)*TEXT('Měsíční rekapitulace'!$Q$3:$Q$999,"0,0;0;0;\0"))) -> 0 | K59: =IF($A59="",,SUMPRODUCT((LOOKUP(ROW(K$1:K$997),ROW(K$1:K$997)/ISNUMBER('Měsíční rekapitulace'!$L$1:$L$997),'Měsíční rekapitulace'!$L$1:$L$997)=K$4)*('Měsíční rekapitulace'!$A$3:$A$999=$A59)*TEXT('Měsíční rekapitulace'!$Q$3:$Q$999,"0,0;0;0;\0"))) -> 0 | L59: =IF($A59="",,SUMPRODUCT((LOOKUP(ROW(L$1:L$997),ROW(L$1:L$997)/ISNUMBER('Měsíční rekapitulace'!$L$1:$L$997),'Měsíční rekapitulace'!$L$1:$L$997)=L$4)*('Měsíční rekapitulace'!$A$3:$A$999=$A59)*TEXT('Měsíční rekapitulace'!$Q$3:$Q$999,"0,0;0;0;\0"))) -> 0 | M59: =IF($A59="",,SUMPRODUCT((LOOKUP(ROW(M$1:M$997),ROW(M$1:M$997)/ISNUMBER('Měsíční rekapitulace'!$L$1:$L$997),'Měsíční rekapitulace'!$L$1:$L$997)=M$4)*('Měsíční rekapitulace'!$A$3:$A$999=$A59)*TEXT('Měsíční rekapitulace'!$Q$3:$Q$999,"0,0;0;0;\0"))) -> 0 | N59: =IF($A59="",,SUMPRODUCT((LOOKUP(ROW(N$1:N$997),ROW(N$1:N$997)/ISNUMBER('Měsíční rekapitulace'!$L$1:$L$997),'Měsíční rekapitulace'!$L$1:$L$997)=N$4)*('Měsíční rekapitulace'!$A$3:$A$999=$A59)*TEXT('Měsíční rekapitulace'!$Q$3:$Q$999,"0,0;0;0;\0"))) -> 0 | O59: =IF($A59="",,SUMPRODUCT((LOOKUP(ROW(O$1:O$997),ROW(O$1:O$997)/ISNUMBER('Měsíční rekapitulace'!$L$1:$L$997),'Měsíční rekapitulace'!$L$1:$L$997)=O$4)*('Měsíční rekapitulace'!$A$3:$A$999=$A59)*TEXT('Měsíční rekapitulace'!$Q$3:$Q$999,"0,0;0;0;\0"))) -> 0 | P59: 0
A60: =IFERROR(INDEX('Měsíční rekapitulace'!A$3:A$999,SMALL(IF(('Měsíční rekapitulace'!A$3:A$999<>"")*('Měsíční rekapitulace'!A$3:A$999<>'Měsíční rekapitulace'!$A$2)*(COUNTIF(A$5:A59,'Měsíční rekapitulace'!A$3:A$999)=0),ROW('Měsíční rekapitulace'!A$3:A$999)-2),1)),"") ->  | B60: =IFERROR(INDEX('Měsíční rekapitulace'!E$3:E$999,MATCH(A60,'Měsíční rekapitulace'!A$3:A$999,)),"") ->  | D60: =IF($A60="",,SUMPRODUCT((LOOKUP(ROW(D$1:D$997),ROW(D$1:D$997)/ISNUMBER('Měsíční rekapitulace'!$L$1:$L$997),'Měsíční rekapitulace'!$L$1:$L$997)=D$4)*('Měsíční rekapitulace'!$A$3:$A$999=$A60)*TEXT('Měsíční rekapitulace'!$Q$3:$Q$999,"0,0;0;0;\0"))) -> 0 | E60: =IF($A60="",,SUMPRODUCT((LOOKUP(ROW(E$1:E$997),ROW(E$1:E$997)/ISNUMBER('Měsíční rekapitulace'!$L$1:$L$997),'Měsíční rekapitulace'!$L$1:$L$997)=E$4)*('Měsíční rekapitulace'!$A$3:$A$999=$A60)*TEXT('Měsíční rekapitulace'!$Q$3:$Q$999,"0,0;0;0;\0"))) -> 0 | F60: =IF($A60="",,SUMPRODUCT((LOOKUP(ROW(F$1:F$997),ROW(F$1:F$997)/ISNUMBER('Měsíční rekapitulace'!$L$1:$L$997),'Měsíční rekapitulace'!$L$1:$L$997)=F$4)*('Měsíční rekapitulace'!$A$3:$A$999=$A60)*TEXT('Měsíční rekapitulace'!$Q$3:$Q$999,"0,0;0;0;\0"))) -> 0 | G60: =IF($A60="",,SUMPRODUCT((LOOKUP(ROW(G$1:G$997),ROW(G$1:G$997)/ISNUMBER('Měsíční rekapitulace'!$L$1:$L$997),'Měsíční rekapitulace'!$L$1:$L$997)=G$4)*('Měsíční rekapitulace'!$A$3:$A$999=$A60)*TEXT('Měsíční rekapitulace'!$Q$3:$Q$999,"0,0;0;0;\0"))) -> 0 | H60: =IF($A60="",,SUMPRODUCT((LOOKUP(ROW(H$1:H$997),ROW(H$1:H$997)/ISNUMBER('Měsíční rekapitulace'!$L$1:$L$997),'Měsíční rekapitulace'!$L$1:$L$997)=H$4)*('Měsíční rekapitulace'!$A$3:$A$999=$A60)*TEXT('Měsíční rekapitulace'!$Q$3:$Q$999,"0,0;0;0;\0"))) -> 0 | I60: =IF($A60="",,SUMPRODUCT((LOOKUP(ROW(I$1:I$997),ROW(I$1:I$997)/ISNUMBER('Měsíční rekapitulace'!$L$1:$L$997),'Měsíční rekapitulace'!$L$1:$L$997)=I$4)*('Měsíční rekapitulace'!$A$3:$A$999=$A60)*TEXT('Měsíční rekapitulace'!$Q$3:$Q$999,"0,0;0;0;\0"))) -> 0 | J60: =IF($A60="",,SUMPRODUCT((LOOKUP(ROW(J$1:J$997),ROW(J$1:J$997)/ISNUMBER('Měsíční rekapitulace'!$L$1:$L$997),'Měsíční rekapitulace'!$L$1:$L$997)=J$4)*('Měsíční rekapitulace'!$A$3:$A$999=$A60)*TEXT('Měsíční rekapitulace'!$Q$3:$Q$999,"0,0;0;0;\0"))) -> 0 | K60: =IF($A60="",,SUMPRODUCT((LOOKUP(ROW(K$1:K$997),ROW(K$1:K$997)/ISNUMBER('Měsíční rekapitulace'!$L$1:$L$997),'Měsíční rekapitulace'!$L$1:$L$997)=K$4)*('Měsíční rekapitulace'!$A$3:$A$999=$A60)*TEXT('Měsíční rekapitulace'!$Q$3:$Q$999,"0,0;0;0;\0"))) -> 0 | L60: =IF($A60="",,SUMPRODUCT((LOOKUP(ROW(L$1:L$997),ROW(L$1:L$997)/ISNUMBER('Měsíční rekapitulace'!$L$1:$L$997),'Měsíční rekapitulace'!$L$1:$L$997)=L$4)*('Měsíční rekapitulace'!$A$3:$A$999=$A60)*TEXT('Měsíční rekapitulace'!$Q$3:$Q$999,"0,0;0;0;\0"))) -> 0 | M60: =IF($A60="",,SUMPRODUCT((LOOKUP(ROW(M$1:M$997),ROW(M$1:M$997)/ISNUMBER('Měsíční rekapitulace'!$L$1:$L$997),'Měsíční rekapitulace'!$L$1:$L$997)=M$4)*('Měsíční rekapitulace'!$A$3:$A$999=$A60)*TEXT('Měsíční rekapitulace'!$Q$3:$Q$999,"0,0;0;0;\0"))) -> 0 | N60: =IF($A60="",,SUMPRODUCT((LOOKUP(ROW(N$1:N$997),ROW(N$1:N$997)/ISNUMBER('Měsíční rekapitulace'!$L$1:$L$997),'Měsíční rekapitulace'!$L$1:$L$997)=N$4)*('Měsíční rekapitulace'!$A$3:$A$999=$A60)*TEXT('Měsíční rekapitulace'!$Q$3:$Q$999,"0,0;0;0;\0"))) -> 0 | O60: =IF($A60="",,SUMPRODUCT((LOOKUP(ROW(O$1:O$997),ROW(O$1:O$997)/ISNUMBER('Měsíční rekapitulace'!$L$1:$L$997),'Měsíční rekapitulace'!$L$1:$L$997)=O$4)*('Měsíční rekapitulace'!$A$3:$A$999=$A60)*TEXT('Měsíční rekapitulace'!$Q$3:$Q$999,"0,0;0;0;\0"))) -> 0 | P60: 0
A61: =IFERROR(INDEX('Měsíční rekapitulace'!A$3:A$999,SMALL(IF(('Měsíční rekapitulace'!A$3:A$999<>"")*('Měsíční rekapitulace'!A$3:A$999<>'Měsíční rekapitulace'!$A$2)*(COUNTIF(A$5:A60,'Měsíční rekapitulace'!A$3:A$999)=0),ROW('Měsíční rekapitulace'!A$3:A$999)-2),1)),"") ->  | B61: =IFERROR(INDEX('Měsíční rekapitulace'!E$3:E$999,MATCH(A61,'Měsíční rekapitulace'!A$3:A$999,)),"") ->  | D61: =IF($A61="",,SUMPRODUCT((LOOKUP(ROW(D$1:D$997),ROW(D$1:D$997)/ISNUMBER('Měsíční rekapitulace'!$L$1:$L$997),'Měsíční rekapitulace'!$L$1:$L$997)=D$4)*('Měsíční rekapitulace'!$A$3:$A$999=$A61)*TEXT('Měsíční rekapitulace'!$Q$3:$Q$999,"0,0;0;0;\0"))) -> 0 | E61: =IF($A61="",,SUMPRODUCT((LOOKUP(ROW(E$1:E$997),ROW(E$1:E$997)/ISNUMBER('Měsíční rekapitulace'!$L$1:$L$997),'Měsíční rekapitulace'!$L$1:$L$997)=E$4)*('Měsíční rekapitulace'!$A$3:$A$999=$A61)*TEXT('Měsíční rekapitulace'!$Q$3:$Q$999,"0,0;0;0;\0"))) -> 0 | F61: =IF($A61="",,SUMPRODUCT((LOOKUP(ROW(F$1:F$997),ROW(F$1:F$997)/ISNUMBER('Měsíční rekapitulace'!$L$1:$L$997),'Měsíční rekapitulace'!$L$1:$L$997)=F$4)*('Měsíční rekapitulace'!$A$3:$A$999=$A61)*TEXT('Měsíční rekapitulace'!$Q$3:$Q$999,"0,0;0;0;\0"))) -> 0 | G61: =IF($A61="",,SUMPRODUCT((LOOKUP(ROW(G$1:G$997),ROW(G$1:G$997)/ISNUMBER('Měsíční rekapitulace'!$L$1:$L$997),'Měsíční rekapitulace'!$L$1:$L$997)=G$4)*('Měsíční rekapitulace'!$A$3:$A$999=$A61)*TEXT('Měsíční rekapitulace'!$Q$3:$Q$999,"0,0;0;0;\0"))) -> 0 | H61: =IF($A61="",,SUMPRODUCT((LOOKUP(ROW(H$1:H$997),ROW(H$1:H$997)/ISNUMBER('Měsíční rekapitulace'!$L$1:$L$997),'Měsíční rekapitulace'!$L$1:$L$997)=H$4)*('Měsíční rekapitulace'!$A$3:$A$999=$A61)*TEXT('Měsíční rekapitulace'!$Q$3:$Q$999,"0,0;0;0;\0"))) -> 0 | I61: =IF($A61="",,SUMPRODUCT((LOOKUP(ROW(I$1:I$997),ROW(I$1:I$997)/ISNUMBER('Měsíční rekapitulace'!$L$1:$L$997),'Měsíční rekapitulace'!$L$1:$L$997)=I$4)*('Měsíční rekapitulace'!$A$3:$A$999=$A61)*TEXT('Měsíční rekapitulace'!$Q$3:$Q$999,"0,0;0;0;\0"))) -> 0 | J61: =IF($A61="",,SUMPRODUCT((LOOKUP(ROW(J$1:J$997),ROW(J$1:J$997)/ISNUMBER('Měsíční rekapitulace'!$L$1:$L$997),'Měsíční rekapitulace'!$L$1:$L$997)=J$4)*('Měsíční rekapitulace'!$A$3:$A$999=$A61)*TEXT('Měsíční rekapitulace'!$Q$3:$Q$999,"0,0;0;0;\0"))) -> 0 | K61: =IF($A61="",,SUMPRODUCT((LOOKUP(ROW(K$1:K$997),ROW(K$1:K$997)/ISNUMBER('Měsíční rekapitulace'!$L$1:$L$997),'Měsíční rekapitulace'!$L$1:$L$997)=K$4)*('Měsíční rekapitulace'!$A$3:$A$999=$A61)*TEXT('Měsíční rekapitulace'!$Q$3:$Q$999,"0,0;0;0;\0"))) -> 0 | L61: =IF($A61="",,SUMPRODUCT((LOOKUP(ROW(L$1:L$997),ROW(L$1:L$997)/ISNUMBER('Měsíční rekapitulace'!$L$1:$L$997),'Měsíční rekapitulace'!$L$1:$L$997)=L$4)*('Měsíční rekapitulace'!$A$3:$A$999=$A61)*TEXT('Měsíční rekapitulace'!$Q$3:$Q$999,"0,0;0;0;\0"))) -> 0 | M61: =IF($A61="",,SUMPRODUCT((LOOKUP(ROW(M$1:M$997),ROW(M$1:M$997)/ISNUMBER('Měsíční rekapitulace'!$L$1:$L$997),'Měsíční rekapitulace'!$L$1:$L$997)=M$4)*('Měsíční rekapitulace'!$A$3:$A$999=$A61)*TEXT('Měsíční rekapitulace'!$Q$3:$Q$999,"0,0;0;0;\0"))) -> 0 | N61: =IF($A61="",,SUMPRODUCT((LOOKUP(ROW(N$1:N$997),ROW(N$1:N$997)/ISNUMBER('Měsíční rekapitulace'!$L$1:$L$997),'Měsíční rekapitulace'!$L$1:$L$997)=N$4)*('Měsíční rekapitulace'!$A$3:$A$999=$A61)*TEXT('Měsíční rekapitulace'!$Q$3:$Q$999,"0,0;0;0;\0"))) -> 0 | O61: =IF($A61="",,SUMPRODUCT((LOOKUP(ROW(O$1:O$997),ROW(O$1:O$997)/ISNUMBER('Měsíční rekapitulace'!$L$1:$L$997),'Měsíční rekapitulace'!$L$1:$L$997)=O$4)*('Měsíční rekapitulace'!$A$3:$A$999=$A61)*TEXT('Měsíční rekapitulace'!$Q$3:$Q$999,"0,0;0;0;\0"))) -> 0 | P61: 0
A62: =IFERROR(INDEX('Měsíční rekapitulace'!A$3:A$999,SMALL(IF(('Měsíční rekapitulace'!A$3:A$999<>"")*('Měsíční rekapitulace'!A$3:A$999<>'Měsíční rekapitulace'!$A$2)*(COUNTIF(A$5:A61,'Měsíční rekapitulace'!A$3:A$999)=0),ROW('Měsíční rekapitulace'!A$3:A$999)-2),1)),"") ->  | B62: =IFERROR(INDEX('Měsíční rekapitulace'!E$3:E$999,MATCH(A62,'Měsíční rekapitulace'!A$3:A$999,)),"") ->  | D62: =IF($A62="",,SUMPRODUCT((LOOKUP(ROW(D$1:D$997),ROW(D$1:D$997)/ISNUMBER('Měsíční rekapitulace'!$L$1:$L$997),'Měsíční rekapitulace'!$L$1:$L$997)=D$4)*('Měsíční rekapitulace'!$A$3:$A$999=$A62)*TEXT('Měsíční rekapitulace'!$Q$3:$Q$999,"0,0;0;0;\0"))) -> 0 | E62: =IF($A62="",,SUMPRODUCT((LOOKUP(ROW(E$1:E$997),ROW(E$1:E$997)/ISNUMBER('Měsíční rekapitulace'!$L$1:$L$997),'Měsíční rekapitulace'!$L$1:$L$997)=E$4)*('Měsíční rekapitulace'!$A$3:$A$999=$A62)*TEXT('Měsíční rekapitulace'!$Q$3:$Q$999,"0,0;0;0;\0"))) -> 0 | F62: =IF($A62="",,SUMPRODUCT((LOOKUP(ROW(F$1:F$997),ROW(F$1:F$997)/ISNUMBER('Měsíční rekapitulace'!$L$1:$L$997),'Měsíční rekapitulace'!$L$1:$L$997)=F$4)*('Měsíční rekapitulace'!$A$3:$A$999=$A62)*TEXT('Měsíční rekapitulace'!$Q$3:$Q$999,"0,0;0;0;\0"))) -> 0 | G62: =IF($A62="",,SUMPRODUCT((LOOKUP(ROW(G$1:G$997),ROW(G$1:G$997)/ISNUMBER('Měsíční rekapitulace'!$L$1:$L$997),'Měsíční rekapitulace'!$L$1:$L$997)=G$4)*('Měsíční rekapitulace'!$A$3:$A$999=$A62)*TEXT('Měsíční rekapitulace'!$Q$3:$Q$999,"0,0;0;0;\0"))) -> 0 | H62: =IF($A62="",,SUMPRODUCT((LOOKUP(ROW(H$1:H$997),ROW(H$1:H$997)/ISNUMBER('Měsíční rekapitulace'!$L$1:$L$997),'Měsíční rekapitulace'!$L$1:$L$997)=H$4)*('Měsíční rekapitulace'!$A$3:$A$999=$A62)*TEXT('Měsíční rekapitulace'!$Q$3:$Q$999,"0,0;0;0;\0"))) -> 0 | I62: =IF($A62="",,SUMPRODUCT((LOOKUP(ROW(I$1:I$997),ROW(I$1:I$997)/ISNUMBER('Měsíční rekapitulace'!$L$1:$L$997),'Měsíční rekapitulace'!$L$1:$L$997)=I$4)*('Měsíční rekapitulace'!$A$3:$A$999=$A62)*TEXT('Měsíční rekapitulace'!$Q$3:$Q$999,"0,0;0;0;\0"))) -> 0 | J62: =IF($A62="",,SUMPRODUCT((LOOKUP(ROW(J$1:J$997),ROW(J$1:J$997)/ISNUMBER('Měsíční rekapitulace'!$L$1:$L$997),'Měsíční rekapitulace'!$L$1:$L$997)=J$4)*('Měsíční rekapitulace'!$A$3:$A$999=$A62)*TEXT('Měsíční rekapitulace'!$Q$3:$Q$999,"0,0;0;0;\0"))) -> 0 | K62: =IF($A62="",,SUMPRODUCT((LOOKUP(ROW(K$1:K$997),ROW(K$1:K$997)/ISNUMBER('Měsíční rekapitulace'!$L$1:$L$997),'Měsíční rekapitulace'!$L$1:$L$997)=K$4)*('Měsíční rekapitulace'!$A$3:$A$999=$A62)*TEXT('Měsíční rekapitulace'!$Q$3:$Q$999,"0,0;0;0;\0"))) -> 0 | L62: =IF($A62="",,SUMPRODUCT((LOOKUP(ROW(L$1:L$997),ROW(L$1:L$997)/ISNUMBER('Měsíční rekapitulace'!$L$1:$L$997),'Měsíční rekapitulace'!$L$1:$L$997)=L$4)*('Měsíční rekapitulace'!$A$3:$A$999=$A62)*TEXT('Měsíční rekapitulace'!$Q$3:$Q$999,"0,0;0;0;\0"))) -> 0 | M62: =IF($A62="",,SUMPRODUCT((LOOKUP(ROW(M$1:M$997),ROW(M$1:M$997)/ISNUMBER('Měsíční rekapitulace'!$L$1:$L$997),'Měsíční rekapitulace'!$L$1:$L$997)=M$4)*('Měsíční rekapitulace'!$A$3:$A$999=$A62)*TEXT('Měsíční rekapitulace'!$Q$3:$Q$999,"0,0;0;0;\0"))) -> 0 | N62: =IF($A62="",,SUMPRODUCT((LOOKUP(ROW(N$1:N$997),ROW(N$1:N$997)/ISNUMBER('Měsíční rekapitulace'!$L$1:$L$997),'Měsíční rekapitulace'!$L$1:$L$997)=N$4)*('Měsíční rekapitulace'!$A$3:$A$999=$A62)*TEXT('Měsíční rekapitulace'!$Q$3:$Q$999,"0,0;0;0;\0"))) -> 0 | O62: =IF($A62="",,SUMPRODUCT((LOOKUP(ROW(O$1:O$997),ROW(O$1:O$997)/ISNUMBER('Měsíční rekapitulace'!$L$1:$L$997),'Měsíční rekapitulace'!$L$1:$L$997)=O$4)*('Měsíční rekapitulace'!$A$3:$A$999=$A62)*TEXT('Měsíční rekapitulace'!$Q$3:$Q$999,"0,0;0;0;\0"))) -> 0 | P62: 0
A63: =IFERROR(INDEX('Měsíční rekapitulace'!A$3:A$999,SMALL(IF(('Měsíční rekapitulace'!A$3:A$999<>"")*('Měsíční rekapitulace'!A$3:A$999<>'Měsíční rekapitulace'!$A$2)*(COUNTIF(A$5:A62,'Měsíční rekapitulace'!A$3:A$999)=0),ROW('Měsíční rekapitulace'!A$3:A$999)-2),1)),"") ->  | B63: =IFERROR(INDEX('Měsíční rekapitulace'!E$3:E$999,MATCH(A63,'Měsíční rekapitulace'!A$3:A$999,)),"") ->  | D63: =IF($A63="",,SUMPRODUCT((LOOKUP(ROW(D$1:D$997),ROW(D$1:D$997)/ISNUMBER('Měsíční rekapitulace'!$L$1:$L$997),'Měsíční rekapitulace'!$L$1:$L$997)=D$4)*('Měsíční rekapitulace'!$A$3:$A$999=$A63)*TEXT('Měsíční rekapitulace'!$Q$3:$Q$999,"0,0;0;0;\0"))) -> 0 | E63: =IF($A63="",,SUMPRODUCT((LOOKUP(ROW(E$1:E$997),ROW(E$1:E$997)/ISNUMBER('Měsíční rekapitulace'!$L$1:$L$997),'Měsíční rekapitulace'!$L$1:$L$997)=E$4)*('Měsíční rekapitulace'!$A$3:$A$999=$A63)*TEXT('Měsíční rekapitulace'!$Q$3:$Q$999,"0,0;0;0;\0"))) -> 0 | F63: =IF($A63="",,SUMPRODUCT((LOOKUP(ROW(F$1:F$997),ROW(F$1:F$997)/ISNUMBER('Měsíční rekapitulace'!$L$1:$L$997),'Měsíční rekapitulace'!$L$1:$L$997)=F$4)*('Měsíční rekapitulace'!$A$3:$A$999=$A63)*TEXT('Měsíční rekapitulace'!$Q$3:$Q$999,"0,0;0;0;\0"))) -> 0 | G63: =IF($A63="",,SUMPRODUCT((LOOKUP(ROW(G$1:G$997),ROW(G$1:G$997)/ISNUMBER('Měsíční rekapitulace'!$L$1:$L$997),'Měsíční rekapitulace'!$L$1:$L$997)=G$4)*('Měsíční rekapitulace'!$A$3:$A$999=$A63)*TEXT('Měsíční rekapitulace'!$Q$3:$Q$999,"0,0;0;0;\0"))) -> 0 | H63: =IF($A63="",,SUMPRODUCT((LOOKUP(ROW(H$1:H$997),ROW(H$1:H$997)/ISNUMBER('Měsíční rekapitulace'!$L$1:$L$997),'Měsíční rekapitulace'!$L$1:$L$997)=H$4)*('Měsíční rekapitulace'!$A$3:$A$999=$A63)*TEXT('Měsíční rekapitulace'!$Q$3:$Q$999,"0,0;0;0;\0"))) -> 0 | I63: =IF($A63="",,SUMPRODUCT((LOOKUP(ROW(I$1:I$997),ROW(I$1:I$997)/ISNUMBER('Měsíční rekapitulace'!$L$1:$L$997),'Měsíční rekapitulace'!$L$1:$L$997)=I$4)*('Měsíční rekapitulace'!$A$3:$A$999=$A63)*TEXT('Měsíční rekapitulace'!$Q$3:$Q$999,"0,0;0;0;\0"))) -> 0 | J63: =IF($A63="",,SUMPRODUCT((LOOKUP(ROW(J$1:J$997),ROW(J$1:J$997)/ISNUMBER('Měsíční rekapitulace'!$L$1:$L$997),'Měsíční rekapitulace'!$L$1:$L$997)=J$4)*('Měsíční rekapitulace'!$A$3:$A$999=$A63)*TEXT('Měsíční rekapitulace'!$Q$3:$Q$999,"0,0;0;0;\0"))) -> 0 | K63: =IF($A63="",,SUMPRODUCT((LOOKUP(ROW(K$1:K$997),ROW(K$1:K$997)/ISNUMBER('Měsíční rekapitulace'!$L$1:$L$997),'Měsíční rekapitulace'!$L$1:$L$997)=K$4)*('Měsíční rekapitulace'!$A$3:$A$999=$A63)*TEXT('Měsíční rekapitulace'!$Q$3:$Q$999,"0,0;0;0;\0"))) -> 0 | L63: =IF($A63="",,SUMPRODUCT((LOOKUP(ROW(L$1:L$997),ROW(L$1:L$997)/ISNUMBER('Měsíční rekapitulace'!$L$1:$L$997),'Měsíční rekapitulace'!$L$1:$L$997)=L$4)*('Měsíční rekapitulace'!$A$3:$A$999=$A63)*TEXT('Měsíční rekapitulace'!$Q$3:$Q$999,"0,0;0;0;\0"))) -> 0 | M63: =IF($A63="",,SUMPRODUCT((LOOKUP(ROW(M$1:M$997),ROW(M$1:M$997)/ISNUMBER('Měsíční rekapitulace'!$L$1:$L$997),'Měsíční rekapitulace'!$L$1:$L$997)=M$4)*('Měsíční rekapitulace'!$A$3:$A$999=$A63)*TEXT('Měsíční rekapitulace'!$Q$3:$Q$999,"0,0;0;0;\0"))) -> 0 | N63: =IF($A63="",,SUMPRODUCT((LOOKUP(ROW(N$1:N$997),ROW(N$1:N$997)/ISNUMBER('Měsíční rekapitulace'!$L$1:$L$997),'Měsíční rekapitulace'!$L$1:$L$997)=N$4)*('Měsíční rekapitulace'!$A$3:$A$999=$A63)*TEXT('Měsíční rekapitulace'!$Q$3:$Q$999,"0,0;0;0;\0"))) -> 0 | O63: =IF($A63="",,SUMPRODUCT((LOOKUP(ROW(O$1:O$997),ROW(O$1:O$997)/ISNUMBER('Měsíční rekapitulace'!$L$1:$L$997),'Měsíční rekapitulace'!$L$1:$L$997)=O$4)*('Měsíční rekapitulace'!$A$3:$A$999=$A63)*TEXT('Měsíční rekapitulace'!$Q$3:$Q$999,"0,0;0;0;\0"))) -> 0 | P63: 0
A64: =IFERROR(INDEX('Měsíční rekapitulace'!A$3:A$999,SMALL(IF(('Měsíční rekapitulace'!A$3:A$999<>"")*('Měsíční rekapitulace'!A$3:A$999<>'Měsíční rekapitulace'!$A$2)*(COUNTIF(A$5:A63,'Měsíční rekapitulace'!A$3:A$999)=0),ROW('Měsíční rekapitulace'!A$3:A$999)-2),1)),"") ->  | B64: =IFERROR(INDEX('Měsíční rekapitulace'!E$3:E$999,MATCH(A64,'Měsíční rekapitulace'!A$3:A$999,)),"") ->  | D64: =IF($A64="",,SUMPRODUCT((LOOKUP(ROW(D$1:D$997),ROW(D$1:D$997)/ISNUMBER('Měsíční rekapitulace'!$L$1:$L$997),'Měsíční rekapitulace'!$L$1:$L$997)=D$4)*('Měsíční rekapitulace'!$A$3:$A$999=$A64)*TEXT('Měsíční rekapitulace'!$Q$3:$Q$999,"0,0;0;0;\0"))) -> 0 | E64: =IF($A64="",,SUMPRODUCT((LOOKUP(ROW(E$1:E$997),ROW(E$1:E$997)/ISNUMBER('Měsíční rekapitulace'!$L$1:$L$997),'Měsíční rekapitulace'!$L$1:$L$997)=E$4)*('Měsíční rekapitulace'!$A$3:$A$999=$A64)*TEXT('Měsíční rekapitulace'!$Q$3:$Q$999,"0,0;0;0;\0"))) -> 0 | F64: =IF($A64="",,SUMPRODUCT((LOOKUP(ROW(F$1:F$997),ROW(F$1:F$997)/ISNUMBER('Měsíční rekapitulace'!$L$1:$L$997),'Měsíční rekapitulace'!$L$1:$L$997)=F$4)*('Měsíční rekapitulace'!$A$3:$A$999=$A64)*TEXT('Měsíční rekapitulace'!$Q$3:$Q$999,"0,0;0;0;\0"))) -> 0 | G64: =IF($A64="",,SUMPRODUCT((LOOKUP(ROW(G$1:G$997),ROW(G$1:G$997)/ISNUMBER('Měsíční rekapitulace'!$L$1:$L$997),'Měsíční rekapitulace'!$L$1:$L$997)=G$4)*('Měsíční rekapitulace'!$A$3:$A$999=$A64)*TEXT('Měsíční rekapitulace'!$Q$3:$Q$999,"0,0;0;0;\0"))) -> 0 | H64: =IF($A64="",,SUMPRODUCT((LOOKUP(ROW(H$1:H$997),ROW(H$1:H$997)/ISNUMBER('Měsíční rekapitulace'!$L$1:$L$997),'Měsíční rekapitulace'!$L$1:$L$997)=H$4)*('Měsíční rekapitulace'!$A$3:$A$999=$A64)*TEXT('Měsíční rekapitulace'!$Q$3:$Q$999,"0,0;0;0;\0"))) -> 0 | I64: =IF($A64="",,SUMPRODUCT((LOOKUP(ROW(I$1:I$997),ROW(I$1:I$997)/ISNUMBER('Měsíční rekapitulace'!$L$1:$L$997),'Měsíční rekapitulace'!$L$1:$L$997)=I$4)*('Měsíční rekapitulace'!$A$3:$A$999=$A64)*TEXT('Měsíční rekapitulace'!$Q$3:$Q$999,"0,0;0;0;\0"))) -> 0 | J64: =IF($A64="",,SUMPRODUCT((LOOKUP(ROW(J$1:J$997),ROW(J$1:J$997)/ISNUMBER('Měsíční rekapitulace'!$L$1:$L$997),'Měsíční rekapitulace'!$L$1:$L$997)=J$4)*('Měsíční rekapitulace'!$A$3:$A$999=$A64)*TEXT('Měsíční rekapitulace'!$Q$3:$Q$999,"0,0;0;0;\0"))) -> 0 | K64: =IF($A64="",,SUMPRODUCT((LOOKUP(ROW(K$1:K$997),ROW(K$1:K$997)/ISNUMBER('Měsíční rekapitulace'!$L$1:$L$997),'Měsíční rekapitulace'!$L$1:$L$997)=K$4)*('Měsíční rekapitulace'!$A$3:$A$999=$A64)*TEXT('Měsíční rekapitulace'!$Q$3:$Q$999,"0,0;0;0;\0"))) -> 0 | L64: =IF($A64="",,SUMPRODUCT((LOOKUP(ROW(L$1:L$997),ROW(L$1:L$997)/ISNUMBER('Měsíční rekapitulace'!$L$1:$L$997),'Měsíční rekapitulace'!$L$1:$L$997)=L$4)*('Měsíční rekapitulace'!$A$3:$A$999=$A64)*TEXT('Měsíční rekapitulace'!$Q$3:$Q$999,"0,0;0;0;\0"))) -> 0 | M64: =IF($A64="",,SUMPRODUCT((LOOKUP(ROW(M$1:M$997),ROW(M$1:M$997)/ISNUMBER('Měsíční rekapitulace'!$L$1:$L$997),'Měsíční rekapitulace'!$L$1:$L$997)=M$4)*('Měsíční rekapitulace'!$A$3:$A$999=$A64)*TEXT('Měsíční rekapitulace'!$Q$3:$Q$999,"0,0;0;0;\0"))) -> 0 | N64: =IF($A64="",,SUMPRODUCT((LOOKUP(ROW(N$1:N$997),ROW(N$1:N$997)/ISNUMBER('Měsíční rekapitulace'!$L$1:$L$997),'Měsíční rekapitulace'!$L$1:$L$997)=N$4)*('Měsíční rekapitulace'!$A$3:$A$999=$A64)*TEXT('Měsíční rekapitulace'!$Q$3:$Q$999,"0,0;0;0;\0"))) -> 0 | O64: =IF($A64="",,SUMPRODUCT((LOOKUP(ROW(O$1:O$997),ROW(O$1:O$997)/ISNUMBER('Měsíční rekapitulace'!$L$1:$L$997),'Měsíční rekapitulace'!$L$1:$L$997)=O$4)*('Měsíční rekapitulace'!$A$3:$A$999=$A64)*TEXT('Měsíční rekapitulace'!$Q$3:$Q$999,"0,0;0;0;\0"))) -> 0 | P64: 0
A65: =IFERROR(INDEX('Měsíční rekapitulace'!A$3:A$999,SMALL(IF(('Měsíční rekapitulace'!A$3:A$999<>"")*('Měsíční rekapitulace'!A$3:A$999<>'Měsíční rekapitulace'!$A$2)*(COUNTIF(A$5:A64,'Měsíční rekapitulace'!A$3:A$999)=0),ROW('Měsíční rekapitulace'!A$3:A$999)-2),1)),"") ->  | B65: =IFERROR(INDEX('Měsíční rekapitulace'!E$3:E$999,MATCH(A65,'Měsíční rekapitulace'!A$3:A$999,)),"") ->  | D65: =IF($A65="",,SUMPRODUCT((LOOKUP(ROW(D$1:D$997),ROW(D$1:D$997)/ISNUMBER('Měsíční rekapitulace'!$L$1:$L$997),'Měsíční rekapitulace'!$L$1:$L$997)=D$4)*('Měsíční rekapitulace'!$A$3:$A$999=$A65)*TEXT('Měsíční rekapitulace'!$Q$3:$Q$999,"0,0;0;0;\0"))) -> 0 | E65: =IF($A65="",,SUMPRODUCT((LOOKUP(ROW(E$1:E$997),ROW(E$1:E$997)/ISNUMBER('Měsíční rekapitulace'!$L$1:$L$997),'Měsíční rekapitulace'!$L$1:$L$997)=E$4)*('Měsíční rekapitulace'!$A$3:$A$999=$A65)*TEXT('Měsíční rekapitulace'!$Q$3:$Q$999,"0,0;0;0;\0"))) -> 0 | F65: =IF($A65="",,SUMPRODUCT((LOOKUP(ROW(F$1:F$997),ROW(F$1:F$997)/ISNUMBER('Měsíční rekapitulace'!$L$1:$L$997),'Měsíční rekapitulace'!$L$1:$L$997)=F$4)*('Měsíční rekapitulace'!$A$3:$A$999=$A65)*TEXT('Měsíční rekapitulace'!$Q$3:$Q$999,"0,0;0;0;\0"))) -> 0 | G65: =IF($A65="",,SUMPRODUCT((LOOKUP(ROW(G$1:G$997),ROW(G$1:G$997)/ISNUMBER('Měsíční rekapitulace'!$L$1:$L$997),'Měsíční rekapitulace'!$L$1:$L$997)=G$4)*('Měsíční rekapitulace'!$A$3:$A$999=$A65)*TEXT('Měsíční rekapitulace'!$Q$3:$Q$999,"0,0;0;0;\0"))) -> 0 | H65: =IF($A65="",,SUMPRODUCT((LOOKUP(ROW(H$1:H$997),ROW(H$1:H$997)/ISNUMBER('Měsíční rekapitulace'!$L$1:$L$997),'Měsíční rekapitulace'!$L$1:$L$997)=H$4)*('Měsíční rekapitulace'!$A$3:$A$999=$A65)*TEXT('Měsíční rekapitulace'!$Q$3:$Q$999,"0,0;0;0;\0"))) -> 0 | I65: =IF($A65="",,SUMPRODUCT((LOOKUP(ROW(I$1:I$997),ROW(I$1:I$997)/ISNUMBER('Měsíční rekapitulace'!$L$1:$L$997),'Měsíční rekapitulace'!$L$1:$L$997)=I$4)*('Měsíční rekapitulace'!$A$3:$A$999=$A65)*TEXT('Měsíční rekapitulace'!$Q$3:$Q$999,"0,0;0;0;\0"))) -> 0 | J65: =IF($A65="",,SUMPRODUCT((LOOKUP(ROW(J$1:J$997),ROW(J$1:J$997)/ISNUMBER('Měsíční rekapitulace'!$L$1:$L$997),'Měsíční rekapitulace'!$L$1:$L$997)=J$4)*('Měsíční rekapitulace'!$A$3:$A$999=$A65)*TEXT('Měsíční rekapitulace'!$Q$3:$Q$999,"0,0;0;0;\0"))) -> 0 | K65: =IF($A65="",,SUMPRODUCT((LOOKUP(ROW(K$1:K$997),ROW(K$1:K$997)/ISNUMBER('Měsíční rekapitulace'!$L$1:$L$997),'Měsíční rekapitulace'!$L$1:$L$997)=K$4)*('Měsíční rekapitulace'!$A$3:$A$999=$A65)*TEXT('Měsíční rekapitulace'!$Q$3:$Q$999,"0,0;0;0;\0"))) -> 0 | L65: =IF($A65="",,SUMPRODUCT((LOOKUP(ROW(L$1:L$997),ROW(L$1:L$997)/ISNUMBER('Měsíční rekapitulace'!$L$1:$L$997),'Měsíční rekapitulace'!$L$1:$L$997)=L$4)*('Měsíční rekapitulace'!$A$3:$A$999=$A65)*TEXT('Měsíční rekapitulace'!$Q$3:$Q$999,"0,0;0;0;\0"))) -> 0 | M65: =IF($A65="",,SUMPRODUCT((LOOKUP(ROW(M$1:M$997),ROW(M$1:M$997)/ISNUMBER('Měsíční rekapitulace'!$L$1:$L$997),'Měsíční rekapitulace'!$L$1:$L$997)=M$4)*('Měsíční rekapitulace'!$A$3:$A$999=$A65)*TEXT('Měsíční rekapitulace'!$Q$3:$Q$999,"0,0;0;0;\0"))) -> 0 | N65: =IF($A65="",,SUMPRODUCT((LOOKUP(ROW(N$1:N$997),ROW(N$1:N$997)/ISNUMBER('Měsíční rekapitulace'!$L$1:$L$997),'Měsíční rekapitulace'!$L$1:$L$997)=N$4)*('Měsíční rekapitulace'!$A$3:$A$999=$A65)*TEXT('Měsíční rekapitulace'!$Q$3:$Q$999,"0,0;0;0;\0"))) -> 0 | O65: =IF($A65="",,SUMPRODUCT((LOOKUP(ROW(O$1:O$997),ROW(O$1:O$997)/ISNUMBER('Měsíční rekapitulace'!$L$1:$L$997),'Měsíční rekapitulace'!$L$1:$L$997)=O$4)*('Měsíční rekapitulace'!$A$3:$A$999=$A65)*TEXT('Měsíční rekapitulace'!$Q$3:$Q$999,"0,0;0;0;\0"))) -> 0 | P65: 0
A66: =IFERROR(INDEX('Měsíční rekapitulace'!A$3:A$999,SMALL(IF(('Měsíční rekapitulace'!A$3:A$999<>"")*('Měsíční rekapitulace'!A$3:A$999<>'Měsíční rekapitulace'!$A$2)*(COUNTIF(A$5:A65,'Měsíční rekapitulace'!A$3:A$999)=0),ROW('Měsíční rekapitulace'!A$3:A$999)-2),1)),"") ->  | B66: =IFERROR(INDEX('Měsíční rekapitulace'!E$3:E$999,MATCH(A66,'Měsíční rekapitulace'!A$3:A$999,)),"") ->  | D66: =IF($A66="",,SUMPRODUCT((LOOKUP(ROW(D$1:D$997),ROW(D$1:D$997)/ISNUMBER('Měsíční rekapitulace'!$L$1:$L$997),'Měsíční rekapitulace'!$L$1:$L$997)=D$4)*('Měsíční rekapitulace'!$A$3:$A$999=$A66)*TEXT('Měsíční rekapitulace'!$Q$3:$Q$999,"0,0;0;0;\0"))) -> 0 | E66: =IF($A66="",,SUMPRODUCT((LOOKUP(ROW(E$1:E$997),ROW(E$1:E$997)/ISNUMBER('Měsíční rekapitulace'!$L$1:$L$997),'Měsíční rekapitulace'!$L$1:$L$997)=E$4)*('Měsíční rekapitulace'!$A$3:$A$999=$A66)*TEXT('Měsíční rekapitulace'!$Q$3:$Q$999,"0,0;0;0;\0"))) -> 0 | F66: =IF($A66="",,SUMPRODUCT((LOOKUP(ROW(F$1:F$997),ROW(F$1:F$997)/ISNUMBER('Měsíční rekapitulace'!$L$1:$L$997),'Měsíční rekapitulace'!$L$1:$L$997)=F$4)*('Měsíční rekapitulace'!$A$3:$A$999=$A66)*TEXT('Měsíční rekapitulace'!$Q$3:$Q$999,"0,0;0;0;\0"))) -> 0 | G66: =IF($A66="",,SUMPRODUCT((LOOKUP(ROW(G$1:G$997),ROW(G$1:G$997)/ISNUMBER('Měsíční rekapitulace'!$L$1:$L$997),'Měsíční rekapitulace'!$L$1:$L$997)=G$4)*('Měsíční rekapitulace'!$A$3:$A$999=$A66)*TEXT('Měsíční rekapitulace'!$Q$3:$Q$999,"0,0;0;0;\0"))) -> 0 | H66: =IF($A66="",,SUMPRODUCT((LOOKUP(ROW(H$1:H$997),ROW(H$1:H$997)/ISNUMBER('Měsíční rekapitulace'!$L$1:$L$997),'Měsíční rekapitulace'!$L$1:$L$997)=H$4)*('Měsíční rekapitulace'!$A$3:$A$999=$A66)*TEXT('Měsíční rekapitulace'!$Q$3:$Q$999,"0,0;0;0;\0"))) -> 0 | I66: =IF($A66="",,SUMPRODUCT((LOOKUP(ROW(I$1:I$997),ROW(I$1:I$997)/ISNUMBER('Měsíční rekapitulace'!$L$1:$L$997),'Měsíční rekapitulace'!$L$1:$L$997)=I$4)*('Měsíční rekapitulace'!$A$3:$A$999=$A66)*TEXT('Měsíční rekapitulace'!$Q$3:$Q$999,"0,0;0;0;\0"))) -> 0 | J66: =IF($A66="",,SUMPRODUCT((LOOKUP(ROW(J$1:J$997),ROW(J$1:J$997)/ISNUMBER('Měsíční rekapitulace'!$L$1:$L$997),'Měsíční rekapitulace'!$L$1:$L$997)=J$4)*('Měsíční rekapitulace'!$A$3:$A$999=$A66)*TEXT('Měsíční rekapitulace'!$Q$3:$Q$999,"0,0;0;0;\0"))) -> 0 | K66: =IF($A66="",,SUMPRODUCT((LOOKUP(ROW(K$1:K$997),ROW(K$1:K$997)/ISNUMBER('Měsíční rekapitulace'!$L$1:$L$997),'Měsíční rekapitulace'!$L$1:$L$997)=K$4)*('Měsíční rekapitulace'!$A$3:$A$999=$A66)*TEXT('Měsíční rekapitulace'!$Q$3:$Q$999,"0,0;0;0;\0"))) -> 0 | L66: =IF($A66="",,SUMPRODUCT((LOOKUP(ROW(L$1:L$997),ROW(L$1:L$997)/ISNUMBER('Měsíční rekapitulace'!$L$1:$L$997),'Měsíční rekapitulace'!$L$1:$L$997)=L$4)*('Měsíční rekapitulace'!$A$3:$A$999=$A66)*TEXT('Měsíční rekapitulace'!$Q$3:$Q$999,"0,0;0;0;\0"))) -> 0 | M66: =IF($A66="",,SUMPRODUCT((LOOKUP(ROW(M$1:M$997),ROW(M$1:M$997)/ISNUMBER('Měsíční rekapitulace'!$L$1:$L$997),'Měsíční rekapitulace'!$L$1:$L$997)=M$4)*('Měsíční rekapitulace'!$A$3:$A$999=$A66)*TEXT('Měsíční rekapitulace'!$Q$3:$Q$999,"0,0;0;0;\0"))) -> 0 | N66: =IF($A66="",,SUMPRODUCT((LOOKUP(ROW(N$1:N$997),ROW(N$1:N$997)/ISNUMBER('Měsíční rekapitulace'!$L$1:$L$997),'Měsíční rekapitulace'!$L$1:$L$997)=N$4)*('Měsíční rekapitulace'!$A$3:$A$999=$A66)*TEXT('Měsíční rekapitulace'!$Q$3:$Q$999,"0,0;0;0;\0"))) -> 0 | O66: =IF($A66="",,SUMPRODUCT((LOOKUP(ROW(O$1:O$997),ROW(O$1:O$997)/ISNUMBER('Měsíční rekapitulace'!$L$1:$L$997),'Měsíční rekapitulace'!$L$1:$L$997)=O$4)*('Měsíční rekapitulace'!$A$3:$A$999=$A66)*TEXT('Měsíční rekapitulace'!$Q$3:$Q$999,"0,0;0;0;\0"))) -> 0 | P66: 0
A67: =IFERROR(INDEX('Měsíční rekapitulace'!A$3:A$999,SMALL(IF(('Měsíční rekapitulace'!A$3:A$999<>"")*('Měsíční rekapitulace'!A$3:A$999<>'Měsíční rekapitulace'!$A$2)*(COUNTIF(A$5:A66,'Měsíční rekapitulace'!A$3:A$999)=0),ROW('Měsíční rekapitulace'!A$3:A$999)-2),1)),"") ->  | B67: =IFERROR(INDEX('Měsíční rekapitulace'!E$3:E$999,MATCH(A67,'Měsíční rekapitulace'!A$3:A$999,)),"") ->  | D67: =IF($A67="",,SUMPRODUCT((LOOKUP(ROW(D$1:D$997),ROW(D$1:D$997)/ISNUMBER('Měsíční rekapitulace'!$L$1:$L$997),'Měsíční rekapitulace'!$L$1:$L$997)=D$4)*('Měsíční rekapitulace'!$A$3:$A$999=$A67)*TEXT('Měsíční rekapitulace'!$Q$3:$Q$999,"0,0;0;0;\0"))) -> 0 | E67: =IF($A67="",,SUMPRODUCT((LOOKUP(ROW(E$1:E$997),ROW(E$1:E$997)/ISNUMBER('Měsíční rekapitulace'!$L$1:$L$997),'Měsíční rekapitulace'!$L$1:$L$997)=E$4)*('Měsíční rekapitulace'!$A$3:$A$999=$A67)*TEXT('Měsíční rekapitulace'!$Q$3:$Q$999,"0,0;0;0;\0"))) -> 0 | F67: =IF($A67="",,SUMPRODUCT((LOOKUP(ROW(F$1:F$997),ROW(F$1:F$997)/ISNUMBER('Měsíční rekapitulace'!$L$1:$L$997),'Měsíční rekapitulace'!$L$1:$L$997)=F$4)*('Měsíční rekapitulace'!$A$3:$A$999=$A67)*TEXT('Měsíční rekapitulace'!$Q$3:$Q$999,"0,0;0;0;\0"))) -> 0 | G67: =IF($A67="",,SUMPRODUCT((LOOKUP(ROW(G$1:G$997),ROW(G$1:G$997)/ISNUMBER('Měsíční rekapitulace'!$L$1:$L$997),'Měsíční rekapitulace'!$L$1:$L$997)=G$4)*('Měsíční rekapitulace'!$A$3:$A$999=$A67)*TEXT('Měsíční rekapitulace'!$Q$3:$Q$999,"0,0;0;0;\0"))) -> 0 | H67: =IF($A67="",,SUMPRODUCT((LOOKUP(ROW(H$1:H$997),ROW(H$1:H$997)/ISNUMBER('Měsíční rekapitulace'!$L$1:$L$997),'Měsíční rekapitulace'!$L$1:$L$997)=H$4)*('Měsíční rekapitulace'!$A$3:$A$999=$A67)*TEXT('Měsíční rekapitulace'!$Q$3:$Q$999,"0,0;0;0;\0"))) -> 0 | I67: =IF($A67="",,SUMPRODUCT((LOOKUP(ROW(I$1:I$997),ROW(I$1:I$997)/ISNUMBER('Měsíční rekapitulace'!$L$1:$L$997),'Měsíční rekapitulace'!$L$1:$L$997)=I$4)*('Měsíční rekapitulace'!$A$3:$A$999=$A67)*TEXT('Měsíční rekapitulace'!$Q$3:$Q$999,"0,0;0;0;\0"))) -> 0 | J67: =IF($A67="",,SUMPRODUCT((LOOKUP(ROW(J$1:J$997),ROW(J$1:J$997)/ISNUMBER('Měsíční rekapitulace'!$L$1:$L$997),'Měsíční rekapitulace'!$L$1:$L$997)=J$4)*('Měsíční rekapitulace'!$A$3:$A$999=$A67)*TEXT('Měsíční rekapitulace'!$Q$3:$Q$999,"0,0;0;0;\0"))) -> 0 | K67: =IF($A67="",,SUMPRODUCT((LOOKUP(ROW(K$1:K$997),ROW(K$1:K$997)/ISNUMBER('Měsíční rekapitulace'!$L$1:$L$997),'Měsíční rekapitulace'!$L$1:$L$997)=K$4)*('Měsíční rekapitulace'!$A$3:$A$999=$A67)*TEXT('Měsíční rekapitulace'!$Q$3:$Q$999,"0,0;0;0;\0"))) -> 0 | L67: =IF($A67="",,SUMPRODUCT((LOOKUP(ROW(L$1:L$997),ROW(L$1:L$997)/ISNUMBER('Měsíční rekapitulace'!$L$1:$L$997),'Měsíční rekapitulace'!$L$1:$L$997)=L$4)*('Měsíční rekapitulace'!$A$3:$A$999=$A67)*TEXT('Měsíční rekapitulace'!$Q$3:$Q$999,"0,0;0;0;\0"))) -> 0 | M67: =IF($A67="",,SUMPRODUCT((LOOKUP(ROW(M$1:M$997),ROW(M$1:M$997)/ISNUMBER('Měsíční rekapitulace'!$L$1:$L$997),'Měsíční rekapitulace'!$L$1:$L$997)=M$4)*('Měsíční rekapitulace'!$A$3:$A$999=$A67)*TEXT('Měsíční rekapitulace'!$Q$3:$Q$999,"0,0;0;0;\0"))) -> 0 | N67: =IF($A67="",,SUMPRODUCT((LOOKUP(ROW(N$1:N$997),ROW(N$1:N$997)/ISNUMBER('Měsíční rekapitulace'!$L$1:$L$997),'Měsíční rekapitulace'!$L$1:$L$997)=N$4)*('Měsíční rekapitulace'!$A$3:$A$999=$A67)*TEXT('Měsíční rekapitulace'!$Q$3:$Q$999,"0,0;0;0;\0"))) -> 0 | O67: =IF($A67="",,SUMPRODUCT((LOOKUP(ROW(O$1:O$997),ROW(O$1:O$997)/ISNUMBER('Měsíční rekapitulace'!$L$1:$L$997),'Měsíční rekapitulace'!$L$1:$L$997)=O$4)*('Měsíční rekapitulace'!$A$3:$A$999=$A67)*TEXT('Měsíční rekapitulace'!$Q$3:$Q$999,"0,0;0;0;\0"))) -> 0 | P67: 0
A68: =IFERROR(INDEX('Měsíční rekapitulace'!A$3:A$999,SMALL(IF(('Měsíční rekapitulace'!A$3:A$999<>"")*('Měsíční rekapitulace'!A$3:A$999<>'Měsíční rekapitulace'!$A$2)*(COUNTIF(A$5:A67,'Měsíční rekapitulace'!A$3:A$999)=0),ROW('Měsíční rekapitulace'!A$3:A$999)-2),1)),"") ->  | B68: =IFERROR(INDEX('Měsíční rekapitulace'!E$3:E$999,MATCH(A68,'Měsíční rekapitulace'!A$3:A$999,)),"") ->  | D68: =IF($A68="",,SUMPRODUCT((LOOKUP(ROW(D$1:D$997),ROW(D$1:D$997)/ISNUMBER('Měsíční rekapitulace'!$L$1:$L$997),'Měsíční rekapitulace'!$L$1:$L$997)=D$4)*('Měsíční rekapitulace'!$A$3:$A$999=$A68)*TEXT('Měsíční rekapitulace'!$Q$3:$Q$999,"0,0;0;0;\0"))) -> 0 | E68: =IF($A68="",,SUMPRODUCT((LOOKUP(ROW(E$1:E$997),ROW(E$1:E$997)/ISNUMBER('Měsíční rekapitulace'!$L$1:$L$997),'Měsíční rekapitulace'!$L$1:$L$997)=E$4)*('Měsíční rekapitulace'!$A$3:$A$999=$A68)*TEXT('Měsíční rekapitulace'!$Q$3:$Q$999,"0,0;0;0;\0"))) -> 0 | F68: =IF($A68="",,SUMPRODUCT((LOOKUP(ROW(F$1:F$997),ROW(F$1:F$997)/ISNUMBER('Měsíční rekapitulace'!$L$1:$L$997),'Měsíční rekapitulace'!$L$1:$L$997)=F$4)*('Měsíční rekapitulace'!$A$3:$A$999=$A68)*TEXT('Měsíční rekapitulace'!$Q$3:$Q$999,"0,0;0;0;\0"))) -> 0 | G68: =IF($A68="",,SUMPRODUCT((LOOKUP(ROW(G$1:G$997),ROW(G$1:G$997)/ISNUMBER('Měsíční rekapitulace'!$L$1:$L$997),'Měsíční rekapitulace'!$L$1:$L$997)=G$4)*('Měsíční rekapitulace'!$A$3:$A$999=$A68)*TEXT('Měsíční rekapitulace'!$Q$3:$Q$999,"0,0;0;0;\0"))) -> 0 | H68: =IF($A68="",,SUMPRODUCT((LOOKUP(ROW(H$1:H$997),ROW(H$1:H$997)/ISNUMBER('Měsíční rekapitulace'!$L$1:$L$997),'Měsíční rekapitulace'!$L$1:$L$997)=H$4)*('Měsíční rekapitulace'!$A$3:$A$999=$A68)*TEXT('Měsíční rekapitulace'!$Q$3:$Q$999,"0,0;0;0;\0"))) -> 0 | I68: =IF($A68="",,SUMPRODUCT((LOOKUP(ROW(I$1:I$997),ROW(I$1:I$997)/ISNUMBER('Měsíční rekapitulace'!$L$1:$L$997),'Měsíční rekapitulace'!$L$1:$L$997)=I$4)*('Měsíční rekapitulace'!$A$3:$A$999=$A68)*TEXT('Měsíční rekapitulace'!$Q$3:$Q$999,"0,0;0;0;\0"))) -> 0 | J68: =IF($A68="",,SUMPRODUCT((LOOKUP(ROW(J$1:J$997),ROW(J$1:J$997)/ISNUMBER('Měsíční rekapitulace'!$L$1:$L$997),'Měsíční rekapitulace'!$L$1:$L$997)=J$4)*('Měsíční rekapitulace'!$A$3:$A$999=$A68)*TEXT('Měsíční rekapitulace'!$Q$3:$Q$999,"0,0;0;0;\0"))) -> 0 | K68: =IF($A68="",,SUMPRODUCT((LOOKUP(ROW(K$1:K$997),ROW(K$1:K$997)/ISNUMBER('Měsíční rekapitulace'!$L$1:$L$997),'Měsíční rekapitulace'!$L$1:$L$997)=K$4)*('Měsíční rekapitulace'!$A$3:$A$999=$A68)*TEXT('Měsíční rekapitulace'!$Q$3:$Q$999,"0,0;0;0;\0"))) -> 0 | L68: =IF($A68="",,SUMPRODUCT((LOOKUP(ROW(L$1:L$997),ROW(L$1:L$997)/ISNUMBER('Měsíční rekapitulace'!$L$1:$L$997),'Měsíční rekapitulace'!$L$1:$L$997)=L$4)*('Měsíční rekapitulace'!$A$3:$A$999=$A68)*TEXT('Měsíční rekapitulace'!$Q$3:$Q$999,"0,0;0;0;\0"))) -> 0 | M68: =IF($A68="",,SUMPRODUCT((LOOKUP(ROW(M$1:M$997),ROW(M$1:M$997)/ISNUMBER('Měsíční rekapitulace'!$L$1:$L$997),'Měsíční rekapitulace'!$L$1:$L$997)=M$4)*('Měsíční rekapitulace'!$A$3:$A$999=$A68)*TEXT('Měsíční rekapitulace'!$Q$3:$Q$999,"0,0;0;0;\0"))) -> 0 | N68: =IF($A68="",,SUMPRODUCT((LOOKUP(ROW(N$1:N$997),ROW(N$1:N$997)/ISNUMBER('Měsíční rekapitulace'!$L$1:$L$997),'Měsíční rekapitulace'!$L$1:$L$997)=N$4)*('Měsíční rekapitulace'!$A$3:$A$999=$A68)*TEXT('Měsíční rekapitulace'!$Q$3:$Q$999,"0,0;0;0;\0"))) -> 0 | O68: =IF($A68="",,SUMPRODUCT((LOOKUP(ROW(O$1:O$997),ROW(O$1:O$997)/ISNUMBER('Měsíční rekapitulace'!$L$1:$L$997),'Měsíční rekapitulace'!$L$1:$L$997)=O$4)*('Měsíční rekapitulace'!$A$3:$A$999=$A68)*TEXT('Měsíční rekapitulace'!$Q$3:$Q$999,"0,0;0;0;\0"))) -> 0 | P68: 0
A69: =IFERROR(INDEX('Měsíční rekapitulace'!A$3:A$999,SMALL(IF(('Měsíční rekapitulace'!A$3:A$999<>"")*('Měsíční rekapitulace'!A$3:A$999<>'Měsíční rekapitulace'!$A$2)*(COUNTIF(A$5:A68,'Měsíční rekapitulace'!A$3:A$999)=0),ROW('Měsíční rekapitulace'!A$3:A$999)-2),1)),"") ->  | B69: =IFERROR(INDEX('Měsíční rekapitulace'!E$3:E$999,MATCH(A69,'Měsíční rekapitulace'!A$3:A$999,)),"") ->  | D69: =IF($A69="",,SUMPRODUCT((LOOKUP(ROW(D$1:D$997),ROW(D$1:D$997)/ISNUMBER('Měsíční rekapitulace'!$L$1:$L$997),'Měsíční rekapitulace'!$L$1:$L$997)=D$4)*('Měsíční rekapitulace'!$A$3:$A$999=$A69)*TEXT('Měsíční rekapitulace'!$Q$3:$Q$999,"0,0;0;0;\0"))) -> 0 | E69: =IF($A69="",,SUMPRODUCT((LOOKUP(ROW(E$1:E$997),ROW(E$1:E$997)/ISNUMBER('Měsíční rekapitulace'!$L$1:$L$997),'Měsíční rekapitulace'!$L$1:$L$997)=E$4)*('Měsíční rekapitulace'!$A$3:$A$999=$A69)*TEXT('Měsíční rekapitulace'!$Q$3:$Q$999,"0,0;0;0;\0"))) -> 0 | F69: =IF($A69="",,SUMPRODUCT((LOOKUP(ROW(F$1:F$997),ROW(F$1:F$997)/ISNUMBER('Měsíční rekapitulace'!$L$1:$L$997),'Měsíční rekapitulace'!$L$1:$L$997)=F$4)*('Měsíční rekapitulace'!$A$3:$A$999=$A69)*TEXT('Měsíční rekapitulace'!$Q$3:$Q$999,"0,0;0;0;\0"))) -> 0 | G69: =IF($A69="",,SUMPRODUCT((LOOKUP(ROW(G$1:G$997),ROW(G$1:G$997)/ISNUMBER('Měsíční rekapitulace'!$L$1:$L$997),'Měsíční rekapitulace'!$L$1:$L$997)=G$4)*('Měsíční rekapitulace'!$A$3:$A$999=$A69)*TEXT('Měsíční rekapitulace'!$Q$3:$Q$999,"0,0;0;0;\0"))) -> 0 | H69: =IF($A69="",,SUMPRODUCT((LOOKUP(ROW(H$1:H$997),ROW(H$1:H$997)/ISNUMBER('Měsíční rekapitulace'!$L$1:$L$997),'Měsíční rekapitulace'!$L$1:$L$997)=H$4)*('Měsíční rekapitulace'!$A$3:$A$999=$A69)*TEXT('Měsíční rekapitulace'!$Q$3:$Q$999,"0,0;0;0;\0"))) -> 0 | I69: =IF($A69="",,SUMPRODUCT((LOOKUP(ROW(I$1:I$997),ROW(I$1:I$997)/ISNUMBER('Měsíční rekapitulace'!$L$1:$L$997),'Měsíční rekapitulace'!$L$1:$L$997)=I$4)*('Měsíční rekapitulace'!$A$3:$A$999=$A69)*TEXT('Měsíční rekapitulace'!$Q$3:$Q$999,"0,0;0;0;\0"))) -> 0 | J69: =IF($A69="",,SUMPRODUCT((LOOKUP(ROW(J$1:J$997),ROW(J$1:J$997)/ISNUMBER('Měsíční rekapitulace'!$L$1:$L$997),'Měsíční rekapitulace'!$L$1:$L$997)=J$4)*('Měsíční rekapitulace'!$A$3:$A$999=$A69)*TEXT('Měsíční rekapitulace'!$Q$3:$Q$999,"0,0;0;0;\0"))) -> 0 | K69: =IF($A69="",,SUMPRODUCT((LOOKUP(ROW(K$1:K$997),ROW(K$1:K$997)/ISNUMBER('Měsíční rekapitulace'!$L$1:$L$997),'Měsíční rekapitulace'!$L$1:$L$997)=K$4)*('Měsíční rekapitulace'!$A$3:$A$999=$A69)*TEXT('Měsíční rekapitulace'!$Q$3:$Q$999,"0,0;0;0;\0"))) -> 0 | L69: =IF($A69="",,SUMPRODUCT((LOOKUP(ROW(L$1:L$997),ROW(L$1:L$997)/ISNUMBER('Měsíční rekapitulace'!$L$1:$L$997),'Měsíční rekapitulace'!$L$1:$L$997)=L$4)*('Měsíční rekapitulace'!$A$3:$A$999=$A69)*TEXT('Měsíční rekapitulace'!$Q$3:$Q$999,"0,0;0;0;\0"))) -> 0 | M69: =IF($A69="",,SUMPRODUCT((LOOKUP(ROW(M$1:M$997),ROW(M$1:M$997)/ISNUMBER('Měsíční rekapitulace'!$L$1:$L$997),'Měsíční rekapitulace'!$L$1:$L$997)=M$4)*('Měsíční rekapitulace'!$A$3:$A$999=$A69)*TEXT('Měsíční rekapitulace'!$Q$3:$Q$999,"0,0;0;0;\0"))) -> 0 | N69: =IF($A69="",,SUMPRODUCT((LOOKUP(ROW(N$1:N$997),ROW(N$1:N$997)/ISNUMBER('Měsíční rekapitulace'!$L$1:$L$997),'Měsíční rekapitulace'!$L$1:$L$997)=N$4)*('Měsíční rekapitulace'!$A$3:$A$999=$A69)*TEXT('Měsíční rekapitulace'!$Q$3:$Q$999,"0,0;0;0;\0"))) -> 0 | O69: =IF($A69="",,SUMPRODUCT((LOOKUP(ROW(O$1:O$997),ROW(O$1:O$997)/ISNUMBER('Měsíční rekapitulace'!$L$1:$L$997),'Měsíční rekapitulace'!$L$1:$L$997)=O$4)*('Měsíční rekapitulace'!$A$3:$A$999=$A69)*TEXT('Měsíční rekapitulace'!$Q$3:$Q$999,"0,0;0;0;\0"))) -> 0 | P69: 0
A70: =IFERROR(INDEX('Měsíční rekapitulace'!A$3:A$999,SMALL(IF(('Měsíční rekapitulace'!A$3:A$999<>"")*('Měsíční rekapitulace'!A$3:A$999<>'Měsíční rekapitulace'!$A$2)*(COUNTIF(A$5:A69,'Měsíční rekapitulace'!A$3:A$999)=0),ROW('Měsíční rekapitulace'!A$3:A$999)-2),1)),"") ->  | B70: =IFERROR(INDEX('Měsíční rekapitulace'!E$3:E$999,MATCH(A70,'Měsíční rekapitulace'!A$3:A$999,)),"") ->  | D70: =IF($A70="",,SUMPRODUCT((LOOKUP(ROW(D$1:D$997),ROW(D$1:D$997)/ISNUMBER('Měsíční rekapitulace'!$L$1:$L$997),'Měsíční rekapitulace'!$L$1:$L$997)=D$4)*('Měsíční rekapitulace'!$A$3:$A$999=$A70)*TEXT('Měsíční rekapitulace'!$Q$3:$Q$999,"0,0;0;0;\0"))) -> 0 | E70: =IF($A70="",,SUMPRODUCT((LOOKUP(ROW(E$1:E$997),ROW(E$1:E$997)/ISNUMBER('Měsíční rekapitulace'!$L$1:$L$997),'Měsíční rekapitulace'!$L$1:$L$997)=E$4)*('Měsíční rekapitulace'!$A$3:$A$999=$A70)*TEXT('Měsíční rekapitulace'!$Q$3:$Q$999,"0,0;0;0;\0"))) -> 0 | F70: =IF($A70="",,SUMPRODUCT((LOOKUP(ROW(F$1:F$997),ROW(F$1:F$997)/ISNUMBER('Měsíční rekapitulace'!$L$1:$L$997),'Měsíční rekapitulace'!$L$1:$L$997)=F$4)*('Měsíční rekapitulace'!$A$3:$A$999=$A70)*TEXT('Měsíční rekapitulace'!$Q$3:$Q$999,"0,0;0;0;\0"))) -> 0 | G70: =IF($A70="",,SUMPRODUCT((LOOKUP(ROW(G$1:G$997),ROW(G$1:G$997)/ISNUMBER('Měsíční rekapitulace'!$L$1:$L$997),'Měsíční rekapitulace'!$L$1:$L$997)=G$4)*('Měsíční rekapitulace'!$A$3:$A$999=$A70)*TEXT('Měsíční rekapitulace'!$Q$3:$Q$999,"0,0;0;0;\0"))) -> 0 | H70: =IF($A70="",,SUMPRODUCT((LOOKUP(ROW(H$1:H$997),ROW(H$1:H$997)/ISNUMBER('Měsíční rekapitulace'!$L$1:$L$997),'Měsíční rekapitulace'!$L$1:$L$997)=H$4)*('Měsíční rekapitulace'!$A$3:$A$999=$A70)*TEXT('Měsíční rekapitulace'!$Q$3:$Q$999,"0,0;0;0;\0"))) -> 0 | I70: =IF($A70="",,SUMPRODUCT((LOOKUP(ROW(I$1:I$997),ROW(I$1:I$997)/ISNUMBER('Měsíční rekapitulace'!$L$1:$L$997),'Měsíční rekapitulace'!$L$1:$L$997)=I$4)*('Měsíční rekapitulace'!$A$3:$A$999=$A70)*TEXT('Měsíční rekapitulace'!$Q$3:$Q$999,"0,0;0;0;\0"))) -> 0 | J70: =IF($A70="",,SUMPRODUCT((LOOKUP(ROW(J$1:J$997),ROW(J$1:J$997)/ISNUMBER('Měsíční rekapitulace'!$L$1:$L$997),'Měsíční rekapitulace'!$L$1:$L$997)=J$4)*('Měsíční rekapitulace'!$A$3:$A$999=$A70)*TEXT('Měsíční rekapitulace'!$Q$3:$Q$999,"0,0;0;0;\0"))) -> 0 | K70: =IF($A70="",,SUMPRODUCT((LOOKUP(ROW(K$1:K$997),ROW(K$1:K$997)/ISNUMBER('Měsíční rekapitulace'!$L$1:$L$997),'Měsíční rekapitulace'!$L$1:$L$997)=K$4)*('Měsíční rekapitulace'!$A$3:$A$999=$A70)*TEXT('Měsíční rekapitulace'!$Q$3:$Q$999,"0,0;0;0;\0"))) -> 0 | L70: =IF($A70="",,SUMPRODUCT((LOOKUP(ROW(L$1:L$997),ROW(L$1:L$997)/ISNUMBER('Měsíční rekapitulace'!$L$1:$L$997),'Měsíční rekapitulace'!$L$1:$L$997)=L$4)*('Měsíční rekapitulace'!$A$3:$A$999=$A70)*TEXT('Měsíční rekapitulace'!$Q$3:$Q$999,"0,0;0;0;\0"))) -> 0 | M70: =IF($A70="",,SUMPRODUCT((LOOKUP(ROW(M$1:M$997),ROW(M$1:M$997)/ISNUMBER('Měsíční rekapitulace'!$L$1:$L$997),'Měsíční rekapitulace'!$L$1:$L$997)=M$4)*('Měsíční rekapitulace'!$A$3:$A$999=$A70)*TEXT('Měsíční rekapitulace'!$Q$3:$Q$999,"0,0;0;0;\0"))) -> 0 | N70: =IF($A70="",,SUMPRODUCT((LOOKUP(ROW(N$1:N$997),ROW(N$1:N$997)/ISNUMBER('Měsíční rekapitulace'!$L$1:$L$997),'Měsíční rekapitulace'!$L$1:$L$997)=N$4)*('Měsíční rekapitulace'!$A$3:$A$999=$A70)*TEXT('Měsíční rekapitulace'!$Q$3:$Q$999,"0,0;0;0;\0"))) -> 0 | O70: =IF($A70="",,SUMPRODUCT((LOOKUP(ROW(O$1:O$997),ROW(O$1:O$997)/ISNUMBER('Měsíční rekapitulace'!$L$1:$L$997),'Měsíční rekapitulace'!$L$1:$L$997)=O$4)*('Měsíční rekapitulace'!$A$3:$A$999=$A70)*TEXT('Měsíční rekapitulace'!$Q$3:$Q$999,"0,0;0;0;\0"))) -> 0 | P70: 0
A71: =IFERROR(INDEX('Měsíční rekapitulace'!A$3:A$999,SMALL(IF(('Měsíční rekapitulace'!A$3:A$999<>"")*('Měsíční rekapitulace'!A$3:A$999<>'Měsíční rekapitulace'!$A$2)*(COUNTIF(A$5:A70,'Měsíční rekapitulace'!A$3:A$999)=0),ROW('Měsíční rekapitulace'!A$3:A$999)-2),1)),"") ->  | B71: =IFERROR(INDEX('Měsíční rekapitulace'!E$3:E$999,MATCH(A71,'Měsíční rekapitulace'!A$3:A$999,)),"") ->  | D71: =IF($A71="",,SUMPRODUCT((LOOKUP(ROW(D$1:D$997),ROW(D$1:D$997)/ISNUMBER('Měsíční rekapitulace'!$L$1:$L$997),'Měsíční rekapitulace'!$L$1:$L$997)=D$4)*('Měsíční rekapitulace'!$A$3:$A$999=$A71)*TEXT('Měsíční rekapitulace'!$Q$3:$Q$999,"0,0;0;0;\0"))) -> 0 | E71: =IF($A71="",,SUMPRODUCT((LOOKUP(ROW(E$1:E$997),ROW(E$1:E$997)/ISNUMBER('Měsíční rekapitulace'!$L$1:$L$997),'Měsíční rekapitulace'!$L$1:$L$997)=E$4)*('Měsíční rekapitulace'!$A$3:$A$999=$A71)*TEXT('Měsíční rekapitulace'!$Q$3:$Q$999,"0,0;0;0;\0"))) -> 0 | F71: =IF($A71="",,SUMPRODUCT((LOOKUP(ROW(F$1:F$997),ROW(F$1:F$997)/ISNUMBER('Měsíční rekapitulace'!$L$1:$L$997),'Měsíční rekapitulace'!$L$1:$L$997)=F$4)*('Měsíční rekapitulace'!$A$3:$A$999=$A71)*TEXT('Měsíční rekapitulace'!$Q$3:$Q$999,"0,0;0;0;\0"))) -> 0 | G71: =IF($A71="",,SUMPRODUCT((LOOKUP(ROW(G$1:G$997),ROW(G$1:G$997)/ISNUMBER('Měsíční rekapitulace'!$L$1:$L$997),'Měsíční rekapitulace'!$L$1:$L$997)=G$4)*('Měsíční rekapitulace'!$A$3:$A$999=$A71)*TEXT('Měsíční rekapitulace'!$Q$3:$Q$999,"0,0;0;0;\0"))) -> 0 | H71: =IF($A71="",,SUMPRODUCT((LOOKUP(ROW(H$1:H$997),ROW(H$1:H$997)/ISNUMBER('Měsíční rekapitulace'!$L$1:$L$997),'Měsíční rekapitulace'!$L$1:$L$997)=H$4)*('Měsíční rekapitulace'!$A$3:$A$999=$A71)*TEXT('Měsíční rekapitulace'!$Q$3:$Q$999,"0,0;0;0;\0"))) -> 0 | I71: =IF($A71="",,SUMPRODUCT((LOOKUP(ROW(I$1:I$997),ROW(I$1:I$997)/ISNUMBER('Měsíční rekapitulace'!$L$1:$L$997),'Měsíční rekapitulace'!$L$1:$L$997)=I$4)*('Měsíční rekapitulace'!$A$3:$A$999=$A71)*TEXT('Měsíční rekapitulace'!$Q$3:$Q$999,"0,0;0;0;\0"))) -> 0 | J71: =IF($A71="",,SUMPRODUCT((LOOKUP(ROW(J$1:J$997),ROW(J$1:J$997)/ISNUMBER('Měsíční rekapitulace'!$L$1:$L$997),'Měsíční rekapitulace'!$L$1:$L$997)=J$4)*('Měsíční rekapitulace'!$A$3:$A$999=$A71)*TEXT('Měsíční rekapitulace'!$Q$3:$Q$999,"0,0;0;0;\0"))) -> 0 | K71: =IF($A71="",,SUMPRODUCT((LOOKUP(ROW(K$1:K$997),ROW(K$1:K$997)/ISNUMBER('Měsíční rekapitulace'!$L$1:$L$997),'Měsíční rekapitulace'!$L$1:$L$997)=K$4)*('Měsíční rekapitulace'!$A$3:$A$999=$A71)*TEXT('Měsíční rekapitulace'!$Q$3:$Q$999,"0,0;0;0;\0"))) -> 0 | L71: =IF($A71="",,SUMPRODUCT((LOOKUP(ROW(L$1:L$997),ROW(L$1:L$997)/ISNUMBER('Měsíční rekapitulace'!$L$1:$L$997),'Měsíční rekapitulace'!$L$1:$L$997)=L$4)*('Měsíční rekapitulace'!$A$3:$A$999=$A71)*TEXT('Měsíční rekapitulace'!$Q$3:$Q$999,"0,0;0;0;\0"))) -> 0 | M71: =IF($A71="",,SUMPRODUCT((LOOKUP(ROW(M$1:M$997),ROW(M$1:M$997)/ISNUMBER('Měsíční rekapitulace'!$L$1:$L$997),'Měsíční rekapitulace'!$L$1:$L$997)=M$4)*('Měsíční rekapitulace'!$A$3:$A$999=$A71)*TEXT('Měsíční rekapitulace'!$Q$3:$Q$999,"0,0;0;0;\0"))) -> 0 | N71: =IF($A71="",,SUMPRODUCT((LOOKUP(ROW(N$1:N$997),ROW(N$1:N$997)/ISNUMBER('Měsíční rekapitulace'!$L$1:$L$997),'Měsíční rekapitulace'!$L$1:$L$997)=N$4)*('Měsíční rekapitulace'!$A$3:$A$999=$A71)*TEXT('Měsíční rekapitulace'!$Q$3:$Q$999,"0,0;0;0;\0"))) -> 0 | O71: =IF($A71="",,SUMPRODUCT((LOOKUP(ROW(O$1:O$997),ROW(O$1:O$997)/ISNUMBER('Měsíční rekapitulace'!$L$1:$L$997),'Měsíční rekapitulace'!$L$1:$L$997)=O$4)*('Měsíční rekapitulace'!$A$3:$A$999=$A71)*TEXT('Měsíční rekapitulace'!$Q$3:$Q$999,"0,0;0;0;\0"))) -> 0 | P71: 0
A72: =IFERROR(INDEX('Měsíční rekapitulace'!A$3:A$999,SMALL(IF(('Měsíční rekapitulace'!A$3:A$999<>"")*('Měsíční rekapitulace'!A$3:A$999<>'Měsíční rekapitulace'!$A$2)*(COUNTIF(A$5:A71,'Měsíční rekapitulace'!A$3:A$999)=0),ROW('Měsíční rekapitulace'!A$3:A$999)-2),1)),"") ->  | B72: =IFERROR(INDEX('Měsíční rekapitulace'!E$3:E$999,MATCH(A72,'Měsíční rekapitulace'!A$3:A$999,)),"") ->  | D72: =IF($A72="",,SUMPRODUCT((LOOKUP(ROW(D$1:D$997),ROW(D$1:D$997)/ISNUMBER('Měsíční rekapitulace'!$L$1:$L$997),'Měsíční rekapitulace'!$L$1:$L$997)=D$4)*('Měsíční rekapitulace'!$A$3:$A$999=$A72)*TEXT('Měsíční rekapitulace'!$Q$3:$Q$999,"0,0;0;0;\0"))) -> 0 | E72: =IF($A72="",,SUMPRODUCT((LOOKUP(ROW(E$1:E$997),ROW(E$1:E$997)/ISNUMBER('Měsíční rekapitulace'!$L$1:$L$997),'Měsíční rekapitulace'!$L$1:$L$997)=E$4)*('Měsíční rekapitulace'!$A$3:$A$999=$A72)*TEXT('Měsíční rekapitulace'!$Q$3:$Q$999,"0,0;0;0;\0"))) -> 0 | F72: =IF($A72="",,SUMPRODUCT((LOOKUP(ROW(F$1:F$997),ROW(F$1:F$997)/ISNUMBER('Měsíční rekapitulace'!$L$1:$L$997),'Měsíční rekapitulace'!$L$1:$L$997)=F$4)*('Měsíční rekapitulace'!$A$3:$A$999=$A72)*TEXT('Měsíční rekapitulace'!$Q$3:$Q$999,"0,0;0;0;\0"))) -> 0 | G72: =IF($A72="",,SUMPRODUCT((LOOKUP(ROW(G$1:G$997),ROW(G$1:G$997)/ISNUMBER('Měsíční rekapitulace'!$L$1:$L$997),'Měsíční rekapitulace'!$L$1:$L$997)=G$4)*('Měsíční rekapitulace'!$A$3:$A$999=$A72)*TEXT('Měsíční rekapitulace'!$Q$3:$Q$999,"0,0;0;0;\0"))) -> 0 | H72: =IF($A72="",,SUMPRODUCT((LOOKUP(ROW(H$1:H$997),ROW(H$1:H$997)/ISNUMBER('Měsíční rekapitulace'!$L$1:$L$997),'Měsíční rekapitulace'!$L$1:$L$997)=H$4)*('Měsíční rekapitulace'!$A$3:$A$999=$A72)*TEXT('Měsíční rekapitulace'!$Q$3:$Q$999,"0,0;0;0;\0"))) -> 0 | I72: =IF($A72="",,SUMPRODUCT((LOOKUP(ROW(I$1:I$997),ROW(I$1:I$997)/ISNUMBER('Měsíční rekapitulace'!$L$1:$L$997),'Měsíční rekapitulace'!$L$1:$L$997)=I$4)*('Měsíční rekapitulace'!$A$3:$A$999=$A72)*TEXT('Měsíční rekapitulace'!$Q$3:$Q$999,"0,0;0;0;\0"))) -> 0 | J72: =IF($A72="",,SUMPRODUCT((LOOKUP(ROW(J$1:J$997),ROW(J$1:J$997)/ISNUMBER('Měsíční rekapitulace'!$L$1:$L$997),'Měsíční rekapitulace'!$L$1:$L$997)=J$4)*('Měsíční rekapitulace'!$A$3:$A$999=$A72)*TEXT('Měsíční rekapitulace'!$Q$3:$Q$999,"0,0;0;0;\0"))) -> 0 | K72: =IF($A72="",,SUMPRODUCT((LOOKUP(ROW(K$1:K$997),ROW(K$1:K$997)/ISNUMBER('Měsíční rekapitulace'!$L$1:$L$997),'Měsíční rekapitulace'!$L$1:$L$997)=K$4)*('Měsíční rekapitulace'!$A$3:$A$999=$A72)*TEXT('Měsíční rekapitulace'!$Q$3:$Q$999,"0,0;0;0;\0"))) -> 0 | L72: =IF($A72="",,SUMPRODUCT((LOOKUP(ROW(L$1:L$997),ROW(L$1:L$997)/ISNUMBER('Měsíční rekapitulace'!$L$1:$L$997),'Měsíční rekapitulace'!$L$1:$L$997)=L$4)*('Měsíční rekapitulace'!$A$3:$A$999=$A72)*TEXT('Měsíční rekapitulace'!$Q$3:$Q$999,"0,0;0;0;\0"))) -> 0 | M72: =IF($A72="",,SUMPRODUCT((LOOKUP(ROW(M$1:M$997),ROW(M$1:M$997)/ISNUMBER('Měsíční rekapitulace'!$L$1:$L$997),'Měsíční rekapitulace'!$L$1:$L$997)=M$4)*('Měsíční rekapitulace'!$A$3:$A$999=$A72)*TEXT('Měsíční rekapitulace'!$Q$3:$Q$999,"0,0;0;0;\0"))) -> 0 | N72: =IF($A72="",,SUMPRODUCT((LOOKUP(ROW(N$1:N$997),ROW(N$1:N$997)/ISNUMBER('Měsíční rekapitulace'!$L$1:$L$997),'Měsíční rekapitulace'!$L$1:$L$997)=N$4)*('Měsíční rekapitulace'!$A$3:$A$999=$A72)*TEXT('Měsíční rekapitulace'!$Q$3:$Q$999,"0,0;0;0;\0"))) -> 0 | O72: =IF($A72="",,SUMPRODUCT((LOOKUP(ROW(O$1:O$997),ROW(O$1:O$997)/ISNUMBER('Měsíční rekapitulace'!$L$1:$L$997),'Měsíční rekapitulace'!$L$1:$L$997)=O$4)*('Měsíční rekapitulace'!$A$3:$A$999=$A72)*TEXT('Měsíční rekapitulace'!$Q$3:$Q$999,"0,0;0;0;\0"))) -> 0 | P72: 0
A73: =IFERROR(INDEX('Měsíční rekapitulace'!A$3:A$999,SMALL(IF(('Měsíční rekapitulace'!A$3:A$999<>"")*('Měsíční rekapitulace'!A$3:A$999<>'Měsíční rekapitulace'!$A$2)*(COUNTIF(A$5:A72,'Měsíční rekapitulace'!A$3:A$999)=0),ROW('Měsíční rekapitulace'!A$3:A$999)-2),1)),"") ->  | B73: =IFERROR(INDEX('Měsíční rekapitulace'!E$3:E$999,MATCH(A73,'Měsíční rekapitulace'!A$3:A$999,)),"") ->  | D73: =IF($A73="",,SUMPRODUCT((LOOKUP(ROW(D$1:D$997),ROW(D$1:D$997)/ISNUMBER('Měsíční rekapitulace'!$L$1:$L$997),'Měsíční rekapitulace'!$L$1:$L$997)=D$4)*('Měsíční rekapitulace'!$A$3:$A$999=$A73)*TEXT('Měsíční rekapitulace'!$Q$3:$Q$999,"0,0;0;0;\0"))) -> 0 | E73: =IF($A73="",,SUMPRODUCT((LOOKUP(ROW(E$1:E$997),ROW(E$1:E$997)/ISNUMBER('Měsíční rekapitulace'!$L$1:$L$997),'Měsíční rekapitulace'!$L$1:$L$997)=E$4)*('Měsíční rekapitulace'!$A$3:$A$999=$A73)*TEXT('Měsíční rekapitulace'!$Q$3:$Q$999,"0,0;0;0;\0"))) -> 0 | F73: =IF($A73="",,SUMPRODUCT((LOOKUP(ROW(F$1:F$997),ROW(F$1:F$997)/ISNUMBER('Měsíční rekapitulace'!$L$1:$L$997),'Měsíční rekapitulace'!$L$1:$L$997)=F$4)*('Měsíční rekapitulace'!$A$3:$A$999=$A73)*TEXT('Měsíční rekapitulace'!$Q$3:$Q$999,"0,0;0;0;\0"))) -> 0 | G73: =IF($A73="",,SUMPRODUCT((LOOKUP(ROW(G$1:G$997),ROW(G$1:G$997)/ISNUMBER('Měsíční rekapitulace'!$L$1:$L$997),'Měsíční rekapitulace'!$L$1:$L$997)=G$4)*('Měsíční rekapitulace'!$A$3:$A$999=$A73)*TEXT('Měsíční rekapitulace'!$Q$3:$Q$999,"0,0;0;0;\0"))) -> 0 | H73: =IF($A73="",,SUMPRODUCT((LOOKUP(ROW(H$1:H$997),ROW(H$1:H$997)/ISNUMBER('Měsíční rekapitulace'!$L$1:$L$997),'Měsíční rekapitulace'!$L$1:$L$997)=H$4)*('Měsíční rekapitulace'!$A$3:$A$999=$A73)*TEXT('Měsíční rekapitulace'!$Q$3:$Q$999,"0,0;0;0;\0"))) -> 0 | I73: =IF($A73="",,SUMPRODUCT((LOOKUP(ROW(I$1:I$997),ROW(I$1:I$997)/ISNUMBER('Měsíční rekapitulace'!$L$1:$L$997),'Měsíční rekapitulace'!$L$1:$L$997)=I$4)*('Měsíční rekapitulace'!$A$3:$A$999=$A73)*TEXT('Měsíční rekapitulace'!$Q$3:$Q$999,"0,0;0;0;\0"))) -> 0 | J73: =IF($A73="",,SUMPRODUCT((LOOKUP(ROW(J$1:J$997),ROW(J$1:J$997)/ISNUMBER('Měsíční rekapitulace'!$L$1:$L$997),'Měsíční rekapitulace'!$L$1:$L$997)=J$4)*('Měsíční rekapitulace'!$A$3:$A$999=$A73)*TEXT('Měsíční rekapitulace'!$Q$3:$Q$999,"0,0;0;0;\0"))) -> 0 | K73: =IF($A73="",,SUMPRODUCT((LOOKUP(ROW(K$1:K$997),ROW(K$1:K$997)/ISNUMBER('Měsíční rekapitulace'!$L$1:$L$997),'Měsíční rekapitulace'!$L$1:$L$997)=K$4)*('Měsíční rekapitulace'!$A$3:$A$999=$A73)*TEXT('Měsíční rekapitulace'!$Q$3:$Q$999,"0,0;0;0;\0"))) -> 0 | L73: =IF($A73="",,SUMPRODUCT((LOOKUP(ROW(L$1:L$997),ROW(L$1:L$997)/ISNUMBER('Měsíční rekapitulace'!$L$1:$L$997),'Měsíční rekapitulace'!$L$1:$L$997)=L$4)*('Měsíční rekapitulace'!$A$3:$A$999=$A73)*TEXT('Měsíční rekapitulace'!$Q$3:$Q$999,"0,0;0;0;\0"))) -> 0 | M73: =IF($A73="",,SUMPRODUCT((LOOKUP(ROW(M$1:M$997),ROW(M$1:M$997)/ISNUMBER('Měsíční rekapitulace'!$L$1:$L$997),'Měsíční rekapitulace'!$L$1:$L$997)=M$4)*('Měsíční rekapitulace'!$A$3:$A$999=$A73)*TEXT('Měsíční rekapitulace'!$Q$3:$Q$999,"0,0;0;0;\0"))) -> 0 | N73: =IF($A73="",,SUMPRODUCT((LOOKUP(ROW(N$1:N$997),ROW(N$1:N$997)/ISNUMBER('Měsíční rekapitulace'!$L$1:$L$997),'Měsíční rekapitulace'!$L$1:$L$997)=N$4)*('Měsíční rekapitulace'!$A$3:$A$999=$A73)*TEXT('Měsíční rekapitulace'!$Q$3:$Q$999,"0,0;0;0;\0"))) -> 0 | O73: =IF($A73="",,SUMPRODUCT((LOOKUP(ROW(O$1:O$997),ROW(O$1:O$997)/ISNUMBER('Měsíční rekapitulace'!$L$1:$L$997),'Měsíční rekapitulace'!$L$1:$L$997)=O$4)*('Měsíční rekapitulace'!$A$3:$A$999=$A73)*TEXT('Měsíční rekapitulace'!$Q$3:$Q$999,"0,0;0;0;\0"))) -> 0 | P73: 0
A74: =IFERROR(INDEX('Měsíční rekapitulace'!A$3:A$999,SMALL(IF(('Měsíční rekapitulace'!A$3:A$999<>"")*('Měsíční rekapitulace'!A$3:A$999<>'Měsíční rekapitulace'!$A$2)*(COUNTIF(A$5:A73,'Měsíční rekapitulace'!A$3:A$999)=0),ROW('Měsíční rekapitulace'!A$3:A$999)-2),1)),"") ->  | B74: =IFERROR(INDEX('Měsíční rekapitulace'!E$3:E$999,MATCH(A74,'Měsíční rekapitulace'!A$3:A$999,)),"") ->  | D74: =IF($A74="",,SUMPRODUCT((LOOKUP(ROW(D$1:D$997),ROW(D$1:D$997)/ISNUMBER('Měsíční rekapitulace'!$L$1:$L$997),'Měsíční rekapitulace'!$L$1:$L$997)=D$4)*('Měsíční rekapitulace'!$A$3:$A$999=$A74)*TEXT('Měsíční rekapitulace'!$Q$3:$Q$999,"0,0;0;0;\0"))) -> 0 | E74: =IF($A74="",,SUMPRODUCT((LOOKUP(ROW(E$1:E$997),ROW(E$1:E$997)/ISNUMBER('Měsíční rekapitulace'!$L$1:$L$997),'Měsíční rekapitulace'!$L$1:$L$997)=E$4)*('Měsíční rekapitulace'!$A$3:$A$999=$A74)*TEXT('Měsíční rekapitulace'!$Q$3:$Q$999,"0,0;0;0;\0"))) -> 0 | F74: =IF($A74="",,SUMPRODUCT((LOOKUP(ROW(F$1:F$997),ROW(F$1:F$997)/ISNUMBER('Měsíční rekapitulace'!$L$1:$L$997),'Měsíční rekapitulace'!$L$1:$L$997)=F$4)*('Měsíční rekapitulace'!$A$3:$A$999=$A74)*TEXT('Měsíční rekapitulace'!$Q$3:$Q$999,"0,0;0;0;\0"))) -> 0 | G74: =IF($A74="",,SUMPRODUCT((LOOKUP(ROW(G$1:G$997),ROW(G$1:G$997)/ISNUMBER('Měsíční rekapitulace'!$L$1:$L$997),'Měsíční rekapitulace'!$L$1:$L$997)=G$4)*('Měsíční rekapitulace'!$A$3:$A$999=$A74)*TEXT('Měsíční rekapitulace'!$Q$3:$Q$999,"0,0;0;0;\0"))) -> 0 | H74: =IF($A74="",,SUMPRODUCT((LOOKUP(ROW(H$1:H$997),ROW(H$1:H$997)/ISNUMBER('Měsíční rekapitulace'!$L$1:$L$997),'Měsíční rekapitulace'!$L$1:$L$997)=H$4)*('Měsíční rekapitulace'!$A$3:$A$999=$A74)*TEXT('Měsíční rekapitulace'!$Q$3:$Q$999,"0,0;0;0;\0"))) -> 0 | I74: =IF($A74="",,SUMPRODUCT((LOOKUP(ROW(I$1:I$997),ROW(I$1:I$997)/ISNUMBER('Měsíční rekapitulace'!$L$1:$L$997),'Měsíční rekapitulace'!$L$1:$L$997)=I$4)*('Měsíční rekapitulace'!$A$3:$A$999=$A74)*TEXT('Měsíční rekapitulace'!$Q$3:$Q$999,"0,0;0;0;\0"))) -> 0 | J74: =IF($A74="",,SUMPRODUCT((LOOKUP(ROW(J$1:J$997),ROW(J$1:J$997)/ISNUMBER('Měsíční rekapitulace'!$L$1:$L$997),'Měsíční rekapitulace'!$L$1:$L$997)=J$4)*('Měsíční rekapitulace'!$A$3:$A$999=$A74)*TEXT('Měsíční rekapitulace'!$Q$3:$Q$999,"0,0;0;0;\0"))) -> 0 | K74: =IF($A74="",,SUMPRODUCT((LOOKUP(ROW(K$1:K$997),ROW(K$1:K$997)/ISNUMBER('Měsíční rekapitulace'!$L$1:$L$997),'Měsíční rekapitulace'!$L$1:$L$997)=K$4)*('Měsíční rekapitulace'!$A$3:$A$999=$A74)*TEXT('Měsíční rekapitulace'!$Q$3:$Q$999,"0,0;0;0;\0"))) -> 0 | L74: =IF($A74="",,SUMPRODUCT((LOOKUP(ROW(L$1:L$997),ROW(L$1:L$997)/ISNUMBER('Měsíční rekapitulace'!$L$1:$L$997),'Měsíční rekapitulace'!$L$1:$L$997)=L$4)*('Měsíční rekapitulace'!$A$3:$A$999=$A74)*TEXT('Měsíční rekapitulace'!$Q$3:$Q$999,"0,0;0;0;\0"))) -> 0 | M74: =IF($A74="",,SUMPRODUCT((LOOKUP(ROW(M$1:M$997),ROW(M$1:M$997)/ISNUMBER('Měsíční rekapitulace'!$L$1:$L$997),'Měsíční rekapitulace'!$L$1:$L$997)=M$4)*('Měsíční rekapitulace'!$A$3:$A$999=$A74)*TEXT('Měsíční rekapitulace'!$Q$3:$Q$999,"0,0;0;0;\0"))) -> 0 | N74: =IF($A74="",,SUMPRODUCT((LOOKUP(ROW(N$1:N$997),ROW(N$1:N$997)/ISNUMBER('Měsíční rekapitulace'!$L$1:$L$997),'Měsíční rekapitulace'!$L$1:$L$997)=N$4)*('Měsíční rekapitulace'!$A$3:$A$999=$A74)*TEXT('Měsíční rekapitulace'!$Q$3:$Q$999,"0,0;0;0;\0"))) -> 0 | O74: =IF($A74="",,SUMPRODUCT((LOOKUP(ROW(O$1:O$997),ROW(O$1:O$997)/ISNUMBER('Měsíční rekapitulace'!$L$1:$L$997),'Měsíční rekapitulace'!$L$1:$L$997)=O$4)*('Měsíční rekapitulace'!$A$3:$A$999=$A74)*TEXT('Měsíční rekapitulace'!$Q$3:$Q$999,"0,0;0;0;\0"))) -> 0 | P74: 0
A75: =IFERROR(INDEX('Měsíční rekapitulace'!A$3:A$999,SMALL(IF(('Měsíční rekapitulace'!A$3:A$999<>"")*('Měsíční rekapitulace'!A$3:A$999<>'Měsíční rekapitulace'!$A$2)*(COUNTIF(A$5:A74,'Měsíční rekapitulace'!A$3:A$999)=0),ROW('Měsíční rekapitulace'!A$3:A$999)-2),1)),"") ->  | B75: =IFERROR(INDEX('Měsíční rekapitulace'!E$3:E$999,MATCH(A75,'Měsíční rekapitulace'!A$3:A$999,)),"") ->  | D75: =IF($A75="",,SUMPRODUCT((LOOKUP(ROW(D$1:D$997),ROW(D$1:D$997)/ISNUMBER('Měsíční rekapitulace'!$L$1:$L$997),'Měsíční rekapitulace'!$L$1:$L$997)=D$4)*('Měsíční rekapitulace'!$A$3:$A$999=$A75)*TEXT('Měsíční rekapitulace'!$Q$3:$Q$999,"0,0;0;0;\0"))) -> 0 | E75: =IF($A75="",,SUMPRODUCT((LOOKUP(ROW(E$1:E$997),ROW(E$1:E$997)/ISNUMBER('Měsíční rekapitulace'!$L$1:$L$997),'Měsíční rekapitulace'!$L$1:$L$997)=E$4)*('Měsíční rekapitulace'!$A$3:$A$999=$A75)*TEXT('Měsíční rekapitulace'!$Q$3:$Q$999,"0,0;0;0;\0"))) -> 0 | F75: =IF($A75="",,SUMPRODUCT((LOOKUP(ROW(F$1:F$997),ROW(F$1:F$997)/ISNUMBER('Měsíční rekapitulace'!$L$1:$L$997),'Měsíční rekapitulace'!$L$1:$L$997)=F$4)*('Měsíční rekapitulace'!$A$3:$A$999=$A75)*TEXT('Měsíční rekapitulace'!$Q$3:$Q$999,"0,0;0;0;\0"))) -> 0 | G75: =IF($A75="",,SUMPRODUCT((LOOKUP(ROW(G$1:G$997),ROW(G$1:G$997)/ISNUMBER('Měsíční rekapitulace'!$L$1:$L$997),'Měsíční rekapitulace'!$L$1:$L$997)=G$4)*('Měsíční rekapitulace'!$A$3:$A$999=$A75)*TEXT('Měsíční rekapitulace'!$Q$3:$Q$999,"0,0;0;0;\0"))) -> 0 | H75: =IF($A75="",,SUMPRODUCT((LOOKUP(ROW(H$1:H$997),ROW(H$1:H$997)/ISNUMBER('Měsíční rekapitulace'!$L$1:$L$997),'Měsíční rekapitulace'!$L$1:$L$997)=H$4)*('Měsíční rekapitulace'!$A$3:$A$999=$A75)*TEXT('Měsíční rekapitulace'!$Q$3:$Q$999,"0,0;0;0;\0"))) -> 0 | I75: =IF($A75="",,SUMPRODUCT((LOOKUP(ROW(I$1:I$997),ROW(I$1:I$997)/ISNUMBER('Měsíční rekapitulace'!$L$1:$L$997),'Měsíční rekapitulace'!$L$1:$L$997)=I$4)*('Měsíční rekapitulace'!$A$3:$A$999=$A75)*TEXT('Měsíční rekapitulace'!$Q$3:$Q$999,"0,0;0;0;\0"))) -> 0 | J75: =IF($A75="",,SUMPRODUCT((LOOKUP(ROW(J$1:J$997),ROW(J$1:J$997)/ISNUMBER('Měsíční rekapitulace'!$L$1:$L$997),'Měsíční rekapitulace'!$L$1:$L$997)=J$4)*('Měsíční rekapitulace'!$A$3:$A$999=$A75)*TEXT('Měsíční rekapitulace'!$Q$3:$Q$999,"0,0;0;0;\0"))) -> 0 | K75: =IF($A75="",,SUMPRODUCT((LOOKUP(ROW(K$1:K$997),ROW(K$1:K$997)/ISNUMBER('Měsíční rekapitulace'!$L$1:$L$997),'Měsíční rekapitulace'!$L$1:$L$997)=K$4)*('Měsíční rekapitulace'!$A$3:$A$999=$A75)*TEXT('Měsíční rekapitulace'!$Q$3:$Q$999,"0,0;0;0;\0"))) -> 0 | L75: =IF($A75="",,SUMPRODUCT((LOOKUP(ROW(L$1:L$997),ROW(L$1:L$997)/ISNUMBER('Měsíční rekapitulace'!$L$1:$L$997),'Měsíční rekapitulace'!$L$1:$L$997)=L$4)*('Měsíční rekapitulace'!$A$3:$A$999=$A75)*TEXT('Měsíční rekapitulace'!$Q$3:$Q$999,"0,0;0;0;\0"))) -> 0 | M75: =IF($A75="",,SUMPRODUCT((LOOKUP(ROW(M$1:M$997),ROW(M$1:M$997)/ISNUMBER('Měsíční rekapitulace'!$L$1:$L$997),'Měsíční rekapitulace'!$L$1:$L$997)=M$4)*('Měsíční rekapitulace'!$A$3:$A$999=$A75)*TEXT('Měsíční rekapitulace'!$Q$3:$Q$999,"0,0;0;0;\0"))) -> 0 | N75: =IF($A75="",,SUMPRODUCT((LOOKUP(ROW(N$1:N$997),ROW(N$1:N$997)/ISNUMBER('Měsíční rekapitulace'!$L$1:$L$997),'Měsíční rekapitulace'!$L$1:$L$997)=N$4)*('Měsíční rekapitulace'!$A$3:$A$999=$A75)*TEXT('Měsíční rekapitulace'!$Q$3:$Q$999,"0,0;0;0;\0"))) -> 0 | O75: =IF($A75="",,SUMPRODUCT((LOOKUP(ROW(O$1:O$997),ROW(O$1:O$997)/ISNUMBER('Měsíční rekapitulace'!$L$1:$L$997),'Měsíční rekapitulace'!$L$1:$L$997)=O$4)*('Měsíční rekapitulace'!$A$3:$A$999=$A75)*TEXT('Měsíční rekapitulace'!$Q$3:$Q$999,"0,0;0;0;\0"))) -> 0 | P75: 0
A76: =IFERROR(INDEX('Měsíční rekapitulace'!A$3:A$999,SMALL(IF(('Měsíční rekapitulace'!A$3:A$999<>"")*('Měsíční rekapitulace'!A$3:A$999<>'Měsíční rekapitulace'!$A$2)*(COUNTIF(A$5:A75,'Měsíční rekapitulace'!A$3:A$999)=0),ROW('Měsíční rekapitulace'!A$3:A$999)-2),1)),"") ->  | B76: =IFERROR(INDEX('Měsíční rekapitulace'!E$3:E$999,MATCH(A76,'Měsíční rekapitulace'!A$3:A$999,)),"") ->  | D76: =IF($A76="",,SUMPRODUCT((LOOKUP(ROW(D$1:D$997),ROW(D$1:D$997)/ISNUMBER('Měsíční rekapitulace'!$L$1:$L$997),'Měsíční rekapitulace'!$L$1:$L$997)=D$4)*('Měsíční rekapitulace'!$A$3:$A$999=$A76)*TEXT('Měsíční rekapitulace'!$Q$3:$Q$999,"0,0;0;0;\0"))) -> 0 | E76: =IF($A76="",,SUMPRODUCT((LOOKUP(ROW(E$1:E$997),ROW(E$1:E$997)/ISNUMBER('Měsíční rekapitulace'!$L$1:$L$997),'Měsíční rekapitulace'!$L$1:$L$997)=E$4)*('Měsíční rekapitulace'!$A$3:$A$999=$A76)*TEXT('Měsíční rekapitulace'!$Q$3:$Q$999,"0,0;0;0;\0"))) -> 0 | F76: =IF($A76="",,SUMPRODUCT((LOOKUP(ROW(F$1:F$997),ROW(F$1:F$997)/ISNUMBER('Měsíční rekapitulace'!$L$1:$L$997),'Měsíční rekapitulace'!$L$1:$L$997)=F$4)*('Měsíční rekapitulace'!$A$3:$A$999=$A76)*TEXT('Měsíční rekapitulace'!$Q$3:$Q$999,"0,0;0;0;\0"))) -> 0 | G76: =IF($A76="",,SUMPRODUCT((LOOKUP(ROW(G$1:G$997),ROW(G$1:G$997)/ISNUMBER('Měsíční rekapitulace'!$L$1:$L$997),'Měsíční rekapitulace'!$L$1:$L$997)=G$4)*('Měsíční rekapitulace'!$A$3:$A$999=$A76)*TEXT('Měsíční rekapitulace'!$Q$3:$Q$999,"0,0;0;0;\0"))) -> 0 | H76: =IF($A76="",,SUMPRODUCT((LOOKUP(ROW(H$1:H$997),ROW(H$1:H$997)/ISNUMBER('Měsíční rekapitulace'!$L$1:$L$997),'Měsíční rekapitulace'!$L$1:$L$997)=H$4)*('Měsíční rekapitulace'!$A$3:$A$999=$A76)*TEXT('Měsíční rekapitulace'!$Q$3:$Q$999,"0,0;0;0;\0"))) -> 0 | I76: =IF($A76="",,SUMPRODUCT((LOOKUP(ROW(I$1:I$997),ROW(I$1:I$997)/ISNUMBER('Měsíční rekapitulace'!$L$1:$L$997),'Měsíční rekapitulace'!$L$1:$L$997)=I$4)*('Měsíční rekapitulace'!$A$3:$A$999=$A76)*TEXT('Měsíční rekapitulace'!$Q$3:$Q$999,"0,0;0;0;\0"))) -> 0 | J76: =IF($A76="",,SUMPRODUCT((LOOKUP(ROW(J$1:J$997),ROW(J$1:J$997)/ISNUMBER('Měsíční rekapitulace'!$L$1:$L$997),'Měsíční rekapitulace'!$L$1:$L$997)=J$4)*('Měsíční rekapitulace'!$A$3:$A$999=$A76)*TEXT('Měsíční rekapitulace'!$Q$3:$Q$999,"0,0;0;0;\0"))) -> 0 | K76: =IF($A76="",,SUMPRODUCT((LOOKUP(ROW(K$1:K$997),ROW(K$1:K$997)/ISNUMBER('Měsíční rekapitulace'!$L$1:$L$997),'Měsíční rekapitulace'!$L$1:$L$997)=K$4)*('Měsíční rekapitulace'!$A$3:$A$999=$A76)*TEXT('Měsíční rekapitulace'!$Q$3:$Q$999,"0,0;0;0;\0"))) -> 0 | L76: =IF($A76="",,SUMPRODUCT((LOOKUP(ROW(L$1:L$997),ROW(L$1:L$997)/ISNUMBER('Měsíční rekapitulace'!$L$1:$L$997),'Měsíční rekapitulace'!$L$1:$L$997)=L$4)*('Měsíční rekapitulace'!$A$3:$A$999=$A76)*TEXT('Měsíční rekapitulace'!$Q$3:$Q$999,"0,0;0;0;\0"))) -> 0 | M76: =IF($A76="",,SUMPRODUCT((LOOKUP(ROW(M$1:M$997),ROW(M$1:M$997)/ISNUMBER('Měsíční rekapitulace'!$L$1:$L$997),'Měsíční rekapitulace'!$L$1:$L$997)=M$4)*('Měsíční rekapitulace'!$A$3:$A$999=$A76)*TEXT('Měsíční rekapitulace'!$Q$3:$Q$999,"0,0;0;0;\0"))) -> 0 | N76: =IF($A76="",,SUMPRODUCT((LOOKUP(ROW(N$1:N$997),ROW(N$1:N$997)/ISNUMBER('Měsíční rekapitulace'!$L$1:$L$997),'Měsíční rekapitulace'!$L$1:$L$997)=N$4)*('Měsíční rekapitulace'!$A$3:$A$999=$A76)*TEXT('Měsíční rekapitulace'!$Q$3:$Q$999,"0,0;0;0;\0"))) -> 0 | O76: =IF($A76="",,SUMPRODUCT((LOOKUP(ROW(O$1:O$997),ROW(O$1:O$997)/ISNUMBER('Měsíční rekapitulace'!$L$1:$L$997),'Měsíční rekapitulace'!$L$1:$L$997)=O$4)*('Měsíční rekapitulace'!$A$3:$A$999=$A76)*TEXT('Měsíční rekapitulace'!$Q$3:$Q$999,"0,0;0;0;\0"))) -> 0 | P76: 0
A77: =IFERROR(INDEX('Měsíční rekapitulace'!A$3:A$999,SMALL(IF(('Měsíční rekapitulace'!A$3:A$999<>"")*('Měsíční rekapitulace'!A$3:A$999<>'Měsíční rekapitulace'!$A$2)*(COUNTIF(A$5:A76,'Měsíční rekapitulace'!A$3:A$999)=0),ROW('Měsíční rekapitulace'!A$3:A$999)-2),1)),"") ->  | B77: =IFERROR(INDEX('Měsíční rekapitulace'!E$3:E$999,MATCH(A77,'Měsíční rekapitulace'!A$3:A$999,)),"") ->  | D77: =IF($A77="",,SUMPRODUCT((LOOKUP(ROW(D$1:D$997),ROW(D$1:D$997)/ISNUMBER('Měsíční rekapitulace'!$L$1:$L$997),'Měsíční rekapitulace'!$L$1:$L$997)=D$4)*('Měsíční rekapitulace'!$A$3:$A$999=$A77)*TEXT('Měsíční rekapitulace'!$Q$3:$Q$999,"0,0;0;0;\0"))) -> 0 | E77: =IF($A77="",,SUMPRODUCT((LOOKUP(ROW(E$1:E$997),ROW(E$1:E$997)/ISNUMBER('Měsíční rekapitulace'!$L$1:$L$997),'Měsíční rekapitulace'!$L$1:$L$997)=E$4)*('Měsíční rekapitulace'!$A$3:$A$999=$A77)*TEXT('Měsíční rekapitulace'!$Q$3:$Q$999,"0,0;0;0;\0"))) -> 0 | F77: =IF($A77="",,SUMPRODUCT((LOOKUP(ROW(F$1:F$997),ROW(F$1:F$997)/ISNUMBER('Měsíční rekapitulace'!$L$1:$L$997),'Měsíční rekapitulace'!$L$1:$L$997)=F$4)*('Měsíční rekapitulace'!$A$3:$A$999=$A77)*TEXT('Měsíční rekapitulace'!$Q$3:$Q$999,"0,0;0;0;\0"))) -> 0 | G77: =IF($A77="",,SUMPRODUCT((LOOKUP(ROW(G$1:G$997),ROW(G$1:G$997)/ISNUMBER('Měsíční rekapitulace'!$L$1:$L$997),'Měsíční rekapitulace'!$L$1:$L$997)=G$4)*('Měsíční rekapitulace'!$A$3:$A$999=$A77)*TEXT('Měsíční rekapitulace'!$Q$3:$Q$999,"0,0;0;0;\0"))) -> 0 | H77: =IF($A77="",,SUMPRODUCT((LOOKUP(ROW(H$1:H$997),ROW(H$1:H$997)/ISNUMBER('Měsíční rekapitulace'!$L$1:$L$997),'Měsíční rekapitulace'!$L$1:$L$997)=H$4)*('Měsíční rekapitulace'!$A$3:$A$999=$A77)*TEXT('Měsíční rekapitulace'!$Q$3:$Q$999,"0,0;0;0;\0"))) -> 0 | I77: =IF($A77="",,SUMPRODUCT((LOOKUP(ROW(I$1:I$997),ROW(I$1:I$997)/ISNUMBER('Měsíční rekapitulace'!$L$1:$L$997),'Měsíční rekapitulace'!$L$1:$L$997)=I$4)*('Měsíční rekapitulace'!$A$3:$A$999=$A77)*TEXT('Měsíční rekapitulace'!$Q$3:$Q$999,"0,0;0;0;\0"))) -> 0 | J77: =IF($A77="",,SUMPRODUCT((LOOKUP(ROW(J$1:J$997),ROW(J$1:J$997)/ISNUMBER('Měsíční rekapitulace'!$L$1:$L$997),'Měsíční rekapitulace'!$L$1:$L$997)=J$4)*('Měsíční rekapitulace'!$A$3:$A$999=$A77)*TEXT('Měsíční rekapitulace'!$Q$3:$Q$999,"0,0;0;0;\0"))) -> 0 | K77: =IF($A77="",,SUMPRODUCT((LOOKUP(ROW(K$1:K$997),ROW(K$1:K$997)/ISNUMBER('Měsíční rekapitulace'!$L$1:$L$997),'Měsíční rekapitulace'!$L$1:$L$997)=K$4)*('Měsíční rekapitulace'!$A$3:$A$999=$A77)*TEXT('Měsíční rekapitulace'!$Q$3:$Q$999,"0,0;0;0;\0"))) -> 0 | L77: =IF($A77="",,SUMPRODUCT((LOOKUP(ROW(L$1:L$997),ROW(L$1:L$997)/ISNUMBER('Měsíční rekapitulace'!$L$1:$L$997),'Měsíční rekapitulace'!$L$1:$L$997)=L$4)*('Měsíční rekapitulace'!$A$3:$A$999=$A77)*TEXT('Měsíční rekapitulace'!$Q$3:$Q$999,"0,0;0;0;\0"))) -> 0 | M77: =IF($A77="",,SUMPRODUCT((LOOKUP(ROW(M$1:M$997),ROW(M$1:M$997)/ISNUMBER('Měsíční rekapitulace'!$L$1:$L$997),'Měsíční rekapitulace'!$L$1:$L$997)=M$4)*('Měsíční rekapitulace'!$A$3:$A$999=$A77)*TEXT('Měsíční rekapitulace'!$Q$3:$Q$999,"0,0;0;0;\0"))) -> 0 | N77: =IF($A77="",,SUMPRODUCT((LOOKUP(ROW(N$1:N$997),ROW(N$1:N$997)/ISNUMBER('Měsíční rekapitulace'!$L$1:$L$997),'Měsíční rekapitulace'!$L$1:$L$997)=N$4)*('Měsíční rekapitulace'!$A$3:$A$999=$A77)*TEXT('Měsíční rekapitulace'!$Q$3:$Q$999,"0,0;0;0;\0"))) -> 0 | O77: =IF($A77="",,SUMPRODUCT((LOOKUP(ROW(O$1:O$997),ROW(O$1:O$997)/ISNUMBER('Měsíční rekapitulace'!$L$1:$L$997),'Měsíční rekapitulace'!$L$1:$L$997)=O$4)*('Měsíční rekapitulace'!$A$3:$A$999=$A77)*TEXT('Měsíční rekapitulace'!$Q$3:$Q$999,"0,0;0;0;\0"))) -> 0 | P77: 0
A78: =IFERROR(INDEX('Měsíční rekapitulace'!A$3:A$999,SMALL(IF(('Měsíční rekapitulace'!A$3:A$999<>"")*('Měsíční rekapitulace'!A$3:A$999<>'Měsíční rekapitulace'!$A$2)*(COUNTIF(A$5:A77,'Měsíční rekapitulace'!A$3:A$999)=0),ROW('Měsíční rekapitulace'!A$3:A$999)-2),1)),"") ->  | B78: =IFERROR(INDEX('Měsíční rekapitulace'!E$3:E$999,MATCH(A78,'Měsíční rekapitulace'!A$3:A$999,)),"") ->  | D78: =IF($A78="",,SUMPRODUCT((LOOKUP(ROW(D$1:D$997),ROW(D$1:D$997)/ISNUMBER('Měsíční rekapitulace'!$L$1:$L$997),'Měsíční rekapitulace'!$L$1:$L$997)=D$4)*('Měsíční rekapitulace'!$A$3:$A$999=$A78)*TEXT('Měsíční rekapitulace'!$Q$3:$Q$999,"0,0;0;0;\0"))) -> 0 | E78: =IF($A78="",,SUMPRODUCT((LOOKUP(ROW(E$1:E$997),ROW(E$1:E$997)/ISNUMBER('Měsíční rekapitulace'!$L$1:$L$997),'Měsíční rekapitulace'!$L$1:$L$997)=E$4)*('Měsíční rekapitulace'!$A$3:$A$999=$A78)*TEXT('Měsíční rekapitulace'!$Q$3:$Q$999,"0,0;0;0;\0"))) -> 0 | F78: =IF($A78="",,SUMPRODUCT((LOOKUP(ROW(F$1:F$997),ROW(F$1:F$997)/ISNUMBER('Měsíční rekapitulace'!$L$1:$L$997),'Měsíční rekapitulace'!$L$1:$L$997)=F$4)*('Měsíční rekapitulace'!$A$3:$A$999=$A78)*TEXT('Měsíční rekapitulace'!$Q$3:$Q$999,"0,0;0;0;\0"))) -> 0 | G78: =IF($A78="",,SUMPRODUCT((LOOKUP(ROW(G$1:G$997),ROW(G$1:G$997)/ISNUMBER('Měsíční rekapitulace'!$L$1:$L$997),'Měsíční rekapitulace'!$L$1:$L$997)=G$4)*('Měsíční rekapitulace'!$A$3:$A$999=$A78)*TEXT('Měsíční rekapitulace'!$Q$3:$Q$999,"0,0;0;0;\0"))) -> 0 | H78: =IF($A78="",,SUMPRODUCT((LOOKUP(ROW(H$1:H$997),ROW(H$1:H$997)/ISNUMBER('Měsíční rekapitulace'!$L$1:$L$997),'Měsíční rekapitulace'!$L$1:$L$997)=H$4)*('Měsíční rekapitulace'!$A$3:$A$999=$A78)*TEXT('Měsíční rekapitulace'!$Q$3:$Q$999,"0,0;0;0;\0"))) -> 0 | I78: =IF($A78="",,SUMPRODUCT((LOOKUP(ROW(I$1:I$997),ROW(I$1:I$997)/ISNUMBER('Měsíční rekapitulace'!$L$1:$L$997),'Měsíční rekapitulace'!$L$1:$L$997)=I$4)*('Měsíční rekapitulace'!$A$3:$A$999=$A78)*TEXT('Měsíční rekapitulace'!$Q$3:$Q$999,"0,0;0;0;\0"))) -> 0 | J78: =IF($A78="",,SUMPRODUCT((LOOKUP(ROW(J$1:J$997),ROW(J$1:J$997)/ISNUMBER('Měsíční rekapitulace'!$L$1:$L$997),'Měsíční rekapitulace'!$L$1:$L$997)=J$4)*('Měsíční rekapitulace'!$A$3:$A$999=$A78)*TEXT('Měsíční rekapitulace'!$Q$3:$Q$999,"0,0;0;0;\0"))) -> 0 | K78: =IF($A78="",,SUMPRODUCT((LOOKUP(ROW(K$1:K$997),ROW(K$1:K$997)/ISNUMBER('Měsíční rekapitulace'!$L$1:$L$997),'Měsíční rekapitulace'!$L$1:$L$997)=K$4)*('Měsíční rekapitulace'!$A$3:$A$999=$A78)*TEXT('Měsíční rekapitulace'!$Q$3:$Q$999,"0,0;0;0;\0"))) -> 0 | L78: =IF($A78="",,SUMPRODUCT((LOOKUP(ROW(L$1:L$997),ROW(L$1:L$997)/ISNUMBER('Měsíční rekapitulace'!$L$1:$L$997),'Měsíční rekapitulace'!$L$1:$L$997)=L$4)*('Měsíční rekapitulace'!$A$3:$A$999=$A78)*TEXT('Měsíční rekapitulace'!$Q$3:$Q$999,"0,0;0;0;\0"))) -> 0 | M78: =IF($A78="",,SUMPRODUCT((LOOKUP(ROW(M$1:M$997),ROW(M$1:M$997)/ISNUMBER('Měsíční rekapitulace'!$L$1:$L$997),'Měsíční rekapitulace'!$L$1:$L$997)=M$4)*('Měsíční rekapitulace'!$A$3:$A$999=$A78)*TEXT('Měsíční rekapitulace'!$Q$3:$Q$999,"0,0;0;0;\0"))) -> 0 | N78: =IF($A78="",,SUMPRODUCT((LOOKUP(ROW(N$1:N$997),ROW(N$1:N$997)/ISNUMBER('Měsíční rekapitulace'!$L$1:$L$997),'Měsíční rekapitulace'!$L$1:$L$997)=N$4)*('Měsíční rekapitulace'!$A$3:$A$999=$A78)*TEXT('Měsíční rekapitulace'!$Q$3:$Q$999,"0,0;0;0;\0"))) -> 0 | O78: =IF($A78="",,SUMPRODUCT((LOOKUP(ROW(O$1:O$997),ROW(O$1:O$997)/ISNUMBER('Měsíční rekapitulace'!$L$1:$L$997),'Měsíční rekapitulace'!$L$1:$L$997)=O$4)*('Měsíční rekapitulace'!$A$3:$A$999=$A78)*TEXT('Měsíční rekapitulace'!$Q$3:$Q$999,"0,0;0;0;\0"))) -> 0 | P78: 0
A79: =IFERROR(INDEX('Měsíční rekapitulace'!A$3:A$999,SMALL(IF(('Měsíční rekapitulace'!A$3:A$999<>"")*('Měsíční rekapitulace'!A$3:A$999<>'Měsíční rekapitulace'!$A$2)*(COUNTIF(A$5:A78,'Měsíční rekapitulace'!A$3:A$999)=0),ROW('Měsíční rekapitulace'!A$3:A$999)-2),1)),"") ->  | B79: =IFERROR(INDEX('Měsíční rekapitulace'!E$3:E$999,MATCH(A79,'Měsíční rekapitulace'!A$3:A$999,)),"") ->  | D79: =IF($A79="",,SUMPRODUCT((LOOKUP(ROW(D$1:D$997),ROW(D$1:D$997)/ISNUMBER('Měsíční rekapitulace'!$L$1:$L$997),'Měsíční rekapitulace'!$L$1:$L$997)=D$4)*('Měsíční rekapitulace'!$A$3:$A$999=$A79)*TEXT('Měsíční rekapitulace'!$Q$3:$Q$999,"0,0;0;0;\0"))) -> 0 | E79: =IF($A79="",,SUMPRODUCT((LOOKUP(ROW(E$1:E$997),ROW(E$1:E$997)/ISNUMBER('Měsíční rekapitulace'!$L$1:$L$997),'Měsíční rekapitulace'!$L$1:$L$997)=E$4)*('Měsíční rekapitulace'!$A$3:$A$999=$A79)*TEXT('Měsíční rekapitulace'!$Q$3:$Q$999,"0,0;0;0;\0"))) -> 0 | F79: =IF($A79="",,SUMPRODUCT((LOOKUP(ROW(F$1:F$997),ROW(F$1:F$997)/ISNUMBER('Měsíční rekapitulace'!$L$1:$L$997),'Měsíční rekapitulace'!$L$1:$L$997)=F$4)*('Měsíční rekapitulace'!$A$3:$A$999=$A79)*TEXT('Měsíční rekapitulace'!$Q$3:$Q$999,"0,0;0;0;\0"))) -> 0 | G79: =IF($A79="",,SUMPRODUCT((LOOKUP(ROW(G$1:G$997),ROW(G$1:G$997)/ISNUMBER('Měsíční rekapitulace'!$L$1:$L$997),'Měsíční rekapitulace'!$L$1:$L$997)=G$4)*('Měsíční rekapitulace'!$A$3:$A$999=$A79)*TEXT('Měsíční rekapitulace'!$Q$3:$Q$999,"0,0;0;0;\0"))) -> 0 | H79: =IF($A79="",,SUMPRODUCT((LOOKUP(ROW(H$1:H$997),ROW(H$1:H$997)/ISNUMBER('Měsíční rekapitulace'!$L$1:$L$997),'Měsíční rekapitulace'!$L$1:$L$997)=H$4)*('Měsíční rekapitulace'!$A$3:$A$999=$A79)*TEXT('Měsíční rekapitulace'!$Q$3:$Q$999,"0,0;0;0;\0"))) -> 0 | I79: =IF($A79="",,SUMPRODUCT((LOOKUP(ROW(I$1:I$997),ROW(I$1:I$997)/ISNUMBER('Měsíční rekapitulace'!$L$1:$L$997),'Měsíční rekapitulace'!$L$1:$L$997)=I$4)*('Měsíční rekapitulace'!$A$3:$A$999=$A79)*TEXT('Měsíční rekapitulace'!$Q$3:$Q$999,"0,0;0;0;\0"))) -> 0 | J79: =IF($A79="",,SUMPRODUCT((LOOKUP(ROW(J$1:J$997),ROW(J$1:J$997)/ISNUMBER('Měsíční rekapitulace'!$L$1:$L$997),'Měsíční rekapitulace'!$L$1:$L$997)=J$4)*('Měsíční rekapitulace'!$A$3:$A$999=$A79)*TEXT('Měsíční rekapitulace'!$Q$3:$Q$999,"0,0;0;0;\0"))) -> 0 | K79: =IF($A79="",,SUMPRODUCT((LOOKUP(ROW(K$1:K$997),ROW(K$1:K$997)/ISNUMBER('Měsíční rekapitulace'!$L$1:$L$997),'Měsíční rekapitulace'!$L$1:$L$997)=K$4)*('Měsíční rekapitulace'!$A$3:$A$999=$A79)*TEXT('Měsíční rekapitulace'!$Q$3:$Q$999,"0,0;0;0;\0"))) -> 0 | L79: =IF($A79="",,SUMPRODUCT((LOOKUP(ROW(L$1:L$997),ROW(L$1:L$997)/ISNUMBER('Měsíční rekapitulace'!$L$1:$L$997),'Měsíční rekapitulace'!$L$1:$L$997)=L$4)*('Měsíční rekapitulace'!$A$3:$A$999=$A79)*TEXT('Měsíční rekapitulace'!$Q$3:$Q$999,"0,0;0;0;\0"))) -> 0 | M79: =IF($A79="",,SUMPRODUCT((LOOKUP(ROW(M$1:M$997),ROW(M$1:M$997)/ISNUMBER('Měsíční rekapitulace'!$L$1:$L$997),'Měsíční rekapitulace'!$L$1:$L$997)=M$4)*('Měsíční rekapitulace'!$A$3:$A$999=$A79)*TEXT('Měsíční rekapitulace'!$Q$3:$Q$999,"0,0;0;0;\0"))) -> 0 | N79: =IF($A79="",,SUMPRODUCT((LOOKUP(ROW(N$1:N$997),ROW(N$1:N$997)/ISNUMBER('Měsíční rekapitulace'!$L$1:$L$997),'Měsíční rekapitulace'!$L$1:$L$997)=N$4)*('Měsíční rekapitulace'!$A$3:$A$999=$A79)*TEXT('Měsíční rekapitulace'!$Q$3:$Q$999,"0,0;0;0;\0"))) -> 0 | O79: =IF($A79="",,SUMPRODUCT((LOOKUP(ROW(O$1:O$997),ROW(O$1:O$997)/ISNUMBER('Měsíční rekapitulace'!$L$1:$L$997),'Měsíční rekapitulace'!$L$1:$L$997)=O$4)*('Měsíční rekapitulace'!$A$3:$A$999=$A79)*TEXT('Měsíční rekapitulace'!$Q$3:$Q$999,"0,0;0;0;\0"))) -> 0 | P79: 0
A80: =IFERROR(INDEX('Měsíční rekapitulace'!A$3:A$999,SMALL(IF(('Měsíční rekapitulace'!A$3:A$999<>"")*('Měsíční rekapitulace'!A$3:A$999<>'Měsíční rekapitulace'!$A$2)*(COUNTIF(A$5:A79,'Měsíční rekapitulace'!A$3:A$999)=0),ROW('Měsíční rekapitulace'!A$3:A$999)-2),1)),"") ->  | B80: =IFERROR(INDEX('Měsíční rekapitulace'!E$3:E$999,MATCH(A80,'Měsíční rekapitulace'!A$3:A$999,)),"") ->  | D80: =IF($A80="",,SUMPRODUCT((LOOKUP(ROW(D$1:D$997),ROW(D$1:D$997)/ISNUMBER('Měsíční rekapitulace'!$L$1:$L$997),'Měsíční rekapitulace'!$L$1:$L$997)=D$4)*('Měsíční rekapitulace'!$A$3:$A$999=$A80)*TEXT('Měsíční rekapitulace'!$Q$3:$Q$999,"0,0;0;0;\0"))) -> 0 | E80: =IF($A80="",,SUMPRODUCT((LOOKUP(ROW(E$1:E$997),ROW(E$1:E$997)/ISNUMBER('Měsíční rekapitulace'!$L$1:$L$997),'Měsíční rekapitulace'!$L$1:$L$997)=E$4)*('Měsíční rekapitulace'!$A$3:$A$999=$A80)*TEXT('Měsíční rekapitulace'!$Q$3:$Q$999,"0,0;0;0;\0"))) -> 0 | F80: =IF($A80="",,SUMPRODUCT((LOOKUP(ROW(F$1:F$997),ROW(F$1:F$997)/ISNUMBER('Měsíční rekapitulace'!$L$1:$L$997),'Měsíční rekapitulace'!$L$1:$L$997)=F$4)*('Měsíční rekapitulace'!$A$3:$A$999=$A80)*TEXT('Měsíční rekapitulace'!$Q$3:$Q$999,"0,0;0;0;\0"))) -> 0 | G80: =IF($A80="",,SUMPRODUCT((LOOKUP(ROW(G$1:G$997),ROW(G$1:G$997)/ISNUMBER('Měsíční rekapitulace'!$L$1:$L$997),'Měsíční rekapitulace'!$L$1:$L$997)=G$4)*('Měsíční rekapitulace'!$A$3:$A$999=$A80)*TEXT('Měsíční rekapitulace'!$Q$3:$Q$999,"0,0;0;0;\0"))) -> 0 | H80: =IF($A80="",,SUMPRODUCT((LOOKUP(ROW(H$1:H$997),ROW(H$1:H$997)/ISNUMBER('Měsíční rekapitulace'!$L$1:$L$997),'Měsíční rekapitulace'!$L$1:$L$997)=H$4)*('Měsíční rekapitulace'!$A$3:$A$999=$A80)*TEXT('Měsíční rekapitulace'!$Q$3:$Q$999,"0,0;0;0;\0"))) -> 0 | I80: =IF($A80="",,SUMPRODUCT((LOOKUP(ROW(I$1:I$997),ROW(I$1:I$997)/ISNUMBER('Měsíční rekapitulace'!$L$1:$L$997),'Měsíční rekapitulace'!$L$1:$L$997)=I$4)*('Měsíční rekapitulace'!$A$3:$A$999=$A80)*TEXT('Měsíční rekapitulace'!$Q$3:$Q$999,"0,0;0;0;\0"))) -> 0 | J80: =IF($A80="",,SUMPRODUCT((LOOKUP(ROW(J$1:J$997),ROW(J$1:J$997)/ISNUMBER('Měsíční rekapitulace'!$L$1:$L$997),'Měsíční rekapitulace'!$L$1:$L$997)=J$4)*('Měsíční rekapitulace'!$A$3:$A$999=$A80)*TEXT('Měsíční rekapitulace'!$Q$3:$Q$999,"0,0;0;0;\0"))) -> 0 | K80: =IF($A80="",,SUMPRODUCT((LOOKUP(ROW(K$1:K$997),ROW(K$1:K$997)/ISNUMBER('Měsíční rekapitulace'!$L$1:$L$997),'Měsíční rekapitulace'!$L$1:$L$997)=K$4)*('Měsíční rekapitulace'!$A$3:$A$999=$A80)*TEXT('Měsíční rekapitulace'!$Q$3:$Q$999,"0,0;0;0;\0"))) -> 0 | L80: =IF($A80="",,SUMPRODUCT((LOOKUP(ROW(L$1:L$997),ROW(L$1:L$997)/ISNUMBER('Měsíční rekapitulace'!$L$1:$L$997),'Měsíční rekapitulace'!$L$1:$L$997)=L$4)*('Měsíční rekapitulace'!$A$3:$A$999=$A80)*TEXT('Měsíční rekapitulace'!$Q$3:$Q$999,"0,0;0;0;\0"))) -> 0 | M80: =IF($A80="",,SUMPRODUCT((LOOKUP(ROW(M$1:M$997),ROW(M$1:M$997)/ISNUMBER('Měsíční rekapitulace'!$L$1:$L$997),'Měsíční rekapitulace'!$L$1:$L$997)=M$4)*('Měsíční rekapitulace'!$A$3:$A$999=$A80)*TEXT('Měsíční rekapitulace'!$Q$3:$Q$999,"0,0;0;0;\0"))) -> 0 | N80: =IF($A80="",,SUMPRODUCT((LOOKUP(ROW(N$1:N$997),ROW(N$1:N$997)/ISNUMBER('Měsíční rekapitulace'!$L$1:$L$997),'Měsíční rekapitulace'!$L$1:$L$997)=N$4)*('Měsíční rekapitulace'!$A$3:$A$999=$A80)*TEXT('Měsíční rekapitulace'!$Q$3:$Q$999,"0,0;0;0;\0"))) -> 0 | O80: =IF($A80="",,SUMPRODUCT((LOOKUP(ROW(O$1:O$997),ROW(O$1:O$997)/ISNUMBER('Měsíční rekapitulace'!$L$1:$L$997),'Měsíční rekapitulace'!$L$1:$L$997)=O$4)*('Měsíční rekapitulace'!$A$3:$A$999=$A80)*TEXT('Měsíční rekapitulace'!$Q$3:$Q$999,"0,0;0;0;\0"))) -> 0 | P80: 0
A81: =IFERROR(INDEX('Měsíční rekapitulace'!A$3:A$999,SMALL(IF(('Měsíční rekapitulace'!A$3:A$999<>"")*('Měsíční rekapitulace'!A$3:A$999<>'Měsíční rekapitulace'!$A$2)*(COUNTIF(A$5:A80,'Měsíční rekapitulace'!A$3:A$999)=0),ROW('Měsíční rekapitulace'!A$3:A$999)-2),1)),"") ->  | B81: =IFERROR(INDEX('Měsíční rekapitulace'!E$3:E$999,MATCH(A81,'Měsíční rekapitulace'!A$3:A$999,)),"") ->  | D81: =IF($A81="",,SUMPRODUCT((LOOKUP(ROW(D$1:D$997),ROW(D$1:D$997)/ISNUMBER('Měsíční rekapitulace'!$L$1:$L$997),'Měsíční rekapitulace'!$L$1:$L$997)=D$4)*('Měsíční rekapitulace'!$A$3:$A$999=$A81)*TEXT('Měsíční rekapitulace'!$Q$3:$Q$999,"0,0;0;0;\0"))) -> 0 | E81: =IF($A81="",,SUMPRODUCT((LOOKUP(ROW(E$1:E$997),ROW(E$1:E$997)/ISNUMBER('Měsíční rekapitulace'!$L$1:$L$997),'Měsíční rekapitulace'!$L$1:$L$997)=E$4)*('Měsíční rekapitulace'!$A$3:$A$999=$A81)*TEXT('Měsíční rekapitulace'!$Q$3:$Q$999,"0,0;0;0;\0"))) -> 0 | F81: =IF($A81="",,SUMPRODUCT((LOOKUP(ROW(F$1:F$997),ROW(F$1:F$997)/ISNUMBER('Měsíční rekapitulace'!$L$1:$L$997),'Měsíční rekapitulace'!$L$1:$L$997)=F$4)*('Měsíční rekapitulace'!$A$3:$A$999=$A81)*TEXT('Měsíční rekapitulace'!$Q$3:$Q$999,"0,0;0;0;\0"))) -> 0 | G81: =IF($A81="",,SUMPRODUCT((LOOKUP(ROW(G$1:G$997),ROW(G$1:G$997)/ISNUMBER('Měsíční rekapitulace'!$L$1:$L$997),'Měsíční rekapitulace'!$L$1:$L$997)=G$4)*('Měsíční rekapitulace'!$A$3:$A$999=$A81)*TEXT('Měsíční rekapitulace'!$Q$3:$Q$999,"0,0;0;0;\0"))) -> 0 | H81: =IF($A81="",,SUMPRODUCT((LOOKUP(ROW(H$1:H$997),ROW(H$1:H$997)/ISNUMBER('Měsíční rekapitulace'!$L$1:$L$997),'Měsíční rekapitulace'!$L$1:$L$997)=H$4)*('Měsíční rekapitulace'!$A$3:$A$999=$A81)*TEXT('Měsíční rekapitulace'!$Q$3:$Q$999,"0,0;0;0;\0"))) -> 0 | I81: =IF($A81="",,SUMPRODUCT((LOOKUP(ROW(I$1:I$997),ROW(I$1:I$997)/ISNUMBER('Měsíční rekapitulace'!$L$1:$L$997),'Měsíční rekapitulace'!$L$1:$L$997)=I$4)*('Měsíční rekapitulace'!$A$3:$A$999=$A81)*TEXT('Měsíční rekapitulace'!$Q$3:$Q$999,"0,0;0;0;\0"))) -> 0 | J81: =IF($A81="",,SUMPRODUCT((LOOKUP(ROW(J$1:J$997),ROW(J$1:J$997)/ISNUMBER('Měsíční rekapitulace'!$L$1:$L$997),'Měsíční rekapitulace'!$L$1:$L$997)=J$4)*('Měsíční rekapitulace'!$A$3:$A$999=$A81)*TEXT('Měsíční rekapitulace'!$Q$3:$Q$999,"0,0;0;0;\0"))) -> 0 | K81: =IF($A81="",,SUMPRODUCT((LOOKUP(ROW(K$1:K$997),ROW(K$1:K$997)/ISNUMBER('Měsíční rekapitulace'!$L$1:$L$997),'Měsíční rekapitulace'!$L$1:$L$997)=K$4)*('Měsíční rekapitulace'!$A$3:$A$999=$A81)*TEXT('Měsíční rekapitulace'!$Q$3:$Q$999,"0,0;0;0;\0"))) -> 0 | L81: =IF($A81="",,SUMPRODUCT((LOOKUP(ROW(L$1:L$997),ROW(L$1:L$997)/ISNUMBER('Měsíční rekapitulace'!$L$1:$L$997),'Měsíční rekapitulace'!$L$1:$L$997)=L$4)*('Měsíční rekapitulace'!$A$3:$A$999=$A81)*TEXT('Měsíční rekapitulace'!$Q$3:$Q$999,"0,0;0;0;\0"))) -> 0 | M81: =IF($A81="",,SUMPRODUCT((LOOKUP(ROW(M$1:M$997),ROW(M$1:M$997)/ISNUMBER('Měsíční rekapitulace'!$L$1:$L$997),'Měsíční rekapitulace'!$L$1:$L$997)=M$4)*('Měsíční rekapitulace'!$A$3:$A$999=$A81)*TEXT('Měsíční rekapitulace'!$Q$3:$Q$999,"0,0;0;0;\0"))) -> 0 | N81: =IF($A81="",,SUMPRODUCT((LOOKUP(ROW(N$1:N$997),ROW(N$1:N$997)/ISNUMBER('Měsíční rekapitulace'!$L$1:$L$997),'Měsíční rekapitulace'!$L$1:$L$997)=N$4)*('Měsíční rekapitulace'!$A$3:$A$999=$A81)*TEXT('Měsíční rekapitulace'!$Q$3:$Q$999,"0,0;0;0;\0"))) -> 0 | O81: =IF($A81="",,SUMPRODUCT((LOOKUP(ROW(O$1:O$997),ROW(O$1:O$997)/ISNUMBER('Měsíční rekapitulace'!$L$1:$L$997),'Měsíční rekapitulace'!$L$1:$L$997)=O$4)*('Měsíční rekapitulace'!$A$3:$A$999=$A81)*TEXT('Měsíční rekapitulace'!$Q$3:$Q$999,"0,0;0;0;\0"))) -> 0 | P81: 0
A82: =IFERROR(INDEX('Měsíční rekapitulace'!A$3:A$999,SMALL(IF(('Měsíční rekapitulace'!A$3:A$999<>"")*('Měsíční rekapitulace'!A$3:A$999<>'Měsíční rekapitulace'!$A$2)*(COUNTIF(A$5:A81,'Měsíční rekapitulace'!A$3:A$999)=0),ROW('Měsíční rekapitulace'!A$3:A$999)-2),1)),"") ->  | B82: =IFERROR(INDEX('Měsíční rekapitulace'!E$3:E$999,MATCH(A82,'Měsíční rekapitulace'!A$3:A$999,)),"") ->  | D82: =IF($A82="",,SUMPRODUCT((LOOKUP(ROW(D$1:D$997),ROW(D$1:D$997)/ISNUMBER('Měsíční rekapitulace'!$L$1:$L$997),'Měsíční rekapitulace'!$L$1:$L$997)=D$4)*('Měsíční rekapitulace'!$A$3:$A$999=$A82)*TEXT('Měsíční rekapitulace'!$Q$3:$Q$999,"0,0;0;0;\0"))) -> 0 | E82: =IF($A82="",,SUMPRODUCT((LOOKUP(ROW(E$1:E$997),ROW(E$1:E$997)/ISNUMBER('Měsíční rekapitulace'!$L$1:$L$997),'Měsíční rekapitulace'!$L$1:$L$997)=E$4)*('Měsíční rekapitulace'!$A$3:$A$999=$A82)*TEXT('Měsíční rekapitulace'!$Q$3:$Q$999,"0,0;0;0;\0"))) -> 0 | F82: =IF($A82="",,SUMPRODUCT((LOOKUP(ROW(F$1:F$997),ROW(F$1:F$997)/ISNUMBER('Měsíční rekapitulace'!$L$1:$L$997),'Měsíční rekapitulace'!$L$1:$L$997)=F$4)*('Měsíční rekapitulace'!$A$3:$A$999=$A82)*TEXT('Měsíční rekapitulace'!$Q$3:$Q$999,"0,0;0;0;\0"))) -> 0 | G82: =IF($A82="",,SUMPRODUCT((LOOKUP(ROW(G$1:G$997),ROW(G$1:G$997)/ISNUMBER('Měsíční rekapitulace'!$L$1:$L$997),'Měsíční rekapitulace'!$L$1:$L$997)=G$4)*('Měsíční rekapitulace'!$A$3:$A$999=$A82)*TEXT('Měsíční rekapitulace'!$Q$3:$Q$999,"0,0;0;0;\0"))) -> 0 | H82: =IF($A82="",,SUMPRODUCT((LOOKUP(ROW(H$1:H$997),ROW(H$1:H$997)/ISNUMBER('Měsíční rekapitulace'!$L$1:$L$997),'Měsíční rekapitulace'!$L$1:$L$997)=H$4)*('Měsíční rekapitulace'!$A$3:$A$999=$A82)*TEXT('Měsíční rekapitulace'!$Q$3:$Q$999,"0,0;0;0;\0"))) -> 0 | I82: =IF($A82="",,SUMPRODUCT((LOOKUP(ROW(I$1:I$997),ROW(I$1:I$997)/ISNUMBER('Měsíční rekapitulace'!$L$1:$L$997),'Měsíční rekapitulace'!$L$1:$L$997)=I$4)*('Měsíční rekapitulace'!$A$3:$A$999=$A82)*TEXT('Měsíční rekapitulace'!$Q$3:$Q$999,"0,0;0;0;\0"))) -> 0 | J82: =IF($A82="",,SUMPRODUCT((LOOKUP(ROW(J$1:J$997),ROW(J$1:J$997)/ISNUMBER('Měsíční rekapitulace'!$L$1:$L$997),'Měsíční rekapitulace'!$L$1:$L$997)=J$4)*('Měsíční rekapitulace'!$A$3:$A$999=$A82)*TEXT('Měsíční rekapitulace'!$Q$3:$Q$999,"0,0;0;0;\0"))) -> 0 | K82: =IF($A82="",,SUMPRODUCT((LOOKUP(ROW(K$1:K$997),ROW(K$1:K$997)/ISNUMBER('Měsíční rekapitulace'!$L$1:$L$997),'Měsíční rekapitulace'!$L$1:$L$997)=K$4)*('Měsíční rekapitulace'!$A$3:$A$999=$A82)*TEXT('Měsíční rekapitulace'!$Q$3:$Q$999,"0,0;0;0;\0"))) -> 0 | L82: =IF($A82="",,SUMPRODUCT((LOOKUP(ROW(L$1:L$997),ROW(L$1:L$997)/ISNUMBER('Měsíční rekapitulace'!$L$1:$L$997),'Měsíční rekapitulace'!$L$1:$L$997)=L$4)*('Měsíční rekapitulace'!$A$3:$A$999=$A82)*TEXT('Měsíční rekapitulace'!$Q$3:$Q$999,"0,0;0;0;\0"))) -> 0 | M82: =IF($A82="",,SUMPRODUCT((LOOKUP(ROW(M$1:M$997),ROW(M$1:M$997)/ISNUMBER('Měsíční rekapitulace'!$L$1:$L$997),'Měsíční rekapitulace'!$L$1:$L$997)=M$4)*('Měsíční rekapitulace'!$A$3:$A$999=$A82)*TEXT('Měsíční rekapitulace'!$Q$3:$Q$999,"0,0;0;0;\0"))) -> 0 | N82: =IF($A82="",,SUMPRODUCT((LOOKUP(ROW(N$1:N$997),ROW(N$1:N$997)/ISNUMBER('Měsíční rekapitulace'!$L$1:$L$997),'Měsíční rekapitulace'!$L$1:$L$997)=N$4)*('Měsíční rekapitulace'!$A$3:$A$999=$A82)*TEXT('Měsíční rekapitulace'!$Q$3:$Q$999,"0,0;0;0;\0"))) -> 0 | O82: =IF($A82="",,SUMPRODUCT((LOOKUP(ROW(O$1:O$997),ROW(O$1:O$997)/ISNUMBER('Měsíční rekapitulace'!$L$1:$L$997),'Měsíční rekapitulace'!$L$1:$L$997)=O$4)*('Měsíční rekapitulace'!$A$3:$A$999=$A82)*TEXT('Měsíční rekapitulace'!$Q$3:$Q$999,"0,0;0;0;\0"))) -> 0 | P82: 0
A83: =IFERROR(INDEX('Měsíční rekapitulace'!A$3:A$999,SMALL(IF(('Měsíční rekapitulace'!A$3:A$999<>"")*('Měsíční rekapitulace'!A$3:A$999<>'Měsíční rekapitulace'!$A$2)*(COUNTIF(A$5:A82,'Měsíční rekapitulace'!A$3:A$999)=0),ROW('Měsíční rekapitulace'!A$3:A$999)-2),1)),"") ->  | B83: =IFERROR(INDEX('Měsíční rekapitulace'!E$3:E$999,MATCH(A83,'Měsíční rekapitulace'!A$3:A$999,)),"") ->  | D83: =IF($A83="",,SUMPRODUCT((LOOKUP(ROW(D$1:D$997),ROW(D$1:D$997)/ISNUMBER('Měsíční rekapitulace'!$L$1:$L$997),'Měsíční rekapitulace'!$L$1:$L$997)=D$4)*('Měsíční rekapitulace'!$A$3:$A$999=$A83)*TEXT('Měsíční rekapitulace'!$Q$3:$Q$999,"0,0;0;0;\0"))) -> 0 | E83: =IF($A83="",,SUMPRODUCT((LOOKUP(ROW(E$1:E$997),ROW(E$1:E$997)/ISNUMBER('Měsíční rekapitulace'!$L$1:$L$997),'Měsíční rekapitulace'!$L$1:$L$997)=E$4)*('Měsíční rekapitulace'!$A$3:$A$999=$A83)*TEXT('Měsíční rekapitulace'!$Q$3:$Q$999,"0,0;0;0;\0"))) -> 0 | F83: =IF($A83="",,SUMPRODUCT((LOOKUP(ROW(F$1:F$997),ROW(F$1:F$997)/ISNUMBER('Měsíční rekapitulace'!$L$1:$L$997),'Měsíční rekapitulace'!$L$1:$L$997)=F$4)*('Měsíční rekapitulace'!$A$3:$A$999=$A83)*TEXT('Měsíční rekapitulace'!$Q$3:$Q$999,"0,0;0;0;\0"))) -> 0 | G83: =IF($A83="",,SUMPRODUCT((LOOKUP(ROW(G$1:G$997),ROW(G$1:G$997)/ISNUMBER('Měsíční rekapitulace'!$L$1:$L$997),'Měsíční rekapitulace'!$L$1:$L$997)=G$4)*('Měsíční rekapitulace'!$A$3:$A$999=$A83)*TEXT('Měsíční rekapitulace'!$Q$3:$Q$999,"0,0;0;0;\0"))) -> 0 | H83: =IF($A83="",,SUMPRODUCT((LOOKUP(ROW(H$1:H$997),ROW(H$1:H$997)/ISNUMBER('Měsíční rekapitulace'!$L$1:$L$997),'Měsíční rekapitulace'!$L$1:$L$997)=H$4)*('Měsíční rekapitulace'!$A$3:$A$999=$A83)*TEXT('Měsíční rekapitulace'!$Q$3:$Q$999,"0,0;0;0;\0"))) -> 0 | I83: =IF($A83="",,SUMPRODUCT((LOOKUP(ROW(I$1:I$997),ROW(I$1:I$997)/ISNUMBER('Měsíční rekapitulace'!$L$1:$L$997),'Měsíční rekapitulace'!$L$1:$L$997)=I$4)*('Měsíční rekapitulace'!$A$3:$A$999=$A83)*TEXT('Měsíční rekapitulace'!$Q$3:$Q$999,"0,0;0;0;\0"))) -> 0 | J83: =IF($A83="",,SUMPRODUCT((LOOKUP(ROW(J$1:J$997),ROW(J$1:J$997)/ISNUMBER('Měsíční rekapitulace'!$L$1:$L$997),'Měsíční rekapitulace'!$L$1:$L$997)=J$4)*('Měsíční rekapitulace'!$A$3:$A$999=$A83)*TEXT('Měsíční rekapitulace'!$Q$3:$Q$999,"0,0;0;0;\0"))) -> 0 | K83: =IF($A83="",,SUMPRODUCT((LOOKUP(ROW(K$1:K$997),ROW(K$1:K$997)/ISNUMBER('Měsíční rekapitulace'!$L$1:$L$997),'Měsíční rekapitulace'!$L$1:$L$997)=K$4)*('Měsíční rekapitulace'!$A$3:$A$999=$A83)*TEXT('Měsíční rekapitulace'!$Q$3:$Q$999,"0,0;0;0;\0"))) -> 0 | L83: =IF($A83="",,SUMPRODUCT((LOOKUP(ROW(L$1:L$997),ROW(L$1:L$997)/ISNUMBER('Měsíční rekapitulace'!$L$1:$L$997),'Měsíční rekapitulace'!$L$1:$L$997)=L$4)*('Měsíční rekapitulace'!$A$3:$A$999=$A83)*TEXT('Měsíční rekapitulace'!$Q$3:$Q$999,"0,0;0;0;\0"))) -> 0 | M83: =IF($A83="",,SUMPRODUCT((LOOKUP(ROW(M$1:M$997),ROW(M$1:M$997)/ISNUMBER('Měsíční rekapitulace'!$L$1:$L$997),'Měsíční rekapitulace'!$L$1:$L$997)=M$4)*('Měsíční rekapitulace'!$A$3:$A$999=$A83)*TEXT('Měsíční rekapitulace'!$Q$3:$Q$999,"0,0;0;0;\0"))) -> 0 | N83: =IF($A83="",,SUMPRODUCT((LOOKUP(ROW(N$1:N$997),ROW(N$1:N$997)/ISNUMBER('Měsíční rekapitulace'!$L$1:$L$997),'Měsíční rekapitulace'!$L$1:$L$997)=N$4)*('Měsíční rekapitulace'!$A$3:$A$999=$A83)*TEXT('Měsíční rekapitulace'!$Q$3:$Q$999,"0,0;0;0;\0"))) -> 0 | O83: =IF($A83="",,SUMPRODUCT((LOOKUP(ROW(O$1:O$997),ROW(O$1:O$997)/ISNUMBER('Měsíční rekapitulace'!$L$1:$L$997),'Měsíční rekapitulace'!$L$1:$L$997)=O$4)*('Měsíční rekapitulace'!$A$3:$A$999=$A83)*TEXT('Měsíční rekapitulace'!$Q$3:$Q$999,"0,0;0;0;\0"))) -> 0 | P83: 0
A84: =IFERROR(INDEX('Měsíční rekapitulace'!A$3:A$999,SMALL(IF(('Měsíční rekapitulace'!A$3:A$999<>"")*('Měsíční rekapitulace'!A$3:A$999<>'Měsíční rekapitulace'!$A$2)*(COUNTIF(A$5:A83,'Měsíční rekapitulace'!A$3:A$999)=0),ROW('Měsíční rekapitulace'!A$3:A$999)-2),1)),"") ->  | B84: =IFERROR(INDEX('Měsíční rekapitulace'!E$3:E$999,MATCH(A84,'Měsíční rekapitulace'!A$3:A$999,)),"") ->  | D84: =IF($A84="",,SUMPRODUCT((LOOKUP(ROW(D$1:D$997),ROW(D$1:D$997)/ISNUMBER('Měsíční rekapitulace'!$L$1:$L$997),'Měsíční rekapitulace'!$L$1:$L$997)=D$4)*('Měsíční rekapitulace'!$A$3:$A$999=$A84)*TEXT('Měsíční rekapitulace'!$Q$3:$Q$999,"0,0;0;0;\0"))) -> 0 | E84: =IF($A84="",,SUMPRODUCT((LOOKUP(ROW(E$1:E$997),ROW(E$1:E$997)/ISNUMBER('Měsíční rekapitulace'!$L$1:$L$997),'Měsíční rekapitulace'!$L$1:$L$997)=E$4)*('Měsíční rekapitulace'!$A$3:$A$999=$A84)*TEXT('Měsíční rekapitulace'!$Q$3:$Q$999,"0,0;0;0;\0"))) -> 0 | F84: =IF($A84="",,SUMPRODUCT((LOOKUP(ROW(F$1:F$997),ROW(F$1:F$997)/ISNUMBER('Měsíční rekapitulace'!$L$1:$L$997),'Měsíční rekapitulace'!$L$1:$L$997)=F$4)*('Měsíční rekapitulace'!$A$3:$A$999=$A84)*TEXT('Měsíční rekapitulace'!$Q$3:$Q$999,"0,0;0;0;\0"))) -> 0 | G84: =IF($A84="",,SUMPRODUCT((LOOKUP(ROW(G$1:G$997),ROW(G$1:G$997)/ISNUMBER('Měsíční rekapitulace'!$L$1:$L$997),'Měsíční rekapitulace'!$L$1:$L$997)=G$4)*('Měsíční rekapitulace'!$A$3:$A$999=$A84)*TEXT('Měsíční rekapitulace'!$Q$3:$Q$999,"0,0;0;0;\0"))) -> 0 | H84: =IF($A84="",,SUMPRODUCT((LOOKUP(ROW(H$1:H$997),ROW(H$1:H$997)/ISNUMBER('Měsíční rekapitulace'!$L$1:$L$997),'Měsíční rekapitulace'!$L$1:$L$997)=H$4)*('Měsíční rekapitulace'!$A$3:$A$999=$A84)*TEXT('Měsíční rekapitulace'!$Q$3:$Q$999,"0,0;0;0;\0"))) -> 0 | I84: =IF($A84="",,SUMPRODUCT((LOOKUP(ROW(I$1:I$997),ROW(I$1:I$997)/ISNUMBER('Měsíční rekapitulace'!$L$1:$L$997),'Měsíční rekapitulace'!$L$1:$L$997)=I$4)*('Měsíční rekapitulace'!$A$3:$A$999=$A84)*TEXT('Měsíční rekapitulace'!$Q$3:$Q$999,"0,0;0;0;\0"))) -> 0 | J84: =IF($A84="",,SUMPRODUCT((LOOKUP(ROW(J$1:J$997),ROW(J$1:J$997)/ISNUMBER('Měsíční rekapitulace'!$L$1:$L$997),'Měsíční rekapitulace'!$L$1:$L$997)=J$4)*('Měsíční rekapitulace'!$A$3:$A$999=$A84)*TEXT('Měsíční rekapitulace'!$Q$3:$Q$999,"0,0;0;0;\0"))) -> 0 | K84: =IF($A84="",,SUMPRODUCT((LOOKUP(ROW(K$1:K$997),ROW(K$1:K$997)/ISNUMBER('Měsíční rekapitulace'!$L$1:$L$997),'Měsíční rekapitulace'!$L$1:$L$997)=K$4)*('Měsíční rekapitulace'!$A$3:$A$999=$A84)*TEXT('Měsíční rekapitulace'!$Q$3:$Q$999,"0,0;0;0;\0"))) -> 0 | L84: =IF($A84="",,SUMPRODUCT((LOOKUP(ROW(L$1:L$997),ROW(L$1:L$997)/ISNUMBER('Měsíční rekapitulace'!$L$1:$L$997),'Měsíční rekapitulace'!$L$1:$L$997)=L$4)*('Měsíční rekapitulace'!$A$3:$A$999=$A84)*TEXT('Měsíční rekapitulace'!$Q$3:$Q$999,"0,0;0;0;\0"))) -> 0 | M84: =IF($A84="",,SUMPRODUCT((LOOKUP(ROW(M$1:M$997),ROW(M$1:M$997)/ISNUMBER('Měsíční rekapitulace'!$L$1:$L$997),'Měsíční rekapitulace'!$L$1:$L$997)=M$4)*('Měsíční rekapitulace'!$A$3:$A$999=$A84)*TEXT('Měsíční rekapitulace'!$Q$3:$Q$999,"0,0;0;0;\0"))) -> 0 | N84: =IF($A84="",,SUMPRODUCT((LOOKUP(ROW(N$1:N$997),ROW(N$1:N$997)/ISNUMBER('Měsíční rekapitulace'!$L$1:$L$997),'Měsíční rekapitulace'!$L$1:$L$997)=N$4)*('Měsíční rekapitulace'!$A$3:$A$999=$A84)*TEXT('Měsíční rekapitulace'!$Q$3:$Q$999,"0,0;0;0;\0"))) -> 0 | O84: =IF($A84="",,SUMPRODUCT((LOOKUP(ROW(O$1:O$997),ROW(O$1:O$997)/ISNUMBER('Měsíční rekapitulace'!$L$1:$L$997),'Měsíční rekapitulace'!$L$1:$L$997)=O$4)*('Měsíční rekapitulace'!$A$3:$A$999=$A84)*TEXT('Měsíční rekapitulace'!$Q$3:$Q$999,"0,0;0;0;\0"))) -> 0 | P84: 0
A85: =IFERROR(INDEX('Měsíční rekapitulace'!A$3:A$999,SMALL(IF(('Měsíční rekapitulace'!A$3:A$999<>"")*('Měsíční rekapitulace'!A$3:A$999<>'Měsíční rekapitulace'!$A$2)*(COUNTIF(A$5:A84,'Měsíční rekapitulace'!A$3:A$999)=0),ROW('Měsíční rekapitulace'!A$3:A$999)-2),1)),"") ->  | B85: =IFERROR(INDEX('Měsíční rekapitulace'!E$3:E$999,MATCH(A85,'Měsíční rekapitulace'!A$3:A$999,)),"") ->  | D85: =IF($A85="",,SUMPRODUCT((LOOKUP(ROW(D$1:D$997),ROW(D$1:D$997)/ISNUMBER('Měsíční rekapitulace'!$L$1:$L$997),'Měsíční rekapitulace'!$L$1:$L$997)=D$4)*('Měsíční rekapitulace'!$A$3:$A$999=$A85)*TEXT('Měsíční rekapitulace'!$Q$3:$Q$999,"0,0;0;0;\0"))) -> 0 | E85: =IF($A85="",,SUMPRODUCT((LOOKUP(ROW(E$1:E$997),ROW(E$1:E$997)/ISNUMBER('Měsíční rekapitulace'!$L$1:$L$997),'Měsíční rekapitulace'!$L$1:$L$997)=E$4)*('Měsíční rekapitulace'!$A$3:$A$999=$A85)*TEXT('Měsíční rekapitulace'!$Q$3:$Q$999,"0,0;0;0;\0"))) -> 0 | F85: =IF($A85="",,SUMPRODUCT((LOOKUP(ROW(F$1:F$997),ROW(F$1:F$997)/ISNUMBER('Měsíční rekapitulace'!$L$1:$L$997),'Měsíční rekapitulace'!$L$1:$L$997)=F$4)*('Měsíční rekapitulace'!$A$3:$A$999=$A85)*TEXT('Měsíční rekapitulace'!$Q$3:$Q$999,"0,0;0;0;\0"))) -> 0 | G85: =IF($A85="",,SUMPRODUCT((LOOKUP(ROW(G$1:G$997),ROW(G$1:G$997)/ISNUMBER('Měsíční rekapitulace'!$L$1:$L$997),'Měsíční rekapitulace'!$L$1:$L$997)=G$4)*('Měsíční rekapitulace'!$A$3:$A$999=$A85)*TEXT('Měsíční rekapitulace'!$Q$3:$Q$999,"0,0;0;0;\0"))) -> 0 | H85: =IF($A85="",,SUMPRODUCT((LOOKUP(ROW(H$1:H$997),ROW(H$1:H$997)/ISNUMBER('Měsíční rekapitulace'!$L$1:$L$997),'Měsíční rekapitulace'!$L$1:$L$997)=H$4)*('Měsíční rekapitulace'!$A$3:$A$999=$A85)*TEXT('Měsíční rekapitulace'!$Q$3:$Q$999,"0,0;0;0;\0"))) -> 0 | I85: =IF($A85="",,SUMPRODUCT((LOOKUP(ROW(I$1:I$997),ROW(I$1:I$997)/ISNUMBER('Měsíční rekapitulace'!$L$1:$L$997),'Měsíční rekapitulace'!$L$1:$L$997)=I$4)*('Měsíční rekapitulace'!$A$3:$A$999=$A85)*TEXT('Měsíční rekapitulace'!$Q$3:$Q$999,"0,0;0;0;\0"))) -> 0 | J85: =IF($A85="",,SUMPRODUCT((LOOKUP(ROW(J$1:J$997),ROW(J$1:J$997)/ISNUMBER('Měsíční rekapitulace'!$L$1:$L$997),'Měsíční rekapitulace'!$L$1:$L$997)=J$4)*('Měsíční rekapitulace'!$A$3:$A$999=$A85)*TEXT('Měsíční rekapitulace'!$Q$3:$Q$999,"0,0;0;0;\0"))) -> 0 | K85: =IF($A85="",,SUMPRODUCT((LOOKUP(ROW(K$1:K$997),ROW(K$1:K$997)/ISNUMBER('Měsíční rekapitulace'!$L$1:$L$997),'Měsíční rekapitulace'!$L$1:$L$997)=K$4)*('Měsíční rekapitulace'!$A$3:$A$999=$A85)*TEXT('Měsíční rekapitulace'!$Q$3:$Q$999,"0,0;0;0;\0"))) -> 0 | L85: =IF($A85="",,SUMPRODUCT((LOOKUP(ROW(L$1:L$997),ROW(L$1:L$997)/ISNUMBER('Měsíční rekapitulace'!$L$1:$L$997),'Měsíční rekapitulace'!$L$1:$L$997)=L$4)*('Měsíční rekapitulace'!$A$3:$A$999=$A85)*TEXT('Měsíční rekapitulace'!$Q$3:$Q$999,"0,0;0;0;\0"))) -> 0 | M85: =IF($A85="",,SUMPRODUCT((LOOKUP(ROW(M$1:M$997),ROW(M$1:M$997)/ISNUMBER('Měsíční rekapitulace'!$L$1:$L$997),'Měsíční rekapitulace'!$L$1:$L$997)=M$4)*('Měsíční rekapitulace'!$A$3:$A$999=$A85)*TEXT('Měsíční rekapitulace'!$Q$3:$Q$999,"0,0;0;0;\0"))) -> 0 | N85: =IF($A85="",,SUMPRODUCT((LOOKUP(ROW(N$1:N$997),ROW(N$1:N$997)/ISNUMBER('Měsíční rekapitulace'!$L$1:$L$997),'Měsíční rekapitulace'!$L$1:$L$997)=N$4)*('Měsíční rekapitulace'!$A$3:$A$999=$A85)*TEXT('Měsíční rekapitulace'!$Q$3:$Q$999,"0,0;0;0;\0"))) -> 0 | O85: =IF($A85="",,SUMPRODUCT((LOOKUP(ROW(O$1:O$997),ROW(O$1:O$997)/ISNUMBER('Měsíční rekapitulace'!$L$1:$L$997),'Měsíční rekapitulace'!$L$1:$L$997)=O$4)*('Měsíční rekapitulace'!$A$3:$A$999=$A85)*TEXT('Měsíční rekapitulace'!$Q$3:$Q$999,"0,0;0;0;\0"))) -> 0 | P85: 0
A86: =IFERROR(INDEX('Měsíční rekapitulace'!A$3:A$999,SMALL(IF(('Měsíční rekapitulace'!A$3:A$999<>"")*('Měsíční rekapitulace'!A$3:A$999<>'Měsíční rekapitulace'!$A$2)*(COUNTIF(A$5:A85,'Měsíční rekapitulace'!A$3:A$999)=0),ROW('Měsíční rekapitulace'!A$3:A$999)-2),1)),"") ->  | B86: =IFERROR(INDEX('Měsíční rekapitulace'!E$3:E$999,MATCH(A86,'Měsíční rekapitulace'!A$3:A$999,)),"") ->  | D86: =IF($A86="",,SUMPRODUCT((LOOKUP(ROW(D$1:D$997),ROW(D$1:D$997)/ISNUMBER('Měsíční rekapitulace'!$L$1:$L$997),'Měsíční rekapitulace'!$L$1:$L$997)=D$4)*('Měsíční rekapitulace'!$A$3:$A$999=$A86)*TEXT('Měsíční rekapitulace'!$Q$3:$Q$999,"0,0;0;0;\0"))) -> 0 | E86: =IF($A86="",,SUMPRODUCT((LOOKUP(ROW(E$1:E$997),ROW(E$1:E$997)/ISNUMBER('Měsíční rekapitulace'!$L$1:$L$997),'Měsíční rekapitulace'!$L$1:$L$997)=E$4)*('Měsíční rekapitulace'!$A$3:$A$999=$A86)*TEXT('Měsíční rekapitulace'!$Q$3:$Q$999,"0,0;0;0;\0"))) -> 0 | F86: =IF($A86="",,SUMPRODUCT((LOOKUP(ROW(F$1:F$997),ROW(F$1:F$997)/ISNUMBER('Měsíční rekapitulace'!$L$1:$L$997),'Měsíční rekapitulace'!$L$1:$L$997)=F$4)*('Měsíční rekapitulace'!$A$3:$A$999=$A86)*TEXT('Měsíční rekapitulace'!$Q$3:$Q$999,"0,0;0;0;\0"))) -> 0 | G86: =IF($A86="",,SUMPRODUCT((LOOKUP(ROW(G$1:G$997),ROW(G$1:G$997)/ISNUMBER('Měsíční rekapitulace'!$L$1:$L$997),'Měsíční rekapitulace'!$L$1:$L$997)=G$4)*('Měsíční rekapitulace'!$A$3:$A$999=$A86)*TEXT('Měsíční rekapitulace'!$Q$3:$Q$999,"0,0;0;0;\0"))) -> 0 | H86: =IF($A86="",,SUMPRODUCT((LOOKUP(ROW(H$1:H$997),ROW(H$1:H$997)/ISNUMBER('Měsíční rekapitulace'!$L$1:$L$997),'Měsíční rekapitulace'!$L$1:$L$997)=H$4)*('Měsíční rekapitulace'!$A$3:$A$999=$A86)*TEXT('Měsíční rekapitulace'!$Q$3:$Q$999,"0,0;0;0;\0"))) -> 0 | I86: =IF($A86="",,SUMPRODUCT((LOOKUP(ROW(I$1:I$997),ROW(I$1:I$997)/ISNUMBER('Měsíční rekapitulace'!$L$1:$L$997),'Měsíční rekapitulace'!$L$1:$L$997)=I$4)*('Měsíční rekapitulace'!$A$3:$A$999=$A86)*TEXT('Měsíční rekapitulace'!$Q$3:$Q$999,"0,0;0;0;\0"))) -> 0 | J86: =IF($A86="",,SUMPRODUCT((LOOKUP(ROW(J$1:J$997),ROW(J$1:J$997)/ISNUMBER('Měsíční rekapitulace'!$L$1:$L$997),'Měsíční rekapitulace'!$L$1:$L$997)=J$4)*('Měsíční rekapitulace'!$A$3:$A$999=$A86)*TEXT('Měsíční rekapitulace'!$Q$3:$Q$999,"0,0;0;0;\0"))) -> 0 | K86: =IF($A86="",,SUMPRODUCT((LOOKUP(ROW(K$1:K$997),ROW(K$1:K$997)/ISNUMBER('Měsíční rekapitulace'!$L$1:$L$997),'Měsíční rekapitulace'!$L$1:$L$997)=K$4)*('Měsíční rekapitulace'!$A$3:$A$999=$A86)*TEXT('Měsíční rekapitulace'!$Q$3:$Q$999,"0,0;0;0;\0"))) -> 0 | L86: =IF($A86="",,SUMPRODUCT((LOOKUP(ROW(L$1:L$997),ROW(L$1:L$997)/ISNUMBER('Měsíční rekapitulace'!$L$1:$L$997),'Měsíční rekapitulace'!$L$1:$L$997)=L$4)*('Měsíční rekapitulace'!$A$3:$A$999=$A86)*TEXT('Měsíční rekapitulace'!$Q$3:$Q$999,"0,0;0;0;\0"))) -> 0 | M86: =IF($A86="",,SUMPRODUCT((LOOKUP(ROW(M$1:M$997),ROW(M$1:M$997)/ISNUMBER('Měsíční rekapitulace'!$L$1:$L$997),'Měsíční rekapitulace'!$L$1:$L$997)=M$4)*('Měsíční rekapitulace'!$A$3:$A$999=$A86)*TEXT('Měsíční rekapitulace'!$Q$3:$Q$999,"0,0;0;0;\0"))) -> 0 | N86: =IF($A86="",,SUMPRODUCT((LOOKUP(ROW(N$1:N$997),ROW(N$1:N$997)/ISNUMBER('Měsíční rekapitulace'!$L$1:$L$997),'Měsíční rekapitulace'!$L$1:$L$997)=N$4)*('Měsíční rekapitulace'!$A$3:$A$999=$A86)*TEXT('Měsíční rekapitulace'!$Q$3:$Q$999,"0,0;0;0;\0"))) -> 0 | O86: =IF($A86="",,SUMPRODUCT((LOOKUP(ROW(O$1:O$997),ROW(O$1:O$997)/ISNUMBER('Měsíční rekapitulace'!$L$1:$L$997),'Měsíční rekapitulace'!$L$1:$L$997)=O$4)*('Měsíční rekapitulace'!$A$3:$A$999=$A86)*TEXT('Měsíční rekapitulace'!$Q$3:$Q$999,"0,0;0;0;\0"))) -> 0 | P86: 0
A87: =IFERROR(INDEX('Měsíční rekapitulace'!A$3:A$999,SMALL(IF(('Měsíční rekapitulace'!A$3:A$999<>"")*('Měsíční rekapitulace'!A$3:A$999<>'Měsíční rekapitulace'!$A$2)*(COUNTIF(A$5:A86,'Měsíční rekapitulace'!A$3:A$999)=0),ROW('Měsíční rekapitulace'!A$3:A$999)-2),1)),"") ->  | B87: =IFERROR(INDEX('Měsíční rekapitulace'!E$3:E$999,MATCH(A87,'Měsíční rekapitulace'!A$3:A$999,)),"") ->  | D87: =IF($A87="",,SUMPRODUCT((LOOKUP(ROW(D$1:D$997),ROW(D$1:D$997)/ISNUMBER('Měsíční rekapitulace'!$L$1:$L$997),'Měsíční rekapitulace'!$L$1:$L$997)=D$4)*('Měsíční rekapitulace'!$A$3:$A$999=$A87)*TEXT('Měsíční rekapitulace'!$Q$3:$Q$999,"0,0;0;0;\0"))) -> 0 | E87: =IF($A87="",,SUMPRODUCT((LOOKUP(ROW(E$1:E$997),ROW(E$1:E$997)/ISNUMBER('Měsíční rekapitulace'!$L$1:$L$997),'Měsíční rekapitulace'!$L$1:$L$997)=E$4)*('Měsíční rekapitulace'!$A$3:$A$999=$A87)*TEXT('Měsíční rekapitulace'!$Q$3:$Q$999,"0,0;0;0;\0"))) -> 0 | F87: =IF($A87="",,SUMPRODUCT((LOOKUP(ROW(F$1:F$997),ROW(F$1:F$997)/ISNUMBER('Měsíční rekapitulace'!$L$1:$L$997),'Měsíční rekapitulace'!$L$1:$L$997)=F$4)*('Měsíční rekapitulace'!$A$3:$A$999=$A87)*TEXT('Měsíční rekapitulace'!$Q$3:$Q$999,"0,0;0;0;\0"))) -> 0 | G87: =IF($A87="",,SUMPRODUCT((LOOKUP(ROW(G$1:G$997),ROW(G$1:G$997)/ISNUMBER('Měsíční rekapitulace'!$L$1:$L$997),'Měsíční rekapitulace'!$L$1:$L$997)=G$4)*('Měsíční rekapitulace'!$A$3:$A$999=$A87)*TEXT('Měsíční rekapitulace'!$Q$3:$Q$999,"0,0;0;0;\0"))) -> 0 | H87: =IF($A87="",,SUMPRODUCT((LOOKUP(ROW(H$1:H$997),ROW(H$1:H$997)/ISNUMBER('Měsíční rekapitulace'!$L$1:$L$997),'Měsíční rekapitulace'!$L$1:$L$997)=H$4)*('Měsíční rekapitulace'!$A$3:$A$999=$A87)*TEXT('Měsíční rekapitulace'!$Q$3:$Q$999,"0,0;0;0;\0"))) -> 0 | I87: =IF($A87="",,SUMPRODUCT((LOOKUP(ROW(I$1:I$997),ROW(I$1:I$997)/ISNUMBER('Měsíční rekapitulace'!$L$1:$L$997),'Měsíční rekapitulace'!$L$1:$L$997)=I$4)*('Měsíční rekapitulace'!$A$3:$A$999=$A87)*TEXT('Měsíční rekapitulace'!$Q$3:$Q$999,"0,0;0;0;\0"))) -> 0 | J87: =IF($A87="",,SUMPRODUCT((LOOKUP(ROW(J$1:J$997),ROW(J$1:J$997)/ISNUMBER('Měsíční rekapitulace'!$L$1:$L$997),'Měsíční rekapitulace'!$L$1:$L$997)=J$4)*('Měsíční rekapitulace'!$A$3:$A$999=$A87)*TEXT('Měsíční rekapitulace'!$Q$3:$Q$999,"0,0;0;0;\0"))) -> 0 | K87: =IF($A87="",,SUMPRODUCT((LOOKUP(ROW(K$1:K$997),ROW(K$1:K$997)/ISNUMBER('Měsíční rekapitulace'!$L$1:$L$997),'Měsíční rekapitulace'!$L$1:$L$997)=K$4)*('Měsíční rekapitulace'!$A$3:$A$999=$A87)*TEXT('Měsíční rekapitulace'!$Q$3:$Q$999,"0,0;0;0;\0"))) -> 0 | L87: =IF($A87="",,SUMPRODUCT((LOOKUP(ROW(L$1:L$997),ROW(L$1:L$997)/ISNUMBER('Měsíční rekapitulace'!$L$1:$L$997),'Měsíční rekapitulace'!$L$1:$L$997)=L$4)*('Měsíční rekapitulace'!$A$3:$A$999=$A87)*TEXT('Měsíční rekapitulace'!$Q$3:$Q$999,"0,0;0;0;\0"))) -> 0 | M87: =IF($A87="",,SUMPRODUCT((LOOKUP(ROW(M$1:M$997),ROW(M$1:M$997)/ISNUMBER('Měsíční rekapitulace'!$L$1:$L$997),'Měsíční rekapitulace'!$L$1:$L$997)=M$4)*('Měsíční rekapitulace'!$A$3:$A$999=$A87)*TEXT('Měsíční rekapitulace'!$Q$3:$Q$999,"0,0;0;0;\0"))) -> 0 | N87: =IF($A87="",,SUMPRODUCT((LOOKUP(ROW(N$1:N$997),ROW(N$1:N$997)/ISNUMBER('Měsíční rekapitulace'!$L$1:$L$997),'Měsíční rekapitulace'!$L$1:$L$997)=N$4)*('Měsíční rekapitulace'!$A$3:$A$999=$A87)*TEXT('Měsíční rekapitulace'!$Q$3:$Q$999,"0,0;0;0;\0"))) -> 0 | O87: =IF($A87="",,SUMPRODUCT((LOOKUP(ROW(O$1:O$997),ROW(O$1:O$997)/ISNUMBER('Měsíční rekapitulace'!$L$1:$L$997),'Měsíční rekapitulace'!$L$1:$L$997)=O$4)*('Měsíční rekapitulace'!$A$3:$A$999=$A87)*TEXT('Měsíční rekapitulace'!$Q$3:$Q$999,"0,0;0;0;\0"))) -> 0 | P87: 0
